Workbook

Sheet isnad
D1: تكملة النصاب | H1: تكملة النصاب | L1: تكملة النصاب | P1: تكملة النصاب | T1: تكملة النصاب | X1: تكملة النصاب | AB1: تكملة النصاب | AF1: تكملة النصاب | AJ1: تكملة النصاب | AN1: تكملة النصاب | AR1: تكملة النصاب | AV1: تكملة النصاب | AZ1: تكملة النصاب | BD1: تكملة النصاب | BH1: تكملة النصاب | BL1: تكملة النصاب | BP1: تكملة النصاب | BT1: تكملة النصاب | BX1: تكملة النصاب | CB1: تكملة النصاب | CF1: تكملة النصاب | CJ1: تكملة النصاب | CN1: تكملة النصاب | CR1: تكملة النصاب | CV1: تكملة النصاب | CZ1: تكملة النصاب | DD1: تكملة النصاب | DH1: تكملة النصاب | DL1: تكملة النصاب | DP1: تكملة النصاب | DT1: تكملة النصاب | DX1: تكملة النصاب | EB1: تكملة النصاب | EF1: تكملة النصاب | EJ1: تكملة النصاب | EN1: تكملة النصاب | ER1: تكملة النصاب | EV1: تكملة النصاب | EZ1: تكملة النصاب | FD1: تكملة النصاب | FH1: تكملة النصاب | FL1: تكملة النصاب | FP1: تكملة النصاب | FT1: تكملة النصاب | FX1: تكملة النصاب | GB1: تكملة النصاب | GF1: تكملة النصاب | GJ1: تكملة النصاب | GN1: تكملة النصاب | GR1: تكملة النصاب | GV1: تكملة النصاب | GZ1: تكملة النصاب | HD1: تكملة النصاب | HH1: تكملة النصاب | HL1: تكملة النصاب | HP1: تكملة النصاب | HT1: تكملة النصاب | HX1: تكملة النصاب | IB1: تكملة النصاب | IF1: تكملة النصاب | IJ1: تكملة النصاب | IN1: تكملة النصاب | IR1: تكملة النصاب | IV1: تكملة النصاب | IZ1: تكملة النصاب | JD1: تكملة النصاب | JH1: تكملة النصاب | JL1: تكملة النصاب | JP1: تكملة النصاب | JT1: تكملة النصاب | JX1: تكملة النصاب | KB1: تكملة النصاب | KF1: تكملة النصاب | KJ1: تكملة النصاب | KN1: تكملة النصاب | KO1: نعم | KR1: تكملة النصاب | KV1: تكملة النصاب | KZ1: تكملة النصاب | LD1: تكملة النصاب | LH1: تكملة النصاب | LL1: تكملة النصاب | LP1: تكملة النصاب | LT1: تكملة النصاب | LX1: تكملة النصاب | MB1: تكملة النصاب | MF1: تكملة النصاب | MJ1: تكملة النصاب | MN1: تكملة النصاب | MR1: تكملة النصاب | MV1: تكملة النصاب | MZ1: تكملة النصاب | ND1: تكملة النصاب | NH1: تكملة النصاب | NL1: تكملة النصاب | NP1: تكملة النصاب | NT1: تكملة النصاب | NX1: تكملة النصاب | OB1: تكملة النصاب | OF1: تكملة النصاب | OJ1: تكملة النصاب | ON1: تكملة النصاب | OR1: تكملة النصاب | OV1: تكملة النصاب | OW1: نعم | OZ1: تكملة النصاب | PD1: تكملة النصاب | PH1: تكملة النصاب | PL1: تكملة النصاب | PP1: تكملة النصاب | PT1: تكملة النصاب | PX1: تكملة النصاب | QB1: تكملة النصاب | QF1: تكملة النصاب
D2: رياضيــــــــات1 | H2: رياضيــــــــات2 | L2: رياضيــــــــات3 | P2: رياضيــــــــات4 | T2: رياضيــــــــات5 | X2: رياضيــــــــات6 | AB2: رياضيــــــــات7 | AF2: رياضيــــــــات8 | AJ2: رياضيــــــــات9 | AN2: رياضيــــــــات10 | AR2: فيزياء1 | AV2: فيزياء2 | AZ2: فيزياء3 | BD2: فيزياء4 | BH2: فيزياء5 | BL2: فيزياء6 | BP2: فيزياء7 | BT2: فيزياء8 | BX2: فيزياء9 | CB2: فيزياء10 | CF2: ع.طبيعية1 | CJ2: ع.طبيعية2 | CN2: ع.طبيعية3 | CR2: ع.طبيعية4 | CV2: ع.طبيعية5 | CZ2: ع.طبيعية6 | DD2: ع.طبيعية7 | DH2: ع.طبيعية8 | DL2: ع.طبيعية9 | DP2: ع.طبيعية10 | DT2: علوم اسلامية1 | DX2: علوم اسلامية2 | EB2: علوم اسلامية3 | EF2: علوم اسلامية4 | EJ2: أدب عربي1 | EN2: أدب عربي2 | ER2: أدب عربي3 | EV2: أدب عربي4 | EZ2: أدب عربي5 | FD2: أدب عربي6 | FH2: أدب عربي7 | FL2: أدب عربي8 | FP2: أدب عربي9 | FT2: أدب عربي10 | FX2: فلسفة1 | GB2: فلسفة2 | GF2: فلسفة3 | GJ2: فلسفة4 | GN2: فلسفة5 | GR2: تاريخ و جغرافيا1 | GV2: تاريخ و جغرافيا2 | GZ2: تاريخ و جغرافيا3 | HD2: تاريخ و جغرافيا4 | HH2: تاريخ و جغرافيا5 | HL2: تاريخ و جغرافيا6 | HP2: تاريخ و جغرافيا7 | HT2: فرنسية1 | HX2: فرنسية2 | IB2: فرنسية3 | IF2: فرنسية4 | IJ2: فرنسية5 | IN2: فرنسية6 | IR2: فرنسية7 | IV2: فرنسية8 | IZ2: انجليزية1 | JD2: انجليزية2 | JH2: انجليزية3 | JL2: انجليزية4 | JP2: انجليزية5 | JT2: انجليزية6 | JX2: انجليزية7 | KB2: انجليزية8 | KF2: ألمانية1 | KJ2: ألمانية2 | KN2: اسبانية1 | KR2: اسبانية2 | KV2: ايطالية1 | KZ2: ايطالية2 | LD2: رسم1 | LH2: رسم2 | LL2: موسيقى1 | LP2: موسيقى2 | LT2: اعلام آلي1 | LX2: اعلام آلي2 | MB2: تربية بدنية1 | MF2: تربية بدنية2 | MJ2: تربية بدنية3 | MN2: تربية بدنية4 | MR2: تربية بدنية5 | MV2: ميكانيك1 | MZ2: ميكانيك2 | ND2: ميكانيك3 | NH2: كهرباء1 | NL2: كهرباء2 | NP2: كهرباء3 | NT2: هـ مدنية1 | NX2: هـ مدنية2 | OB2: هـ مدنية3 | OF2: هـ الطرائق1 | OJ2: هـ الطرائق2 | ON2: هـ الطرائق3 | OR2: إقتصاد1 | OV2: إقتصاد2 | OZ2: إقتصاد3 | PD2: تكنولوجيا1 | PH2: تكنولوجيا2 | PL2: أمازيغية1 | PP2: أمازيغية2 | PT2: رئيس أشغال1 | PX2: رئيس أشغال2 | QB2: رئيس ورشة1 | QF2: رئيس ورشة2
D3: اللقب والاسم | E3: سي العربي سامية | H3: اللقب والاسم | I3: مصطفى وردية | L3: اللقب والاسم | M3: زواوي حورية | P3: اللقب والاسم | T3: اللقب والاسم | X3: اللقب والاسم | AB3: اللقب والاسم | AF3: اللقب والاسم | AJ3: اللقب والاسم | AN3: اللقب والاسم | AR3: اللقب والاسم | AS3: كبير عائشة | AV3: اللقب والاسم | AW3: بزلي نورية | AZ3: اللقب والاسم | BA3: بناي العالية | BD3: اللقب والاسم | BH3: اللقب والاسم | BL3: اللقب والاسم | BP3: اللقب والاسم | BT3: اللقب والاسم | BX3: اللقب والاسم | CB3: اللقب والاسم | CF3: اللقب والاسم | CG3: بن كحلة ف. الزهراء | CJ3: اللقب والاسم | CK3: يوسفي خيرة | CN3: اللقب والاسم | CO3: محمد خيرة | CR3: اللقب والاسم | CV3: اللقب والاسم | CZ3: اللقب والاسم | DD3: اللقب والاسم | DH3: اللقب والاسم | DL3: اللقب والاسم | DP3: اللقب والاسم | DT3: اللقب والاسم | DU3: يعقوب بن عيسى | DX3: اللقب والاسم | DY3: بوقفحة فتيحة | EB3: اللقب والاسم | EF3: اللقب والاسم | EJ3: اللقب والاسم | EK3: جيلالي نور الدين | EN3: اللقب والاسم | EO3: لمجادي سورية | ER3: اللقب والاسم | ES3: بقدور زهية | EV3: اللقب والاسم | EW3: شريف فتيحة | EZ3: اللقب والاسم | FD3: اللقب والاسم | FH3: اللقب والاسم | FL3: اللقب والاسم | FP3: اللقب والاسم | FT3: اللقب والاسم | FX3: اللقب والاسم | FY3: سعودي فاطمة | GB3: اللقب والاسم | GC3: سي العربي صفية | GF3: اللقب والاسم | GJ3: اللقب والاسم | GN3: اللقب والاسم | GR3: اللقب والاسم | GS3: حلوان محمد | GV3: اللقب والاسم | GW3: بوغلودة بدرة | GZ3: اللقب والاسم | HA3: دويس كريمة | HD3: اللقب والاسم | HH3: اللقب والاسم | HL3: اللقب والاسم | HP3: اللقب والاسم | HT3: اللقب والاسم | HU3: شادلي عبد القادر | HX3: اللقب والاسم | HY3: عبيش مليكة | IB3: اللقب والاسم | IC3: علو هواري | IF3: اللقب والاسم | IJ3: اللقب والاسم | IN3: اللقب والاسم | IR3: اللقب والاسم | IV3: اللقب والاسم | IZ3: اللقب والاسم | JA3: نيال محمد | JD3: اللقب والاسم | JE3: بن جامعة فضيلة | JH3: اللقب والاسم | JI3: طيب الحاج | JL3: اللقب والاسم | JM3: بن عابد الباتول | JP3: اللقب والاسم | JT3: اللقب والاسم | JX3: اللقب والاسم | KB3: اللقب والاسم | KF3: اللقب والاسم | KJ3: اللقب والاسم | KN3: اللقب والاسم | KO3: بورياح خديجة | KR3: اللقب والاسم | KV3: اللقب والاسم | KZ3: اللقب والاسم | LD3: اللقب والاسم | LH3: اللقب والاسم | LL3: اللقب والاسم | LP3: اللقب والاسم | LT3: اللقب والاسم | LU3: شعبان سامية | LX3: اللقب والاسم | MB3: اللقب والاسم | MC3: بروبة محمد | MF3: اللقب والاسم | MG3: مسعودي عمر | MJ3: اللقب والاسم | MN3: اللقب والاسم | MR3: اللقب والاسم | MV3: اللقب والاسم | MZ3: اللقب والاسم | ND3: اللقب والاسم | NH3: اللقب والاسم | NI3: طاهري عبد القادر | NL3: اللقب والاسم | NP3: اللقب والاسم | NT3: اللقب والاسم | NU3: وادي اسماعيل | NX3: اللقب والاسم | OB3: اللقب والاسم | OF3: اللقب والاسم | OJ3: اللقب والاسم | ON3: اللقب والاسم | OR3: اللقب والاسم | OS3: درويش جلول | OV3: اللقب والاسم | OW3: شارف العيد | OZ3: اللقب والاسم | PD3: اللقب والاسم | PH3: اللقب والاسم | PL3: اللقب والاسم | PP3: اللقب والاسم | PT3: اللقب والاسم | PX3: اللقب والاسم | QB3: اللقب والاسم | QF3: اللقب والاسم
D4: الرتبة | E4: أستاذ تعليم ثانوي | H4: الرتبة | I4: أستاذ تعليم ثانوي | L4: الرتبة | M4: أستاذ تعليم ثانوي | P4: الرتبة | T4: الرتبة | X4: الرتبة | AB4: الرتبة | AF4: الرتبة | AJ4: الرتبة | AN4: الرتبة | AR4: الرتبة | AS4: أستاذ تعليم ثانوي | AV4: الرتبة | AW4: أستاذ تعليم ثانوي | AZ4: الرتبة | BA4: أستاذ تعليم ثانوي | BD4: الرتبة | BH4: الرتبة | BL4: الرتبة | BP4: الرتبة | BT4: الرتبة | BX4: الرتبة | CB4: الرتبة | CF4: الرتبة | CG4: أستاذ تعليم ثانوي | CJ4: الرتبة | CK4: أستاذ تعليم ثانوي | CN4: الرتبة | CO4: أستاذ تعليم ثانوي | CR4: الرتبة | CV4: الرتبة | CZ4: الرتبة | DD4: الرتبة | DH4: الرتبة | DL4: الرتبة | DP4: الرتبة | DT4: الرتبة | DU4: أستاذ تعليم ثانوي رئيسي | DX4: الرتبة | DY4: أستاذ تعليم ثانوي | EB4: الرتبة | EF4: الرتبة | EJ4: الرتبة | EK4: أستاذ تعليم ثانوي رئيسي | EN4: الرتبة | EO4: أستاذ تعليم ثانوي رئيسي | ER4: الرتبة | ES4: أستاذ تعليم ثانوي | EV4: الرتبة | EW4: أستاذ تعليم ثانوي رئيسي | EZ4: الرتبة | FD4: الرتبة | FH4: الرتبة | FL4: الرتبة | FP4: الرتبة | FT4: الرتبة | FX4: الرتبة | FY4: أستاذ تعليم ثانوي رئيسي | GB4: الرتبة | GC4: أستاذ تعليم ثانوي | GF4: الرتبة | GJ4: الرتبة | GN4: الرتبة | GR4: الرتبة | GS4: أستاذ تعليم ثانوي رئيسي | GV4: الرتبة | GW4: أستاذ تعليم ثانوي | GZ4: الرتبة | HA4: أستاذ تعليم ثانوي | HD4: الرتبة | HH4: الرتبة | HL4: الرتبة | HP4: الرتبة | HT4: الرتبة | HU4: أستاذ تعليم ثانوي | HX4: الرتبة | HY4: أستاذ تعليم ثانوي | IB4: الرتبة | IC4: أستاذ تعليم ثانوي | IF4: الرتبة | IJ4: الرتبة | IN4: الرتبة | IR4: الرتبة | IV4: الرتبة | IZ4: الرتبة | JA4: أستاذ تعليم ثانوي رئيسي | JD4: الرتبة | JE4: أستاذ تعليم ثانوي | JH4: الرتبة | JI4: أستاذ تعليم ثانوي رئيسي | JL4: الرتبة | JM4: أستاذ تعليم ثانوي | JP4: الرتبة | JT4: الرتبة | JX4: الرتبة | KB4: الرتبة | KF4: الرتبة | KJ4: الرتبة | KN4: الرتبة | KO4: أستاذ تعليم ثانوي رئيسي | KR4: الرتبة | KV4: الرتبة | KZ4: الرتبة | LD4: الرتبة | LH4: الرتبة | LL4: الرتبة | LP4: الرتبة | LT4: الرتبة | LU4: أستاذ تعليم ثانوي | LX4: الرتبة | MB4: الرتبة | MC4: أستاذ تعليم ثانوي | MF4: الرتبة | MG4: أستاذ تعليم ثانوي | MJ4: الرتبة | MN4: الرتبة | MR4: الرتبة | MV4: الرتبة | MZ4: الرتبة | ND4: الرتبة | NH4: الرتبة | NI4: أستاذ تعليم ثانوي | NL4: الرتبة | NP4: الرتبة | NT4: الرتبة | NU4: أستاذ تعليم ثانوي رئيسي | NX4: الرتبة | OB4: الرتبة | OF4: الرتبة | OJ4: الرتبة | ON4: الرتبة | OR4: الرتبة | OS4: أستاذ تعليم ثانوي | OV4: الرتبة | OW4: أستاذ تعليم ثانوي | OZ4: الرتبة | PD4: الرتبة | PH4: الرتبة | PL4: الرتبة | PP4: الرتبة | PT4: الرتبة | PX4: الرتبة | QB4: الرتبة | QF4: الرتبة
D5: تاريخ الميلاد | E5: 1990-11-05 | H5: تاريخ الميلاد | I5: 1989-05-01 | L5: تاريخ الميلاد | M5: 1989-09-17 | P5: تاريخ الميلاد | T5: تاريخ الميلاد | X5: تاريخ الميلاد | AB5: تاريخ الميلاد | AF5: تاريخ الميلاد | AJ5: تاريخ الميلاد | AN5: تاريخ الميلاد | AR5: تاريخ الميلاد | AS5: 1989-03-16 | AV5: تاريخ الميلاد | AW5: 1979-12-23 | AZ5: تاريخ الميلاد | BA5: 1988-10-28 | BD5: تاريخ الميلاد | BH5: تاريخ الميلاد | BL5: تاريخ الميلاد | BP5: تاريخ الميلاد | BT5: تاريخ الميلاد | BX5: تاريخ الميلاد | CB5: تاريخ الميلاد | CF5: تاريخ الميلاد | CG5: 1987-02-17 | CJ5: تاريخ الميلاد | CK5: 1986-01-04 | CN5: تاريخ الميلاد | CO5: 1982-07-26 | CR5: تاريخ الميلاد | CV5: تاريخ الميلاد | CZ5: تاريخ الميلاد | DD5: تاريخ الميلاد | DH5: تاريخ الميلاد | DL5: تاريخ الميلاد | DP5: تاريخ الميلاد | DT5: تاريخ الميلاد | DU5: 1982-08-07 | DX5: تاريخ الميلاد | DY5: 1981-07-27 | EB5: تاريخ الميلاد | EF5: تاريخ الميلاد | EJ5: تاريخ الميلاد | EK5: 1980-06-06 | EN5: تاريخ الميلاد | EO5: 1985-09-03 | ER5: تاريخ الميلاد | ES5: 07/12/0987 | EV5: تاريخ الميلاد | EW5: 1987-12-16 | EZ5: تاريخ الميلاد | FD5: تاريخ الميلاد | FH5: تاريخ الميلاد | FL5: تاريخ الميلاد | FP5: تاريخ الميلاد | FT5: تاريخ الميلاد | FX5: تاريخ الميلاد | FY5: 1986-09-28 | GB5: تاريخ الميلاد | GC5: 1990-09-06 | GF5: تاريخ الميلاد | GJ5: تاريخ الميلاد | GN5: تاريخ الميلاد | GR5: تاريخ الميلاد | GS5: 1984-12-23 | GV5: تاريخ الميلاد | GW5: 1985-11-02 | GZ5: تاريخ الميلاد | HA5: 1986-02-28 | HD5: تاريخ الميلاد | HH5: تاريخ الميلاد | HL5: تاريخ الميلاد | HP5: تاريخ الميلاد | HT5: تاريخ الميلاد | HU5: 1981-01-18 | HX5: تاريخ الميلاد | HY5: 1988-05-21 | IB5: تاريخ الميلاد | IC5: 1989-10-09 | IF5: تاريخ الميلاد | IJ5: تاريخ الميلاد | IN5: تاريخ الميلاد | IR5: تاريخ الميلاد | IV5: تاريخ الميلاد | IZ5: تاريخ الميلاد | JA5: 08/04/0984 | JD5: تاريخ الميلاد | JE5: 1980-01-22 | JH5: تاريخ الميلاد | JI5: 1985-09-28 | JL5: تاريخ الميلاد | JM5: 1983-01-23 | JP5: تاريخ الميلاد | JT5: تاريخ الميلاد | JX5: تاريخ الميلاد | KB5: تاريخ الميلاد | KF5: تاريخ الميلاد | KJ5: تاريخ الميلاد | KN5: تاريخ الميلاد | KO5: 1986-01-01 | KR5: تاريخ الميلاد | KV5: تاريخ الميلاد | KZ5: تاريخ الميلاد | LD5: تاريخ الميلاد | LH5: تاريخ الميلاد | LL5: تاريخ الميلاد | LP5: تاريخ الميلاد | LT5: تاريخ الميلاد | LU5: 1991-12-04 | LX5: تاريخ الميلاد | MB5: تاريخ الميلاد | MC5: 1984-11-02 | MF5: تاريخ الميلاد | MG5: 1985-06-23 | MJ5: تاريخ الميلاد | MN5: تاريخ الميلاد | MR5: تاريخ الميلاد | MV5: تاريخ الميلاد | MZ5: تاريخ الميلاد | ND5: تاريخ الميلاد | NH5: تاريخ الميلاد | NI5: 1985-04-22 | NL5: تاريخ الميلاد | NP5: تاريخ الميلاد | NT5: تاريخ الميلاد | NU5: 1983-12-28 | NX5: تاريخ الميلاد | OB5: تاريخ الميلاد | OF5: تاريخ الميلاد | OJ5: تاريخ الميلاد | ON5: تاريخ الميلاد | OR5: تاريخ الميلاد | OS5: 1990-01-17 | OV5: تاريخ الميلاد | OW5: 1990-01-17 | OZ5: تاريخ الميلاد | PD5: تاريخ الميلاد | PH5: تاريخ الميلاد | PL5: تاريخ الميلاد | PP5: تاريخ الميلاد | PT5: تاريخ الميلاد | PX5: تاريخ الميلاد | QB5: تاريخ الميلاد | QF5: تاريخ الميلاد
D6: الصفة | E6: مرسم | H6: الصفة | I6: مرسم | L6: الصفة | M6: مرسم | P6: الصفة | T6: الصفة | X6: الصفة | AB6: الصفة | AF6: الصفة | AJ6: الصفة | AN6: الصفة | AR6: الصفة | AS6: مرسم | AV6: الصفة | AW6: مرسم | AZ6: الصفة | BA6: مرسم | BD6: الصفة | BH6: الصفة | BL6: الصفة | BP6: الصفة | BT6: الصفة | BX6: الصفة | CB6: الصفة | CF6: الصفة | CG6: مرسم | CJ6: الصفة | CK6: مرسم | CN6: الصفة | CO6: مرسم | CR6: الصفة | CV6: الصفة | CZ6: الصفة | DD6: الصفة | DH6: الصفة | DL6: الصفة | DP6: الصفة | DT6: الصفة | DU6: مرسم | DX6: الصفة | DY6: متعاقد | EB6: الصفة | EF6: الصفة | EJ6: الصفة | EK6: مرسم | EN6: الصفة | EO6: مرسم | ER6: الصفة | ES6: مرسم | EV6: الصفة | EW6: مرسم | EZ6: الصفة | FD6: الصفة | FH6: الصفة | FL6: الصفة | FP6: الصفة | FT6: الصفة | FX6: الصفة | FY6: مرسم | GB6: الصفة | GC6: مرسم | GF6: الصفة | GJ6: الصفة | GN6: الصفة | GR6: الصفة | GS6: مرسم | GV6: الصفة | GW6: مرسم | GZ6: الصفة | HA6: مرسم | HD6: الصفة | HH6: الصفة | HL6: الصفة | HP6: الصفة | HT6: الصفة | HU6: مرسم | HX6: الصفة | HY6: مرسم | IB6: الصفة | IC6: متعاقد | IF6: الصفة | IJ6: الصفة | IN6: الصفة | IR6: الصفة | IV6: الصفة | IZ6: الصفة | JA6: مرسم | JD6: الصفة | JE6: مرسم | JH6: الصفة | JI6: مرسم | JL6: الصفة | JM6: مرسم | JP6: الصفة | JT6: الصفة | JX6: الصفة | KB6: الصفة | KF6: الصفة | KJ6: الصفة | KN6: الصفة | KO6: مرسم | KR6: الصفة | KV6: الصفة | KZ6: الصفة | LD6: الصفة | LH6: الصفة | LL6: الصفة | LP6: الصفة | LT6: الصفة | LU6: مرسم | LX6: الصفة | MB6: الصفة | MC6: مرسم | MF6: الصفة | MG6: مرسم | MJ6: الصفة | MN6: الصفة | MR6: الصفة | MV6: الصفة | MZ6: الصفة | ND6: الصفة | NH6: الصفة | NI6: مرسم | NL6: الصفة | NP6: الصفة | NT6: الصفة | NU6: مرسم | NX6: الصفة | OB6: الصفة | OF6: الصفة | OJ6: الصفة | ON6: الصفة | OR6: الصفة | OS6: مرسم | OV6: الصفة | OW6: مرسم | OZ6: الصفة | PD6: الصفة | PH6: الصفة | PL6: الصفة | PP6: الصفة | PT6: الصفة | PX6: الصفة | QB6: الصفة | QF6: الصفة
D7: أقصى درجة جامعية | E7: ليسانس | H7: أقصى درجة جامعية | I7: ليسانس | L7: أقصى درجة جامعية | M7: ليسانس | P7: أقصى درجة جامعية | T7: أقصى درجة جامعية | X7: أقصى درجة جامعية | AB7: أقصى درجة جامعية | AF7: أقصى درجة جامعية | AJ7: أقصى درجة جامعية | AN7: أقصى درجة جامعية | AR7: أقصى درجة جامعية | AS7: ليسانس | AV7: أقصى درجة جامعية | AW7: ليسانس | AZ7: أقصى درجة جامعية | BA7: ليسانس | BD7: أقصى درجة جامعية | BH7: أقصى درجة جامعية | BL7: أقصى درجة جامعية | BP7: أقصى درجة جامعية | BT7: أقصى درجة جامعية | BX7: أقصى درجة جامعية | CB7: أقصى درجة جامعية | CF7: أقصى درجة جامعية | CG7: ليسانس | CJ7: أقصى درجة جامعية | CK7: ليسانس | CN7: أقصى درجة جامعية | CO7: ليسانس | CR7: أقصى درجة جامعية | CV7: أقصى درجة جامعية | CZ7: أقصى درجة جامعية | DD7: أقصى درجة جامعية | DH7: أقصى درجة جامعية | DL7: أقصى درجة جامعية | DP7: أقصى درجة جامعية | DT7: أقصى درجة جامعية | DU7: ليسانس | DX7: أقصى درجة جامعية | DY7: ليسانس | EB7: أقصى درجة جامعية | EF7: أقصى درجة جامعية | EJ7: أقصى درجة جامعية | EK7: ليسانس | EN7: أقصى درجة جامعية | EO7: ليسانس | ER7: أقصى درجة جامعية | ES7: ليسانس | EV7: أقصى درجة جامعية | EW7: ليسانس | EZ7: أقصى درجة جامعية | FD7: أقصى درجة جامعية | FH7: أقصى درجة جامعية | FL7: أقصى درجة جامعية | FP7: أقصى درجة جامعية | FT7: أقصى درجة جامعية | FX7: أقصى درجة جامعية | FY7: ليسانس | GB7: أقصى درجة جامعية | GC7: ليسانس | GF7: أقصى درجة جامعية | GJ7: أقصى درجة جامعية | GN7: أقصى درجة جامعية | GR7: أقصى درجة جامعية | GS7: ليسانس | GV7: أقصى درجة جامعية | GW7: ليسانس | GZ7: أقصى درجة جامعية | HA7: ليسانس | HD7: أقصى درجة جامعية | HH7: أقصى درجة جامعية | HL7: أقصى درجة جامعية | HP7: أقصى درجة جامعية | HT7: أقصى درجة جامعية | HU7: ليسانس | HX7: أقصى درجة جامعية | HY7: ليسانس | IB7: أقصى درجة جامعية | IC7: ليسانس | IF7: أقصى درجة جامعية | IJ7: أقصى درجة جامعية | IN7: أقصى درجة جامعية | IR7: أقصى درجة جامعية | IV7: أقصى درجة جامعية | IZ7: أقصى درجة جامعية | JA7: ليسانس | JD7: أقصى درجة جامعية | JE7: ليسانس | JH7: أقصى درجة جامعية | JI7: ليسانس | JL7: أقصى درجة جامعية | JM7: ليسانس | JP7: أقصى درجة جامعية | JT7: أقصى درجة جامعية | JX7: أقصى درجة جامعية | KB7: أقصى درجة جامعية | KF7: أقصى درجة جامعية | KJ7: أقصى درجة جامعية | KN7: أقصى درجة جامعية | KO7: ليسانس | KR7: أقصى درجة جامعية | KV7: أقصى درجة جامعية | KZ7: أقصى درجة جامعية | LD7: أقصى درجة جامعية | LH7: أقصى درجة جامعية | LL7: أقصى درجة جامعية | LP7: أقصى درجة جامعية | LT7: أقصى درجة جامعية | LU7: ليسانس | LX7: أقصى درجة جامعية | MB7: أقصى درجة جامعية | MC7: ليسانس | MF7: أقصى درجة جامعية | MG7: ليسانس | MJ7: أقصى درجة جامعية | MN7: أقصى درجة جامعية | MR7: أقصى درجة جامعية | MV7: أقصى درجة جامعية | MZ7: أقصى درجة جامعية | ND7: أقصى درجة جامعية | NH7: أقصى درجة جامعية | NI7: ليسانس | NL7: أقصى درجة جامعية | NP7: أقصى درجة جامعية | NT7: أقصى درجة جامعية | NU7: ليسانس | NX7: أقصى درجة جامعية | OB7: أقصى درجة جامعية | OF7: أقصى درجة جامعية | OJ7: أقصى درجة جامعية | ON7: أقصى درجة جامعية | OR7: أقصى درجة جامعية | OS7: ليسانس | OV7: أقصى درجة جامعية | OW7: ليسانس | OZ7: أقصى درجة جامعية | PD7: أقصى درجة جامعية | PH7: أقصى درجة جامعية | PL7: أقصى درجة جامعية | PP7: أقصى درجة جامعية | PT7: أقصى درجة جامعية | PX7: أقصى درجة جامعية | QB7: أقصى درجة جامعية | QF7: أقصى درجة جامعية
D8: تاريخ التعيين بالمؤسسة | E8: 2015-08-25 | H8: تاريخ التعيين بالمؤسسة | I8: 2015-06-16 | L8: تاريخ التعيين بالمؤسسة | M8: 2017-06-21 | P8: تاريخ التعيين بالمؤسسة | T8: تاريخ التعيين بالمؤسسة | X8: تاريخ التعيين بالمؤسسة | AB8: تاريخ التعيين بالمؤسسة | AF8: تاريخ التعيين بالمؤسسة | AJ8: تاريخ التعيين بالمؤسسة | AN8: تاريخ التعيين بالمؤسسة | AR8: تاريخ التعيين بالمؤسسة | AS8: 2014-08-26 | AV8: تاريخ التعيين بالمؤسسة | AW8: 2014-09-02 | AZ8: تاريخ التعيين بالمؤسسة | BA8: 2017-06-21 | BD8: تاريخ التعيين بالمؤسسة | BH8: تاريخ التعيين بالمؤسسة | BL8: تاريخ التعيين بالمؤسسة | BP8: تاريخ التعيين بالمؤسسة | BT8: تاريخ التعيين بالمؤسسة | BX8: تاريخ التعيين بالمؤسسة | CB8: تاريخ التعيين بالمؤسسة | CF8: تاريخ التعيين بالمؤسسة | CG8: 2017-06-21 | CJ8: تاريخ التعيين بالمؤسسة | CK8: 2017-06-21 | CN8: تاريخ التعيين بالمؤسسة | CO8: 2017-06-21 | CR8: تاريخ التعيين بالمؤسسة | CV8: تاريخ التعيين بالمؤسسة | CZ8: تاريخ التعيين بالمؤسسة | DD8: تاريخ التعيين بالمؤسسة | DH8: تاريخ التعيين بالمؤسسة | DL8: تاريخ التعيين بالمؤسسة | DP8: تاريخ التعيين بالمؤسسة | DT8: تاريخ التعيين بالمؤسسة | DU8: 2014-09-01 | DX8: تاريخ التعيين بالمؤسسة | DY8: 2017-10-02 | EB8: تاريخ التعيين بالمؤسسة | EF8: تاريخ التعيين بالمؤسسة | EJ8: تاريخ التعيين بالمؤسسة | EK8: 2014-09-01 | EN8: تاريخ التعيين بالمؤسسة | EO8: 2015-09-15 | ER8: تاريخ التعيين بالمؤسسة | ES8: 2017-06-21 | EV8: تاريخ التعيين بالمؤسسة | EW8: 2017-06-21 | EZ8: تاريخ التعيين بالمؤسسة | FD8: تاريخ التعيين بالمؤسسة | FH8: تاريخ التعيين بالمؤسسة | FL8: تاريخ التعيين بالمؤسسة | FP8: تاريخ التعيين بالمؤسسة | FT8: تاريخ التعيين بالمؤسسة | FX8: تاريخ التعيين بالمؤسسة | FY8: 2014-09-01 | GB8: تاريخ التعيين بالمؤسسة | GC8: 2014-09-08 | GF8: تاريخ التعيين بالمؤسسة | GJ8: تاريخ التعيين بالمؤسسة | GN8: تاريخ التعيين بالمؤسسة | GR8: تاريخ التعيين بالمؤسسة | GS8: 2014-09-01 | GV8: تاريخ التعيين بالمؤسسة | GW8: 2014-09-01 | GZ8: تاريخ التعيين بالمؤسسة | HA8: 2017-06-21 | HD8: تاريخ التعيين بالمؤسسة | HH8: تاريخ التعيين بالمؤسسة | HL8: تاريخ التعيين بالمؤسسة | HP8: تاريخ التعيين بالمؤسسة | HT8: تاريخ التعيين بالمؤسسة | HU8: 2014-09-01 | HX8: تاريخ التعيين بالمؤسسة | HY8: 2014-09-01 | IB8: تاريخ التعيين بالمؤسسة | IC8: 2017-10-05 | IF8: تاريخ التعيين بالمؤسسة | IJ8: تاريخ التعيين بالمؤسسة | IN8: تاريخ التعيين بالمؤسسة | IR8: تاريخ التعيين بالمؤسسة | IV8: تاريخ التعيين بالمؤسسة | IZ8: تاريخ التعيين بالمؤسسة | JA8: 2014-09-08 | JD8: تاريخ التعيين بالمؤسسة | JE8: 2014-09-01 | JH8: تاريخ التعيين بالمؤسسة | JI8: 2017-06-21 | JL8: تاريخ التعيين بالمؤسسة | JM8: 2017-06-21 | JP8: تاريخ التعيين بالمؤسسة | JT8: تاريخ التعيين بالمؤسسة | JX8: تاريخ التعيين بالمؤسسة | KB8: تاريخ التعيين بالمؤسسة | KF8: تاريخ التعيين بالمؤسسة | KJ8: تاريخ التعيين بالمؤسسة | KN8: تاريخ التعيين بالمؤسسة | KO8: 2014-09-01 | KR8: تاريخ التعيين بالمؤسسة | KV8: تاريخ التعيين بالمؤسسة | KZ8: تاريخ التعيين بالمؤسسة | LD8: تاريخ التعيين بالمؤسسة | LH8: تاريخ التعيين بالمؤسسة | LL8: تاريخ التعيين بالمؤسسة | LP8: تاريخ التعيين بالمؤسسة | LT8: تاريخ التعيين بالمؤسسة | LU8: 2016-01-03 | LX8: تاريخ التعيين بالمؤسسة | MB8: تاريخ التعيين بالمؤسسة | MC8: 2014-09-01 | MF8: تاريخ التعيين بالمؤسسة | MG8: 2017-09-08 | MJ8: تاريخ التعيين بالمؤسسة | MN8: تاريخ التعيين بالمؤسسة | MR8: تاريخ التعيين بالمؤسسة | MV8: تاريخ التعيين بالمؤسسة | MZ8: تاريخ التعيين بالمؤسسة | ND8: تاريخ التعيين بالمؤسسة | NH8: تاريخ التعيين بالمؤسسة | NI8: 2014-09-01 | NL8: تاريخ التعيين بالمؤسسة | NP8: تاريخ التعيين بالمؤسسة | NT8: تاريخ التعيين بالمؤسسة | NU8: 2014-09-01 | NX8: تاريخ التعيين بالمؤسسة | OB8: تاريخ التعيين بالمؤسسة | OF8: تاريخ التعيين بالمؤسسة | OJ8: تاريخ التعيين بالمؤسسة | ON8: تاريخ التعيين بالمؤسسة | OR8: تاريخ التعيين بالمؤسسة | OS8: 2014-09-01 | OV8: تاريخ التعيين بالمؤسسة | OW8: 2014-09-01 | OZ8: تاريخ التعيين بالمؤسسة | PD8: تاريخ التعيين بالمؤسسة | PH8: تاريخ التعيين بالمؤسسة | PL8: تاريخ التعيين بالمؤسسة | PP8: تاريخ التعيين بالمؤسسة | PT8: تاريخ التعيين بالمؤسسة | PX8: تاريخ التعيين بالمؤسسة | QB8: تاريخ التعيين بالمؤسسة | QF8: تاريخ التعيين بالمؤسسة
A9: الأفواج | B9: المستوى | C9: التعداد | D9: سا نظرية | E9: سا تط | G9: المعامل | H9: سا نظرية | I9: سا تط | K9: المعامل | L9: سا نظرية | M9: سا تط | O9: المعامل | P9: سا نظرية | Q9: سا تط | S9: المعامل | T9: سا نظرية | U9: سا تط | W9: المعامل | X9: سا نظرية | Y9: سا تط | AA9: المعامل | AB9: سا نظرية | AC9: سا تط | AE9: المعامل | AF9: سا نظرية | AG9: سا تط | AI9: المعامل | AJ9: سا نظرية | AK9: سا تط | AM9: المعامل | AN9: سا نظرية | AO9: سا تط | AQ9: المعامل | AR9: سا نظرية | AS9: سا تط | AU9: المعامل | AV9: سا نظرية | AW9: سا تط | AY9: المعامل | AZ9: سا نظرية | BA9: سا تط | BC9: المعامل | BD9: سا نظرية | BE9: سا تط | BG9: المعامل | BH9: سا نظرية | BI9: سا تط | BK9: المعامل | BL9: سا نظرية | BM9: سا تط | BO9: المعامل | BP9: سا نظرية | BQ9: سا تط | BS9: المعامل | BT9: سا نظرية | BU9: سا تط | BW9: المعامل | BX9: سا نظرية | BY9: سا تط | CA9: المعامل | CB9: سا نظرية | CC9: سا تط | CE9: المعامل | CF9: سا نظرية | CG9: سا تط | CI9: المعامل | CJ9: سا نظرية | CK9: سا تط | CM9: المعامل | CN9: سا نظرية | CO9: سا تط | CQ9: المعامل | CR9: سا نظرية | CS9: سا تط | CU9: المعامل | CV9: سا نظرية | CW9: سا تط | CY9: المعامل | CZ9: سا نظرية | DA9: سا تط | DC9: المعامل | DD9: سا نظرية | DE9: سا تط | DG9: المعامل | DH9: سا نظرية | DI9: سا تط | DK9: المعامل | DL9: سا نظرية | DM9: سا تط | DO9: المعامل | DP9: سا نظرية | DQ9: سا تط | DS9: المعامل | DT9: سا نظرية | DU9: سا تط | DW9: المعامل | DX9: سا نظرية | DY9: سا تط | EA9: المعامل | EB9: سا نظرية | EC9: سا تط | EE9: المعامل | EF9: سا نظرية | EG9: سا تط | EI9: المعامل | EJ9: سا نظرية | EK9: سا تط | EM9: المعامل | EN9: سا نظرية | EO9: سا تط | EQ9: المعامل | ER9: سا نظرية | ES9: سا تط | EU9: المعامل | EV9: سا نظرية | EW9: سا تط | EY9: المعامل | EZ9: سا نظرية | FA9: سا تط | FC9: المعامل | FD9: سا نظرية | FE9: سا تط | FG9: المعامل | FH9: سا نظرية | FI9: سا تط | FK9: المعامل | FL9: سا نظرية | FM9: سا تط | FO9: المعامل | FP9: سا نظرية | FQ9: سا تط | FS9: المعامل | FT9: سا نظرية | FU9: سا تط | FW9: المعامل | FX9: سا نظرية | FY9: سا تط | GA9: المعامل | GB9: سا نظرية | GC9: سا تط | GE9: المعامل | GF9: سا نظرية | GG9: سا تط | GI9: المعامل | GJ9: سا نظرية | GK9: سا تط | GM9: المعامل | GN9: سا نظرية | GO9: سا تط | GQ9: المعامل | GR9: سا نظرية | GS9: سا تط | GU9: المعامل | GV9: سا نظرية | GW9: سا تط | GY9: المعامل | GZ9: سا نظرية | HA9: سا تط | HC9: المعامل | HD9: سا نظرية | HE9: سا تط | HG9: المعامل | HH9: سا نظرية | HI9: سا تط | HK9: المعامل | HL9: سا نظرية | HM9: سا تط | HO9: المعامل | HP9: سا نظرية | HQ9: سا تط | HS9: المعامل | HT9: سا نظرية | HU9: سا تط | HW9: المعامل | HX9: سا نظرية | HY9: سا تط | IA9: المعامل | IB9: سا نظرية | IC9: سا تط | IE9: المعامل | IF9: سا نظرية | IG9: سا تط | II9: المعامل | IJ9: سا نظرية | IK9: سا تط | IM9: المعامل | IN9: سا نظرية | IO9: سا تط | IQ9: المعامل | IR9: سا نظرية | IS9: سا تط | IU9: المعامل | IV9: سا نظرية | IW9: سا تط | IY9: المعامل | IZ9: سا نظرية | JA9: سا تط | JC9: المعامل | JD9: سا نظرية | JE9: سا تط | JG9: المعامل | JH9: سا نظرية | JI9: سا تط | JK9: المعامل | JL9: سا نظرية | JM9: سا تط | JO9: المعامل | JP9: سا نظرية | JQ9: سا تط | JS9: المعامل | JT9: سا نظرية | JU9: سا تط | JW9: المعامل | JX9: سا نظرية | JY9: سا تط | KA9: المعامل | KB9: سا نظرية | KC9: سا تط | KE9: المعامل | KF9: سا نظرية | KG9: سا تط | KH9: العدد | KI9: المعامل | KJ9: سا نظرية | KK9: سا تط | KL9: العدد | KM9: المعامل | KN9: سا نظرية | KO9: سا تط | KP9: العدد | KQ9: المعامل | KR9: سا نظرية | KS9: سا تط | KT9: العدد | KU9: المعامل | KV9: سا نظرية | KW9: سا تط | KX9: العدد | KY9: المعامل | KZ9: سا نظرية | LA9: سا تط | LB9: العدد | LC9: المعامل | LD9: سا نظرية | LE9: سا تط | LG9: المعامل | LH9: سا نظرية | LI9: سا تط | LK9: المعامل | LL9: سا نظرية | LM9: سا تط | LO9: المعامل | LP9: سا نظرية | LQ9: سا تط | LS9: المعامل | LT9: سا نظرية | LU9: سا تط | LW9: المعامل | LX9: سا نظرية | LY9: سا تط | MA9: المعامل | MB9: سا نظرية | MC9: سا تط | ME9: المعامل | MF9: سا نظرية | MG9: سا تط | MI9: المعامل | MJ9: سا نظرية | MK9: سا تط | MM9: المعامل | MN9: سا نظرية | MO9: سا تط | MQ9: المعامل | MR9: سا نظرية | MS9: سا تط | MU9: المعامل | MV9: سا نظرية | MW9: سا تط | MX9: العدد | MY9: المعامل | MZ9: سا نظرية | NA9: سا تط | NB9: العدد | NC9: المعامل | ND9: سا نظرية | NE9: سا تط | NF9: العدد | NG9: المعامل | NH9: سا نظرية | NI9: سا تط | NJ9: العدد | NK9: المعامل | NL9: سا نظرية | NM9: سا تط | NN9: العدد | NO9: المعامل | NP9: سا نظرية | NQ9: سا تط | NR9: العدد | NS9: المعامل | NT9: سا نظرية | NU9: سا تط | NV9: العدد | NW9: المعامل | NX9: سا نظرية | NY9: سا تط | NZ9: العدد | OA9: المعامل | OB9: سا نظرية | OC9: سا تط | OD9: العدد | OE9: المعامل | OF9: سا نظرية | OG9: سا تط | OH9: العدد | OI9: المعامل | OJ9: سا نظرية | OK9: سا تط | OL9: العدد | OM9: المعامل | ON9: سا نظرية | OO9: سا تط | OP9: العدد | OQ9: المعامل | OR9: سا نظرية | OS9: سا تط | OU9: المعامل | OV9: سا نظرية | OW9: سا تط | OY9: المعامل | OZ9: سا نظرية | PA9: سا تط | PC9: المعامل | PD9: سا نظرية | PE9: سا تط | PG9: المعامل | PH9: سا نظرية | PI9: سا تط | PK9: المعامل | PL9: سا نظرية | PM9: سا تط | PO9: المعامل | PP9: سا نظرية | PQ9: سا تط | PS9: المعامل | PT9: سا نظرية | PU9: سا تط | PW9: المعامل | PX9: سا نظرية | PY9: سا تط | QA9: المعامل | QB9: سا نظرية | QC9: سا تط | QE9: المعامل | QF9: سا نظرية | QG9: سا تط | QI9: المعامل
A10: 1ع تك01 | B10: 1 | C10: 30 | L10: 6 | O10: 5 | AZ10: 2 | BA10: 4 | BC10: 4 | CN10: 2 | CO10: 4 | CQ10: 4 | DX10: 1 | EA10: 2 | EV10: 4 | EY10: 3 | GZ10: 2 | HC10: 2 | IB10: 3 | IE10: 2 | JL10: 3 | JO10: 2 | LT10: 1 | LU10: 2 | LW10: 2 | MF10: 2 | MI10: 2 | NT10: 1 | NU10: 2 | NV10: 30 | NW10: 2
A11: 1ع تك02 | B11: 1 | C11: 26 | L11: 6 | O11: 5 | AZ11: 2 | BA11: 4 | BC11: 4 | CJ11: 1 | CK11: 2 | CM11: 2 | CN11: 2 | CO11: 4 | CQ11: 4 | DX11: 1 | EA11: 2 | EV11: 4 | EY11: 3 | GZ11: 2 | HC11: 2 | IB11: 3 | IE11: 2 | JH11: 3 | JK11: 2 | LT11: 1 | LU11: 2 | LW11: 2 | MB11: 2 | ME11: 2
A12: 1ع تك03 | B12: 1 | C12: 28 | D12: 6 | G12: 5 | AV12: 2 | AW12: 4 | AY12: 4 | CF12: 2 | CG12: 4 | CI12: 4 | DX12: 1 | EA12: 2 | EV12: 4 | EY12: 3 | GV12: 2 | GY12: 2 | IB12: 3 | IE12: 2 | JH12: 3 | JK12: 2 | LT12: 1 | LU12: 2 | LW12: 2 | MF12: 2 | MI12: 2 | NH12: 1 | NI12: 2 | NJ12: 28 | NK12: 2
A13: 1آ | B13: 1 | C13: 33 | D13: 3 | G13: 2 | AV13: 1 | AW13: 2 | AY13: 2 | CJ13: 1 | CK13: 2 | CM13: 2 | DT13: 2 | DW13: 2 | EN13: 5 | EO13: 2 | EQ13: 5 | GV13: 4 | GY13: 3 | IB13: 5 | IE13: 3 | JL13: 4 | JO13: 3 | LT13: 1 | LU13: 2 | LW13: 2 | MF13: 2 | MI13: 2
A14: 2آف | B14: 2 | C14: 24 | H14: 2 | K14: 2 | AZ14: 1 | BA14: 2 | BC14: 2 | CN14: 1 | CO14: 2 | CQ14: 2 | DX14: 2 | EA14: 2 | EV14: 4 | EY14: 5 | FX14: 4 | GA14: 5 | GZ14: 4 | HC14: 4 | HT14: 4 | HW14: 3 | IZ14: 4 | JC14: 3 | MB14: 2 | ME14: 2
A15: 2لغ | B15: 2 | C15: 14 | D15: 2 | G15: 2 | DX15: 2 | EA15: 2 | EJ15: 5 | EM15: 4 | GZ15: 4 | HC15: 4 | IB15: 5 | IE15: 4 | JD15: 5 | JG15: 4 | KN15: 5 | KP15: 14 | KQ15: 4 | MF15: 2 | MI15: 2
A16: 2ت إ | B16: 2 | C16: 13 | D16: 3 | G16: 3 | DX16: 2 | EA16: 2 | ER16: 3 | EU16: 2 | GZ16: 4 | HC16: 3 | HX16: 3 | IA16: 2 | JL16: 3 | JO16: 2 | MB16: 2 | ME16: 2
A17: 2ع تج | B17: 2 | C17: 29 | H17: 5 | K17: 5 | AR17: 2 | AS17: 4 | AU17: 5 | CJ17: 3 | CK17: 4 | CM17: 6 | DX17: 2 | EA17: 2 | EJ17: 3 | EM17: 2 | GR17: 3 | GU17: 2 | HX17: 3 | IA17: 2 | JD17: 3 | JG17: 2 | MF17: 2 | MI17: 2
A18: 2تر | B18: 2 | C18: 10 | D18: 6 | G18: 6 | AR18: 5 | AU18: 5 | DX18: 2 | EA18: 2 | EJ18: 3 | EM18: 2 | GR18: 3 | GU18: 2 | HX18: 3 | IA18: 2 | JL18: 3 | JO18: 2 | MB18: 2 | ME18: 2 | NH18: 6 | NJ18: 5 | NK18: 6 | NT18: 6 | NV18: 5 | NW18: 6
A19: 3آف01 | B19: 3 | C19: 18 | L19: 2 | O19: 2 | DT19: 2 | DW19: 2 | ER19: 7 | EU19: 6 | FX19: 7 | GA19: 6 | GR19: 4 | GU19: 4 | HT19: 4 | HW19: 3 | JH19: 4 | JK19: 3 | MB19: 2 | ME19: 2
A20: 3آف02 | B20: 3 | C20: 18 | H20: 2 | K20: 2 | DT20: 2 | DW20: 2 | EN20: 7 | EQ20: 6 | GB20: 7 | GE20: 6 | GR20: 4 | GU20: 4 | HX20: 4 | IA20: 3 | JH20: 4 | JK20: 3 | MF20: 2 | MI20: 2
A21: 3لغ | B21: 3 | C21: 14 | L21: 2 | O21: 2 | DT21: 2 | DW21: 2 | EJ21: 5 | EM21: 5 | FX21: 3 | GA21: 2 | GV21: 3 | GY21: 2 | HX21: 4 | IA21: 5 | JD21: 4 | JG21: 5 | KN21: 5 | KP21: 14 | KQ21: 4 | MB21: 2 | ME21: 2
A22: 3ت إ | B22: 3 | C22: 18 | L22: 4 | O22: 5 | DT22: 2 | DW22: 2 | EN22: 3 | EQ22: 3 | GB22: 2 | GE22: 2 | GV22: 4 | GY22: 4 | HT22: 3 | HW22: 2 | IZ22: 3 | JC22: 2 | MB22: 2 | ME22: 2
A23: 3ع تج | B23: 3 | C23: 27 | H23: 5 | K23: 5 | AV23: 2 | AW23: 4 | AY23: 5 | CF23: 3 | CG23: 4 | CI23: 6 | DT23: 2 | DW23: 2 | ER23: 3 | EU23: 3 | GB23: 3 | GE23: 2 | GV23: 2 | GY23: 2 | HT23: 3 | HW23: 2 | IZ23: 3 | JC23: 2 | MF23: 2 | MI23: 2
A24: 3تر | B24: 3 | C24: 13 | H24: 6 | K24: 6 | AR24: 5 | AU24: 6 | DT24: 2 | DW24: 2 | ER24: 3 | EU24: 3 | GB24: 2 | GE24: 2 | GR24: 2 | GU24: 2 | HT24: 3 | HW24: 2 | IZ24: 3 | JC24: 2 | MF24: 2 | MI24: 2 | NH24: 6 | NJ24: 5 | NK24: 7 | NT24: 6 | NV24: 8 | NW24: 7
OV25: 2 | OY25: 2
OV26: 5 | OY26: 5
OR27: 3 | OU27: 4
OR28: 2 | OU28: 2
OR29: 6 | OU29: 6
OR30: 3 | OU30: 5
B40: مجموع الساعات | D40: =IF(E3="","",SUM(D10:E39)) -> 20 | H40: =IF(I3="","",SUM(H10:I39)) -> 20 | L40: =IF(M3="","",SUM(L10:M39)) -> 20 | P40: =IF(Q3="","",SUM(P10:Q39)) ->  | T40: =IF(U3="","",SUM(T10:U39)) ->  | X40: =IF(Y3="","",SUM(X10:Y39)) ->  | AB40: =IF(AC3="","",SUM(AB10:AC39)) ->  | AF40: =IF(AG3="","",SUM(AF10:AG39)) ->  | AJ40: =IF(AK3="","",SUM(AJ10:AK39)) ->  | AN40: =IF(AO3="","",SUM(AN10:AO39)) ->  | AR40: =IF(AS3="","",SUM(AR10:AS39)) -> 16 | AV40: =IF(AW3="","",SUM(AV10:AW39)) -> 15 | AZ40: =IF(BA3="","",SUM(AZ10:BA39)) -> 15 | BD40: =IF(BE3="","",SUM(BD10:BE39)) ->  | BH40: =IF(BI3="","",SUM(BH10:BI39)) ->  | BL40: =IF(BM3="","",SUM(BL10:BM39)) ->  | BP40: =IF(BQ3="","",SUM(BP10:BQ39)) ->  | BT40: =IF(BU3="","",SUM(BT10:BU39)) ->  | BX40: =IF(BY3="","",SUM(BX10:BY39)) ->  | CB40: =IF(CC3="","",SUM(CB10:CC39)) ->  | CF40: =IF(CG3="","",SUM(CF10:CG39)) -> 13 | CJ40: =IF(CK3="","",SUM(CJ10:CK39)) -> 13 | CN40: =IF(CO3="","",SUM(CN10:CO39)) -> 15 | CR40: =IF(CS3="","",SUM(CR10:CS39)) ->  | CV40: =IF(CW3="","",SUM(CV10:CW39)) ->  | CZ40: =IF(DA3="","",SUM(CZ10:DA39)) ->  | DD40: =IF(DE3="","",SUM(DD10:DE39)) ->  | DH40: =IF(DI3="","",SUM(DH10:DI39)) ->  | DL40: =IF(DM3="","",SUM(DL10:DM39)) ->  | DP40: =IF(DQ3="","",SUM(DP10:DQ39)) ->  | DT40: =IF(DU3="","",SUM(DT10:DU39)) -> 14 | DX40: =IF(DY3="","",SUM(DX10:DY39)) -> 13 | EB40: =IF(EC3="","",SUM(EB10:EC39)) ->  | EF40: =IF(EG3="","",SUM(EF10:EG39)) ->  | EJ40: =IF(EK3="","",SUM(EJ10:EK39)) -> 16 | EN40: =IF(EO3="","",SUM(EN10:EO39)) -> 17 | ER40: =IF(ES3="","",SUM(ER10:ES39)) -> 16 | EV40: =IF(EW3="","",SUM(EV10:EW39)) -> 16 | EZ40: =IF(FA3="","",SUM(EZ10:FA39)) ->  | FD40: =IF(FE3="","",SUM(FD10:FE39)) ->  | FH40: =IF(FI3="","",SUM(FH10:FI39)) ->  | FL40: =IF(FM3="","",SUM(FL10:FM39)) ->  | FP40: =IF(FQ3="","",SUM(FP10:FQ39)) ->  | FT40: =IF(FU3="","",SUM(FT10:FU39)) ->  | FX40: =IF(FY3="","",SUM(FX10:FY39)) -> 14 | GB40: =IF(GC3="","",SUM(GB10:GC39)) -> 14 | GF40: =IF(GG3="","",SUM(GF10:GG39)) ->  | GJ40: =IF(GK3="","",SUM(GJ10:GK39)) ->  | GN40: =IF(GO3="","",SUM(GN10:GO39)) ->  | GR40: =IF(GS3="","",SUM(GR10:GS39)) -> 16 | GV40: =IF(GW3="","",SUM(GV10:GW39)) -> 15 | GZ40: =IF(HA3="","",SUM(GZ10:HA39)) -> 16 | HD40: =IF(HE3="","",SUM(HD10:HE39)) ->  | HH40: =IF(HI3="","",SUM(HH10:HI39)) ->  | HL40: =IF(HM3="","",SUM(HL10:HM39)) ->  | HP40: =IF(HQ3="","",SUM(HP10:HQ39)) ->  | HT40: =IF(HU3="","",SUM(HT10:HU39)) -> 17 | HX40: =IF(HY3="","",SUM(HX10:HY39)) -> 17 | IB40: =IF(IC3="","",SUM(IB10:IC39)) -> 19 | IF40: =IF(IG3="","",SUM(IF10:IG39)) ->  | IJ40: =IF(IK3="","",SUM(IJ10:IK39)) ->  | IN40: =IF(IO3="","",SUM(IN10:IO39)) ->  | IR40: =IF(IS3="","",SUM(IR10:IS39)) ->  | IV40: =IF(IW3="","",SUM(IV10:IW39)) ->  | IZ40: =IF(JA3="","",SUM(IZ10:JA39)) -> 13 | JD40: =IF(JE3="","",SUM(JD10:JE39)) -> 12 | JH40: =IF(JI3="","",SUM(JH10:JI39)) -> 14 | JL40: =IF(JM3="","",SUM(JL10:JM39)) -> 13 | JP40: =IF(JQ3="","",SUM(JP10:JQ39)) ->  | JT40: =IF(JU3="","",SUM(JT10:JU39)) ->  | JX40: =IF(JY3="","",SUM(JX10:JY39)) ->  | KB40: =IF(KC3="","",SUM(KB10:KC39)) ->  | KF40: =IF(KG3="","",SUM(KF10:KG39)) ->  | KJ40: =IF(KK3="","",SUM(KJ10:KK39)) ->  | KN40: =IF(KO3="","",SUM(KN10:KO39)) -> 10 | KR40: =IF(KS3="","",SUM(KR10:KS39)) ->  | KV40: =IF(KW3="","",SUM(KV10:KW39)) ->  | KZ40: =IF(LA3="","",SUM(KZ10:LA39)) ->  | LD40: =IF(LE3="","",SUM(LD10:LE39)) ->  | LH40: =IF(LI3="","",SUM(LH10:LI39)) ->  | LL40: =IF(LM3="","",SUM(LL10:LM39)) ->  | LP40: =IF(LQ3="","",SUM(LP10:LQ39)) ->  | LT40: =IF(LU3="","",SUM(LT10:LU39)) -> 12 | LX40: =IF(LY3="","",SUM(LX10:LY39)) ->  | MB40: =IF(MC3="","",SUM(MB10:MC39)) -> 14 | MF40: =IF(MG3="","",SUM(MF10:MG39)) -> 16 | MJ40: =IF(MK3="","",SUM(MJ10:MK39)) ->  | MN40: =IF(MO3="","",SUM(MN10:MO39)) ->  | MR40: =IF(MS3="","",SUM(MR10:MS39)) ->  | MV40: =IF(MW3="","",SUM(MV10:MW39)) ->  | MZ40: =IF(NA3="","",SUM(MZ10:NA39)) ->  | ND40: =IF(NE3="","",SUM(ND10:NE39)) ->  | NH40: =IF(NI3="","",SUM(NH10:NI39)) -> 15 | NL40: =IF(NM3="","",SUM(NL10:NM39)) ->  | NP40: =IF(NQ3="","",SUM(NP10:NQ39)) ->  | NT40: =IF(NU3="","",SUM(NT10:NU39)) -> 15 | NX40: =IF(NY3="","",SUM(NX10:NY39)) ->  | OB40: =IF(OC3="","",SUM(OB10:OC39)) ->  | OF40: =IF(OG3="","",SUM(OF10:OG39)) ->  | OJ40: =IF(OK3="","",SUM(OJ10:OK39)) ->  | ON40: =IF(OO3="","",SUM(ON10:OO39)) ->  | OR40: =IF(OS3="","",SUM(OR10:OS39)) -> 14 | OV40: =IF(OW3="","",SUM(OV10:OW39)) -> 7 | OZ40: =IF(PA3="","",SUM(OZ10:PA39)) ->  | PD40: =IF(PE3="","",SUM(PD10:PE39)) ->  | PH40: =IF(PI3="","",SUM(PH10:PI39)) ->  | PL40: =IF(PM3="","",SUM(PL10:PM39)) ->  | PP40: =IF(PQ3="","",SUM(PP10:PQ39)) ->  | PT40: =IF(PU3="","",SUM(PT10:PU39)) ->  | PX40: =IF(PY3="","",SUM(PX10:PY39)) ->  | QB40: =IF(QC3="","",SUM(QB10:QC39)) ->  | QF40: =IF(QG3="","",SUM(QF10:QG39)) -> 
B41: أقصى خدمة واجبة | D41: 18 | H41: 18 | L41: 18 | P41: 18 | T41: 18 | X41: 18 | AB41: 18 | AF41: 18 | AJ41: 18 | AN41: 18 | AR41: 18 | AV41: 18 | AZ41: 18 | BD41: 18 | BH41: 18 | BL41: 18 | BP41: 18 | BT41: 18 | BX41: 18 | CB41: 18 | CF41: 18 | CJ41: 18 | CN41: 18 | CR41: 18 | CV41: 18 | CZ41: 18 | DD41: 18 | DH41: 18 | DL41: 18 | DP41: 18 | DT41: 18 | DX41: 18 | EB41: 18 | EF41: 18 | EJ41: 18 | EN41: 18 | ER41: 18 | EV41: 18 | EZ41: 18 | FD41: 18 | FH41: 18 | FL41: 18 | FP41: 18 | FT41: 18 | FX41: 18 | GB41: 18 | GF41: 18 | GJ41: 18 | GN41: 18 | GR41: 18 | GV41: 18 | GZ41: 18 | HD41: 18 | HH41: 18 | HL41: 18 | HP41: 18 | HT41: 18 | HX41: 18 | IB41: 18 | IF41: 18 | IJ41: 18 | IN41: 18 | IR41: 18 | IV41: 18 | IZ41: 18 | JD41: 18 | JH41: 18 | JL41: 18 | JP41: 18 | JT41: 18 | JX41: 18 | KB41: 18 | KF41: 18 | KJ41: 18 | KN41: 10 | KR41: 18 | KV41: 18 | KZ41: 18 | LD41: 18 | LH41: 18 | LL41: 18 | LP41: 18 | LT41: 18 | LX41: 18 | MB41: 18 | MF41: 18 | MJ41: 18 | MN41: 18 | MR41: 18 | MV41: 18 | MZ41: 18 | ND41: 18 | NH41: 18 | NL41: 18 | NP41: 18 | NT41: 18 | NX41: 18 | OB41: 18 | OF41: 18 | OJ41: 18 | ON41: 18 | OR41: 18 | OV41: 7 | OZ41: 18 | PD41: 18 | PH41: 18 | PL41: 18 | PP41: 18 | PT41: 18 | PX41: 18 | QB41: 18 | QF41: 18
B42: العدد أكثر من 35 | D42: =IF(D40="","",IF(SUMIFS(D$10:D$39,$C$10:$C$39,">35")>9,1,0)) -> 0 | H42: =IF(H40="","",IF(SUMIFS(H$10:H$39,$C$10:$C$39,">35")>9,1,0)) -> 0 | L42: =IF(L40="","",IF(SUMIFS(L$10:L$39,$C$10:$C$39,">35")>9,1,0)) -> 0 | P42: =IF(P40="","",IF(SUMIFS(P$10:P$39,$C$10:$C$39,">35")>9,1,0)) ->  | T42: =IF(T40="","",IF(SUMIFS(T$10:T$39,$C$10:$C$39,">35")>9,1,0)) ->  | X42: =IF(X40="","",IF(SUMIFS(X$10:X$39,$C$10:$C$39,">35")>9,1,0)) ->  | AB42: =IF(AB40="","",IF(SUMIFS(AB$10:AB$39,$C$10:$C$39,">35")>9,1,0)) ->  | AF42: =IF(AF40="","",IF(SUMIFS(AF$10:AF$39,$C$10:$C$39,">35")>9,1,0)) ->  | AJ42: =IF(AJ40="","",IF(SUMIFS(AJ$10:AJ$39,$C$10:$C$39,">35")>9,1,0)) ->  | AN42: =IF(AN40="","",IF(SUMIFS(AN$10:AN$39,$C$10:$C$39,">35")>9,1,0)) ->  | AR42: =IF(AR40="","",IF(SUMIFS(AR$10:AR$39,$C$10:$C$39,">35")>9,1,0)) -> 0 | AV42: =IF(AV40="","",IF(SUMIFS(AV$10:AV$39,$C$10:$C$39,">35")>9,1,0)) -> 0 | AZ42: =IF(AZ40="","",IF(SUMIFS(AZ$10:AZ$39,$C$10:$C$39,">35")>9,1,0)) -> 0 | BD42: =IF(BD40="","",IF(SUMIFS(BD$10:BD$39,$C$10:$C$39,">35")>9,1,0)) ->  | BH42: =IF(BH40="","",IF(SUMIFS(BH$10:BH$39,$C$10:$C$39,">35")>9,1,0)) ->  | BL42: =IF(BL40="","",IF(SUMIFS(BL$10:BL$39,$C$10:$C$39,">35")>9,1,0)) ->  | BP42: =IF(BP40="","",IF(SUMIFS(BP$10:BP$39,$C$10:$C$39,">35")>9,1,0)) ->  | BT42: =IF(BT40="","",IF(SUMIFS(BT$10:BT$39,$C$10:$C$39,">35")>9,1,0)) ->  | BX42: =IF(BX40="","",IF(SUMIFS(BX$10:BX$39,$C$10:$C$39,">35")>9,1,0)) ->  | CB42: =IF(CB40="","",IF(SUMIFS(CB$10:CB$39,$C$10:$C$39,">35")>9,1,0)) ->  | CF42: =IF(CF40="","",IF(SUMIFS(CF$10:CF$39,$C$10:$C$39,">35")>9,1,0)) -> 0 | CJ42: =IF(CJ40="","",IF(SUMIFS(CJ$10:CJ$39,$C$10:$C$39,">35")>9,1,0)) -> 0 | CN42: =IF(CN40="","",IF(SUMIFS(CN$10:CN$39,$C$10:$C$39,">35")>9,1,0)) -> 0 | CR42: =IF(CR40="","",IF(SUMIFS(CR$10:CR$39,$C$10:$C$39,">35")>9,1,0)) ->  | CV42: =IF(CV40="","",IF(SUMIFS(CV$10:CV$39,$C$10:$C$39,">35")>9,1,0)) ->  | CZ42: =IF(CZ40="","",IF(SUMIFS(CZ$10:CZ$39,$C$10:$C$39,">35")>9,1,0)) ->  | DD42: =IF(DD40="","",IF(SUMIFS(DD$10:DD$39,$C$10:$C$39,">35")>9,1,0)) ->  | DH42: =IF(DH40="","",IF(SUMIFS(DH$10:DH$39,$C$10:$C$39,">35")>9,1,0)) ->  | DL42: =IF(DL40="","",IF(SUMIFS(DL$10:DL$39,$C$10:$C$39,">35")>9,1,0)) ->  | DP42: =IF(DP40="","",IF(SUMIFS(DP$10:DP$39,$C$10:$C$39,">35")>9,1,0)) ->  | DT42: =IF(DT40="","",IF(SUMIFS(DT$10:DT$39,$C$10:$C$39,">35")>9,1,0)) -> 0 | DX42: =IF(DX40="","",IF(SUMIFS(DX$10:DX$39,$C$10:$C$39,">35")>9,1,0)) -> 0 | EB42: =IF(EB40="","",IF(SUMIFS(EB$10:EB$39,$C$10:$C$39,">35")>9,1,0)) ->  | EF42: =IF(EF40="","",IF(SUMIFS(EF$10:EF$39,$C$10:$C$39,">35")>9,1,0)) ->  | EJ42: =IF(EJ40="","",IF(SUMIFS(EJ$10:EJ$39,$C$10:$C$39,">35")>9,1,0)) -> 0 | EN42: =IF(EN40="","",IF(SUMIFS(EN$10:EN$39,$C$10:$C$39,">35")>9,1,0)) -> 0 | ER42: =IF(ER40="","",IF(SUMIFS(ER$10:ER$39,$C$10:$C$39,">35")>9,1,0)) -> 0 | EV42: =IF(EV40="","",IF(SUMIFS(EV$10:EV$39,$C$10:$C$39,">35")>9,1,0)) -> 0 | EZ42: =IF(EZ40="","",IF(SUMIFS(EZ$10:EZ$39,$C$10:$C$39,">35")>9,1,0)) ->  | FD42: =IF(FD40="","",IF(SUMIFS(FD$10:FD$39,$C$10:$C$39,">35")>9,1,0)) ->  | FH42: =IF(FH40="","",IF(SUMIFS(FH$10:FH$39,$C$10:$C$39,">35")>9,1,0)) ->  | FL42: =IF(FL40="","",IF(SUMIFS(FL$10:FL$39,$C$10:$C$39,">35")>9,1,0)) ->  | FP42: =IF(FP40="","",IF(SUMIFS(FP$10:FP$39,$C$10:$C$39,">35")>9,1,0)) ->  | FT42: =IF(FT40="","",IF(SUMIFS(FT$10:FT$39,$C$10:$C$39,">35")>9,1,0)) ->  | FX42: =IF(FX40="","",IF(SUMIFS(FX$10:FX$39,$C$10:$C$39,">35")>9,1,0)) -> 0 | GB42: =IF(GB40="","",IF(SUMIFS(GB$10:GB$39,$C$10:$C$39,">35")>9,1,0)) -> 0 | GF42: =IF(GF40="","",IF(SUMIFS(GF$10:GF$39,$C$10:$C$39,">35")>9,1,0)) ->  | GJ42: =IF(GJ40="","",IF(SUMIFS(GJ$10:GJ$39,$C$10:$C$39,">35")>9,1,0)) ->  | GN42: =IF(GN40="","",IF(SUMIFS(GN$10:GN$39,$C$10:$C$39,">35")>9,1,0)) ->  | GR42: =IF(GR40="","",IF(SUMIFS(GR$10:GR$39,$C$10:$C$39,">35")>9,1,0)) -> 0 | GV42: =IF(GV40="","",IF(SUMIFS(GV$10:GV$39,$C$10:$C$39,">35")>9,1,0)) -> 0 | GZ42: =IF(GZ40="","",IF(SUMIFS(GZ$10:GZ$39,$C$10:$C$39,">35")>9,1,0)) -> 0 | HD42: =IF(HD40="","",IF(SUMIFS(HD$10:HD$39,$C$10:$C$39,">35")>9,1,0)) ->  | HH42: =IF(HH40="","",IF(SUMIFS(HH$10:HH$39,$C$10:$C$39,">35")>9,1,0)) ->  | HL42: =IF(HL40="","",IF(SUMIFS(HL$10:HL$39,$C$10:$C$39,">35")>9,1,0)) ->  | HP42: =IF(HP40="","",IF(SUMIFS(HP$10:HP$39,$C$10:$C$39,">35")>9,1,0)) ->  | HT42: =IF(HT40="","",IF(SUMIFS(HT$10:HT$39,$C$10:$C$39,">35")>9,1,0)) -> 0 | HX42: =IF(HX40="","",IF(SUMIFS(HX$10:HX$39,$C$10:$C$39,">35")>9,1,0)) -> 0 | IB42: =IF(IB40="","",IF(SUMIFS(IB$10:IB$39,$C$10:$C$39,">35")>9,1,0)) -> 0 | IF42: =IF(IF40="","",IF(SUMIFS(IF$10:IF$39,$C$10:$C$39,">35")>9,1,0)) ->  | IJ42: =IF(IJ40="","",IF(SUMIFS(IJ$10:IJ$39,$C$10:$C$39,">35")>9,1,0)) ->  | IN42: =IF(IN40="","",IF(SUMIFS(IN$10:IN$39,$C$10:$C$39,">35")>9,1,0)) ->  | IR42: =IF(IR40="","",IF(SUMIFS(IR$10:IR$39,$C$10:$C$39,">35")>9,1,0)) ->  | IV42: =IF(IV40="","",IF(SUMIFS(IV$10:IV$39,$C$10:$C$39,">35")>9,1,0)) ->  | IZ42: =IF(IZ40="","",IF(SUMIFS(IZ$10:IZ$39,$C$10:$C$39,">35")>9,1,0)) -> 0 | JD42: =IF(JD40="","",IF(SUMIFS(JD$10:JD$39,$C$10:$C$39,">35")>9,1,0)) -> 0 | JH42: =IF(JH40="","",IF(SUMIFS(JH$10:JH$39,$C$10:$C$39,">35")>9,1,0)) -> 0 | JL42: =IF(JL40="","",IF(SUMIFS(JL$10:JL$39,$C$10:$C$39,">35")>9,1,0)) -> 0 | JP42: =IF(JP40="","",IF(SUMIFS(JP$10:JP$39,$C$10:$C$39,">35")>9,1,0)) ->  | JT42: =IF(JT40="","",IF(SUMIFS(JT$10:JT$39,$C$10:$C$39,">35")>9,1,0)) ->  | JX42: =IF(JX40="","",IF(SUMIFS(JX$10:JX$39,$C$10:$C$39,">35")>9,1,0)) ->  | KB42: =IF(KB40="","",IF(SUMIFS(KB$10:KB$39,$C$10:$C$39,">35")>9,1,0)) ->  | KF42: =IF(KF40="","",IF(SUMIFS(KF$10:KF$39,KH$10:KH$39,">35")>9,1,0)) ->  | KJ42: =IF(KJ40="","",IF(SUMIFS(KJ$10:KJ$39,KL$10:KL$39,">35")>9,1,0)) ->  | KN42: =IF(KN40="","",IF(SUMIFS(KN$10:KN$39,KP$10:KP$39,">35")>9,1,0)) -> 0 | KR42: =IF(KR40="","",IF(SUMIFS(KR$10:KR$39,KT$10:KT$39,">35")>9,1,0)) ->  | KV42: =IF(KV40="","",IF(SUMIFS(KV$10:KV$39,KX$10:KX$39,">35")>9,1,0)) ->  | KZ42: =IF(KZ40="","",IF(SUMIFS(KZ$10:KZ$39,LB$10:LB$39,">35")>9,1,0)) ->  | LD42: =IF(LD40="","",IF(SUMIFS(LD$10:LD$39,$C$10:$C$39,">35")>9,1,0)) ->  | LH42: =IF(LH40="","",IF(SUMIFS(LH$10:LH$39,$C$10:$C$39,">35")>9,1,0)) ->  | LL42: =IF(LL40="","",IF(SUMIFS(LL$10:LL$39,$C$10:$C$39,">35")>9,1,0)) ->  | LP42: =IF(LP40="","",IF(SUMIFS(LP$10:LP$39,$C$10:$C$39,">35")>9,1,0)) ->  | LT42: =IF(LT40="","",IF(SUMIFS(LT$10:LT$39,$C$10:$C$39,">35")>9,1,0)) -> 0 | LX42: =IF(LX40="","",IF(SUMIFS(LX$10:LX$39,$C$10:$C$39,">35")>9,1,0)) ->  | MB42: =IF(MB40="","",IF(SUMIFS(MB$10:MB$39,$C$10:$C$39,">35")>9,1,0)) -> 0 | MF42: =IF(MF40="","",IF(SUMIFS(MF$10:MF$39,$C$10:$C$39,">35")>9,1,0)) -> 0 | MJ42: =IF(MJ40="","",IF(SUMIFS(MJ$10:MJ$39,$C$10:$C$39,">35")>9,1,0)) ->  | MN42: =IF(MN40="","",IF(SUMIFS(MN$10:MN$39,$C$10:$C$39,">35")>9,1,0)) ->  | MR42: =IF(MR40="","",IF(SUMIFS(MR$10:MR$39,$C$10:$C$39,">35")>9,1,0)) ->  | MV42: =IF(MV40="","",IF(SUMIFS(MV$10:MV$39,MX$10:MX$39,">35")>9,1,0)) ->  | MZ42: =IF(MZ40="","",IF(SUMIFS(MZ$10:MZ$39,NB$10:NB$39,">35")>9,1,0)) ->  | ND42: =IF(ND40="","",IF(SUMIFS(ND$10:ND$39,NF$10:NF$39,">35")>9,1,0)) ->  | NH42: =IF(NH40="","",IF(SUMIFS(NH$10:NH$39,NJ$10:NJ$39,">35")>9,1,0)) -> 0 | NL42: =IF(NL40="","",IF(SUMIFS(NL$10:NL$39,NN$10:NN$39,">35")>9,1,0)) ->  | NP42: =IF(NP40="","",IF(SUMIFS(NP$10:NP$39,NR$10:NR$39,">35")>9,1,0)) ->  | NT42: =IF(NT40="","",IF(SUMIFS(NT$10:NT$39,NV$10:NV$39,">35")>9,1,0)) -> 0 | NX42: =IF(NX40="","",IF(SUMIFS(NX$10:NX$39,NZ$10:NZ$39,">35")>9,1,0)) ->  | OB42: =IF(OB40="","",IF(SUMIFS(OB$10:OB$39,OD$10:OD$39,">35")>9,1,0)) ->  | OF42: =IF(OF40="","",IF(SUMIFS(OF$10:OF$39,OH$10:OH$39,">35")>9,1,0)) ->  | OJ42: =IF(OJ40="","",IF(SUMIFS(OJ$10:OJ$39,OL$10:OL$39,">35")>9,1,0)) ->  | ON42: =IF(ON40="","",IF(SUMIFS(ON$10:ON$39,OP$10:OP$39,">35")>9,1,0)) ->  | OR42: =IF(OR40="","",IF(SUMIFS(OR$10:OR$39,$C$10:$C$39,">35")>9,1,0)) -> 0 | OV42: =IF(OV40="","",IF(SUMIFS(OV$10:OV$39,$C$10:$C$39,">35")>9,1,0)) -> 0 | OZ42: =IF(OZ40="","",IF(SUMIFS(OZ$10:OZ$39,$C$10:$C$39,">35")>9,1,0)) ->  | PD42: =IF(PD40="","",IF(SUMIFS(PD$10:PD$39,$C$10:$C$39,">35")>9,1,0)) ->  | PH42: =IF(PH40="","",IF(SUMIFS(PH$10:PH$39,$C$10:$C$39,">35")>9,1,0)) ->  | PL42: =IF(PL40="","",IF(SUMIFS(PL$10:PL$39,$C$10:$C$39,">35")>9,1,0)) ->  | PP42: =IF(PP40="","",IF(SUMIFS(PP$10:PP$39,$C$10:$C$39,">35")>9,1,0)) ->  | PT42: =IF(PT40="","",IF(SUMIFS(PT$10:PT$39,$C$10:$C$39,">35")>9,1,0)) ->  | PX42: =IF(PX40="","",IF(SUMIFS(PX$10:PX$39,$C$10:$C$39,">35")>9,1,0)) ->  | QB42: =IF(QB40="","",IF(SUMIFS(QB$10:QB$39,$C$10:$C$39,">35")>9,1,0)) ->  | QF42: =IF(QF40="","",IF(SUMIFS(QF$10:QF$39,$C$10:$C$39,">35")>9,1,0)) -> 
B43: الكرسي الأول | D43: =IF(D40="","",IF(G73>=6,1,0)) -> 1 | H43: =IF(H40="","",IF(K73>=6,1,0)) -> 1 | L43: =IF(L40="","",IF(O73>=6,1,0)) -> 1 | P43: =IF(P40="","",IF(S73>=6,1,0)) ->  | T43: =IF(T40="","",IF(W73>=6,1,0)) ->  | X43: =IF(X40="","",IF(AA73>=6,1,0)) ->  | AB43: =IF(AB40="","",IF(AE73>=6,1,0)) ->  | AF43: =IF(AF40="","",IF(AI73>=6,1,0)) ->  | AJ43: =IF(AJ40="","",IF(AM73>=6,1,0)) ->  | AN43: =IF(AN40="","",IF(AQ73>=6,1,0)) ->  | AR43: =IF(AR40="","",IF(AU73>=6,1,0)) -> 1 | AV43: =IF(AV40="","",IF(AY73>=6,1,0)) -> 0 | AZ43: =IF(AZ40="","",IF(BC73>=6,1,0)) -> 0 | BD43: =IF(BD40="","",IF(BG73>=6,1,0)) ->  | BH43: =IF(BH40="","",IF(BK73>=6,1,0)) ->  | BL43: =IF(BL40="","",IF(BO73>=6,1,0)) ->  | BP43: =IF(BP40="","",IF(BS73>=6,1,0)) ->  | BT43: =IF(BT40="","",IF(BW73>=6,1,0)) ->  | BX43: =IF(BX40="","",IF(CA73>=6,1,0)) ->  | CB43: =IF(CB40="","",IF(CE73>=6,1,0)) ->  | CF43: =IF(CF40="","",IF(CI73>=6,1,0)) -> 0 | CJ43: =IF(CJ40="","",IF(CM73>=6,1,0)) -> 0 | CN43: =IF(CN40="","",IF(CQ73>=6,1,0)) -> 0 | CR43: =IF(CR40="","",IF(CU73>=6,1,0)) ->  | CV43: =IF(CV40="","",IF(CY73>=6,1,0)) ->  | CZ43: =IF(CZ40="","",IF(DC73>=6,1,0)) ->  | DD43: =IF(DD40="","",IF(DG73>=6,1,0)) ->  | DH43: =IF(DH40="","",IF(DK73>=6,1,0)) ->  | DL43: =IF(DL40="","",IF(DO73>=6,1,0)) ->  | DP43: =IF(DP40="","",IF(DS73>=6,1,0)) ->  | DT43: =IF(DT40="","",IF(DW73>=6,1,0)) -> 0 | DX43: =IF(DX40="","",IF(EA73>=6,1,0)) -> 0 | EB43: =IF(EB40="","",IF(EE73>=6,1,0)) ->  | EF43: =IF(EF40="","",IF(EI73>=6,1,0)) ->  | EJ43: =IF(EJ40="","",IF(EM73>=6,1,0)) -> 1 | EN43: =IF(EN40="","",IF(EQ73>=6,1,0)) -> 1 | ER43: =IF(ER40="","",IF(EU73>=6,1,0)) -> 1 | EV43: =IF(EV40="","",IF(EY73>=6,1,0)) -> 0 | EZ43: =IF(EZ40="","",IF(FC73>=6,1,0)) ->  | FD43: =IF(FD40="","",IF(FG73>=6,1,0)) ->  | FH43: =IF(FH40="","",IF(FK73>=6,1,0)) ->  | FL43: =IF(FL40="","",IF(FO73>=6,1,0)) ->  | FP43: =IF(FP40="","",IF(FS73>=6,1,0)) ->  | FT43: =IF(FT40="","",IF(FW73>=6,1,0)) ->  | FX43: =IF(FX40="","",IF(GA73>=6,1,0)) -> 1 | GB43: =IF(GB40="","",IF(GE73>=6,1,0)) -> 1 | GF43: =IF(GF40="","",IF(GI73>=6,1,0)) ->  | GJ43: =IF(GJ40="","",IF(GM73>=6,1,0)) ->  | GN43: =IF(GN40="","",IF(GQ73>=6,1,0)) ->  | GR43: =IF(GR40="","",IF(GU73>=6,1,0)) -> 1 | GV43: =IF(GV40="","",IF(GY73>=6,1,0)) -> 1 | GZ43: =IF(GZ40="","",IF(HC73>=6,1,0)) -> 1 | HD43: =IF(HD40="","",IF(HG73>=6,1,0)) ->  | HH43: =IF(HH40="","",IF(HK73>=6,1,0)) ->  | HL43: =IF(HL40="","",IF(HO73>=6,1,0)) ->  | HP43: =IF(HP40="","",IF(HS73>=6,1,0)) ->  | HT43: =IF(HT40="","",IF(HW73>=6,1,0)) -> 1 | HX43: =IF(HX40="","",IF(IA73>=6,1,0)) -> 1 | IB43: =IF(IB40="","",IF(IE73>=6,1,0)) -> 0 | IF43: =IF(IF40="","",IF(II73>=6,1,0)) ->  | IJ43: =IF(IJ40="","",IF(IM73>=6,1,0)) ->  | IN43: =IF(IN40="","",IF(IQ73>=6,1,0)) ->  | IR43: =IF(IR40="","",IF(IU73>=6,1,0)) ->  | IV43: =IF(IV40="","",IF(IY73>=6,1,0)) ->  | IZ43: =IF(IZ40="","",IF(JC73>=6,1,0)) -> 1 | JD43: =IF(JD40="","",IF(JG73>=6,1,0)) -> 1 | JH43: =IF(JH40="","",IF(JK73>=6,1,0)) -> 0 | JL43: =IF(JL40="","",IF(JO73>=6,1,0)) -> 0 | JP43: =IF(JP40="","",IF(JS73>=6,1,0)) ->  | JT43: =IF(JT40="","",IF(JW73>=6,1,0)) ->  | JX43: =IF(JX40="","",IF(KA73>=6,1,0)) ->  | KB43: =IF(KB40="","",IF(KE73>=6,1,0)) ->  | KF43: =IF(KF40="","",IF(KI73>=6,1,0)) ->  | KJ43: =IF(KJ40="","",IF(KM73>=6,1,0)) ->  | KN43: =IF(KN40="","",IF(KQ73>=6,1,0)) -> 1 | KR43: =IF(KR40="","",IF(KU73>=6,1,0)) ->  | KV43: =IF(KV40="","",IF(KY73>=6,1,0)) ->  | KZ43: =IF(KZ40="","",IF(LC73>=6,1,0)) ->  | LD43: =IF(LD40="","",IF(LG73>=6,1,0)) ->  | LH43: =IF(LH40="","",IF(LK73>=6,1,0)) ->  | LL43: =IF(LL40="","",IF(LO73>=6,1,0)) ->  | LP43: =IF(LP40="","",IF(LS73>=6,1,0)) ->  | LT43: =IF(LT40="","",IF(LW73>=6,1,0)) -> 0 | LX43: =IF(LX40="","",IF(MA73>=6,1,0)) ->  | MB43: =IF(MB40="","",IF(ME73>=6,1,0)) -> 0 | MF43: =IF(MF40="","",IF(MI73>=6,1,0)) -> 0 | MJ43: =IF(MJ40="","",IF(MM73>=6,1,0)) ->  | MN43: =IF(MN40="","",IF(MQ73>=6,1,0)) ->  | MR43: =IF(MR40="","",IF(MU73>=6,1,0)) ->  | MV43: =IF(MV40="","",IF(MY73>=6,1,0)) ->  | MZ43: =IF(MZ40="","",IF(NC73>=6,1,0)) ->  | ND43: =IF(ND40="","",IF(NG73>=6,1,0)) ->  | NH43: =IF(NH40="","",IF(NK73>=6,1,0)) -> 1 | NL43: =IF(NL40="","",IF(NO73>=6,1,0)) ->  | NP43: =IF(NP40="","",IF(NS73>=6,1,0)) ->  | NT43: =IF(NT40="","",IF(NW73>=6,1,0)) -> 1 | NX43: =IF(NX40="","",IF(OA73>=6,1,0)) ->  | OB43: =IF(OB40="","",IF(OE73>=6,1,0)) ->  | OF43: =IF(OF40="","",IF(OI73>=6,1,0)) ->  | OJ43: =IF(OJ40="","",IF(OM73>=6,1,0)) ->  | ON43: =IF(ON40="","",IF(OQ73>=6,1,0)) ->  | OR43: =IF(OR40="","",IF(OU73>=6,1,0)) -> 0 | OV43: =IF(OV40="","",IF(OY73>=6,1,0)) -> 0 | OZ43: =IF(OZ40="","",IF(PC73>=6,1,0)) ->  | PD43: =IF(PD40="","",IF(PG73>=6,1,0)) ->  | PH43: =IF(PH40="","",IF(PK73>=6,1,0)) ->  | PL43: =IF(PL40="","",IF(PO73>=6,1,0)) ->  | PP43: =IF(PP40="","",IF(PS73>=6,1,0)) ->  | PT43: =IF(PT40="","",IF(PW73>=6,1,0)) ->  | PX43: =IF(PX40="","",IF(QA73>=6,1,0)) ->  | QB43: =IF(QB40="","",IF(QE73>=6,1,0)) ->  | QF43: =IF(QF40="","",IF(QI73>=6,1,0)) -> 
B44: مجموع التخفيض | D44: =IF(D40="","",D43+D42) -> 1 | H44: =IF(H40="","",H43+H42) -> 1 | L44: =IF(L40="","",L43+L42) -> 1 | P44: =IF(P40="","",P43+P42) ->  | T44: =IF(T40="","",T43+T42) ->  | X44: =IF(X40="","",X43+X42) ->  | AB44: =IF(AB40="","",AB43+AB42) ->  | AF44: =IF(AF40="","",AF43+AF42) ->  | AJ44: =IF(AJ40="","",AJ43+AJ42) ->  | AN44: =IF(AN40="","",AN43+AN42) ->  | AR44: =IF(AR40="","",AR43+AR42) -> 1 | AV44: =IF(AV40="","",AV43+AV42) -> 0 | AZ44: =IF(AZ40="","",AZ43+AZ42) -> 0 | BD44: =IF(BD40="","",BD43+BD42) ->  | BH44: =IF(BH40="","",BH43+BH42) ->  | BL44: =IF(BL40="","",BL43+BL42) ->  | BP44: =IF(BP40="","",BP43+BP42) ->  | BT44: =IF(BT40="","",BT43+BT42) ->  | BX44: =IF(BX40="","",BX43+BX42) ->  | CB44: =IF(CB40="","",CB43+CB42) ->  | CF44: =IF(CF40="","",CF43+CF42) -> 0 | CJ44: =IF(CJ40="","",CJ43+CJ42) -> 0 | CN44: =IF(CN40="","",CN43+CN42) -> 0 | CR44: =IF(CR40="","",CR43+CR42) ->  | CV44: =IF(CV40="","",CV43+CV42) ->  | CZ44: =IF(CZ40="","",CZ43+CZ42) ->  | DD44: =IF(DD40="","",DD43+DD42) ->  | DH44: =IF(DH40="","",DH43+DH42) ->  | DL44: =IF(DL40="","",DL43+DL42) ->  | DP44: =IF(DP40="","",DP43+DP42) ->  | DT44: =IF(DT40="","",DT43+DT42) -> 0 | DX44: =IF(DX40="","",DX43+DX42) -> 0 | EB44: =IF(EB40="","",EB43+EB42) ->  | EF44: =IF(EF40="","",EF43+EF42) ->  | EJ44: =IF(EJ40="","",EJ43+EJ42) -> 1 | EN44: =IF(EN40="","",EN43+EN42) -> 1 | ER44: =IF(ER40="","",ER43+ER42) -> 1 | EV44: =IF(EV40="","",EV43+EV42) -> 0 | EZ44: =IF(EZ40="","",EZ43+EZ42) ->  | FD44: =IF(FD40="","",FD43+FD42) ->  | FH44: =IF(FH40="","",FH43+FH42) ->  | FL44: =IF(FL40="","",FL43+FL42) ->  | FP44: =IF(FP40="","",FP43+FP42) ->  | FT44: =IF(FT40="","",FT43+FT42) ->  | FX44: =IF(FX40="","",FX43+FX42) -> 1 | GB44: =IF(GB40="","",GB43+GB42) -> 1 | GF44: =IF(GF40="","",GF43+GF42) ->  | GJ44: =IF(GJ40="","",GJ43+GJ42) ->  | GN44: =IF(GN40="","",GN43+GN42) ->  | GR44: =IF(GR40="","",GR43+GR42) -> 1 | GV44: =IF(GV40="","",GV43+GV42) -> 1 | GZ44: =IF(GZ40="","",GZ43+GZ42) -> 1 | HD44: =IF(HD40="","",HD43+HD42) ->  | HH44: =IF(HH40="","",HH43+HH42) ->  | HL44: =IF(HL40="","",HL43+HL42) ->  | HP44: =IF(HP40="","",HP43+HP42) ->  | HT44: =IF(HT40="","",HT43+HT42) -> 1 | HX44: =IF(HX40="","",HX43+HX42) -> 1 | IB44: =IF(IB40="","",IB43+IB42) -> 0 | IF44: =IF(IF40="","",IF43+IF42) ->  | IJ44: =IF(IJ40="","",IJ43+IJ42) ->  | IN44: =IF(IN40="","",IN43+IN42) ->  | IR44: =IF(IR40="","",IR43+IR42) ->  | IV44: =IF(IV40="","",IV43+IV42) ->  | IZ44: =IF(IZ40="","",IZ43+IZ42) -> 1 | JD44: =IF(JD40="","",JD43+JD42) -> 1 | JH44: =IF(JH40="","",JH43+JH42) -> 0 | JL44: =IF(JL40="","",JL43+JL42) -> 0 | JP44: =IF(JP40="","",JP43+JP42) ->  | JT44: =IF(JT40="","",JT43+JT42) ->  | JX44: =IF(JX40="","",JX43+JX42) ->  | KB44: =IF(KB40="","",KB43+KB42) ->  | KF44: =IF(KF40="","",KF43+KF42) ->  | KJ44: =IF(KJ40="","",KJ43+KJ42) ->  | KN44: =IF(KN40="","",KN43+KN42) -> 1 | KR44: =IF(KR40="","",KR43+KR42) ->  | KV44: =IF(KV40="","",KV43+KV42) ->  | KZ44: =IF(KZ40="","",KZ43+KZ42) ->  | LD44: =IF(LD40="","",LD43+LD42) ->  | LH44: =IF(LH40="","",LH43+LH42) ->  | LL44: =IF(LL40="","",LL43+LL42) ->  | LP44: =IF(LP40="","",LP43+LP42) ->  | LT44: =IF(LT40="","",LT43+LT42) -> 0 | LX44: =IF(LX40="","",LX43+LX42) ->  | MB44: =IF(MB40="","",MB43+MB42) -> 0 | MF44: =IF(MF40="","",MF43+MF42) -> 0 | MJ44: =IF(MJ40="","",MJ43+MJ42) ->  | MN44: =IF(MN40="","",MN43+MN42) ->  | MR44: =IF(MR40="","",MR43+MR42) ->  | MV44: =IF(MV40="","",MV43+MV42) ->  | MZ44: =IF(MZ40="","",MZ43+MZ42) ->  | ND44: =IF(ND40="","",ND43+ND42) ->  | NH44: =IF(NH40="","",NH43+NH42) -> 1 | NL44: =IF(NL40="","",NL43+NL42) ->  | NP44: =IF(NP40="","",NP43+NP42) ->  | NT44: =IF(NT40="","",NT43+NT42) -> 1 | NX44: =IF(NX40="","",NX43+NX42) ->  | OB44: =IF(OB40="","",OB43+OB42) ->  | OF44: =IF(OF40="","",OF43+OF42) ->  | OJ44: =IF(OJ40="","",OJ43+OJ42) ->  | ON44: =IF(ON40="","",ON43+ON42) ->  | OR44: =IF(OR40="","",OR43+OR42) -> 0 | OV44: =IF(OV40="","",OV43+OV42) -> 0 | OZ44: =IF(OZ40="","",OZ43+OZ42) ->  | PD44: =IF(PD40="","",PD43+PD42) ->  | PH44: =IF(PH40="","",PH43+PH42) ->  | PL44: =IF(PL40="","",PL43+PL42) ->  | PP44: =IF(PP40="","",PP43+PP42) ->  | PT44: =IF(PT40="","",PT43+PT42) ->  | PX44: =IF(PX40="","",PX43+PX42) ->  | QB44: =IF(QB40="","",QB43+QB42) ->  | QF44: =IF(QF40="","",QF43+QF42) -> 
B45: أقصى خدمة صافية | D45: =IF(D40="","",D40+D44) -> 21 | H45: =IF(H40="","",H40+H44) -> 21 | L45: =IF(L40="","",L40+L44) -> 21 | P45: =IF(P40="","",P40+P44) ->  | T45: =IF(T40="","",T40+T44) ->  | X45: =IF(X40="","",X40+X44) ->  | AB45: =IF(AB40="","",AB40+AB44) ->  | AF45: =IF(AF40="","",AF40+AF44) ->  | AJ45: =IF(AJ40="","",AJ40+AJ44) ->  | AN45: =IF(AN40="","",AN40+AN44) ->  | AR45: =IF(AR40="","",AR40+AR44) -> 17 | AV45: =IF(AV40="","",AV40+AV44) -> 15 | AZ45: =IF(AZ40="","",AZ40+AZ44) -> 15 | BD45: =IF(BD40="","",BD40+BD44) ->  | BH45: =IF(BH40="","",BH40+BH44) ->  | BL45: =IF(BL40="","",BL40+BL44) ->  | BP45: =IF(BP40="","",BP40+BP44) ->  | BT45: =IF(BT40="","",BT40+BT44) ->  | BX45: =IF(BX40="","",BX40+BX44) ->  | CB45: =IF(CB40="","",CB40+CB44) ->  | CF45: =IF(CF40="","",CF40+CF44) -> 13 | CJ45: =IF(CJ40="","",CJ40+CJ44) -> 13 | CN45: =IF(CN40="","",CN40+CN44) -> 15 | CR45: =IF(CR40="","",CR40+CR44) ->  | CV45: =IF(CV40="","",CV40+CV44) ->  | CZ45: =IF(CZ40="","",CZ40+CZ44) ->  | DD45: =IF(DD40="","",DD40+DD44) ->  | DH45: =IF(DH40="","",DH40+DH44) ->  | DL45: =IF(DL40="","",DL40+DL44) ->  | DP45: =IF(DP40="","",DP40+DP44) ->  | DT45: =IF(DT40="","",DT40+DT44) -> 14 | DX45: =IF(DX40="","",DX40+DX44) -> 13 | EB45: =IF(EB40="","",EB40+EB44) ->  | EF45: =IF(EF40="","",EF40+EF44) ->  | EJ45: =IF(EJ40="","",EJ40+EJ44) -> 17 | EN45: =IF(EN40="","",EN40+EN44) -> 18 | ER45: =IF(ER40="","",ER40+ER44) -> 17 | EV45: =IF(EV40="","",EV40+EV44) -> 16 | EZ45: =IF(EZ40="","",EZ40+EZ44) ->  | FD45: =IF(FD40="","",FD40+FD44) ->  | FH45: =IF(FH40="","",FH40+FH44) ->  | FL45: =IF(FL40="","",FL40+FL44) ->  | FP45: =IF(FP40="","",FP40+FP44) ->  | FT45: =IF(FT40="","",FT40+FT44) ->  | FX45: =IF(FX40="","",FX40+FX44) -> 15 | GB45: =IF(GB40="","",GB40+GB44) -> 15 | GF45: =IF(GF40="","",GF40+GF44) ->  | GJ45: =IF(GJ40="","",GJ40+GJ44) ->  | GN45: =IF(GN40="","",GN40+GN44) ->  | GR45: =IF(GR40="","",GR40+GR44) -> 17 | GV45: =IF(GV40="","",GV40+GV44) -> 16 | GZ45: =IF(GZ40="","",GZ40+GZ44) -> 17 | HD45: =IF(HD40="","",HD40+HD44) ->  | HH45: =IF(HH40="","",HH40+HH44) ->  | HL45: =IF(HL40="","",HL40+HL44) ->  | HP45: =IF(HP40="","",HP40+HP44) ->  | HT45: =IF(HT40="","",HT40+HT44) -> 18 | HX45: =IF(HX40="","",HX40+HX44) -> 18 | IB45: =IF(IB40="","",IB40+IB44) -> 19 | IF45: =IF(IF40="","",IF40+IF44) ->  | IJ45: =IF(IJ40="","",IJ40+IJ44) ->  | IN45: =IF(IN40="","",IN40+IN44) ->  | IR45: =IF(IR40="","",IR40+IR44) ->  | IV45: =IF(IV40="","",IV40+IV44) ->  | IZ45: =IF(IZ40="","",IZ40+IZ44) -> 14 | JD45: =IF(JD40="","",JD40+JD44) -> 13 | JH45: =IF(JH40="","",JH40+JH44) -> 14 | JL45: =IF(JL40="","",JL40+JL44) -> 13 | JP45: =IF(JP40="","",JP40+JP44) ->  | JT45: =IF(JT40="","",JT40+JT44) ->  | JX45: =IF(JX40="","",JX40+JX44) ->  | KB45: =IF(KB40="","",KB40+KB44) ->  | KF45: =IF(KF40="","",KF40+KF44) ->  | KJ45: =IF(KJ40="","",KJ40+KJ44) ->  | KN45: =IF(KN40="","",KN40+KN44) -> 11 | KR45: =IF(KR40="","",KR40+KR44) ->  | KV45: =IF(KV40="","",KV40+KV44) ->  | KZ45: =IF(KZ40="","",KZ40+KZ44) ->  | LD45: =IF(LD40="","",LD40+LD44) ->  | LH45: =IF(LH40="","",LH40+LH44) ->  | LL45: =IF(LL40="","",LL40+LL44) ->  | LP45: =IF(LP40="","",LP40+LP44) ->  | LT45: =IF(LT40="","",LT40+LT44) -> 12 | LX45: =IF(LX40="","",LX40+LX44) ->  | MB45: =IF(MB40="","",MB40+MB44) -> 14 | MF45: =IF(MF40="","",MF40+MF44) -> 16 | MJ45: =IF(MJ40="","",MJ40+MJ44) ->  | MN45: =IF(MN40="","",MN40+MN44) ->  | MR45: =IF(MR40="","",MR40+MR44) ->  | MV45: =IF(MV40="","",MV40+MV44) ->  | MZ45: =IF(MZ40="","",MZ40+MZ44) ->  | ND45: =IF(ND40="","",ND40+ND44) ->  | NH45: =IF(NH40="","",NH40+NH44) -> 16 | NL45: =IF(NL40="","",NL40+NL44) ->  | NP45: =IF(NP40="","",NP40+NP44) ->  | NT45: =IF(NT40="","",NT40+NT44) -> 16 | NX45: =IF(NX40="","",NX40+NX44) ->  | OB45: =IF(OB40="","",OB40+OB44) ->  | OF45: =IF(OF40="","",OF40+OF44) ->  | OJ45: =IF(OJ40="","",OJ40+OJ44) ->  | ON45: =IF(ON40="","",ON40+ON44) ->  | OR45: =IF(OR40="","",OR40+OR44) -> 14 | OV45: =IF(OV40="","",OV40+OV44) -> 7 | OZ45: =IF(OZ40="","",OZ40+OZ44) ->  | PD45: =IF(PD40="","",PD40+PD44) ->  | PH45: =IF(PH40="","",PH40+PH44) ->  | PL45: =IF(PL40="","",PL40+PL44) ->  | PP45: =IF(PP40="","",PP40+PP44) ->  | PT45: =IF(PT40="","",PT40+PT44) ->  | PX45: =IF(PX40="","",PX40+PX44) ->  | QB45: =IF(QB40="","",QB40+QB44) ->  | QF45: =IF(QF40="","",QF40+QF44) -> 
B46: أقل من 20 | D46: =IF(D40="","",IF(SUMIFS(D$10:D$39,$C$10:$C$39,">0",$C$10:$C$39,"<20")>=10,1,0)) -> 1 | H46: =IF(H40="","",IF(SUMIFS(H$10:H$39,$C$10:$C$39,">0",$C$10:$C$39,"<20")>=10,1,0)) -> 0 | L46: =IF(L40="","",IF(SUMIFS(L$10:L$39,$C$10:$C$39,">0",$C$10:$C$39,"<20")>=10,1,0)) -> 0 | P46: =IF(P40="","",IF(SUMIFS(P$10:P$39,$C$10:$C$39,">0",$C$10:$C$39,"<20")>=10,1,0)) ->  | T46: =IF(T40="","",IF(SUMIFS(T$10:T$39,$C$10:$C$39,">0",$C$10:$C$39,"<20")>=10,1,0)) ->  | X46: =IF(X40="","",IF(SUMIFS(X$10:X$39,$C$10:$C$39,">0",$C$10:$C$39,"<20")>=10,1,0)) ->  | AB46: =IF(AB40="","",IF(SUMIFS(AB$10:AB$39,$C$10:$C$39,">0",$C$10:$C$39,"<20")>=10,1,0)) ->  | AF46: =IF(AF40="","",IF(SUMIFS(AF$10:AF$39,$C$10:$C$39,">0",$C$10:$C$39,"<20")>=10,1,0)) ->  | AJ46: =IF(AJ40="","",IF(SUMIFS(AJ$10:AJ$39,$C$10:$C$39,">0",$C$10:$C$39,"<20")>=10,1,0)) ->  | AN46: =IF(AN40="","",IF(SUMIFS(AN$10:AN$39,$C$10:$C$39,">0",$C$10:$C$39,"<20")>=10,1,0)) ->  | AR46: =IF(AR40="","",IF(SUMIFS(AR$10:AR$39,$C$10:$C$39,">0",$C$10:$C$39,"<20")>=10,1,0)) -> 1 | AV46: =IF(AV40="","",IF(SUMIFS(AV$10:AV$39,$C$10:$C$39,">0",$C$10:$C$39,"<20")>=10,1,0)) -> 0 | AZ46: =IF(AZ40="","",IF(SUMIFS(AZ$10:AZ$39,$C$10:$C$39,">0",$C$10:$C$39,"<20")>=10,1,0)) -> 0 | BD46: =IF(BD40="","",IF(SUMIFS(BD$10:BD$39,$C$10:$C$39,">0",$C$10:$C$39,"<20")>=10,1,0)) ->  | BH46: =IF(BH40="","",IF(SUMIFS(BH$10:BH$39,$C$10:$C$39,">0",$C$10:$C$39,"<20")>=10,1,0)) ->  | BL46: =IF(BL40="","",IF(SUMIFS(BL$10:BL$39,$C$10:$C$39,">0",$C$10:$C$39,"<20")>=10,1,0)) ->  | BP46: =IF(BP40="","",IF(SUMIFS(BP$10:BP$39,$C$10:$C$39,">0",$C$10:$C$39,"<20")>=10,1,0)) ->  | BT46: =IF(BT40="","",IF(SUMIFS(BT$10:BT$39,$C$10:$C$39,">0",$C$10:$C$39,"<20")>=10,1,0)) ->  | BX46: =IF(BX40="","",IF(SUMIFS(BX$10:BX$39,$C$10:$C$39,">0",$C$10:$C$39,"<20")>=10,1,0)) ->  | CB46: =IF(CB40="","",IF(SUMIFS(CB$10:CB$39,$C$10:$C$39,">0",$C$10:$C$39,"<20")>=10,1,0)) ->  | CF46: =IF(CF40="","",IF(SUMIFS(CF$10:CF$39,$C$10:$C$39,">0",$C$10:$C$39,"<20")>=10,1,0)) -> 0 | CJ46: =IF(CJ40="","",IF(SUMIFS(CJ$10:CJ$39,$C$10:$C$39,">0",$C$10:$C$39,"<20")>=10,1,0)) -> 0 | CN46: =IF(CN40="","",IF(SUMIFS(CN$10:CN$39,$C$10:$C$39,">0",$C$10:$C$39,"<20")>=10,1,0)) -> 0 | CR46: =IF(CR40="","",IF(SUMIFS(CR$10:CR$39,$C$10:$C$39,">0",$C$10:$C$39,"<20")>=10,1,0)) ->  | CV46: =IF(CV40="","",IF(SUMIFS(CV$10:CV$39,$C$10:$C$39,">0",$C$10:$C$39,"<20")>=10,1,0)) ->  | CZ46: =IF(CZ40="","",IF(SUMIFS(CZ$10:CZ$39,$C$10:$C$39,">0",$C$10:$C$39,"<20")>=10,1,0)) ->  | DD46: =IF(DD40="","",IF(SUMIFS(DD$10:DD$39,$C$10:$C$39,">0",$C$10:$C$39,"<20")>=10,1,0)) ->  | DH46: =IF(DH40="","",IF(SUMIFS(DH$10:DH$39,$C$10:$C$39,">0",$C$10:$C$39,"<20")>=10,1,0)) ->  | DL46: =IF(DL40="","",IF(SUMIFS(DL$10:DL$39,$C$10:$C$39,">0",$C$10:$C$39,"<20")>=10,1,0)) ->  | DP46: =IF(DP40="","",IF(SUMIFS(DP$10:DP$39,$C$10:$C$39,">0",$C$10:$C$39,"<20")>=10,1,0)) ->  | DT46: =IF(DT40="","",IF(SUMIFS(DT$10:DT$39,$C$10:$C$39,">0",$C$10:$C$39,"<20")>=10,1,0)) -> 1 | DX46: =IF(DX40="","",IF(SUMIFS(DX$10:DX$39,$C$10:$C$39,">0",$C$10:$C$39,"<20")>=10,1,0)) -> 0 | EB46: =IF(EB40="","",IF(SUMIFS(EB$10:EB$39,$C$10:$C$39,">0",$C$10:$C$39,"<20")>=10,1,0)) ->  | EF46: =IF(EF40="","",IF(SUMIFS(EF$10:EF$39,$C$10:$C$39,">0",$C$10:$C$39,"<20")>=10,1,0)) ->  | EJ46: =IF(EJ40="","",IF(SUMIFS(EJ$10:EJ$39,$C$10:$C$39,">0",$C$10:$C$39,"<20")>=10,1,0)) -> 1 | EN46: =IF(EN40="","",IF(SUMIFS(EN$10:EN$39,$C$10:$C$39,">0",$C$10:$C$39,"<20")>=10,1,0)) -> 1 | ER46: =IF(ER40="","",IF(SUMIFS(ER$10:ER$39,$C$10:$C$39,">0",$C$10:$C$39,"<20")>=10,1,0)) -> 1 | EV46: =IF(EV40="","",IF(SUMIFS(EV$10:EV$39,$C$10:$C$39,">0",$C$10:$C$39,"<20")>=10,1,0)) -> 0 | EZ46: =IF(EZ40="","",IF(SUMIFS(EZ$10:EZ$39,$C$10:$C$39,">0",$C$10:$C$39,"<20")>=10,1,0)) ->  | FD46: =IF(FD40="","",IF(SUMIFS(FD$10:FD$39,$C$10:$C$39,">0",$C$10:$C$39,"<20")>=10,1,0)) ->  | FH46: =IF(FH40="","",IF(SUMIFS(FH$10:FH$39,$C$10:$C$39,">0",$C$10:$C$39,"<20")>=10,1,0)) ->  | FL46: =IF(FL40="","",IF(SUMIFS(FL$10:FL$39,$C$10:$C$39,">0",$C$10:$C$39,"<20")>=10,1,0)) ->  | FP46: =IF(FP40="","",IF(SUMIFS(FP$10:FP$39,$C$10:$C$39,">0",$C$10:$C$39,"<20")>=10,1,0)) ->  | FT46: =IF(FT40="","",IF(SUMIFS(FT$10:FT$39,$C$10:$C$39,">0",$C$10:$C$39,"<20")>=10,1,0)) ->  | FX46: =IF(FX40="","",IF(SUMIFS(FX$10:FX$39,$C$10:$C$39,">0",$C$10:$C$39,"<20")>=10,1,0)) -> 1 | GB46: =IF(GB40="","",IF(SUMIFS(GB$10:GB$39,$C$10:$C$39,">0",$C$10:$C$39,"<20")>=10,1,0)) -> 1 | GF46: =IF(GF40="","",IF(SUMIFS(GF$10:GF$39,$C$10:$C$39,">0",$C$10:$C$39,"<20")>=10,1,0)) ->  | GJ46: =IF(GJ40="","",IF(SUMIFS(GJ$10:GJ$39,$C$10:$C$39,">0",$C$10:$C$39,"<20")>=10,1,0)) ->  | GN46: =IF(GN40="","",IF(SUMIFS(GN$10:GN$39,$C$10:$C$39,">0",$C$10:$C$39,"<20")>=10,1,0)) ->  | GR46: =IF(GR40="","",IF(SUMIFS(GR$10:GR$39,$C$10:$C$39,">0",$C$10:$C$39,"<20")>=10,1,0)) -> 1 | GV46: =IF(GV40="","",IF(SUMIFS(GV$10:GV$39,$C$10:$C$39,">0",$C$10:$C$39,"<20")>=10,1,0)) -> 0 | GZ46: =IF(GZ40="","",IF(SUMIFS(GZ$10:GZ$39,$C$10:$C$39,">0",$C$10:$C$39,"<20")>=10,1,0)) -> 0 | HD46: =IF(HD40="","",IF(SUMIFS(HD$10:HD$39,$C$10:$C$39,">0",$C$10:$C$39,"<20")>=10,1,0)) ->  | HH46: =IF(HH40="","",IF(SUMIFS(HH$10:HH$39,$C$10:$C$39,">0",$C$10:$C$39,"<20")>=10,1,0)) ->  | HL46: =IF(HL40="","",IF(SUMIFS(HL$10:HL$39,$C$10:$C$39,">0",$C$10:$C$39,"<20")>=10,1,0)) ->  | HP46: =IF(HP40="","",IF(SUMIFS(HP$10:HP$39,$C$10:$C$39,">0",$C$10:$C$39,"<20")>=10,1,0)) ->  | HT46: =IF(HT40="","",IF(SUMIFS(HT$10:HT$39,$C$10:$C$39,">0",$C$10:$C$39,"<20")>=10,1,0)) -> 1 | HX46: =IF(HX40="","",IF(SUMIFS(HX$10:HX$39,$C$10:$C$39,">0",$C$10:$C$39,"<20")>=10,1,0)) -> 1 | IB46: =IF(IB40="","",IF(SUMIFS(IB$10:IB$39,$C$10:$C$39,">0",$C$10:$C$39,"<20")>=10,1,0)) -> 0 | IF46: =IF(IF40="","",IF(SUMIFS(IF$10:IF$39,$C$10:$C$39,">0",$C$10:$C$39,"<20")>=10,1,0)) ->  | IJ46: =IF(IJ40="","",IF(SUMIFS(IJ$10:IJ$39,$C$10:$C$39,">0",$C$10:$C$39,"<20")>=10,1,0)) ->  | IN46: =IF(IN40="","",IF(SUMIFS(IN$10:IN$39,$C$10:$C$39,">0",$C$10:$C$39,"<20")>=10,1,0)) ->  | IR46: =IF(IR40="","",IF(SUMIFS(IR$10:IR$39,$C$10:$C$39,">0",$C$10:$C$39,"<20")>=10,1,0)) ->  | IV46: =IF(IV40="","",IF(SUMIFS(IV$10:IV$39,$C$10:$C$39,">0",$C$10:$C$39,"<20")>=10,1,0)) ->  | IZ46: =IF(IZ40="","",IF(SUMIFS(IZ$10:IZ$39,$C$10:$C$39,">0",$C$10:$C$39,"<20")>=10,1,0)) -> 0 | JD46: =IF(JD40="","",IF(SUMIFS(JD$10:JD$39,$C$10:$C$39,">0",$C$10:$C$39,"<20")>=10,1,0)) -> 0 | JH46: =IF(JH40="","",IF(SUMIFS(JH$10:JH$39,$C$10:$C$39,">0",$C$10:$C$39,"<20")>=10,1,0)) -> 0 | JL46: =IF(JL40="","",IF(SUMIFS(JL$10:JL$39,$C$10:$C$39,">0",$C$10:$C$39,"<20")>=10,1,0)) -> 0 | JP46: =IF(JP40="","",IF(SUMIFS(JP$10:JP$39,$C$10:$C$39,">0",$C$10:$C$39,"<20")>=10,1,0)) ->  | JT46: =IF(JT40="","",IF(SUMIFS(JT$10:JT$39,$C$10:$C$39,">0",$C$10:$C$39,"<20")>=10,1,0)) ->  | JX46: =IF(JX40="","",IF(SUMIFS(JX$10:JX$39,$C$10:$C$39,">0",$C$10:$C$39,"<20")>=10,1,0)) ->  | KB46: =IF(KB40="","",IF(SUMIFS(KB$10:KB$39,$C$10:$C$39,">0",$C$10:$C$39,"<20")>=10,1,0)) ->  | KF46: =IF(KF40="","",IF(SUMIFS(KF$10:KF$39,KH$10:KH$39,">0",KH$10:KH$39,"<20")>=10,1,0)) ->  | KJ46: =IF(KJ40="","",IF(SUMIFS(KJ$10:KJ$39,KL$10:KL$39,">0",KL$10:KL$39,"<20")>=10,1,0)) ->  | KN46: =IF(KN40="","",IF(SUMIFS(KN$10:KN$39,KP$10:KP$39,">0",KP$10:KP$39,"<20")>=10,1,0)) -> 1 | KR46: =IF(KR40="","",IF(SUMIFS(KR$10:KR$39,KT$10:KT$39,">0",KT$10:KT$39,"<20")>=10,1,0)) ->  | KV46: =IF(KV40="","",IF(SUMIFS(KV$10:KV$39,KX$10:KX$39,">0",KX$10:KX$39,"<20")>=10,1,0)) ->  | KZ46: =IF(KZ40="","",IF(SUMIFS(KZ$10:KZ$39,LB$10:LB$39,">0",LB$10:LB$39,"<20")>=10,1,0)) ->  | LD46: =IF(LD40="","",IF(SUMIFS(LD$10:LD$39,$C$10:$C$39,">0",$C$10:$C$39,"<20")>=10,1,0)) ->  | LH46: =IF(LH40="","",IF(SUMIFS(LH$10:LH$39,$C$10:$C$39,">0",$C$10:$C$39,"<20")>=10,1,0)) ->  | LL46: =IF(LL40="","",IF(SUMIFS(LL$10:LL$39,$C$10:$C$39,">0",$C$10:$C$39,"<20")>=10,1,0)) ->  | LP46: =IF(LP40="","",IF(SUMIFS(LP$10:LP$39,$C$10:$C$39,">0",$C$10:$C$39,"<20")>=10,1,0)) ->  | LT46: =IF(LT40="","",IF(SUMIFS(LT$10:LT$39,$C$10:$C$39,">0",$C$10:$C$39,"<20")>=10,1,0)) -> 0 | LX46: =IF(LX40="","",IF(SUMIFS(LX$10:LX$39,$C$10:$C$39,">0",$C$10:$C$39,"<20")>=10,1,0)) ->  | MB46: =IF(MB40="","",IF(SUMIFS(MB$10:MB$39,$C$10:$C$39,">0",$C$10:$C$39,"<20")>=10,1,0)) -> 1 | MF46: =IF(MF40="","",IF(SUMIFS(MF$10:MF$39,$C$10:$C$39,">0",$C$10:$C$39,"<20")>=10,1,0)) -> 0 | MJ46: =IF(MJ40="","",IF(SUMIFS(MJ$10:MJ$39,$C$10:$C$39,">0",$C$10:$C$39,"<20")>=10,1,0)) ->  | MN46: =IF(MN40="","",IF(SUMIFS(MN$10:MN$39,$C$10:$C$39,">0",$C$10:$C$39,"<20")>=10,1,0)) ->  | MR46: =IF(MR40="","",IF(SUMIFS(MR$10:MR$39,$C$10:$C$39,">0",$C$10:$C$39,"<20")>=10,1,0)) ->  | MV46: =IF(MV40="","",IF(SUMIFS(MV$10:MV$39,MX$10:MX$39,">0",MX$10:MX$39,"<20")>=10,1,0)) ->  | MZ46: =IF(MZ40="","",IF(SUMIFS(MZ$10:MZ$39,NB$10:NB$39,">0",NB$10:NB$39,"<20")>=10,1,0)) ->  | ND46: =IF(ND40="","",IF(SUMIFS(ND$10:ND$39,NF$10:NF$39,">0",NF$10:NF$39,"<20")>=10,1,0)) ->  | NH46: =IF(NH40="","",IF(SUMIFS(NH$10:NH$39,NJ$10:NJ$39,">0",NJ$10:NJ$39,"<20")>=10,1,0)) -> 1 | NL46: =IF(NL40="","",IF(SUMIFS(NL$10:NL$39,NN$10:NN$39,">0",NN$10:NN$39,"<20")>=10,1,0)) ->  | NP46: =IF(NP40="","",IF(SUMIFS(NP$10:NP$39,NR$10:NR$39,">0",NR$10:NR$39,"<20")>=10,1,0)) ->  | NT46: =IF(NT40="","",IF(SUMIFS(NT$10:NT$39,NV$10:NV$39,">0",NV$10:NV$39,"<20")>=10,1,0)) -> 1 | NX46: =IF(NX40="","",IF(SUMIFS(NX$10:NX$39,NZ$10:NZ$39,">0",NZ$10:NZ$39,"<20")>=10,1,0)) ->  | OB46: =IF(OB40="","",IF(SUMIFS(OB$10:OB$39,OD$10:OD$39,">0",OD$10:OD$39,"<20")>=10,1,0)) ->  | OF46: =IF(OF40="","",IF(SUMIFS(OF$10:OF$39,OH$10:OH$39,">0",OH$10:OH$39,"<20")>=10,1,0)) ->  | OJ46: =IF(OJ40="","",IF(SUMIFS(OJ$10:OJ$39,OL$10:OL$39,">0",OL$10:OL$39,"<20")>=10,1,0)) ->  | ON46: =IF(ON40="","",IF(SUMIFS(ON$10:ON$39,OP$10:OP$39,">0",OP$10:OP$39,"<20")>=10,1,0)) ->  | OR46: =IF(OR40="","",IF(SUMIFS(OR$10:OR$39,$C$10:$C$39,">0",$C$10:$C$39,"<20")>=10,1,0)) -> 0 | OV46: =IF(OV40="","",IF(SUMIFS(OV$10:OV$39,$C$10:$C$39,">0",$C$10:$C$39,"<20")>=10,1,0)) -> 0 | OZ46: =IF(OZ40="","",IF(SUMIFS(OZ$10:OZ$39,$C$10:$C$39,">0",$C$10:$C$39,"<20")>=10,1,0)) ->  | PD46: =IF(PD40="","",IF(SUMIFS(PD$10:PD$39,$C$10:$C$39,">0",$C$10:$C$39,"<20")>=10,1,0)) ->  | PH46: =IF(PH40="","",IF(SUMIFS(PH$10:PH$39,$C$10:$C$39,">0",$C$10:$C$39,"<20")>=10,1,0)) ->  | PL46: =IF(PL40="","",IF(SUMIFS(PL$10:PL$39,$C$10:$C$39,">0",$C$10:$C$39,"<20")>=10,1,0)) ->  | PP46: =IF(PP40="","",IF(SUMIFS(PP$10:PP$39,$C$10:$C$39,">0",$C$10:$C$39,"<20")>=10,1,0)) ->  | PT46: =IF(PT40="","",IF(SUMIFS(PT$10:PT$39,$C$10:$C$39,">0",$C$10:$C$39,"<20")>=10,1,0)) ->  | PX46: =IF(PX40="","",IF(SUMIFS(PX$10:PX$39,$C$10:$C$39,">0",$C$10:$C$39,"<20")>=10,1,0)) ->  | QB46: =IF(QB40="","",IF(SUMIFS(QB$10:QB$39,$C$10:$C$39,">0",$C$10:$C$39,"<20")>=10,1,0)) ->  | QF46: =IF(QF40="","",IF(SUMIFS(QF$10:QF$39,$C$10:$C$39,">0",$C$10:$C$39,"<20")>=10,1,0)) -> 
B47: أقصى خدمة صافية | D47: =IF(D40="","",D45-D46) -> 20 | H47: =IF(H40="","",H45-H46) -> 21 | L47: =IF(L40="","",L45-L46) -> 21 | P47: =IF(P40="","",P45-P46) ->  | T47: =IF(T40="","",T45-T46) ->  | X47: =IF(X40="","",X45-X46) ->  | AB47: =IF(AB40="","",AB45-AB46) ->  | AF47: =IF(AF40="","",AF45-AF46) ->  | AJ47: =IF(AJ40="","",AJ45-AJ46) ->  | AN47: =IF(AN40="","",AN45-AN46) ->  | AR47: =IF(AR40="","",AR45-AR46) -> 16 | AV47: =IF(AV40="","",AV45-AV46) -> 15 | AZ47: =IF(AZ40="","",AZ45-AZ46) -> 15 | BD47: =IF(BD40="","",BD45-BD46) ->  | BH47: =IF(BH40="","",BH45-BH46) ->  | BL47: =IF(BL40="","",BL45-BL46) ->  | BP47: =IF(BP40="","",BP45-BP46) ->  | BT47: =IF(BT40="","",BT45-BT46) ->  | BX47: =IF(BX40="","",BX45-BX46) ->  | CB47: =IF(CB40="","",CB45-CB46) ->  | CF47: =IF(CF40="","",CF45-CF46) -> 13 | CJ47: =IF(CJ40="","",CJ45-CJ46) -> 13 | CN47: =IF(CN40="","",CN45-CN46) -> 15 | CR47: =IF(CR40="","",CR45-CR46) ->  | CV47: =IF(CV40="","",CV45-CV46) ->  | CZ47: =IF(CZ40="","",CZ45-CZ46) ->  | DD47: =IF(DD40="","",DD45-DD46) ->  | DH47: =IF(DH40="","",DH45-DH46) ->  | DL47: =IF(DL40="","",DL45-DL46) ->  | DP47: =IF(DP40="","",DP45-DP46) ->  | DT47: =IF(DT40="","",DT45-DT46) -> 13 | DX47: =IF(DX40="","",DX45-DX46) -> 13 | EB47: =IF(EB40="","",EB45-EB46) ->  | EF47: =IF(EF40="","",EF45-EF46) ->  | EJ47: =IF(EJ40="","",EJ45-EJ46) -> 16 | EN47: =IF(EN40="","",EN45-EN46) -> 17 | ER47: =IF(ER40="","",ER45-ER46) -> 16 | EV47: =IF(EV40="","",EV45-EV46) -> 16 | EZ47: =IF(EZ40="","",EZ45-EZ46) ->  | FD47: =IF(FD40="","",FD45-FD46) ->  | FH47: =IF(FH40="","",FH45-FH46) ->  | FL47: =IF(FL40="","",FL45-FL46) ->  | FP47: =IF(FP40="","",FP45-FP46) ->  | FT47: =IF(FT40="","",FT45-FT46) ->  | FX47: =IF(FX40="","",FX45-FX46) -> 14 | GB47: =IF(GB40="","",GB45-GB46) -> 14 | GF47: =IF(GF40="","",GF45-GF46) ->  | GJ47: =IF(GJ40="","",GJ45-GJ46) ->  | GN47: =IF(GN40="","",GN45-GN46) ->  | GR47: =IF(GR40="","",GR45-GR46) -> 16 | GV47: =IF(GV40="","",GV45-GV46) -> 16 | GZ47: =IF(GZ40="","",GZ45-GZ46) -> 17 | HD47: =IF(HD40="","",HD45-HD46) ->  | HH47: =IF(HH40="","",HH45-HH46) ->  | HL47: =IF(HL40="","",HL45-HL46) ->  | HP47: =IF(HP40="","",HP45-HP46) ->  | HT47: =IF(HT40="","",HT45-HT46) -> 17 | HX47: =IF(HX40="","",HX45-HX46) -> 17 | IB47: =IF(IB40="","",IB45-IB46) -> 19 | IF47: =IF(IF40="","",IF45-IF46) ->  | IJ47: =IF(IJ40="","",IJ45-IJ46) ->  | IN47: =IF(IN40="","",IN45-IN46) ->  | IR47: =IF(IR40="","",IR45-IR46) ->  | IV47: =IF(IV40="","",IV45-IV46) ->  | IZ47: =IF(IZ40="","",IZ45-IZ46) -> 14 | JD47: =IF(JD40="","",JD45-JD46) -> 13 | JH47: =IF(JH40="","",JH45-JH46) -> 14 | JL47: =IF(JL40="","",JL45-JL46) -> 13 | JP47: =IF(JP40="","",JP45-JP46) ->  | JT47: =IF(JT40="","",JT45-JT46) ->  | JX47: =IF(JX40="","",JX45-JX46) ->  | KB47: =IF(KB40="","",KB45-KB46) ->  | KF47: =IF(KF40="","",KF45-KF46) ->  | KJ47: =IF(KJ40="","",KJ45-KJ46) ->  | KN47: =IF(KN40="","",KN45-KN46) -> 10 | KR47: =IF(KR40="","",KR45-KR46) ->  | KV47: =IF(KV40="","",KV45-KV46) ->  | KZ47: =IF(KZ40="","",KZ45-KZ46) ->  | LD47: =IF(LD40="","",LD45-LD46) ->  | LH47: =IF(LH40="","",LH45-LH46) ->  | LL47: =IF(LL40="","",LL45-LL46) ->  | LP47: =IF(LP40="","",LP45-LP46) ->  | LT47: =IF(LT40="","",LT45-LT46) -> 12 | LX47: =IF(LX40="","",LX45-LX46) ->  | MB47: =IF(MB40="","",MB45-MB46) -> 13 | MF47: =IF(MF40="","",MF45-MF46) -> 16 | MJ47: =IF(MJ40="","",MJ45-MJ46) ->  | MN47: =IF(MN40="","",MN45-MN46) ->  | MR47: =IF(MR40="","",MR45-MR46) ->  | MV47: =IF(MV40="","",MV45-MV46) ->  | MZ47: =IF(MZ40="","",MZ45-MZ46) ->  | ND47: =IF(ND40="","",ND45-ND46) ->  | NH47: =IF(NH40="","",NH45-NH46) -> 15 | NL47: =IF(NL40="","",NL45-NL46) ->  | NP47: =IF(NP40="","",NP45-NP46) ->  | NT47: =IF(NT40="","",NT45-NT46) -> 15 | NX47: =IF(NX40="","",NX45-NX46) ->  | OB47: =IF(OB40="","",OB45-OB46) ->  | OF47: =IF(OF40="","",OF45-OF46) ->  | OJ47: =IF(OJ40="","",OJ45-OJ46) ->  | ON47: =IF(ON40="","",ON45-ON46) ->  | OR47: =IF(OR40="","",OR45-OR46) -> 14 | OV47: =IF(OV40="","",OV45-OV46) -> 7 | OZ47: =IF(OZ40="","",OZ45-OZ46) ->  | PD47: =IF(PD40="","",PD45-PD46) ->  | PH47: =IF(PH40="","",PH45-PH46) ->  | PL47: =IF(PL40="","",PL45-PL46) ->  | PP47: =IF(PP40="","",PP45-PP46) ->  | PT47: =IF(PT40="","",PT45-PT46) ->  | PX47: =IF(PX40="","",PX45-PX46) ->  | QB47: =IF(QB40="","",QB45-QB46) ->  | QF47: =IF(QF40="","",QF45-QF46) -> 
B48: الساعات الفائضة | D48: =IF(E1="نعم","",IF(D40="","",IF(D41>D47,D41-D47,""))) ->  | H48: =IF(I1="نعم","",IF(H40="","",IF(H41>H47,H41-H47,""))) ->  | L48: =IF(M1="نعم","",IF(L40="","",IF(L41>L47,L41-L47,""))) ->  | P48: =IF(Q1="نعم","",IF(P40="","",IF(P41>P47,P41-P47,""))) ->  | T48: =IF(U1="نعم","",IF(T40="","",IF(T41>T47,T41-T47,""))) ->  | X48: =IF(Y1="نعم","",IF(X40="","",IF(X41>X47,X41-X47,""))) ->  | AB48: =IF(AC1="نعم","",IF(AB40="","",IF(AB41>AB47,AB41-AB47,""))) ->  | AF48: =IF(AG1="نعم","",IF(AF40="","",IF(AF41>AF47,AF41-AF47,""))) ->  | AJ48: =IF(AK1="نعم","",IF(AJ40="","",IF(AJ41>AJ47,AJ41-AJ47,""))) ->  | AN48: =IF(AO1="نعم","",IF(AN40="","",IF(AN41>AN47,AN41-AN47,""))) ->  | AR48: =IF(AS1="نعم","",IF(AR40="","",IF(AR41>AR47,AR41-AR47,""))) -> 2 | AV48: =IF(AW1="نعم","",IF(AV40="","",IF(AV41>AV47,AV41-AV47,""))) -> 3 | AZ48: =IF(BA1="نعم","",IF(AZ40="","",IF(AZ41>AZ47,AZ41-AZ47,""))) -> 3 | BD48: =IF(BE1="نعم","",IF(BD40="","",IF(BD41>BD47,BD41-BD47,""))) ->  | BH48: =IF(BI1="نعم","",IF(BH40="","",IF(BH41>BH47,BH41-BH47,""))) ->  | BL48: =IF(BM1="نعم","",IF(BL40="","",IF(BL41>BL47,BL41-BL47,""))) ->  | BP48: =IF(BQ1="نعم","",IF(BP40="","",IF(BP41>BP47,BP41-BP47,""))) ->  | BT48: =IF(BU1="نعم","",IF(BT40="","",IF(BT41>BT47,BT41-BT47,""))) ->  | BX48: =IF(BY1="نعم","",IF(BX40="","",IF(BX41>BX47,BX41-BX47,""))) ->  | CB48: =IF(CC1="نعم","",IF(CB40="","",IF(CB41>CB47,CB41-CB47,""))) ->  | CF48: =IF(CG1="نعم","",IF(CF40="","",IF(CF41>CF47,CF41-CF47,""))) -> 5 | CJ48: =IF(CK1="نعم","",IF(CJ40="","",IF(CJ41>CJ47,CJ41-CJ47,""))) -> 5 | CN48: =IF(CO1="نعم","",IF(CN40="","",IF(CN41>CN47,CN41-CN47,""))) -> 3 | CR48: =IF(CS1="نعم","",IF(CR40="","",IF(CR41>CR47,CR41-CR47,""))) ->  | CV48: =IF(CW1="نعم","",IF(CV40="","",IF(CV41>CV47,CV41-CV47,""))) ->  | CZ48: =IF(DA1="نعم","",IF(CZ40="","",IF(CZ41>CZ47,CZ41-CZ47,""))) ->  | DD48: =IF(DE1="نعم","",IF(DD40="","",IF(DD41>DD47,DD41-DD47,""))) ->  | DH48: =IF(DI1="نعم","",IF(DH40="","",IF(DH41>DH47,DH41-DH47,""))) ->  | DL48: =IF(DM1="نعم","",IF(DL40="","",IF(DL41>DL47,DL41-DL47,""))) ->  | DP48: =IF(DQ1="نعم","",IF(DP40="","",IF(DP41>DP47,DP41-DP47,""))) ->  | DT48: =IF(DU1="نعم","",IF(DT40="","",IF(DT41>DT47,DT41-DT47,""))) -> 5 | DX48: =IF(DY1="نعم","",IF(DX40="","",IF(DX41>DX47,DX41-DX47,""))) -> 5 | EB48: =IF(EC1="نعم","",IF(EB40="","",IF(EB41>EB47,EB41-EB47,""))) ->  | EF48: =IF(EG1="نعم","",IF(EF40="","",IF(EF41>EF47,EF41-EF47,""))) ->  | EJ48: =IF(EK1="نعم","",IF(EJ40="","",IF(EJ41>EJ47,EJ41-EJ47,""))) -> 2 | EN48: =IF(EO1="نعم","",IF(EN40="","",IF(EN41>EN47,EN41-EN47,""))) -> 1 | ER48: =IF(ES1="نعم","",IF(ER40="","",IF(ER41>ER47,ER41-ER47,""))) -> 2 | EV48: =IF(EW1="نعم","",IF(EV40="","",IF(EV41>EV47,EV41-EV47,""))) -> 2 | EZ48: =IF(FA1="نعم","",IF(EZ40="","",IF(EZ41>EZ47,EZ41-EZ47,""))) ->  | FD48: =IF(FE1="نعم","",IF(FD40="","",IF(FD41>FD47,FD41-FD47,""))) ->  | FH48: =IF(FI1="نعم","",IF(FH40="","",IF(FH41>FH47,FH41-FH47,""))) ->  | FL48: =IF(FM1="نعم","",IF(FL40="","",IF(FL41>FL47,FL41-FL47,""))) ->  | FP48: =IF(FQ1="نعم","",IF(FP40="","",IF(FP41>FP47,FP41-FP47,""))) ->  | FT48: =IF(FU1="نعم","",IF(FT40="","",IF(FT41>FT47,FT41-FT47,""))) ->  | FX48: =IF(FY1="نعم","",IF(FX40="","",IF(FX41>FX47,FX41-FX47,""))) -> 4 | GB48: =IF(GC1="نعم","",IF(GB40="","",IF(GB41>GB47,GB41-GB47,""))) -> 4 | GF48: =IF(GG1="نعم","",IF(GF40="","",IF(GF41>GF47,GF41-GF47,""))) ->  | GJ48: =IF(GK1="نعم","",IF(GJ40="","",IF(GJ41>GJ47,GJ41-GJ47,""))) ->  | GN48: =IF(GO1="نعم","",IF(GN40="","",IF(GN41>GN47,GN41-GN47,""))) ->  | GR48: =IF(GS1="نعم","",IF(GR40="","",IF(GR41>GR47,GR41-GR47,""))) -> 2 | GV48: =IF(GW1="نعم","",IF(GV40="","",IF(GV41>GV47,GV41-GV47,""))) -> 2 | GZ48: =IF(HA1="نعم","",IF(GZ40="","",IF(GZ41>GZ47,GZ41-GZ47,""))) -> 1 | HD48: =IF(HE1="نعم","",IF(HD40="","",IF(HD41>HD47,HD41-HD47,""))) ->  | HH48: =IF(HI1="نعم","",IF(HH40="","",IF(HH41>HH47,HH41-HH47,""))) ->  | HL48: =IF(HM1="نعم","",IF(HL40="","",IF(HL41>HL47,HL41-HL47,""))) ->  | HP48: =IF(HQ1="نعم","",IF(HP40="","",IF(HP41>HP47,HP41-HP47,""))) ->  | HT48: =IF(HU1="نعم","",IF(HT40="","",IF(HT41>HT47,HT41-HT47,""))) -> 1 | HX48: =IF(HY1="نعم","",IF(HX40="","",IF(HX41>HX47,HX41-HX47,""))) -> 1 | IB48: =IF(IC1="نعم","",IF(IB40="","",IF(IB41>IB47,IB41-IB47,""))) ->  | IF48: =IF(IG1="نعم","",IF(IF40="","",IF(IF41>IF47,IF41-IF47,""))) ->  | IJ48: =IF(IK1="نعم","",IF(IJ40="","",IF(IJ41>IJ47,IJ41-IJ47,""))) ->  | IN48: =IF(IO1="نعم","",IF(IN40="","",IF(IN41>IN47,IN41-IN47,""))) ->  | IR48: =IF(IS1="نعم","",IF(IR40="","",IF(IR41>IR47,IR41-IR47,""))) ->  | IV48: =IF(IW1="نعم","",IF(IV40="","",IF(IV41>IV47,IV41-IV47,""))) ->  | IZ48: =IF(JA1="نعم","",IF(IZ40="","",IF(IZ41>IZ47,IZ41-IZ47,""))) -> 4 | JD48: =IF(JE1="نعم","",IF(JD40="","",IF(JD41>JD47,JD41-JD47,""))) -> 5 | JH48: =IF(JI1="نعم","",IF(JH40="","",IF(JH41>JH47,JH41-JH47,""))) -> 4 | JL48: =IF(JM1="نعم","",IF(JL40="","",IF(JL41>JL47,JL41-JL47,""))) -> 5 | JP48: =IF(JQ1="نعم","",IF(JP40="","",IF(JP41>JP47,JP41-JP47,""))) ->  | JT48: =IF(JU1="نعم","",IF(JT40="","",IF(JT41>JT47,JT41-JT47,""))) ->  | JX48: =IF(JY1="نعم","",IF(JX40="","",IF(JX41>JX47,JX41-JX47,""))) ->  | KB48: =IF(KC1="نعم","",IF(KB40="","",IF(KB41>KB47,KB41-KB47,""))) ->  | KF48: =IF(KG1="نعم","",IF(KF40="","",IF(KF41>KF47,KF41-KF47,""))) ->  | KJ48: =IF(KK1="نعم","",IF(KJ40="","",IF(KJ41>KJ47,KJ41-KJ47,""))) ->  | KN48: =IF(KO1="نعم","",IF(KN40="","",IF(KN41>KN47,KN41-KN47,""))) ->  | KR48: =IF(KS1="نعم","",IF(KR40="","",IF(KR41>KR47,KR41-KR47,""))) ->  | KV48: =IF(KW1="نعم","",IF(KV40="","",IF(KV41>KV47,KV41-KV47,""))) ->  | KZ48: =IF(LA1="نعم","",IF(KZ40="","",IF(KZ41>KZ47,KZ41-KZ47,""))) ->  | LD48: =IF(LE1="نعم","",IF(LD40="","",IF(LD41>LD47,LD41-LD47,""))) ->  | LH48: =IF(LI1="نعم","",IF(LH40="","",IF(LH41>LH47,LH41-LH47,""))) ->  | LL48: =IF(LM1="نعم","",IF(LL40="","",IF(LL41>LL47,LL41-LL47,""))) ->  | LP48: =IF(LQ1="نعم","",IF(LP40="","",IF(LP41>LP47,LP41-LP47,""))) ->  | LT48: =IF(LU1="نعم","",IF(LT40="","",IF(LT41>LT47,LT41-LT47,""))) -> 6 | LX48: =IF(LY1="نعم","",IF(LX40="","",IF(LX41>LX47,LX41-LX47,""))) ->  | MB48: =IF(MC1="نعم","",IF(MB40="","",IF(MB41>MB47,MB41-MB47,""))) -> 5 | MF48: =IF(MG1="نعم","",IF(MF40="","",IF(MF41>MF47,MF41-MF47,""))) -> 2 | MJ48: =IF(MK1="نعم","",IF(MJ40="","",IF(MJ41>MJ47,MJ41-MJ47,""))) ->  | MN48: =IF(MO1="نعم","",IF(MN40="","",IF(MN41>MN47,MN41-MN47,""))) ->  | MR48: =IF(MS1="نعم","",IF(MR40="","",IF(MR41>MR47,MR41-MR47,""))) ->  | MV48: =IF(MW1="نعم","",IF(MV40="","",IF(MV41>MV47,MV41-MV47,""))) ->  | MZ48: =IF(NA1="نعم","",IF(MZ40="","",IF(MZ41>MZ47,MZ41-MZ47,""))) ->  | ND48: =IF(NE1="نعم","",IF(ND40="","",IF(ND41>ND47,ND41-ND47,""))) ->  | NH48: =IF(NI1="نعم","",IF(NH40="","",IF(NH41>NH47,NH41-NH47,""))) -> 3 | NL48: =IF(NM1="نعم","",IF(NL40="","",IF(NL41>NL47,NL41-NL47,""))) ->  | NP48: =IF(NQ1="نعم","",IF(NP40="","",IF(NP41>NP47,NP41-NP47,""))) ->  | NT48: =IF(NU1="نعم","",IF(NT40="","",IF(NT41>NT47,NT41-NT47,""))) -> 3 | NX48: =IF(NY1="نعم","",IF(NX40="","",IF(NX41>NX47,NX41-NX47,""))) ->  | OB48: =IF(OC1="نعم","",IF(OB40="","",IF(OB41>OB47,OB41-OB47,""))) ->  | OF48: =IF(OG1="نعم","",IF(OF40="","",IF(OF41>OF47,OF41-OF47,""))) ->  | OJ48: =IF(OK1="نعم","",IF(OJ40="","",IF(OJ41>OJ47,OJ41-OJ47,""))) ->  | ON48: =IF(OO1="نعم","",IF(ON40="","",IF(ON41>ON47,ON41-ON47,""))) ->  | OR48: =IF(OS1="نعم","",IF(OR40="","",IF(OR41>OR47,OR41-OR47,""))) -> 4 | OV48: =IF(OW1="نعم","",IF(OV40="","",IF(OV41>OV47,OV41-OV47,""))) ->  | OZ48: =IF(PA1="نعم","",IF(OZ40="","",IF(OZ41>OZ47,OZ41-OZ47,""))) ->  | PD48: =IF(PE1="نعم","",IF(PD40="","",IF(PD41>PD47,PD41-PD47,""))) ->  | PH48: =IF(PI1="نعم","",IF(PH40="","",IF(PH41>PH47,PH41-PH47,""))) ->  | PL48: =IF(PM1="نعم","",IF(PL40="","",IF(PL41>PL47,PL41-PL47,""))) ->  | PP48: =IF(PQ1="نعم","",IF(PP40="","",IF(PP41>PP47,PP41-PP47,""))) ->  | PT48: =IF(PU1="نعم","",IF(PT40="","",IF(PT41>PT47,PT41-PT47,""))) ->  | PX48: =IF(PY1="نعم","",IF(PX40="","",IF(PX41>PX47,PX41-PX47,""))) ->  | QB48: =IF(QC1="نعم","",IF(QB40="","",IF(QB41>QB47,QB41-QB47,""))) ->  | QF48: =IF(QG1="نعم","",IF(QF40="","",IF(QF41>QF47,QF41-QF47,""))) -> 
B49: الساعات الإضافية | D49: =IF(E1="نعم","",IF(D40="","",IF(D41<D47,D47-D41,""))) -> 2 | H49: =IF(I1="نعم","",IF(H40="","",IF(H41<H47,H47-H41,""))) -> 3 | L49: =IF(M1="نعم","",IF(L40="","",IF(L41<L47,L47-L41,""))) -> 3 | P49: =IF(Q1="نعم","",IF(P40="","",IF(P41<P47,P47-P41,""))) ->  | T49: =IF(U1="نعم","",IF(T40="","",IF(T41<T47,T47-T41,""))) ->  | X49: =IF(Y1="نعم","",IF(X40="","",IF(X41<X47,X47-X41,""))) ->  | AB49: =IF(AC1="نعم","",IF(AB40="","",IF(AB41<AB47,AB47-AB41,""))) ->  | AF49: =IF(AG1="نعم","",IF(AF40="","",IF(AF41<AF47,AF47-AF41,""))) ->  | AJ49: =IF(AK1="نعم","",IF(AJ40="","",IF(AJ41<AJ47,AJ47-AJ41,""))) ->  | AN49: =IF(AO1="نعم","",IF(AN40="","",IF(AN41<AN47,AN47-AN41,""))) ->  | AR49: =IF(AS1="نعم","",IF(AR40="","",IF(AR41<AR47,AR47-AR41,""))) ->  | AV49: =IF(AW1="نعم","",IF(AV40="","",IF(AV41<AV47,AV47-AV41,""))) ->  | AZ49: =IF(BA1="نعم","",IF(AZ40="","",IF(AZ41<AZ47,AZ47-AZ41,""))) ->  | BD49: =IF(BE1="نعم","",IF(BD40="","",IF(BD41<BD47,BD47-BD41,""))) ->  | BH49: =IF(BI1="نعم","",IF(BH40="","",IF(BH41<BH47,BH47-BH41,""))) ->  | BL49: =IF(BM1="نعم","",IF(BL40="","",IF(BL41<BL47,BL47-BL41,""))) ->  | BP49: =IF(BQ1="نعم","",IF(BP40="","",IF(BP41<BP47,BP47-BP41,""))) ->  | BT49: =IF(BU1="نعم","",IF(BT40="","",IF(BT41<BT47,BT47-BT41,""))) ->  | BX49: =IF(BY1="نعم","",IF(BX40="","",IF(BX41<BX47,BX47-BX41,""))) ->  | CB49: =IF(CC1="نعم","",IF(CB40="","",IF(CB41<CB47,CB47-CB41,""))) ->  | CF49: =IF(CG1="نعم","",IF(CF40="","",IF(CF41<CF47,CF47-CF41,""))) ->  | CJ49: =IF(CK1="نعم","",IF(CJ40="","",IF(CJ41<CJ47,CJ47-CJ41,""))) ->  | CN49: =IF(CO1="نعم","",IF(CN40="","",IF(CN41<CN47,CN47-CN41,""))) ->  | CR49: =IF(CS1="نعم","",IF(CR40="","",IF(CR41<CR47,CR47-CR41,""))) ->  | CV49: =IF(CW1="نعم","",IF(CV40="","",IF(CV41<CV47,CV47-CV41,""))) ->  | CZ49: =IF(DA1="نعم","",IF(CZ40="","",IF(CZ41<CZ47,CZ47-CZ41,""))) ->  | DD49: =IF(DE1="نعم","",IF(DD40="","",IF(DD41<DD47,DD47-DD41,""))) ->  | DH49: =IF(DI1="نعم","",IF(DH40="","",IF(DH41<DH47,DH47-DH41,""))) ->  | DL49: =IF(DM1="نعم","",IF(DL40="","",IF(DL41<DL47,DL47-DL41,""))) ->  | DP49: =IF(DQ1="نعم","",IF(DP40="","",IF(DP41<DP47,DP47-DP41,""))) ->  | DT49: =IF(DU1="نعم","",IF(DT40="","",IF(DT41<DT47,DT47-DT41,""))) ->  | DX49: =IF(DY1="نعم","",IF(DX40="","",IF(DX41<DX47,DX47-DX41,""))) ->  | EB49: =IF(EC1="نعم","",IF(EB40="","",IF(EB41<EB47,EB47-EB41,""))) ->  | EF49: =IF(EG1="نعم","",IF(EF40="","",IF(EF41<EF47,EF47-EF41,""))) ->  | EJ49: =IF(EK1="نعم","",IF(EJ40="","",IF(EJ41<EJ47,EJ47-EJ41,""))) ->  | EN49: =IF(EO1="نعم","",IF(EN40="","",IF(EN41<EN47,EN47-EN41,""))) ->  | ER49: =IF(ES1="نعم","",IF(ER40="","",IF(ER41<ER47,ER47-ER41,""))) ->  | EV49: =IF(EW1="نعم","",IF(EV40="","",IF(EV41<EV47,EV47-EV41,""))) ->  | EZ49: =IF(FA1="نعم","",IF(EZ40="","",IF(EZ41<EZ47,EZ47-EZ41,""))) ->  | FD49: =IF(FE1="نعم","",IF(FD40="","",IF(FD41<FD47,FD47-FD41,""))) ->  | FH49: =IF(FI1="نعم","",IF(FH40="","",IF(FH41<FH47,FH47-FH41,""))) ->  | FL49: =IF(FM1="نعم","",IF(FL40="","",IF(FL41<FL47,FL47-FL41,""))) ->  | FP49: =IF(FQ1="نعم","",IF(FP40="","",IF(FP41<FP47,FP47-FP41,""))) ->  | FT49: =IF(FU1="نعم","",IF(FT40="","",IF(FT41<FT47,FT47-FT41,""))) ->  | FX49: =IF(FY1="نعم","",IF(FX40="","",IF(FX41<FX47,FX47-FX41,""))) ->  | GB49: =IF(GC1="نعم","",IF(GB40="","",IF(GB41<GB47,GB47-GB41,""))) ->  | GF49: =IF(GG1="نعم","",IF(GF40="","",IF(GF41<GF47,GF47-GF41,""))) ->  | GJ49: =IF(GK1="نعم","",IF(GJ40="","",IF(GJ41<GJ47,GJ47-GJ41,""))) ->  | GN49: =IF(GO1="نعم","",IF(GN40="","",IF(GN41<GN47,GN47-GN41,""))) ->  | GR49: =IF(GS1="نعم","",IF(GR40="","",IF(GR41<GR47,GR47-GR41,""))) ->  | GV49: =IF(GW1="نعم","",IF(GV40="","",IF(GV41<GV47,GV47-GV41,""))) ->  | GZ49: =IF(HA1="نعم","",IF(GZ40="","",IF(GZ41<GZ47,GZ47-GZ41,""))) ->  | HD49: =IF(HE1="نعم","",IF(HD40="","",IF(HD41<HD47,HD47-HD41,""))) ->  | HH49: =IF(HI1="نعم","",IF(HH40="","",IF(HH41<HH47,HH47-HH41,""))) ->  | HL49: =IF(HM1="نعم","",IF(HL40="","",IF(HL41<HL47,HL47-HL41,""))) ->  | HP49: =IF(HQ1="نعم","",IF(HP40="","",IF(HP41<HP47,HP47-HP41,""))) ->  | HT49: =IF(HU1="نعم","",IF(HT40="","",IF(HT41<HT47,HT47-HT41,""))) ->  | HX49: =IF(HY1="نعم","",IF(HX40="","",IF(HX41<HX47,HX47-HX41,""))) ->  | IB49: =IF(IC1="نعم","",IF(IB40="","",IF(IB41<IB47,IB47-IB41,""))) -> 1 | IF49: =IF(IG1="نعم","",IF(IF40="","",IF(IF41<IF47,IF47-IF41,""))) ->  | IJ49: =IF(IK1="نعم","",IF(IJ40="","",IF(IJ41<IJ47,IJ47-IJ41,""))) ->  | IN49: =IF(IO1="نعم","",IF(IN40="","",IF(IN41<IN47,IN47-IN41,""))) ->  | IR49: =IF(IS1="نعم","",IF(IR40="","",IF(IR41<IR47,IR47-IR41,""))) ->  | IV49: =IF(IW1="نعم","",IF(IV40="","",IF(IV41<IV47,IV47-IV41,""))) ->  | IZ49: =IF(JA1="نعم","",IF(IZ40="","",IF(IZ41<IZ47,IZ47-IZ41,""))) ->  | JD49: =IF(JE1="نعم","",IF(JD40="","",IF(JD41<JD47,JD47-JD41,""))) ->  | JH49: =IF(JI1="نعم","",IF(JH40="","",IF(JH41<JH47,JH47-JH41,""))) ->  | JL49: =IF(JM1="نعم","",IF(JL40="","",IF(JL41<JL47,JL47-JL41,""))) ->  | JP49: =IF(JQ1="نعم","",IF(JP40="","",IF(JP41<JP47,JP47-JP41,""))) ->  | JT49: =IF(JU1="نعم","",IF(JT40="","",IF(JT41<JT47,JT47-JT41,""))) ->  | JX49: =IF(JY1="نعم","",IF(JX40="","",IF(JX41<JX47,JX47-JX41,""))) ->  | KB49: =IF(KC1="نعم","",IF(KB40="","",IF(KB41<KB47,KB47-KB41,""))) ->  | KF49: =IF(KG1="نعم","",IF(KF40="","",IF(KF41<KF47,KF47-KF41,""))) ->  | KJ49: =IF(KK1="نعم","",IF(KJ40="","",IF(KJ41<KJ47,KJ47-KJ41,""))) ->  | KN49: =IF(KO1="نعم","",IF(KN40="","",IF(KN41<KN47,KN47-KN41,""))) ->  | KR49: =IF(KS1="نعم","",IF(KR40="","",IF(KR41<KR47,KR47-KR41,""))) ->  | KV49: =IF(KW1="نعم","",IF(KV40="","",IF(KV41<KV47,KV47-KV41,""))) ->  | KZ49: =IF(LA1="نعم","",IF(KZ40="","",IF(KZ41<KZ47,KZ47-KZ41,""))) ->  | LD49: =IF(LE1="نعم","",IF(LD40="","",IF(LD41<LD47,LD47-LD41,""))) ->  | LH49: =IF(LI1="نعم","",IF(LH40="","",IF(LH41<LH47,LH47-LH41,""))) ->  | LL49: =IF(LM1="نعم","",IF(LL40="","",IF(LL41<LL47,LL47-LL41,""))) ->  | LP49: =IF(LQ1="نعم","",IF(LP40="","",IF(LP41<LP47,LP47-LP41,""))) ->  | LT49: =IF(LU1="نعم","",IF(LT40="","",IF(LT41<LT47,LT47-LT41,""))) ->  | LX49: =IF(LY1="نعم","",IF(LX40="","",IF(LX41<LX47,LX47-LX41,""))) ->  | MB49: =IF(MC1="نعم","",IF(MB40="","",IF(MB41<MB47,MB47-MB41,""))) ->  | MF49: =IF(MG1="نعم","",IF(MF40="","",IF(MF41<MF47,MF47-MF41,""))) ->  | MJ49: =IF(MK1="نعم","",IF(MJ40="","",IF(MJ41<MJ47,MJ47-MJ41,""))) ->  | MN49: =IF(MO1="نعم","",IF(MN40="","",IF(MN41<MN47,MN47-MN41,""))) ->  | MR49: =IF(MS1="نعم","",IF(MR40="","",IF(MR41<MR47,MR47-MR41,""))) ->  | MV49: =IF(MW1="نعم","",IF(MV40="","",IF(MV41<MV47,MV47-MV41,""))) ->  | MZ49: =IF(NA1="نعم","",IF(MZ40="","",IF(MZ41<MZ47,MZ47-MZ41,""))) ->  | ND49: =IF(NE1="نعم","",IF(ND40="","",IF(ND41<ND47,ND47-ND41,""))) ->  | NH49: =IF(NI1="نعم","",IF(NH40="","",IF(NH41<NH47,NH47-NH41,""))) ->  | NL49: =IF(NM1="نعم","",IF(NL40="","",IF(NL41<NL47,NL47-NL41,""))) ->  | NP49: =IF(NQ1="نعم","",IF(NP40="","",IF(NP41<NP47,NP47-NP41,""))) ->  | NT49: =IF(NU1="نعم","",IF(NT40="","",IF(NT41<NT47,NT47-NT41,""))) ->  | NX49: =IF(NY1="نعم","",IF(NX40="","",IF(NX41<NX47,NX47-NX41,""))) ->  | OB49: =IF(OC1="نعم","",IF(OB40="","",IF(OB41<OB47,OB47-OB41,""))) ->  | OF49: =IF(OG1="نعم","",IF(OF40="","",IF(OF41<OF47,OF47-OF41,""))) ->  | OJ49: =IF(OK1="نعم","",IF(OJ40="","",IF(OJ41<OJ47,OJ47-OJ41,""))) ->  | ON49: =IF(OO1="نعم","",IF(ON40="","",IF(ON41<ON47,ON47-ON41,""))) ->  | OR49: =IF(OS1="نعم","",IF(OR40="","",IF(OR41<OR47,OR47-OR41,""))) ->  | OV49: =IF(OW1="نعم","",IF(OV40="","",IF(OV41<OV47,OV47-OV41,""))) ->  | OZ49: =IF(PA1="نعم","",IF(OZ40="","",IF(OZ41<OZ47,OZ47-OZ41,""))) ->  | PD49: =IF(PE1="نعم","",IF(PD40="","",IF(PD41<PD47,PD47-PD41,""))) ->  | PH49: =IF(PI1="نعم","",IF(PH40="","",IF(PH41<PH47,PH47-PH41,""))) ->  | PL49: =IF(PM1="نعم","",IF(PL40="","",IF(PL41<PL47,PL47-PL41,""))) ->  | PP49: =IF(PQ1="نعم","",IF(PP40="","",IF(PP41<PP47,PP47-PP41,""))) ->  | PT49: =IF(PU1="نعم","",IF(PT40="","",IF(PT41<PT47,PT47-PT41,""))) ->  | PX49: =IF(PY1="نعم","",IF(PX40="","",IF(PX41<PX47,PX47-PX41,""))) ->  | QB49: =IF(QC1="نعم","",IF(QB40="","",IF(QB41<QB47,QB47-QB41,""))) ->  | QF49: =IF(QG1="نعم","",IF(QF40="","",IF(QF41<QF47,QF47-QF41,""))) -> 
B52: المستوى | C52: المعامل | D52: ساعات نظرية | E52: ساعات تطبيقية | F52: أفواج | G52: ساعات فعلية | H52: ساعات نظرية | I52: ساعات تطبيقية | J52: أفواج | K52: ساعات فعلية | L52: ساعات نظرية | M52: ساعات تطبيقية | N52: أفواج | O52: ساعات فعلية | P52: ساعات نظرية | Q52: ساعات تطبيقية | R52: أفواج | S52: ساعات فعلية | T52: ساعات نظرية | U52: ساعات تطبيقية | V52: أفواج | W52: ساعات فعلية | X52: ساعات نظرية | Y52: ساعات تطبيقية | Z52: أفواج | AA52: ساعات فعلية | AB52: ساعات نظرية | AC52: ساعات تطبيقية | AD52: أفواج | AE52: ساعات فعلية | AF52: ساعات نظرية | AG52: ساعات تطبيقية | AH52: أفواج | AI52: ساعات فعلية | AJ52: ساعات نظرية | AK52: ساعات تطبيقية | AL52: أفواج | AM52: ساعات فعلية | AN52: ساعات نظرية | AO52: ساعات تطبيقية | AP52: أفواج | AQ52: ساعات فعلية | AR52: ساعات نظرية | AS52: ساعات تطبيقية | AT52: أفواج | AU52: ساعات فعلية | AV52: ساعات نظرية | AW52: ساعات تطبيقية | AX52: أفواج | AY52: ساعات فعلية | AZ52: ساعات نظرية | BA52: ساعات تطبيقية | BB52: أفواج | BC52: ساعات فعلية | BD52: ساعات نظرية | BE52: ساعات تطبيقية | BF52: أفواج | BG52: ساعات فعلية | BH52: ساعات نظرية | BI52: ساعات تطبيقية | BJ52: أفواج | BK52: ساعات فعلية | BL52: ساعات نظرية | BM52: ساعات تطبيقية | BN52: أفواج | BO52: ساعات فعلية | BP52: ساعات نظرية | BQ52: ساعات تطبيقية | BR52: أفواج | BS52: ساعات فعلية | BT52: ساعات نظرية | BU52: ساعات تطبيقية | BV52: أفواج | BW52: ساعات فعلية | BX52: ساعات نظرية | BY52: ساعات تطبيقية | BZ52: أفواج | CA52: ساعات فعلية | CB52: ساعات نظرية | CC52: ساعات تطبيقية | CD52: أفواج | CE52: ساعات فعلية | CF52: ساعات نظرية | CG52: ساعات تطبيقية | CH52: أفواج | CI52: ساعات فعلية | CJ52: ساعات نظرية | CK52: ساعات تطبيقية | CL52: أفواج | CM52: ساعات فعلية | CN52: ساعات نظرية | CO52: ساعات تطبيقية | CP52: أفواج | CQ52: ساعات فعلية | CR52: ساعات نظرية | CS52: ساعات تطبيقية | CT52: أفواج | CU52: ساعات فعلية | CV52: ساعات نظرية | CW52: ساعات تطبيقية | CX52: أفواج | CY52: ساعات فعلية | CZ52: ساعات نظرية | DA52: ساعات تطبيقية | DB52: أفواج | DC52: ساعات فعلية | DD52: ساعات نظرية | DE52: ساعات تطبيقية | DF52: أفواج | DG52: ساعات فعلية | DH52: ساعات نظرية | DI52: ساعات تطبيقية | DJ52: أفواج | DK52: ساعات فعلية | DL52: ساعات نظرية | DM52: ساعات تطبيقية | DN52: أفواج | DO52: ساعات فعلية | DP52: ساعات نظرية | DQ52: ساعات تطبيقية | DR52: أفواج | DS52: ساعات فعلية | DT52: ساعات نظرية | DU52: ساعات تطبيقية | DV52: أفواج | DW52: ساعات فعلية | DX52: ساعات نظرية | DY52: ساعات تطبيقية | DZ52: أفواج | EA52: ساعات فعلية | EB52: ساعات نظرية | EC52: ساعات تطبيقية | ED52: أفواج | EE52: ساعات فعلية | EF52: ساعات نظرية | EG52: ساعات تطبيقية | EH52: أفواج | EI52: ساعات فعلية | EJ52: ساعات نظرية | EK52: ساعات تطبيقية | EL52: أفواج | EM52: ساعات فعلية | EN52: ساعات نظرية | EO52: ساعات تطبيقية | EP52: أفواج | EQ52: ساعات فعلية | ER52: ساعات نظرية | ES52: ساعات تطبيقية | ET52: أفواج | EU52: ساعات فعلية | EV52: ساعات نظرية | EW52: ساعات تطبيقية | EX52: أفواج | EY52: ساعات فعلية | EZ52: ساعات نظرية | FA52: ساعات تطبيقية | FB52: أفواج | FC52: ساعات فعلية | FD52: ساعات نظرية | FE52: ساعات تطبيقية | FF52: أفواج | FG52: ساعات فعلية | FH52: ساعات نظرية | FI52: ساعات تطبيقية | FJ52: أفواج | FK52: ساعات فعلية | FL52: ساعات نظرية | FM52: ساعات تطبيقية | FN52: أفواج | FO52: ساعات فعلية | FP52: ساعات نظرية | FQ52: ساعات تطبيقية | FR52: أفواج | FS52: ساعات فعلية | FT52: ساعات نظرية | FU52: ساعات تطبيقية | FV52: أفواج | FW52: ساعات فعلية | FX52: ساعات نظرية | FY52: ساعات تطبيقية | FZ52: أفواج | GA52: ساعات فعلية | GB52: ساعات نظرية | GC52: ساعات تطبيقية | GD52: أفواج | GE52: ساعات فعلية | GF52: ساعات نظرية | GG52: ساعات تطبيقية | GH52: أفواج | GI52: ساعات فعلية | GJ52: ساعات نظرية | GK52: ساعات تطبيقية | GL52: أفواج | GM52: ساعات فعلية | GN52: ساعات نظرية | GO52: ساعات تطبيقية | GP52: أفواج | GQ52: ساعات فعلية | GR52: ساعات نظرية | GS52: ساعات تطبيقية | GT52: أفواج | GU52: ساعات فعلية | GV52: ساعات نظرية | GW52: ساعات تطبيقية | GX52: أفواج | GY52: ساعات فعلية | GZ52: ساعات نظرية | HA52: ساعات تطبيقية | HB52: أفواج | HC52: ساعات فعلية | HD52: ساعات نظرية | HE52: ساعات تطبيقية | HF52: أفواج | HG52: ساعات فعلية | HH52: ساعات نظرية | HI52: ساعات تطبيقية | HJ52: أفواج | HK52: ساعات فعلية | HL52: ساعات نظرية | HM52: ساعات تطبيقية | HN52: أفواج | HO52: ساعات فعلية | HP52: ساعات نظرية | HQ52: ساعات تطبيقية | HR52: أفواج | HS52: ساعات فعلية | HT52: ساعات نظرية | HU52: ساعات تطبيقية | HV52: أفواج | HW52: ساعات فعلية | HX52: ساعات نظرية | HY52: ساعات تطبيقية | HZ52: أفواج | IA52: ساعات فعلية | IB52: ساعات نظرية | IC52: ساعات تطبيقية | ID52: أفواج | IE52: ساعات فعلية | IF52: ساعات نظرية | IG52: ساعات تطبيقية | IH52: أفواج | II52: ساعات فعلية | IJ52: ساعات نظرية | IK52: ساعات تطبيقية | IL52: أفواج | IM52: ساعات فعلية | IN52: ساعات نظرية | IO52: ساعات تطبيقية | IP52: أفواج | IQ52: ساعات فعلية | IR52: ساعات نظرية | IS52: ساعات تطبيقية | IT52: أفواج | IU52: ساعات فعلية | IV52: ساعات نظرية | IW52: ساعات تطبيقية | IX52: أفواج | IY52: ساعات فعلية | IZ52: ساعات نظرية | JA52: ساعات تطبيقية | JB52: أفواج | JC52: ساعات فعلية | JD52: ساعات نظرية | JE52: ساعات تطبيقية | JF52: أفواج | JG52: ساعات فعلية | JH52: ساعات نظرية | JI52: ساعات تطبيقية | JJ52: أفواج | JK52: ساعات فعلية | JL52: ساعات نظرية | JM52: ساعات تطبيقية | JN52: أفواج | JO52: ساعات فعلية | JP52: ساعات نظرية | JQ52: ساعات تطبيقية | JR52: أفواج | JS52: ساعات فعلية | JT52: ساعات نظرية | JU52: ساعات تطبيقية | JV52: أفواج | JW52: ساعات فعلية | JX52: ساعات نظرية | JY52: ساعات تطبيقية | JZ52: أفواج | KA52: ساعات فعلية | KB52: ساعات نظرية | KC52: ساعات تطبيقية | KD52: أفواج | KE52: ساعات فعلية | KF52: ساعات نظرية | KG52: ساعات تطبيقية | KH52: أفواج | KI52: ساعات فعلية | KJ52: ساعات نظرية | KK52: ساعات تطبيقية | KL52: أفواج | KM52: ساعات فعلية | KN52: ساعات نظرية | KO52: ساعات تطبيقية | KP52: أفواج | KQ52: ساعات فعلية | KR52: ساعات نظرية | KS52: ساعات تطبيقية | KT52: أفواج | KU52: ساعات فعلية | KV52: ساعات نظرية | KW52: ساعات تطبيقية | KX52: أفواج | KY52: ساعات فعلية | KZ52: ساعات نظرية | LA52: ساعات تطبيقية | LB52: أفواج | LC52: ساعات فعلية | LD52: ساعات نظرية | LE52: ساعات تطبيقية | LF52: أفواج | LG52: ساعات فعلية | LH52: ساعات نظرية | LI52: ساعات تطبيقية | LJ52: أفواج | LK52: ساعات فعلية | LL52: ساعات نظرية | LM52: ساعات تطبيقية | LN52: أفواج | LO52: ساعات فعلية | LP52: ساعات نظرية | LQ52: ساعات تطبيقية | LR52: أفواج | LS52: ساعات فعلية | LT52: ساعات نظرية | LU52: ساعات تطبيقية | LV52: أفواج | LW52: ساعات فعلية | LX52: ساعات نظرية | LY52: ساعات تطبيقية | LZ52: أفواج | MA52: ساعات فعلية | MB52: ساعات نظرية | MC52: ساعات تطبيقية | MD52: أفواج | ME52: ساعات فعلية | MF52: ساعات نظرية | MG52: ساعات تطبيقية | MH52: أفواج | MI52: ساعات فعلية | MJ52: ساعات نظرية | MK52: ساعات تطبيقية | ML52: أفواج | MM52: ساعات فعلية | MN52: ساعات نظرية | MO52: ساعات تطبيقية | MP52: أفواج | MQ52: ساعات فعلية | MR52: ساعات نظرية | MS52: ساعات تطبيقية | MT52: أفواج | MU52: ساعات فعلية | MV52: ساعات نظرية | MW52: ساعات تطبيقية | MX52: أفواج | MY52: ساعات فعلية | MZ52: ساعات نظرية | NA52: ساعات تطبيقية | NB52: أفواج | NC52: ساعات فعلية | ND52: ساعات نظرية | NE52: ساعات تطبيقية | NF52: أفواج | NG52: ساعات فعلية | NH52: ساعات نظرية | NI52: ساعات تطبيقية | NJ52: أفواج | NK52: ساعات فعلية | NL52: ساعات نظرية | NM52: ساعات تطبيقية | NN52: أفواج | NO52: ساعات فعلية | NP52: ساعات نظرية | NQ52: ساعات تطبيقية | NR52: أفواج | NS52: ساعات فعلية | NT52: ساعات نظرية | NU52: ساعات تطبيقية | NV52: أفواج | NW52: ساعات فعلية | NX52: ساعات نظرية | NY52: ساعات تطبيقية | NZ52: أفواج | OA52: ساعات فعلية | OB52: ساعات نظرية | OC52: ساعات تطبيقية | OD52: أفواج | OE52: ساعات فعلية | OF52: ساعات نظرية | OG52: ساعات تطبيقية | OH52: أفواج | OI52: ساعات فعلية | OJ52: ساعات نظرية | OK52: ساعات تطبيقية | OL52: أفواج | OM52: ساعات فعلية | ON52: ساعات نظرية | OO52: ساعات تطبيقية | OP52: أفواج | OQ52: ساعات فعلية | OR52: ساعات نظرية | OS52: ساعات تطبيقية | OT52: أفواج | OU52: ساعات فعلية | OV52: ساعات نظرية | OW52: ساعات تطبيقية | OX52: أفواج | OY52: ساعات فعلية | OZ52: ساعات نظرية | PA52: ساعات تطبيقية | PB52: أفواج | PC52: ساعات فعلية | PD52: ساعات نظرية | PE52: ساعات تطبيقية | PF52: أفواج | PG52: ساعات فعلية | PH52: ساعات نظرية | PI52: ساعات تطبيقية | PJ52: أفواج | PK52: ساعات فعلية | PL52: ساعات نظرية | PM52: ساعات تطبيقية | PN52: أفواج | PO52: ساعات فعلية | PP52: ساعات نظرية | PQ52: ساعات تطبيقية | PR52: أفواج | PS52: ساعات فعلية | PT52: ساعات نظرية | PU52: ساعات تطبيقية | PV52: أفواج | PW52: ساعات فعلية | PX52: ساعات نظرية | PY52: ساعات تطبيقية | PZ52: أفواج | QA52: ساعات فعلية | QB52: ساعات نظرية | QC52: ساعات تطبيقية | QD52: أفواج | QE52: ساعات فعلية | QF52: ساعات نظرية | QG52: ساعات تطبيقية | QH52: أفواج | QI52: ساعات فعلية
B53: 2 | C53: 1 | D53: =SUMIFS(D$10:D$39,$B$10:$B$39,$B53,G$10:G$39,$C53) -> 0 | E53: =SUMIFS(E$10:E$39,$B$10:$B$39,$B53,G$10:G$39,$C53)/2 -> 0 | F53: =COUNTIFS($B$10:$B$39,$B53,G$10:G$39,$C53) -> 0 | G53: =IF(F53>0,(D53+E53)/F53,0) -> 0 | H53: =SUMIFS(H$10:H$39,$B$10:$B$39,$B53,K$10:K$39,$C53) -> 0 | I53: =SUMIFS(I$10:I$39,$B$10:$B$39,$B53,K$10:K$39,$C53)/2 -> 0 | J53: =COUNTIFS($B$10:$B$39,$B53,K$10:K$39,$C53) -> 0 | K53: =IF(J53>0,(H53+I53)/J53,0) -> 0 | L53: =SUMIFS(L$10:L$39,$B$10:$B$39,$B53,O$10:O$39,$C53) -> 0 | M53: =SUMIFS(M$10:M$39,$B$10:$B$39,$B53,O$10:O$39,$C53)/2 -> 0 | N53: =COUNTIFS($B$10:$B$39,$B53,O$10:O$39,$C53) -> 0 | O53: =IF(N53>0,(L53+M53)/N53,0) -> 0 | P53: =SUMIFS(P$10:P$39,$B$10:$B$39,$B53,S$10:S$39,$C53) -> 0 | Q53: =SUMIFS(Q$10:Q$39,$B$10:$B$39,$B53,S$10:S$39,$C53)/2 -> 0 | R53: =COUNTIFS($B$10:$B$39,$B53,S$10:S$39,$C53) -> 0 | S53: =IF(R53>0,(P53+Q53)/R53,0) -> 0 | T53: =SUMIFS(T$10:T$39,$B$10:$B$39,$B53,W$10:W$39,$C53) -> 0 | U53: =SUMIFS(U$10:U$39,$B$10:$B$39,$B53,W$10:W$39,$C53)/2 -> 0 | V53: =COUNTIFS($B$10:$B$39,$B53,W$10:W$39,$C53) -> 0 | W53: =IF(V53>0,(T53+U53)/V53,0) -> 0 | X53: =SUMIFS(X$10:X$39,$B$10:$B$39,$B53,AA$10:AA$39,$C53) -> 0 | Y53: =SUMIFS(Y$10:Y$39,$B$10:$B$39,$B53,AA$10:AA$39,$C53)/2 -> 0 | Z53: =COUNTIFS($B$10:$B$39,$B53,AA$10:AA$39,$C53) -> 0 | AA53: =IF(Z53>0,(X53+Y53)/Z53,0) -> 0 | AB53: =SUMIFS(AB$10:AB$39,$B$10:$B$39,$B53,AE$10:AE$39,$C53) -> 0 | AC53: =SUMIFS(AC$10:AC$39,$B$10:$B$39,$B53,AE$10:AE$39,$C53)/2 -> 0 | AD53: =COUNTIFS($B$10:$B$39,$B53,AE$10:AE$39,$C53) -> 0 | AE53: =IF(AD53>0,(AB53+AC53)/AD53,0) -> 0 | AF53: =SUMIFS(AF$10:AF$39,$B$10:$B$39,$B53,AI$10:AI$39,$C53) -> 0 | AG53: =SUMIFS(AG$10:AG$39,$B$10:$B$39,$B53,AI$10:AI$39,$C53)/2 -> 0 | AH53: =COUNTIFS($B$10:$B$39,$B53,AI$10:AI$39,$C53) -> 0 | AI53: =IF(AH53>0,(AF53+AG53)/AH53,0) -> 0 | AJ53: =SUMIFS(AJ$10:AJ$39,$B$10:$B$39,$B53,AM$10:AM$39,$C53) -> 0 | AK53: =SUMIFS(AK$10:AK$39,$B$10:$B$39,$B53,AM$10:AM$39,$C53)/2 -> 0 | AL53: =COUNTIFS($B$10:$B$39,$B53,AM$10:AM$39,$C53) -> 0 | AM53: =IF(AL53>0,(AJ53+AK53)/AL53,0) -> 0 | AN53: =SUMIFS(AN$10:AN$39,$B$10:$B$39,$B53,AQ$10:AQ$39,$C53) -> 0 | AO53: =SUMIFS(AO$10:AO$39,$B$10:$B$39,$B53,AQ$10:AQ$39,$C53)/2 -> 0 | AP53: =COUNTIFS($B$10:$B$39,$B53,AQ$10:AQ$39,$C53) -> 0 | AQ53: =IF(AP53>0,(AN53+AO53)/AP53,0) -> 0 | AR53: =SUMIFS(AR$10:AR$39,$B$10:$B$39,$B53,AU$10:AU$39,$C53) -> 0 | AS53: =SUMIFS(AS$10:AS$39,$B$10:$B$39,$B53,AU$10:AU$39,$C53)/2 -> 0 | AT53: =COUNTIFS($B$10:$B$39,$B53,AU$10:AU$39,$C53) -> 0 | AU53: =IF(AT53>0,(AR53+AS53)/AT53,0) -> 0 | AV53: =SUMIFS(AV$10:AV$39,$B$10:$B$39,$B53,AY$10:AY$39,$C53) -> 0 | AW53: =SUMIFS(AW$10:AW$39,$B$10:$B$39,$B53,AY$10:AY$39,$C53)/2 -> 0 | AX53: =COUNTIFS($B$10:$B$39,$B53,AY$10:AY$39,$C53) -> 0 | AY53: =IF(AX53>0,(AV53+AW53)/AX53,0) -> 0 | AZ53: =SUMIFS(AZ$10:AZ$39,$B$10:$B$39,$B53,BC$10:BC$39,$C53) -> 0 | BA53: =SUMIFS(BA$10:BA$39,$B$10:$B$39,$B53,BC$10:BC$39,$C53)/2 -> 0 | BB53: =COUNTIFS($B$10:$B$39,$B53,BC$10:BC$39,$C53) -> 0 | BC53: =IF(BB53>0,(AZ53+BA53)/BB53,0) -> 0 | BD53: =SUMIFS(BD$10:BD$39,$B$10:$B$39,$B53,BG$10:BG$39,$C53) -> 0 | BE53: =SUMIFS(BE$10:BE$39,$B$10:$B$39,$B53,BG$10:BG$39,$C53)/2 -> 0 | BF53: =COUNTIFS($B$10:$B$39,$B53,BG$10:BG$39,$C53) -> 0 | BG53: =IF(BF53>0,(BD53+BE53)/BF53,0) -> 0 | BH53: =SUMIFS(BH$10:BH$39,$B$10:$B$39,$B53,BK$10:BK$39,$C53) -> 0 | BI53: =SUMIFS(BI$10:BI$39,$B$10:$B$39,$B53,BK$10:BK$39,$C53)/2 -> 0 | BJ53: =COUNTIFS($B$10:$B$39,$B53,BK$10:BK$39,$C53) -> 0 | BK53: =IF(BJ53>0,(BH53+BI53)/BJ53,0) -> 0 | BL53: =SUMIFS(BL$10:BL$39,$B$10:$B$39,$B53,BO$10:BO$39,$C53) -> 0 | BM53: =SUMIFS(BM$10:BM$39,$B$10:$B$39,$B53,BO$10:BO$39,$C53)/2 -> 0 | BN53: =COUNTIFS($B$10:$B$39,$B53,BO$10:BO$39,$C53) -> 0 | BO53: =IF(BN53>0,(BL53+BM53)/BN53,0) -> 0 | BP53: =SUMIFS(BP$10:BP$39,$B$10:$B$39,$B53,BS$10:BS$39,$C53) -> 0 | BQ53: =SUMIFS(BQ$10:BQ$39,$B$10:$B$39,$B53,BS$10:BS$39,$C53)/2 -> 0 | BR53: =COUNTIFS($B$10:$B$39,$B53,BS$10:BS$39,$C53) -> 0 | BS53: =IF(BR53>0,(BP53+BQ53)/BR53,0) -> 0 | BT53: =SUMIFS(BT$10:BT$39,$B$10:$B$39,$B53,BW$10:BW$39,$C53) -> 0 | BU53: =SUMIFS(BU$10:BU$39,$B$10:$B$39,$B53,BW$10:BW$39,$C53)/2 -> 0 | BV53: =COUNTIFS($B$10:$B$39,$B53,BW$10:BW$39,$C53) -> 0 | BW53: =IF(BV53>0,(BT53+BU53)/BV53,0) -> 0 | BX53: =SUMIFS(BX$10:BX$39,$B$10:$B$39,$B53,CA$10:CA$39,$C53) -> 0 | BY53: =SUMIFS(BY$10:BY$39,$B$10:$B$39,$B53,CA$10:CA$39,$C53)/2 -> 0 | BZ53: =COUNTIFS($B$10:$B$39,$B53,CA$10:CA$39,$C53) -> 0 | CA53: =IF(BZ53>0,(BX53+BY53)/BZ53,0) -> 0 | CB53: =SUMIFS(CB$10:CB$39,$B$10:$B$39,$B53,CE$10:CE$39,$C53) -> 0 | CC53: =SUMIFS(CC$10:CC$39,$B$10:$B$39,$B53,CE$10:CE$39,$C53)/2 -> 0 | CD53: =COUNTIFS($B$10:$B$39,$B53,CE$10:CE$39,$C53) -> 0 | CE53: =IF(CD53>0,(CB53+CC53)/CD53,0) -> 0 | CF53: =SUMIFS(CF$10:CF$39,$B$10:$B$39,$B53,CI$10:CI$39,$C53) -> 0 | CG53: =SUMIFS(CG$10:CG$39,$B$10:$B$39,$B53,CI$10:CI$39,$C53)/2 -> 0 | CH53: =COUNTIFS($B$10:$B$39,$B53,CI$10:CI$39,$C53) -> 0 | CI53: =IF(CH53>0,(CF53+CG53)/CH53,0) -> 0 | CJ53: =SUMIFS(CJ$10:CJ$39,$B$10:$B$39,$B53,CM$10:CM$39,$C53) -> 0 | CK53: =SUMIFS(CK$10:CK$39,$B$10:$B$39,$B53,CM$10:CM$39,$C53)/2 -> 0 | CL53: =COUNTIFS($B$10:$B$39,$B53,CM$10:CM$39,$C53) -> 0 | CM53: =IF(CL53>0,(CJ53+CK53)/CL53,0) -> 0 | CN53: =SUMIFS(CN$10:CN$39,$B$10:$B$39,$B53,CQ$10:CQ$39,$C53) -> 0 | CO53: =SUMIFS(CO$10:CO$39,$B$10:$B$39,$B53,CQ$10:CQ$39,$C53)/2 -> 0 | CP53: =COUNTIFS($B$10:$B$39,$B53,CQ$10:CQ$39,$C53) -> 0 | CQ53: =IF(CP53>0,(CN53+CO53)/CP53,0) -> 0 | CR53: =SUMIFS(CR$10:CR$39,$B$10:$B$39,$B53,CU$10:CU$39,$C53) -> 0 | CS53: =SUMIFS(CS$10:CS$39,$B$10:$B$39,$B53,CU$10:CU$39,$C53)/2 -> 0 | CT53: =COUNTIFS($B$10:$B$39,$B53,CU$10:CU$39,$C53) -> 0 | CU53: =IF(CT53>0,(CR53+CS53)/CT53,0) -> 0 | CV53: =SUMIFS(CV$10:CV$39,$B$10:$B$39,$B53,CY$10:CY$39,$C53) -> 0 | CW53: =SUMIFS(CW$10:CW$39,$B$10:$B$39,$B53,CY$10:CY$39,$C53)/2 -> 0 | CX53: =COUNTIFS($B$10:$B$39,$B53,CY$10:CY$39,$C53) -> 0 | CY53: =IF(CX53>0,(CV53+CW53)/CX53,0) -> 0 | CZ53: =SUMIFS(CZ$10:CZ$39,$B$10:$B$39,$B53,DC$10:DC$39,$C53) -> 0 | DA53: =SUMIFS(DA$10:DA$39,$B$10:$B$39,$B53,DC$10:DC$39,$C53)/2 -> 0 | DB53: =COUNTIFS($B$10:$B$39,$B53,DC$10:DC$39,$C53) -> 0 | DC53: =IF(DB53>0,(CZ53+DA53)/DB53,0) -> 0 | DD53: =SUMIFS(DD$10:DD$39,$B$10:$B$39,$B53,DG$10:DG$39,$C53) -> 0 | DE53: =SUMIFS(DE$10:DE$39,$B$10:$B$39,$B53,DG$10:DG$39,$C53)/2 -> 0 | DF53: =COUNTIFS($B$10:$B$39,$B53,DG$10:DG$39,$C53) -> 0 | DG53: =IF(DF53>0,(DD53+DE53)/DF53,0) -> 0 | DH53: =SUMIFS(DH$10:DH$39,$B$10:$B$39,$B53,DK$10:DK$39,$C53) -> 0 | DI53: =SUMIFS(DI$10:DI$39,$B$10:$B$39,$B53,DK$10:DK$39,$C53)/2 -> 0 | DJ53: =COUNTIFS($B$10:$B$39,$B53,DK$10:DK$39,$C53) -> 0 | DK53: =IF(DJ53>0,(DH53+DI53)/DJ53,0) -> 0 | DL53: =SUMIFS(DL$10:DL$39,$B$10:$B$39,$B53,DO$10:DO$39,$C53) -> 0 | DM53: =SUMIFS(DM$10:DM$39,$B$10:$B$39,$B53,DO$10:DO$39,$C53)/2 -> 0 | DN53: =COUNTIFS($B$10:$B$39,$B53,DO$10:DO$39,$C53) -> 0 | DO53: =IF(DN53>0,(DL53+DM53)/DN53,0) -> 0 | DP53: =SUMIFS(DP$10:DP$39,$B$10:$B$39,$B53,DS$10:DS$39,$C53) -> 0 | DQ53: =SUMIFS(DQ$10:DQ$39,$B$10:$B$39,$B53,DS$10:DS$39,$C53)/2 -> 0 | DR53: =COUNTIFS($B$10:$B$39,$B53,DS$10:DS$39,$C53) -> 0 | DS53: =IF(DR53>0,(DP53+DQ53)/DR53,0) -> 0 | DT53: =SUMIFS(DT$10:DT$39,$B$10:$B$39,$B53,DW$10:DW$39,$C53) -> 0 | DU53: =SUMIFS(DU$10:DU$39,$B$10:$B$39,$B53,DW$10:DW$39,$C53)/2 -> 0 | DV53: =COUNTIFS($B$10:$B$39,$B53,DW$10:DW$39,$C53) -> 0 | DW53: =IF(DV53>0,(DT53+DU53)/DV53,0) -> 0 | DX53: =SUMIFS(DX$10:DX$39,$B$10:$B$39,$B53,EA$10:EA$39,$C53) -> 0 | DY53: =SUMIFS(DY$10:DY$39,$B$10:$B$39,$B53,EA$10:EA$39,$C53)/2 -> 0 | DZ53: =COUNTIFS($B$10:$B$39,$B53,EA$10:EA$39,$C53) -> 0 | EA53: =IF(DZ53>0,(DX53+DY53)/DZ53,0) -> 0 | EB53: =SUMIFS(EB$10:EB$39,$B$10:$B$39,$B53,EE$10:EE$39,$C53) -> 0 | EC53: =SUMIFS(EC$10:EC$39,$B$10:$B$39,$B53,EE$10:EE$39,$C53)/2 -> 0 | ED53: =COUNTIFS($B$10:$B$39,$B53,EE$10:EE$39,$C53) -> 0 | EE53: =IF(ED53>0,(EB53+EC53)/ED53,0) -> 0 | EF53: =SUMIFS(EF$10:EF$39,$B$10:$B$39,$B53,EI$10:EI$39,$C53) -> 0 | EG53: =SUMIFS(EG$10:EG$39,$B$10:$B$39,$B53,EI$10:EI$39,$C53)/2 -> 0 | EH53: =COUNTIFS($B$10:$B$39,$B53,EI$10:EI$39,$C53) -> 0 | EI53: =IF(EH53>0,(EF53+EG53)/EH53,0) -> 0 | EJ53: =SUMIFS(EJ$10:EJ$39,$B$10:$B$39,$B53,EM$10:EM$39,$C53) -> 0 | EK53: =SUMIFS(EK$10:EK$39,$B$10:$B$39,$B53,EM$10:EM$39,$C53)/2 -> 0 | EL53: =COUNTIFS($B$10:$B$39,$B53,EM$10:EM$39,$C53) -> 0 | EM53: =IF(EL53>0,(EJ53+EK53)/EL53,0) -> 0 | EN53: =SUMIFS(EN$10:EN$39,$B$10:$B$39,$B53,EQ$10:EQ$39,$C53) -> 0 | EO53: =SUMIFS(EO$10:EO$39,$B$10:$B$39,$B53,EQ$10:EQ$39,$C53)/2 -> 0 | EP53: =COUNTIFS($B$10:$B$39,$B53,EQ$10:EQ$39,$C53) -> 0 | EQ53: =IF(EP53>0,(EN53+EO53)/EP53,0) -> 0 | ER53: =SUMIFS(ER$10:ER$39,$B$10:$B$39,$B53,EU$10:EU$39,$C53) -> 0 | ES53: =SUMIFS(ES$10:ES$39,$B$10:$B$39,$B53,EU$10:EU$39,$C53)/2 -> 0 | ET53: =COUNTIFS($B$10:$B$39,$B53,EU$10:EU$39,$C53) -> 0 | EU53: =IF(ET53>0,(ER53+ES53)/ET53,0) -> 0 | EV53: =SUMIFS(EV$10:EV$39,$B$10:$B$39,$B53,EY$10:EY$39,$C53) -> 0 | EW53: =SUMIFS(EW$10:EW$39,$B$10:$B$39,$B53,EY$10:EY$39,$C53)/2 -> 0 | EX53: =COUNTIFS($B$10:$B$39,$B53,EY$10:EY$39,$C53) -> 0 | EY53: =IF(EX53>0,(EV53+EW53)/EX53,0) -> 0 | EZ53: =SUMIFS(EZ$10:EZ$39,$B$10:$B$39,$B53,FC$10:FC$39,$C53) -> 0 | FA53: =SUMIFS(FA$10:FA$39,$B$10:$B$39,$B53,FC$10:FC$39,$C53)/2 -> 0 | FB53: =COUNTIFS($B$10:$B$39,$B53,FC$10:FC$39,$C53) -> 0 | FC53: =IF(FB53>0,(EZ53+FA53)/FB53,0) -> 0 | FD53: =SUMIFS(FD$10:FD$39,$B$10:$B$39,$B53,FG$10:FG$39,$C53) -> 0 | FE53: =SUMIFS(FE$10:FE$39,$B$10:$B$39,$B53,FG$10:FG$39,$C53)/2 -> 0 | FF53: =COUNTIFS($B$10:$B$39,$B53,FG$10:FG$39,$C53) -> 0 | FG53: =IF(FF53>0,(FD53+FE53)/FF53,0) -> 0 | FH53: =SUMIFS(FH$10:FH$39,$B$10:$B$39,$B53,FK$10:FK$39,$C53) -> 0 | FI53: =SUMIFS(FI$10:FI$39,$B$10:$B$39,$B53,FK$10:FK$39,$C53)/2 -> 0 | FJ53: =COUNTIFS($B$10:$B$39,$B53,FK$10:FK$39,$C53) -> 0 | FK53: =IF(FJ53>0,(FH53+FI53)/FJ53,0) -> 0 | FL53: =SUMIFS(FL$10:FL$39,$B$10:$B$39,$B53,FO$10:FO$39,$C53) -> 0 | FM53: =SUMIFS(FM$10:FM$39,$B$10:$B$39,$B53,FO$10:FO$39,$C53)/2 -> 0 | FN53: =COUNTIFS($B$10:$B$39,$B53,FO$10:FO$39,$C53) -> 0 | FO53: =IF(FN53>0,(FL53+FM53)/FN53,0) -> 0 | FP53: =SUMIFS(FP$10:FP$39,$B$10:$B$39,$B53,FS$10:FS$39,$C53) -> 0 | FQ53: =SUMIFS(FQ$10:FQ$39,$B$10:$B$39,$B53,FS$10:FS$39,$C53)/2 -> 0 | FR53: =COUNTIFS($B$10:$B$39,$B53,FS$10:FS$39,$C53) -> 0 | FS53: =IF(FR53>0,(FP53+FQ53)/FR53,0) -> 0 | FT53: =SUMIFS(FT$10:FT$39,$B$10:$B$39,$B53,FW$10:FW$39,$C53) -> 0 | FU53: =SUMIFS(FU$10:FU$39,$B$10:$B$39,$B53,FW$10:FW$39,$C53)/2 -> 0 | FV53: =COUNTIFS($B$10:$B$39,$B53,FW$10:FW$39,$C53) -> 0 | FW53: =IF(FV53>0,(FT53+FU53)/FV53,0) -> 0 | FX53: =SUMIFS(FX$10:FX$39,$B$10:$B$39,$B53,GA$10:GA$39,$C53) -> 0 | FY53: =SUMIFS(FY$10:FY$39,$B$10:$B$39,$B53,GA$10:GA$39,$C53)/2 -> 0 | FZ53: =COUNTIFS($B$10:$B$39,$B53,GA$10:GA$39,$C53) -> 0 | GA53: =IF(FZ53>0,(FX53+FY53)/FZ53,0) -> 0 | GB53: =SUMIFS(GB$10:GB$39,$B$10:$B$39,$B53,GE$10:GE$39,$C53) -> 0 | GC53: =SUMIFS(GC$10:GC$39,$B$10:$B$39,$B53,GE$10:GE$39,$C53)/2 -> 0 | GD53: =COUNTIFS($B$10:$B$39,$B53,GE$10:GE$39,$C53) -> 0 | GE53: =IF(GD53>0,(GB53+GC53)/GD53,0) -> 0 | GF53: =SUMIFS(GF$10:GF$39,$B$10:$B$39,$B53,GI$10:GI$39,$C53) -> 0 | GG53: =SUMIFS(GG$10:GG$39,$B$10:$B$39,$B53,GI$10:GI$39,$C53)/2 -> 0 | GH53: =COUNTIFS($B$10:$B$39,$B53,GI$10:GI$39,$C53) -> 0 | GI53: =IF(GH53>0,(GF53+GG53)/GH53,0) -> 0 | GJ53: =SUMIFS(GJ$10:GJ$39,$B$10:$B$39,$B53,GM$10:GM$39,$C53) -> 0 | GK53: =SUMIFS(GK$10:GK$39,$B$10:$B$39,$B53,GM$10:GM$39,$C53)/2 -> 0 | GL53: =COUNTIFS($B$10:$B$39,$B53,GM$10:GM$39,$C53) -> 0 | GM53: =IF(GL53>0,(GJ53+GK53)/GL53,0) -> 0 | GN53: =SUMIFS(GN$10:GN$39,$B$10:$B$39,$B53,GQ$10:GQ$39,$C53) -> 0 | GO53: =SUMIFS(GO$10:GO$39,$B$10:$B$39,$B53,GQ$10:GQ$39,$C53)/2 -> 0 | GP53: =COUNTIFS($B$10:$B$39,$B53,GQ$10:GQ$39,$C53) -> 0 | GQ53: =IF(GP53>0,(GN53+GO53)/GP53,0) -> 0 | GR53: =SUMIFS(GR$10:GR$39,$B$10:$B$39,$B53,GU$10:GU$39,$C53) -> 0 | GS53: =SUMIFS(GS$10:GS$39,$B$10:$B$39,$B53,GU$10:GU$39,$C53)/2 -> 0 | GT53: =COUNTIFS($B$10:$B$39,$B53,GU$10:GU$39,$C53) -> 0 | GU53: =IF(GT53>0,(GR53+GS53)/GT53,0) -> 0 | GV53: =SUMIFS(GV$10:GV$39,$B$10:$B$39,$B53,GY$10:GY$39,$C53) -> 0 | GW53: =SUMIFS(GW$10:GW$39,$B$10:$B$39,$B53,GY$10:GY$39,$C53)/2 -> 0 | GX53: =COUNTIFS($B$10:$B$39,$B53,GY$10:GY$39,$C53) -> 0 | GY53: =IF(GX53>0,(GV53+GW53)/GX53,0) -> 0 | GZ53: =SUMIFS(GZ$10:GZ$39,$B$10:$B$39,$B53,HC$10:HC$39,$C53) -> 0 | HA53: =SUMIFS(HA$10:HA$39,$B$10:$B$39,$B53,HC$10:HC$39,$C53)/2 -> 0 | HB53: =COUNTIFS($B$10:$B$39,$B53,HC$10:HC$39,$C53) -> 0 | HC53: =IF(HB53>0,(GZ53+HA53)/HB53,0) -> 0 | HD53: =SUMIFS(HD$10:HD$39,$B$10:$B$39,$B53,HG$10:HG$39,$C53) -> 0 | HE53: =SUMIFS(HE$10:HE$39,$B$10:$B$39,$B53,HG$10:HG$39,$C53)/2 -> 0 | HF53: =COUNTIFS($B$10:$B$39,$B53,HG$10:HG$39,$C53) -> 0 | HG53: =IF(HF53>0,(HD53+HE53)/HF53,0) -> 0 | HH53: =SUMIFS(HH$10:HH$39,$B$10:$B$39,$B53,HK$10:HK$39,$C53) -> 0 | HI53: =SUMIFS(HI$10:HI$39,$B$10:$B$39,$B53,HK$10:HK$39,$C53)/2 -> 0 | HJ53: =COUNTIFS($B$10:$B$39,$B53,HK$10:HK$39,$C53) -> 0 | HK53: =IF(HJ53>0,(HH53+HI53)/HJ53,0) -> 0 | HL53: =SUMIFS(HL$10:HL$39,$B$10:$B$39,$B53,HO$10:HO$39,$C53) -> 0 | HM53: =SUMIFS(HM$10:HM$39,$B$10:$B$39,$B53,HO$10:HO$39,$C53)/2 -> 0 | HN53: =COUNTIFS($B$10:$B$39,$B53,HO$10:HO$39,$C53) -> 0 | HO53: =IF(HN53>0,(HL53+HM53)/HN53,0) -> 0 | HP53: =SUMIFS(HP$10:HP$39,$B$10:$B$39,$B53,HS$10:HS$39,$C53) -> 0 | HQ53: =SUMIFS(HQ$10:HQ$39,$B$10:$B$39,$B53,HS$10:HS$39,$C53)/2 -> 0 | HR53: =COUNTIFS($B$10:$B$39,$B53,HS$10:HS$39,$C53) -> 0 | HS53: =IF(HR53>0,(HP53+HQ53)/HR53,0) -> 0 | HT53: =SUMIFS(HT$10:HT$39,$B$10:$B$39,$B53,HW$10:HW$39,$C53) -> 0 | HU53: =SUMIFS(HU$10:HU$39,$B$10:$B$39,$B53,HW$10:HW$39,$C53)/2 -> 0 | HV53: =COUNTIFS($B$10:$B$39,$B53,HW$10:HW$39,$C53) -> 0 | HW53: =IF(HV53>0,(HT53+HU53)/HV53,0) -> 0 | HX53: =SUMIFS(HX$10:HX$39,$B$10:$B$39,$B53,IA$10:IA$39,$C53) -> 0 | HY53: =SUMIFS(HY$10:HY$39,$B$10:$B$39,$B53,IA$10:IA$39,$C53)/2 -> 0 | HZ53: =COUNTIFS($B$10:$B$39,$B53,IA$10:IA$39,$C53) -> 0 | IA53: =IF(HZ53>0,(HX53+HY53)/HZ53,0) -> 0 | IB53: =SUMIFS(IB$10:IB$39,$B$10:$B$39,$B53,IE$10:IE$39,$C53) -> 0 | IC53: =SUMIFS(IC$10:IC$39,$B$10:$B$39,$B53,IE$10:IE$39,$C53)/2 -> 0 | ID53: =COUNTIFS($B$10:$B$39,$B53,IE$10:IE$39,$C53) -> 0 | IE53: =IF(ID53>0,(IB53+IC53)/ID53,0) -> 0 | IF53: =SUMIFS(IF$10:IF$39,$B$10:$B$39,$B53,II$10:II$39,$C53) -> 0 | IG53: =SUMIFS(IG$10:IG$39,$B$10:$B$39,$B53,II$10:II$39,$C53)/2 -> 0 | IH53: =COUNTIFS($B$10:$B$39,$B53,II$10:II$39,$C53) -> 0 | II53: =IF(IH53>0,(IF53+IG53)/IH53,0) -> 0 | IJ53: =SUMIFS(IJ$10:IJ$39,$B$10:$B$39,$B53,IM$10:IM$39,$C53) -> 0 | IK53: =SUMIFS(IK$10:IK$39,$B$10:$B$39,$B53,IM$10:IM$39,$C53)/2 -> 0 | IL53: =COUNTIFS($B$10:$B$39,$B53,IM$10:IM$39,$C53) -> 0 | IM53: =IF(IL53>0,(IJ53+IK53)/IL53,0) -> 0 | IN53: =SUMIFS(IN$10:IN$39,$B$10:$B$39,$B53,IQ$10:IQ$39,$C53) -> 0 | IO53: =SUMIFS(IO$10:IO$39,$B$10:$B$39,$B53,IQ$10:IQ$39,$C53)/2 -> 0 | IP53: =COUNTIFS($B$10:$B$39,$B53,IQ$10:IQ$39,$C53) -> 0 | IQ53: =IF(IP53>0,(IN53+IO53)/IP53,0) -> 0 | IR53: =SUMIFS(IR$10:IR$39,$B$10:$B$39,$B53,IU$10:IU$39,$C53) -> 0 | IS53: =SUMIFS(IS$10:IS$39,$B$10:$B$39,$B53,IU$10:IU$39,$C53)/2 -> 0 | IT53: =COUNTIFS($B$10:$B$39,$B53,IU$10:IU$39,$C53) -> 0 | IU53: =IF(IT53>0,(IR53+IS53)/IT53,0) -> 0 | IV53: =SUMIFS(IV$10:IV$39,$B$10:$B$39,$B53,IY$10:IY$39,$C53) -> 0 | IW53: =SUMIFS(IW$10:IW$39,$B$10:$B$39,$B53,IY$10:IY$39,$C53)/2 -> 0 | IX53: =COUNTIFS($B$10:$B$39,$B53,IY$10:IY$39,$C53) -> 0 | IY53: =IF(IX53>0,(IV53+IW53)/IX53,0) -> 0 | IZ53: =SUMIFS(IZ$10:IZ$39,$B$10:$B$39,$B53,JC$10:JC$39,$C53) -> 0 | JA53: =SUMIFS(JA$10:JA$39,$B$10:$B$39,$B53,JC$10:JC$39,$C53)/2 -> 0 | JB53: =COUNTIFS($B$10:$B$39,$B53,JC$10:JC$39,$C53) -> 0 | JC53: =IF(JB53>0,(IZ53+JA53)/JB53,0) -> 0 | JD53: =SUMIFS(JD$10:JD$39,$B$10:$B$39,$B53,JG$10:JG$39,$C53) -> 0 | JE53: =SUMIFS(JE$10:JE$39,$B$10:$B$39,$B53,JG$10:JG$39,$C53)/2 -> 0 | JF53: =COUNTIFS($B$10:$B$39,$B53,JG$10:JG$39,$C53) -> 0 | JG53: =IF(JF53>0,(JD53+JE53)/JF53,0) -> 0 | JH53: =SUMIFS(JH$10:JH$39,$B$10:$B$39,$B53,JK$10:JK$39,$C53) -> 0 | JI53: =SUMIFS(JI$10:JI$39,$B$10:$B$39,$B53,JK$10:JK$39,$C53)/2 -> 0 | JJ53: =COUNTIFS($B$10:$B$39,$B53,JK$10:JK$39,$C53) -> 0 | JK53: =IF(JJ53>0,(JH53+JI53)/JJ53,0) -> 0 | JL53: =SUMIFS(JL$10:JL$39,$B$10:$B$39,$B53,JO$10:JO$39,$C53) -> 0 | JM53: =SUMIFS(JM$10:JM$39,$B$10:$B$39,$B53,JO$10:JO$39,$C53)/2 -> 0 | JN53: =COUNTIFS($B$10:$B$39,$B53,JO$10:JO$39,$C53) -> 0 | JO53: =IF(JN53>0,(JL53+JM53)/JN53,0) -> 0 | JP53: =SUMIFS(JP$10:JP$39,$B$10:$B$39,$B53,JS$10:JS$39,$C53) -> 0 | JQ53: =SUMIFS(JQ$10:JQ$39,$B$10:$B$39,$B53,JS$10:JS$39,$C53)/2 -> 0 | JR53: =COUNTIFS($B$10:$B$39,$B53,JS$10:JS$39,$C53) -> 0 | JS53: =IF(JR53>0,(JP53+JQ53)/JR53,0) -> 0 | JT53: =SUMIFS(JT$10:JT$39,$B$10:$B$39,$B53,JW$10:JW$39,$C53) -> 0 | JU53: =SUMIFS(JU$10:JU$39,$B$10:$B$39,$B53,JW$10:JW$39,$C53)/2 -> 0 | JV53: =COUNTIFS($B$10:$B$39,$B53,JW$10:JW$39,$C53) -> 0 | JW53: =IF(JV53>0,(JT53+JU53)/JV53,0) -> 0 | JX53: =SUMIFS(JX$10:JX$39,$B$10:$B$39,$B53,KA$10:KA$39,$C53) -> 0 | JY53: =SUMIFS(JY$10:JY$39,$B$10:$B$39,$B53,KA$10:KA$39,$C53)/2 -> 0 | JZ53: =COUNTIFS($B$10:$B$39,$B53,KA$10:KA$39,$C53) -> 0 | KA53: =IF(JZ53>0,(JX53+JY53)/JZ53,0) -> 0 | KB53: =SUMIFS(KB$10:KB$39,$B$10:$B$39,$B53,KE$10:KE$39,$C53) -> 0 | KC53: =SUMIFS(KC$10:KC$39,$B$10:$B$39,$B53,KE$10:KE$39,$C53)/2 -> 0 | KD53: =COUNTIFS($B$10:$B$39,$B53,KE$10:KE$39,$C53) -> 0 | KE53: =IF(KD53>0,(KB53+KC53)/KD53,0) -> 0 | KF53: =SUMIFS(KF$10:KF$39,$B$10:$B$39,$B53,KI$10:KI$39,$C53) -> 0 | KG53: =SUMIFS(KG$10:KG$39,$B$10:$B$39,$B53,KI$10:KI$39,$C53)/2 -> 0 | KH53: =COUNTIFS($B$10:$B$39,$B53,KI$10:KI$39,$C53) -> 0 | KI53: =IF(KH53>0,(KF53+KG53)/KH53,0) -> 0 | KJ53: =SUMIFS(KJ$10:KJ$39,$B$10:$B$39,$B53,KM$10:KM$39,$C53) -> 0 | KK53: =SUMIFS(KK$10:KK$39,$B$10:$B$39,$B53,KM$10:KM$39,$C53)/2 -> 0 | KL53: =COUNTIFS($B$10:$B$39,$B53,KM$10:KM$39,$C53) -> 0 | KM53: =IF(KL53>0,(KJ53+KK53)/KL53,0) -> 0 | KN53: =SUMIFS(KN$10:KN$39,$B$10:$B$39,$B53,KQ$10:KQ$39,$C53) -> 0 | KO53: =SUMIFS(KO$10:KO$39,$B$10:$B$39,$B53,KQ$10:KQ$39,$C53)/2 -> 0 | KP53: =COUNTIFS($B$10:$B$39,$B53,KQ$10:KQ$39,$C53) -> 0 | KQ53: =IF(KP53>0,(KN53+KO53)/KP53,0) -> 0 | KR53: =SUMIFS(KR$10:KR$39,$B$10:$B$39,$B53,KU$10:KU$39,$C53) -> 0 | KS53: =SUMIFS(KS$10:KS$39,$B$10:$B$39,$B53,KU$10:KU$39,$C53)/2 -> 0 | KT53: =COUNTIFS($B$10:$B$39,$B53,KU$10:KU$39,$C53) -> 0 | KU53: =IF(KT53>0,(KR53+KS53)/KT53,0) -> 0 | KV53: =SUMIFS(KV$10:KV$39,$B$10:$B$39,$B53,KY$10:KY$39,$C53) -> 0 | KW53: =SUMIFS(KW$10:KW$39,$B$10:$B$39,$B53,KY$10:KY$39,$C53)/2 -> 0 | KX53: =COUNTIFS($B$10:$B$39,$B53,KY$10:KY$39,$C53) -> 0 | KY53: =IF(KX53>0,(KV53+KW53)/KX53,0) -> 0 | KZ53: =SUMIFS(KZ$10:KZ$39,$B$10:$B$39,$B53,LC$10:LC$39,$C53) -> 0 | LA53: =SUMIFS(LA$10:LA$39,$B$10:$B$39,$B53,LC$10:LC$39,$C53)/2 -> 0 | LB53: =COUNTIFS($B$10:$B$39,$B53,LC$10:LC$39,$C53) -> 0 | LC53: =IF(LB53>0,(KZ53+LA53)/LB53,0) -> 0 | LD53: =SUMIFS(LD$10:LD$39,$B$10:$B$39,$B53,LG$10:LG$39,$C53) -> 0 | LE53: =SUMIFS(LE$10:LE$39,$B$10:$B$39,$B53,LG$10:LG$39,$C53)/2 -> 0 | LF53: =COUNTIFS($B$10:$B$39,$B53,LG$10:LG$39,$C53) -> 0 | LG53: =IF(LF53>0,(LD53+LE53)/LF53,0) -> 0 | LH53: =SUMIFS(LH$10:LH$39,$B$10:$B$39,$B53,LK$10:LK$39,$C53) -> 0 | LI53: =SUMIFS(LI$10:LI$39,$B$10:$B$39,$B53,LK$10:LK$39,$C53)/2 -> 0 | LJ53: =COUNTIFS($B$10:$B$39,$B53,LK$10:LK$39,$C53) -> 0 | LK53: =IF(LJ53>0,(LH53+LI53)/LJ53,0) -> 0 | LL53: =SUMIFS(LL$10:LL$39,$B$10:$B$39,$B53,LO$10:LO$39,$C53) -> 0 | LM53: =SUMIFS(LM$10:LM$39,$B$10:$B$39,$B53,LO$10:LO$39,$C53)/2 -> 0 | LN53: =COUNTIFS($B$10:$B$39,$B53,LO$10:LO$39,$C53) -> 0 | LO53: =IF(LN53>0,(LL53+LM53)/LN53,0) -> 0 | LP53: =SUMIFS(LP$10:LP$39,$B$10:$B$39,$B53,LS$10:LS$39,$C53) -> 0 | LQ53: =SUMIFS(LQ$10:LQ$39,$B$10:$B$39,$B53,LS$10:LS$39,$C53)/2 -> 0 | LR53: =COUNTIFS($B$10:$B$39,$B53,LS$10:LS$39,$C53) -> 0 | LS53: =IF(LR53>0,(LP53+LQ53)/LR53,0) -> 0 | LT53: =SUMIFS(LT$10:LT$39,$B$10:$B$39,$B53,LW$10:LW$39,$C53) -> 0 | LU53: =SUMIFS(LU$10:LU$39,$B$10:$B$39,$B53,LW$10:LW$39,$C53)/2 -> 0 | LV53: =COUNTIFS($B$10:$B$39,$B53,LW$10:LW$39,$C53) -> 0 | LW53: =IF(LV53>0,(LT53+LU53)/LV53,0) -> 0 | LX53: =SUMIFS(LX$10:LX$39,$B$10:$B$39,$B53,MA$10:MA$39,$C53) -> 0 | LY53: =SUMIFS(LY$10:LY$39,$B$10:$B$39,$B53,MA$10:MA$39,$C53)/2 -> 0 | LZ53: =COUNTIFS($B$10:$B$39,$B53,MA$10:MA$39,$C53) -> 0 | MA53: =IF(LZ53>0,(LX53+LY53)/LZ53,0) -> 0 | MB53: =SUMIFS(MB$10:MB$39,$B$10:$B$39,$B53,ME$10:ME$39,$C53) -> 0 | MC53: =SUMIFS(MC$10:MC$39,$B$10:$B$39,$B53,ME$10:ME$39,$C53)/2 -> 0 | MD53: =COUNTIFS($B$10:$B$39,$B53,ME$10:ME$39,$C53) -> 0 | ME53: =IF(MD53>0,(MB53+MC53)/MD53,0) -> 0 | MF53: =SUMIFS(MF$10:MF$39,$B$10:$B$39,$B53,MI$10:MI$39,$C53) -> 0 | MG53: =SUMIFS(MG$10:MG$39,$B$10:$B$39,$B53,MI$10:MI$39,$C53)/2 -> 0 | MH53: =COUNTIFS($B$10:$B$39,$B53,MI$10:MI$39,$C53) -> 0 | MI53: =IF(MH53>0,(MF53+MG53)/MH53,0) -> 0 | MJ53: =SUMIFS(MJ$10:MJ$39,$B$10:$B$39,$B53,MM$10:MM$39,$C53) -> 0 | MK53: =SUMIFS(MK$10:MK$39,$B$10:$B$39,$B53,MM$10:MM$39,$C53)/2 -> 0 | ML53: =COUNTIFS($B$10:$B$39,$B53,MM$10:MM$39,$C53) -> 0 | MM53: =IF(ML53>0,(MJ53+MK53)/ML53,0) -> 0 | MN53: =SUMIFS(MN$10:MN$39,$B$10:$B$39,$B53,MQ$10:MQ$39,$C53) -> 0 | MO53: =SUMIFS(MO$10:MO$39,$B$10:$B$39,$B53,MQ$10:MQ$39,$C53)/2 -> 0 | MP53: =COUNTIFS($B$10:$B$39,$B53,MQ$10:MQ$39,$C53) -> 0 | MQ53: =IF(MP53>0,(MN53+MO53)/MP53,0) -> 0 | MR53: =SUMIFS(MR$10:MR$39,$B$10:$B$39,$B53,MU$10:MU$39,$C53) -> 0 | MS53: =SUMIFS(MS$10:MS$39,$B$10:$B$39,$B53,MU$10:MU$39,$C53)/2 -> 0 | MT53: =COUNTIFS($B$10:$B$39,$B53,MU$10:MU$39,$C53) -> 0 | MU53: =IF(MT53>0,(MR53+MS53)/MT53,0) -> 0 | MV53: =SUMIFS(MV$10:MV$39,$B$10:$B$39,$B53,MY$10:MY$39,$C53) -> 0 | MW53: =SUMIFS(MW$10:MW$39,$B$10:$B$39,$B53,MY$10:MY$39,$C53)/2 -> 0 | MX53: =COUNTIFS($B$10:$B$39,$B53,MY$10:MY$39,$C53) -> 0 | MY53: =IF(MX53>0,(MV53+MW53)/MX53,0) -> 0 | MZ53: =SUMIFS(MZ$10:MZ$39,$B$10:$B$39,$B53,NC$10:NC$39,$C53) -> 0 | NA53: =SUMIFS(NA$10:NA$39,$B$10:$B$39,$B53,NC$10:NC$39,$C53)/2 -> 0 | NB53: =COUNTIFS($B$10:$B$39,$B53,NC$10:NC$39,$C53) -> 0 | NC53: =IF(NB53>0,(MZ53+NA53)/NB53,0) -> 0 | ND53: =SUMIFS(ND$10:ND$39,$B$10:$B$39,$B53,NG$10:NG$39,$C53) -> 0 | NE53: =SUMIFS(NE$10:NE$39,$B$10:$B$39,$B53,NG$10:NG$39,$C53)/2 -> 0 | NF53: =COUNTIFS($B$10:$B$39,$B53,NG$10:NG$39,$C53) -> 0 | NG53: =IF(NF53>0,(ND53+NE53)/NF53,0) -> 0 | NH53: =SUMIFS(NH$10:NH$39,$B$10:$B$39,$B53,NK$10:NK$39,$C53) -> 0 | NI53: =SUMIFS(NI$10:NI$39,$B$10:$B$39,$B53,NK$10:NK$39,$C53)/2 -> 0 | NJ53: =COUNTIFS($B$10:$B$39,$B53,NK$10:NK$39,$C53) -> 0 | NK53: =IF(NJ53>0,(NH53+NI53)/NJ53,0) -> 0 | NL53: =SUMIFS(NL$10:NL$39,$B$10:$B$39,$B53,NO$10:NO$39,$C53) -> 0 | NM53: =SUMIFS(NM$10:NM$39,$B$10:$B$39,$B53,NO$10:NO$39,$C53)/2 -> 0 | NN53: =COUNTIFS($B$10:$B$39,$B53,NO$10:NO$39,$C53) -> 0 | NO53: =IF(NN53>0,(NL53+NM53)/NN53,0) -> 0 | NP53: =SUMIFS(NP$10:NP$39,$B$10:$B$39,$B53,NS$10:NS$39,$C53) -> 0 | NQ53: =SUMIFS(NQ$10:NQ$39,$B$10:$B$39,$B53,NS$10:NS$39,$C53)/2 -> 0 | NR53: =COUNTIFS($B$10:$B$39,$B53,NS$10:NS$39,$C53) -> 0 | NS53: =IF(NR53>0,(NP53+NQ53)/NR53,0) -> 0 | NT53: =SUMIFS(NT$10:NT$39,$B$10:$B$39,$B53,NW$10:NW$39,$C53) -> 0 | NU53: =SUMIFS(NU$10:NU$39,$B$10:$B$39,$B53,NW$10:NW$39,$C53)/2 -> 0 | NV53: =COUNTIFS($B$10:$B$39,$B53,NW$10:NW$39,$C53) -> 0 | NW53: =IF(NV53>0,(NT53+NU53)/NV53,0) -> 0 | NX53: =SUMIFS(NX$10:NX$39,$B$10:$B$39,$B53,OA$10:OA$39,$C53) -> 0 | NY53: =SUMIFS(NY$10:NY$39,$B$10:$B$39,$B53,OA$10:OA$39,$C53)/2 -> 0 | NZ53: =COUNTIFS($B$10:$B$39,$B53,OA$10:OA$39,$C53) -> 0 | OA53: =IF(NZ53>0,(NX53+NY53)/NZ53,0) -> 0 | OB53: =SUMIFS(OB$10:OB$39,$B$10:$B$39,$B53,OE$10:OE$39,$C53) -> 0 | OC53: =SUMIFS(OC$10:OC$39,$B$10:$B$39,$B53,OE$10:OE$39,$C53)/2 -> 0 | OD53: =COUNTIFS($B$10:$B$39,$B53,OE$10:OE$39,$C53) -> 0 | OE53: =IF(OD53>0,(OB53+OC53)/OD53,0) -> 0 | OF53: =SUMIFS(OF$10:OF$39,$B$10:$B$39,$B53,OI$10:OI$39,$C53) -> 0 | OG53: =SUMIFS(OG$10:OG$39,$B$10:$B$39,$B53,OI$10:OI$39,$C53)/2 -> 0 | OH53: =COUNTIFS($B$10:$B$39,$B53,OI$10:OI$39,$C53) -> 0 | OI53: =IF(OH53>0,(OF53+OG53)/OH53,0) -> 0 | OJ53: =SUMIFS(OJ$10:OJ$39,$B$10:$B$39,$B53,OM$10:OM$39,$C53) -> 0 | OK53: =SUMIFS(OK$10:OK$39,$B$10:$B$39,$B53,OM$10:OM$39,$C53)/2 -> 0 | OL53: =COUNTIFS($B$10:$B$39,$B53,OM$10:OM$39,$C53) -> 0 | OM53: =IF(OL53>0,(OJ53+OK53)/OL53,0) -> 0 | ON53: =SUMIFS(ON$10:ON$39,$B$10:$B$39,$B53,OQ$10:OQ$39,$C53) -> 0 | OO53: =SUMIFS(OO$10:OO$39,$B$10:$B$39,$B53,OQ$10:OQ$39,$C53)/2 -> 0 | OP53: =COUNTIFS($B$10:$B$39,$B53,OQ$10:OQ$39,$C53) -> 0 | OQ53: =IF(OP53>0,(ON53+OO53)/OP53,0) -> 0 | OR53: =SUMIFS(OR$10:OR$39,$B$10:$B$39,$B53,OU$10:OU$39,$C53) -> 0 | OS53: =SUMIFS(OS$10:OS$39,$B$10:$B$39,$B53,OU$10:OU$39,$C53)/2 -> 0 | OT53: =COUNTIFS($B$10:$B$39,$B53,OU$10:OU$39,$C53) -> 0 | OU53: =IF(OT53>0,(OR53+OS53)/OT53,0) -> 0 | OV53: =SUMIFS(OV$10:OV$39,$B$10:$B$39,$B53,OY$10:OY$39,$C53) -> 0 | OW53: =SUMIFS(OW$10:OW$39,$B$10:$B$39,$B53,OY$10:OY$39,$C53)/2 -> 0 | OX53: =COUNTIFS($B$10:$B$39,$B53,OY$10:OY$39,$C53) -> 0 | OY53: =IF(OX53>0,(OV53+OW53)/OX53,0) -> 0 | OZ53: =SUMIFS(OZ$10:OZ$39,$B$10:$B$39,$B53,PC$10:PC$39,$C53) -> 0 | PA53: =SUMIFS(PA$10:PA$39,$B$10:$B$39,$B53,PC$10:PC$39,$C53)/2 -> 0 | PB53: =COUNTIFS($B$10:$B$39,$B53,PC$10:PC$39,$C53) -> 0 | PC53: =IF(PB53>0,(OZ53+PA53)/PB53,0) -> 0 | PD53: =SUMIFS(PD$10:PD$39,$B$10:$B$39,$B53,PG$10:PG$39,$C53) -> 0 | PE53: =SUMIFS(PE$10:PE$39,$B$10:$B$39,$B53,PG$10:PG$39,$C53)/2 -> 0 | PF53: =COUNTIFS($B$10:$B$39,$B53,PG$10:PG$39,$C53) -> 0 | PG53: =IF(PF53>0,(PD53+PE53)/PF53,0) -> 0 | PH53: =SUMIFS(PH$10:PH$39,$B$10:$B$39,$B53,PK$10:PK$39,$C53) -> 0 | PI53: =SUMIFS(PI$10:PI$39,$B$10:$B$39,$B53,PK$10:PK$39,$C53)/2 -> 0 | PJ53: =COUNTIFS($B$10:$B$39,$B53,PK$10:PK$39,$C53) -> 0 | PK53: =IF(PJ53>0,(PH53+PI53)/PJ53,0) -> 0 | PL53: =SUMIFS(PL$10:PL$39,$B$10:$B$39,$B53,PO$10:PO$39,$C53) -> 0 | PM53: =SUMIFS(PM$10:PM$39,$B$10:$B$39,$B53,PO$10:PO$39,$C53)/2 -> 0 | PN53: =COUNTIFS($B$10:$B$39,$B53,PO$10:PO$39,$C53) -> 0 | PO53: =IF(PN53>0,(PL53+PM53)/PN53,0) -> 0 | PP53: =SUMIFS(PP$10:PP$39,$B$10:$B$39,$B53,PS$10:PS$39,$C53) -> 0 | PQ53: =SUMIFS(PQ$10:PQ$39,$B$10:$B$39,$B53,PS$10:PS$39,$C53)/2 -> 0 | PR53: =COUNTIFS($B$10:$B$39,$B53,PS$10:PS$39,$C53) -> 0 | PS53: =IF(PR53>0,(PP53+PQ53)/PR53,0) -> 0 | PT53: =SUMIFS(PT$10:PT$39,$B$10:$B$39,$B53,PW$10:PW$39,$C53) -> 0 | PU53: =SUMIFS(PU$10:PU$39,$B$10:$B$39,$B53,PW$10:PW$39,$C53)/2 -> 0 | PV53: =COUNTIFS($B$10:$B$39,$B53,PW$10:PW$39,$C53) -> 0 | PW53: =IF(PV53>0,(PT53+PU53)/PV53,0) -> 0 | PX53: =SUMIFS(PX$10:PX$39,$B$10:$B$39,$B53,QA$10:QA$39,$C53) -> 0 | PY53: =SUMIFS(PY$10:PY$39,$B$10:$B$39,$B53,QA$10:QA$39,$C53)/2 -> 0 | PZ53: =COUNTIFS($B$10:$B$39,$B53,QA$10:QA$39,$C53) -> 0 | QA53: =IF(PZ53>0,(PX53+PY53)/PZ53,0) -> 0 | QB53: =SUMIFS(QB$10:QB$39,$B$10:$B$39,$B53,QE$10:QE$39,$C53) -> 0 | QC53: =SUMIFS(QC$10:QC$39,$B$10:$B$39,$B53,QE$10:QE$39,$C53)/2 -> 0 | QD53: =COUNTIFS($B$10:$B$39,$B53,QE$10:QE$39,$C53) -> 0 | QE53: =IF(QD53>0,(QB53+QC53)/QD53,0) -> 0 | QF53: =SUMIFS(QF$10:QF$39,$B$10:$B$39,$B53,QI$10:QI$39,$C53) -> 0 | QG53: =SUMIFS(QG$10:QG$39,$B$10:$B$39,$B53,QI$10:QI$39,$C53)/2 -> 0 | QH53: =COUNTIFS($B$10:$B$39,$B53,QI$10:QI$39,$C53) -> 0 | QI53: =IF(QH53>0,(QF53+QG53)/QH53,0) -> 0
B54: 2 | C54: 2 | D54: =SUMIFS(D$10:D$39,$B$10:$B$39,$B54,G$10:G$39,$C54) -> 2 | E54: =SUMIFS(E$10:E$39,$B$10:$B$39,$B54,G$10:G$39,$C54)/2 -> 0 | F54: =COUNTIFS($B$10:$B$39,$B54,G$10:G$39,$C54) -> 1 | G54: =IF(F54>0,(D54+E54)/F54,0) -> 2 | H54: =SUMIFS(H$10:H$39,$B$10:$B$39,$B54,K$10:K$39,$C54) -> 2 | I54: =SUMIFS(I$10:I$39,$B$10:$B$39,$B54,K$10:K$39,$C54)/2 -> 0 | J54: =COUNTIFS($B$10:$B$39,$B54,K$10:K$39,$C54) -> 1 | K54: =IF(J54>0,(H54+I54)/J54,0) -> 2 | L54: =SUMIFS(L$10:L$39,$B$10:$B$39,$B54,O$10:O$39,$C54) -> 0 | M54: =SUMIFS(M$10:M$39,$B$10:$B$39,$B54,O$10:O$39,$C54)/2 -> 0 | N54: =COUNTIFS($B$10:$B$39,$B54,O$10:O$39,$C54) -> 0 | O54: =IF(N54>0,(L54+M54)/N54,0) -> 0 | P54: 0 | Q54: 0 | R54: 0 | S54: 0 | T54: 0 | U54: 0 | V54: 0 | W54: 0 | X54: 0 | Y54: 0 | Z54: 0 | AA54: 0 | AB54: 0 | AC54: 0 | AD54: 0 | AE54: 0 | AF54: 0 | AG54: 0 | AH54: 0 | AI54: 0 | AJ54: 0 | AK54: 0 | AL54: 0 | AM54: 0 | AN54: 0 | AO54: 0 | AP54: 0 | AQ54: 0 | AR54: 0 | AS54: 0 | AT54: 0 | AU54: 0 | AV54: 0 | AW54: 0 | AX54: 0 | AY54: 0 | AZ54: 1 | BA54: 1 | BB54: 1 | BC54: 2 | BD54: 0 | BE54: 0 | BF54: 0 | BG54: 0 | BH54: 0 | BI54: 0 | BJ54: 0 | BK54: 0 | BL54: 0 | BM54: 0 | BN54: 0 | BO54: 0 | BP54: 0 | BQ54: 0 | BR54: 0 | BS54: 0 | BT54: 0 | BU54: 0 | BV54: 0 | BW54: 0 | BX54: 0 | BY54: 0 | BZ54: 0 | CA54: 0 | CB54: 0 | CC54: 0 | CD54: 0 | CE54: 0 | CF54: 0 | CG54: 0 | CH54: 0 | CI54: 0 | CJ54: 0 | CK54: 0 | CL54: 0 | CM54: 0 | CN54: 1 | CO54: 1 | CP54: 1 | CQ54: 2 | CR54: 0 | CS54: 0 | CT54: 0 | CU54: 0 | CV54: 0 | CW54: 0 | CX54: 0 | CY54: 0 | CZ54: 0 | DA54: 0 | DB54: 0 | DC54: 0 | DD54: 0 | DE54: 0 | DF54: 0 | DG54: 0 | DH54: 0 | DI54: 0 | DJ54: 0 | DK54: 0 | DL54: 0 | DM54: 0 | DN54: 0 | DO54: 0 | DP54: 0 | DQ54: 0 | DR54: 0 | DS54: 0 | DT54: 0 | DU54: 0 | DV54: 0 | DW54: 0 | DX54: 10 | DY54: 0 | DZ54: 5 | EA54: 2 | EB54: 0 | EC54: 0 | ED54: 0 | EE54: 0 | EF54: 0 | EG54: 0 | EH54: 0 | EI54: 0 | EJ54: 6 | EK54: 0 | EL54: 2 | EM54: 3 | EN54: 0 | EO54: 0 | EP54: 0 | EQ54: 0 | ER54: 3 | ES54: 0 | ET54: 1 | EU54: 3 | EV54: 0 | EW54: 0 | EX54: 0 | EY54: 0 | EZ54: 0 | FA54: 0 | FB54: 0 | FC54: 0 | FD54: 0 | FE54: 0 | FF54: 0 | FG54: 0 | FH54: 0 | FI54: 0 | FJ54: 0 | FK54: 0 | FL54: 0 | FM54: 0 | FN54: 0 | FO54: 0 | FP54: 0 | FQ54: 0 | FR54: 0 | FS54: 0 | FT54: 0 | FU54: 0 | FV54: 0 | FW54: 0 | FX54: 0 | FY54: 0 | FZ54: 0 | GA54: 0 | GB54: 0 | GC54: 0 | GD54: 0 | GE54: 0 | GF54: 0 | GG54: 0 | GH54: 0 | GI54: 0 | GJ54: 0 | GK54: 0 | GL54: 0 | GM54: 0 | GN54: 0 | GO54: 0 | GP54: 0 | GQ54: 0 | GR54: 6 | GS54: 0 | GT54: 2 | GU54: 3 | GV54: 0 | GW54: 0 | GX54: 0 | GY54: 0 | GZ54: 0 | HA54: 0 | HB54: 0 | HC54: 0 | HD54: 0 | HE54: 0 | HF54: 0 | HG54: 0 | HH54: 0 | HI54: 0 | HJ54: 0 | HK54: 0 | HL54: 0 | HM54: 0 | HN54: 0 | HO54: 0 | HP54: 0 | HQ54: 0 | HR54: 0 | HS54: 0 | HT54: 0 | HU54: 0 | HV54: 0 | HW54: 0 | HX54: 9 | HY54: 0 | HZ54: 3 | IA54: 3 | IB54: 0 | IC54: 0 | ID54: 0 | IE54: 0 | IF54: 0 | IG54: 0 | IH54: 0 | II54: 0 | IJ54: 0 | IK54: 0 | IL54: 0 | IM54: 0 | IN54: 0 | IO54: 0 | IP54: 0 | IQ54: 0 | IR54: 0 | IS54: 0 | IT54: 0 | IU54: 0 | IV54: 0 | IW54: 0 | IX54: 0 | IY54: 0 | IZ54: 0 | JA54: 0 | JB54: 0 | JC54: 0 | JD54: 3 | JE54: 0 | JF54: 1 | JG54: 3 | JH54: 0 | JI54: 0 | JJ54: 0 | JK54: 0 | JL54: 6 | JM54: 0 | JN54: 2 | JO54: 3 | JP54: 0 | JQ54: 0 | JR54: 0 | JS54: 0 | JT54: 0 | JU54: 0 | JV54: 0 | JW54: 0 | JX54: 0 | JY54: 0 | JZ54: 0 | KA54: 0 | KB54: 0 | KC54: 0 | KD54: 0 | KE54: 0 | KF54: 0 | KG54: 0 | KH54: 0 | KI54: 0 | KJ54: 0 | KK54: 0 | KL54: 0 | KM54: 0 | KN54: 0 | KO54: 0 | KP54: 0 | KQ54: 0 | KR54: 0 | KS54: 0 | KT54: =COUNTIFS($B$10:$B$39,$B54,KU$10:KU$39,$C54) -> 0 | KU54: 0 | KV54: 0 | KW54: 0 | KX54: =COUNTIFS($B$10:$B$39,$B54,KY$10:KY$39,$C54) -> 0 | KY54: 0 | KZ54: 0 | LA54: 0 | LB54: =COUNTIFS($B$10:$B$39,$B54,LC$10:LC$39,$C54) -> 0 | LC54: 0 | LD54: 0 | LE54: 0 | LF54: =COUNTIFS($B$10:$B$39,$B54,LG$10:LG$39,$C54) -> 0 | LG54: 0 | LH54: 0 | LI54: 0 | LJ54: =COUNTIFS($B$10:$B$39,$B54,LK$10:LK$39,$C54) -> 0 | LK54: 0 | LL54: 0 | LM54: 0 | LN54: =COUNTIFS($B$10:$B$39,$B54,LO$10:LO$39,$C54) -> 0 | LO54: 0 | LP54: 0 | LQ54: 0 | LR54: =COUNTIFS($B$10:$B$39,$B54,LS$10:LS$39,$C54) -> 0 | LS54: 0 | LT54: 0 | LU54: 0 | LV54: =COUNTIFS($B$10:$B$39,$B54,LW$10:LW$39,$C54) -> 0 | LW54: 0 | LX54: 0 | LY54: 0 | LZ54: =COUNTIFS($B$10:$B$39,$B54,MA$10:MA$39,$C54) -> 0 | MA54: 0 | MB54: 6 | MC54: 0 | MD54: =COUNTIFS($B$10:$B$39,$B54,ME$10:ME$39,$C54) -> 3 | ME54: 2 | MF54: 4 | MG54: 0 | MH54: =COUNTIFS($B$10:$B$39,$B54,MI$10:MI$39,$C54) -> 2 | MI54: 2 | MJ54: 0 | MK54: 0 | ML54: =COUNTIFS($B$10:$B$39,$B54,MM$10:MM$39,$C54) -> 0 | MM54: 0 | MN54: 0 | MO54: 0 | MP54: =COUNTIFS($B$10:$B$39,$B54,MQ$10:MQ$39,$C54) -> 0 | MQ54: 0 | MR54: 0 | MS54: 0 | MT54: =COUNTIFS($B$10:$B$39,$B54,MU$10:MU$39,$C54) -> 0 | MU54: 0 | MV54: 0 | MW54: 0 | MX54: =COUNTIFS($B$10:$B$39,$B54,MY$10:MY$39,$C54) -> 0 | MY54: 0 | MZ54: 0 | NA54: 0 | NB54: =COUNTIFS($B$10:$B$39,$B54,NC$10:NC$39,$C54) -> 0 | NC54: 0 | ND54: 0 | NE54: 0 | NF54: =COUNTIFS($B$10:$B$39,$B54,NG$10:NG$39,$C54) -> 0 | NG54: 0 | NH54: 0 | NI54: 0 | NJ54: =COUNTIFS($B$10:$B$39,$B54,NK$10:NK$39,$C54) -> 0 | NK54: 0 | NL54: 0 | NM54: 0 | NN54: =COUNTIFS($B$10:$B$39,$B54,NO$10:NO$39,$C54) -> 0 | NO54: 0 | NP54: 0 | NQ54: 0 | NR54: =COUNTIFS($B$10:$B$39,$B54,NS$10:NS$39,$C54) -> 0 | NS54: 0 | NT54: 0 | NU54: 0 | NV54: =COUNTIFS($B$10:$B$39,$B54,NW$10:NW$39,$C54) -> 0 | NW54: 0 | NX54: 0 | NY54: 0 | NZ54: =COUNTIFS($B$10:$B$39,$B54,OA$10:OA$39,$C54) -> 0 | OA54: 0 | OB54: 0 | OC54: 0 | OD54: =COUNTIFS($B$10:$B$39,$B54,OE$10:OE$39,$C54) -> 0 | OE54: 0 | OF54: 0 | OG54: 0 | OH54: =COUNTIFS($B$10:$B$39,$B54,OI$10:OI$39,$C54) -> 0 | OI54: 0 | OJ54: 0 | OK54: 0 | OL54: =COUNTIFS($B$10:$B$39,$B54,OM$10:OM$39,$C54) -> 0 | OM54: 0 | ON54: 0 | OO54: 0 | OP54: =COUNTIFS($B$10:$B$39,$B54,OQ$10:OQ$39,$C54) -> 0 | OQ54: 0 | OR54: 0 | OS54: 0 | OT54: =COUNTIFS($B$10:$B$39,$B54,OU$10:OU$39,$C54) -> 0 | OU54: 0 | OV54: 0 | OW54: 0 | OX54: =COUNTIFS($B$10:$B$39,$B54,OY$10:OY$39,$C54) -> 0 | OY54: 0 | OZ54: 0 | PA54: 0 | PB54: =COUNTIFS($B$10:$B$39,$B54,PC$10:PC$39,$C54) -> 0 | PC54: 0 | PD54: 0 | PE54: 0 | PF54: =COUNTIFS($B$10:$B$39,$B54,PG$10:PG$39,$C54) -> 0 | PG54: 0 | PH54: 0 | PI54: 0 | PJ54: =COUNTIFS($B$10:$B$39,$B54,PK$10:PK$39,$C54) -> 0 | PK54: 0 | PL54: 0 | PM54: 0 | PN54: =COUNTIFS($B$10:$B$39,$B54,PO$10:PO$39,$C54) -> 0 | PO54: 0 | PP54: 0 | PQ54: 0 | PR54: =COUNTIFS($B$10:$B$39,$B54,PS$10:PS$39,$C54) -> 0 | PS54: 0 | PT54: 0 | PU54: 0 | PV54: =COUNTIFS($B$10:$B$39,$B54,PW$10:PW$39,$C54) -> 0 | PW54: 0 | PX54: 0 | PY54: 0 | PZ54: =COUNTIFS($B$10:$B$39,$B54,QA$10:QA$39,$C54) -> 0 | QA54: 0 | QB54: 0 | QC54: 0 | QD54: =COUNTIFS($B$10:$B$39,$B54,QE$10:QE$39,$C54) -> 0 | QE54: 0 | QF54: 0 | QG54: 0 | QH54: =COUNTIFS($B$10:$B$39,$B54,QI$10:QI$39,$C54) -> 0 | QI54: 0
B55: 2 | C55: 3 | D55: 3 | E55: 0 | F55: 1 | G55: 3 | H55: 0 | I55: 0 | J55: 0 | K55: 0 | L55: 0 | M55: 0 | N55: 0 | O55: 0 | P55: 0 | Q55: 0 | R55: 0 | S55: 0 | T55: 0 | U55: 0 | V55: 0 | W55: 0 | X55: 0 | Y55: 0 | Z55: 0 | AA55: 0 | AB55: 0 | AC55: 0 | AD55: 0 | AE55: 0 | AF55: 0 | AG55: 0 | AH55: 0 | AI55: 0 | AJ55: 0 | AK55: 0 | AL55: 0 | AM55: 0 | AN55: 0 | AO55: 0 | AP55: 0 | AQ55: 0 | AR55: 0 | AS55: 0 | AT55: 0 | AU55: 0 | AV55: 0 | AW55: 0 | AX55: 0 | AY55: 0 | AZ55: 0 | BA55: 0 | BB55: 0 | BC55: 0 | BD55: 0 | BE55: 0 | BF55: 0 | BG55: 0 | BH55: 0 | BI55: 0 | BJ55: 0 | BK55: 0 | BL55: 0 | BM55: 0 | BN55: 0 | BO55: 0 | BP55: 0 | BQ55: 0 | BR55: 0 | BS55: 0 | BT55: 0 | BU55: 0 | BV55: 0 | BW55: 0 | BX55: 0 | BY55: 0 | BZ55: 0 | CA55: 0 | CB55: 0 | CC55: 0 | CD55: 0 | CE55: 0 | CF55: 0 | CG55: 0 | CH55: 0 | CI55: 0 | CJ55: 0 | CK55: 0 | CL55: 0 | CM55: 0 | CN55: 0 | CO55: 0 | CP55: 0 | CQ55: 0 | CR55: 0 | CS55: 0 | CT55: 0 | CU55: 0 | CV55: 0 | CW55: 0 | CX55: 0 | CY55: 0 | CZ55: 0 | DA55: 0 | DB55: 0 | DC55: 0 | DD55: 0 | DE55: 0 | DF55: 0 | DG55: 0 | DH55: 0 | DI55: 0 | DJ55: 0 | DK55: 0 | DL55: 0 | DM55: 0 | DN55: 0 | DO55: 0 | DP55: 0 | DQ55: 0 | DR55: 0 | DS55: 0 | DT55: 0 | DU55: 0 | DV55: 0 | DW55: 0 | DX55: 0 | DY55: 0 | DZ55: 0 | EA55: 0 | EB55: 0 | EC55: 0 | ED55: 0 | EE55: 0 | EF55: 0 | EG55: 0 | EH55: 0 | EI55: 0 | EJ55: 0 | EK55: 0 | EL55: 0 | EM55: 0 | EN55: 0 | EO55: 0 | EP55: 0 | EQ55: 0 | ER55: 0 | ES55: 0 | ET55: 0 | EU55: 0 | EV55: 0 | EW55: 0 | EX55: 0 | EY55: 0 | EZ55: 0 | FA55: 0 | FB55: 0 | FC55: 0 | FD55: 0 | FE55: 0 | FF55: 0 | FG55: 0 | FH55: 0 | FI55: 0 | FJ55: 0 | FK55: 0 | FL55: 0 | FM55: 0 | FN55: 0 | FO55: 0 | FP55: 0 | FQ55: 0 | FR55: 0 | FS55: 0 | FT55: 0 | FU55: 0 | FV55: 0 | FW55: 0 | FX55: 0 | FY55: 0 | FZ55: 0 | GA55: 0 | GB55: 0 | GC55: 0 | GD55: 0 | GE55: 0 | GF55: 0 | GG55: 0 | GH55: 0 | GI55: 0 | GJ55: 0 | GK55: 0 | GL55: 0 | GM55: 0 | GN55: 0 | GO55: 0 | GP55: 0 | GQ55: 0 | GR55: 0 | GS55: 0 | GT55: 0 | GU55: 0 | GV55: 0 | GW55: 0 | GX55: 0 | GY55: 0 | GZ55: 4 | HA55: 0 | HB55: 1 | HC55: 4 | HD55: 0 | HE55: 0 | HF55: 0 | HG55: 0 | HH55: 0 | HI55: 0 | HJ55: 0 | HK55: 0 | HL55: 0 | HM55: 0 | HN55: 0 | HO55: 0 | HP55: 0 | HQ55: 0 | HR55: 0 | HS55: 0 | HT55: 4 | HU55: 0 | HV55: 1 | HW55: 4 | HX55: 0 | HY55: 0 | HZ55: 0 | IA55: 0 | IB55: 0 | IC55: 0 | ID55: 0 | IE55: 0 | IF55: 0 | IG55: 0 | IH55: 0 | II55: 0 | IJ55: 0 | IK55: 0 | IL55: 0 | IM55: 0 | IN55: 0 | IO55: 0 | IP55: 0 | IQ55: 0 | IR55: 0 | IS55: 0 | IT55: 0 | IU55: 0 | IV55: 0 | IW55: 0 | IX55: 0 | IY55: 0 | IZ55: 4 | JA55: 0 | JB55: 1 | JC55: 4 | JD55: 0 | JE55: 0 | JF55: 0 | JG55: 0 | JH55: 0 | JI55: 0 | JJ55: 0 | JK55: 0 | JL55: 0 | JM55: 0 | JN55: 0 | JO55: 0 | JP55: 0 | JQ55: 0 | JR55: 0 | JS55: 0 | JT55: 0 | JU55: 0 | JV55: 0 | JW55: 0 | JX55: 0 | JY55: 0 | JZ55: 0 | KA55: 0 | KB55: 0 | KC55: 0 | KD55: 0 | KE55: 0 | KF55: 0 | KG55: 0 | KH55: 0 | KI55: 0 | KJ55: 0 | KK55: 0 | KL55: 0 | KM55: 0 | KN55: 0 | KO55: 0 | KP55: 0 | KQ55: 0 | KR55: 0 | KS55: 0 | KT55: =COUNTIFS($B$10:$B$39,$B55,KU$10:KU$39,$C55) -> 0 | KU55: 0 | KV55: 0 | KW55: 0 | KX55: =COUNTIFS($B$10:$B$39,$B55,KY$10:KY$39,$C55) -> 0 | KY55: 0 | KZ55: 0 | LA55: 0 | LB55: =COUNTIFS($B$10:$B$39,$B55,LC$10:LC$39,$C55) -> 0 | LC55: 0 | LD55: 0 | LE55: 0 | LF55: =COUNTIFS($B$10:$B$39,$B55,LG$10:LG$39,$C55) -> 0 | LG55: 0 | LH55: 0 | LI55: 0 | LJ55: =COUNTIFS($B$10:$B$39,$B55,LK$10:LK$39,$C55) -> 0 | LK55: 0 | LL55: 0 | LM55: 0 | LN55: =COUNTIFS($B$10:$B$39,$B55,LO$10:LO$39,$C55) -> 0 | LO55: 0 | LP55: 0 | LQ55: 0 | LR55: =COUNTIFS($B$10:$B$39,$B55,LS$10:LS$39,$C55) -> 0 | LS55: 0 | LT55: 0 | LU55: 0 | LV55: =COUNTIFS($B$10:$B$39,$B55,LW$10:LW$39,$C55) -> 0 | LW55: 0 | LX55: 0 | LY55: 0 | LZ55: =COUNTIFS($B$10:$B$39,$B55,MA$10:MA$39,$C55) -> 0 | MA55: 0 | MB55: 0 | MC55: 0 | MD55: =COUNTIFS($B$10:$B$39,$B55,ME$10:ME$39,$C55) -> 0 | ME55: 0 | MF55: 0 | MG55: 0 | MH55: =COUNTIFS($B$10:$B$39,$B55,MI$10:MI$39,$C55) -> 0 | MI55: 0 | MJ55: 0 | MK55: 0 | ML55: =COUNTIFS($B$10:$B$39,$B55,MM$10:MM$39,$C55) -> 0 | MM55: 0 | MN55: 0 | MO55: 0 | MP55: =COUNTIFS($B$10:$B$39,$B55,MQ$10:MQ$39,$C55) -> 0 | MQ55: 0 | MR55: 0 | MS55: 0 | MT55: =COUNTIFS($B$10:$B$39,$B55,MU$10:MU$39,$C55) -> 0 | MU55: 0 | MV55: 0 | MW55: 0 | MX55: =COUNTIFS($B$10:$B$39,$B55,MY$10:MY$39,$C55) -> 0 | MY55: 0 | MZ55: 0 | NA55: 0 | NB55: =COUNTIFS($B$10:$B$39,$B55,NC$10:NC$39,$C55) -> 0 | NC55: 0 | ND55: 0 | NE55: 0 | NF55: =COUNTIFS($B$10:$B$39,$B55,NG$10:NG$39,$C55) -> 0 | NG55: 0 | NH55: 0 | NI55: 0 | NJ55: =COUNTIFS($B$10:$B$39,$B55,NK$10:NK$39,$C55) -> 0 | NK55: 0 | NL55: 0 | NM55: 0 | NN55: =COUNTIFS($B$10:$B$39,$B55,NO$10:NO$39,$C55) -> 0 | NO55: 0 | NP55: 0 | NQ55: 0 | NR55: =COUNTIFS($B$10:$B$39,$B55,NS$10:NS$39,$C55) -> 0 | NS55: 0 | NT55: 0 | NU55: 0 | NV55: =COUNTIFS($B$10:$B$39,$B55,NW$10:NW$39,$C55) -> 0 | NW55: 0 | NX55: 0 | NY55: 0 | NZ55: =COUNTIFS($B$10:$B$39,$B55,OA$10:OA$39,$C55) -> 0 | OA55: 0 | OB55: 0 | OC55: 0 | OD55: =COUNTIFS($B$10:$B$39,$B55,OE$10:OE$39,$C55) -> 0 | OE55: 0 | OF55: 0 | OG55: 0 | OH55: =COUNTIFS($B$10:$B$39,$B55,OI$10:OI$39,$C55) -> 0 | OI55: 0 | OJ55: 0 | OK55: 0 | OL55: =COUNTIFS($B$10:$B$39,$B55,OM$10:OM$39,$C55) -> 0 | OM55: 0 | ON55: 0 | OO55: 0 | OP55: =COUNTIFS($B$10:$B$39,$B55,OQ$10:OQ$39,$C55) -> 0 | OQ55: 0 | OR55: 0 | OS55: 0 | OT55: =COUNTIFS($B$10:$B$39,$B55,OU$10:OU$39,$C55) -> 0 | OU55: 0 | OV55: 0 | OW55: 0 | OX55: =COUNTIFS($B$10:$B$39,$B55,OY$10:OY$39,$C55) -> 0 | OY55: 0 | OZ55: 0 | PA55: 0 | PB55: =COUNTIFS($B$10:$B$39,$B55,PC$10:PC$39,$C55) -> 0 | PC55: 0 | PD55: 0 | PE55: 0 | PF55: =COUNTIFS($B$10:$B$39,$B55,PG$10:PG$39,$C55) -> 0 | PG55: 0 | PH55: 0 | PI55: 0 | PJ55: =COUNTIFS($B$10:$B$39,$B55,PK$10:PK$39,$C55) -> 0 | PK55: 0 | PL55: 0 | PM55: 0 | PN55: =COUNTIFS($B$10:$B$39,$B55,PO$10:PO$39,$C55) -> 0 | PO55: 0 | PP55: 0 | PQ55: 0 | PR55: =COUNTIFS($B$10:$B$39,$B55,PS$10:PS$39,$C55) -> 0 | PS55: 0 | PT55: 0 | PU55: 0 | PV55: =COUNTIFS($B$10:$B$39,$B55,PW$10:PW$39,$C55) -> 0 | PW55: 0 | PX55: 0 | PY55: 0 | PZ55: =COUNTIFS($B$10:$B$39,$B55,QA$10:QA$39,$C55) -> 0 | QA55: 0 | QB55: 0 | QC55: 0 | QD55: =COUNTIFS($B$10:$B$39,$B55,QE$10:QE$39,$C55) -> 0 | QE55: 0 | QF55: 0 | QG55: 0 | QH55: =COUNTIFS($B$10:$B$39,$B55,QI$10:QI$39,$C55) -> 0 | QI55: 0
B56: 2 | C56: 4 | D56: 0 | E56: 0 | F56: 0 | G56: 0 | H56: 0 | I56: 0 | J56: 0 | K56: 0 | L56: 0 | M56: 0 | N56: 0 | O56: 0 | P56: 0 | Q56: 0 | R56: 0 | S56: 0 | T56: 0 | U56: 0 | V56: 0 | W56: 0 | X56: 0 | Y56: 0 | Z56: 0 | AA56: 0 | AB56: 0 | AC56: 0 | AD56: 0 | AE56: 0 | AF56: 0 | AG56: 0 | AH56: 0 | AI56: 0 | AJ56: 0 | AK56: 0 | AL56: 0 | AM56: 0 | AN56: 0 | AO56: 0 | AP56: 0 | AQ56: 0 | AR56: 0 | AS56: 0 | AT56: 0 | AU56: 0 | AV56: 0 | AW56: 0 | AX56: 0 | AY56: 0 | AZ56: 0 | BA56: 0 | BB56: 0 | BC56: 0 | BD56: 0 | BE56: 0 | BF56: 0 | BG56: 0 | BH56: 0 | BI56: 0 | BJ56: 0 | BK56: 0 | BL56: 0 | BM56: 0 | BN56: 0 | BO56: 0 | BP56: 0 | BQ56: 0 | BR56: 0 | BS56: 0 | BT56: 0 | BU56: 0 | BV56: 0 | BW56: 0 | BX56: 0 | BY56: 0 | BZ56: 0 | CA56: 0 | CB56: 0 | CC56: 0 | CD56: 0 | CE56: 0 | CF56: 0 | CG56: 0 | CH56: 0 | CI56: 0 | CJ56: 0 | CK56: 0 | CL56: 0 | CM56: 0 | CN56: 0 | CO56: 0 | CP56: 0 | CQ56: 0 | CR56: 0 | CS56: 0 | CT56: 0 | CU56: 0 | CV56: 0 | CW56: 0 | CX56: 0 | CY56: 0 | CZ56: 0 | DA56: 0 | DB56: 0 | DC56: 0 | DD56: 0 | DE56: 0 | DF56: 0 | DG56: 0 | DH56: 0 | DI56: 0 | DJ56: 0 | DK56: 0 | DL56: 0 | DM56: 0 | DN56: 0 | DO56: 0 | DP56: 0 | DQ56: 0 | DR56: 0 | DS56: 0 | DT56: 0 | DU56: 0 | DV56: 0 | DW56: 0 | DX56: 0 | DY56: 0 | DZ56: 0 | EA56: 0 | EB56: 0 | EC56: 0 | ED56: 0 | EE56: 0 | EF56: 0 | EG56: 0 | EH56: 0 | EI56: 0 | EJ56: 5 | EK56: 0 | EL56: 1 | EM56: 5 | EN56: 0 | EO56: 0 | EP56: 0 | EQ56: 0 | ER56: 0 | ES56: 0 | ET56: 0 | EU56: 0 | EV56: 0 | EW56: 0 | EX56: 0 | EY56: 0 | EZ56: 0 | FA56: 0 | FB56: 0 | FC56: 0 | FD56: 0 | FE56: 0 | FF56: 0 | FG56: 0 | FH56: 0 | FI56: 0 | FJ56: 0 | FK56: 0 | FL56: 0 | FM56: 0 | FN56: 0 | FO56: 0 | FP56: 0 | FQ56: 0 | FR56: 0 | FS56: 0 | FT56: 0 | FU56: 0 | FV56: 0 | FW56: 0 | FX56: 0 | FY56: 0 | FZ56: 0 | GA56: 0 | GB56: 0 | GC56: 0 | GD56: 0 | GE56: 0 | GF56: 0 | GG56: 0 | GH56: 0 | GI56: 0 | GJ56: 0 | GK56: 0 | GL56: 0 | GM56: 0 | GN56: 0 | GO56: 0 | GP56: 0 | GQ56: 0 | GR56: 0 | GS56: 0 | GT56: 0 | GU56: 0 | GV56: 0 | GW56: 0 | GX56: 0 | GY56: 0 | GZ56: 8 | HA56: 0 | HB56: 2 | HC56: 4 | HD56: 0 | HE56: 0 | HF56: 0 | HG56: 0 | HH56: 0 | HI56: 0 | HJ56: 0 | HK56: 0 | HL56: 0 | HM56: 0 | HN56: 0 | HO56: 0 | HP56: 0 | HQ56: 0 | HR56: 0 | HS56: 0 | HT56: 0 | HU56: 0 | HV56: 0 | HW56: 0 | HX56: 0 | HY56: 0 | HZ56: 0 | IA56: 0 | IB56: 5 | IC56: 0 | ID56: 1 | IE56: 5 | IF56: 0 | IG56: 0 | IH56: 0 | II56: 0 | IJ56: 0 | IK56: 0 | IL56: 0 | IM56: 0 | IN56: 0 | IO56: 0 | IP56: 0 | IQ56: 0 | IR56: 0 | IS56: 0 | IT56: 0 | IU56: 0 | IV56: 0 | IW56: 0 | IX56: 0 | IY56: 0 | IZ56: 0 | JA56: 0 | JB56: 0 | JC56: 0 | JD56: 5 | JE56: 0 | JF56: 1 | JG56: 5 | JH56: 0 | JI56: 0 | JJ56: 0 | JK56: 0 | JL56: 0 | JM56: 0 | JN56: 0 | JO56: 0 | JP56: 0 | JQ56: 0 | JR56: 0 | JS56: 0 | JT56: 0 | JU56: 0 | JV56: 0 | JW56: 0 | JX56: 0 | JY56: 0 | JZ56: 0 | KA56: 0 | KB56: 0 | KC56: 0 | KD56: 0 | KE56: 0 | KF56: 0 | KG56: 0 | KH56: 0 | KI56: 0 | KJ56: 0 | KK56: 0 | KL56: 0 | KM56: 0 | KN56: 5 | KO56: 0 | KP56: 1 | KQ56: 5 | KR56: 0 | KS56: 0 | KT56: =COUNTIFS($B$10:$B$39,$B56,KU$10:KU$39,$C56) -> 0 | KU56: 0 | KV56: 0 | KW56: 0 | KX56: =COUNTIFS($B$10:$B$39,$B56,KY$10:KY$39,$C56) -> 0 | KY56: 0 | KZ56: 0 | LA56: 0 | LB56: =COUNTIFS($B$10:$B$39,$B56,LC$10:LC$39,$C56) -> 0 | LC56: 0 | LD56: 0 | LE56: 0 | LF56: =COUNTIFS($B$10:$B$39,$B56,LG$10:LG$39,$C56) -> 0 | LG56: 0 | LH56: 0 | LI56: 0 | LJ56: =COUNTIFS($B$10:$B$39,$B56,LK$10:LK$39,$C56) -> 0 | LK56: 0 | LL56: 0 | LM56: 0 | LN56: =COUNTIFS($B$10:$B$39,$B56,LO$10:LO$39,$C56) -> 0 | LO56: 0 | LP56: 0 | LQ56: 0 | LR56: =COUNTIFS($B$10:$B$39,$B56,LS$10:LS$39,$C56) -> 0 | LS56: 0 | LT56: 0 | LU56: 0 | LV56: =COUNTIFS($B$10:$B$39,$B56,LW$10:LW$39,$C56) -> 0 | LW56: 0 | LX56: 0 | LY56: 0 | LZ56: =COUNTIFS($B$10:$B$39,$B56,MA$10:MA$39,$C56) -> 0 | MA56: 0 | MB56: 0 | MC56: 0 | MD56: =COUNTIFS($B$10:$B$39,$B56,ME$10:ME$39,$C56) -> 0 | ME56: 0 | MF56: 0 | MG56: 0 | MH56: =COUNTIFS($B$10:$B$39,$B56,MI$10:MI$39,$C56) -> 0 | MI56: 0 | MJ56: 0 | MK56: 0 | ML56: =COUNTIFS($B$10:$B$39,$B56,MM$10:MM$39,$C56) -> 0 | MM56: 0 | MN56: 0 | MO56: 0 | MP56: =COUNTIFS($B$10:$B$39,$B56,MQ$10:MQ$39,$C56) -> 0 | MQ56: 0 | MR56: 0 | MS56: 0 | MT56: =COUNTIFS($B$10:$B$39,$B56,MU$10:MU$39,$C56) -> 0 | MU56: 0 | MV56: 0 | MW56: 0 | MX56: =COUNTIFS($B$10:$B$39,$B56,MY$10:MY$39,$C56) -> 0 | MY56: 0 | MZ56: 0 | NA56: 0 | NB56: =COUNTIFS($B$10:$B$39,$B56,NC$10:NC$39,$C56) -> 0 | NC56: 0 | ND56: 0 | NE56: 0 | NF56: =COUNTIFS($B$10:$B$39,$B56,NG$10:NG$39,$C56) -> 0 | NG56: 0 | NH56: 0 | NI56: 0 | NJ56: =COUNTIFS($B$10:$B$39,$B56,NK$10:NK$39,$C56) -> 0 | NK56: 0 | NL56: 0 | NM56: 0 | NN56: =COUNTIFS($B$10:$B$39,$B56,NO$10:NO$39,$C56) -> 0 | NO56: 0 | NP56: 0 | NQ56: 0 | NR56: =COUNTIFS($B$10:$B$39,$B56,NS$10:NS$39,$C56) -> 0 | NS56: 0 | NT56: 0 | NU56: 0 | NV56: =COUNTIFS($B$10:$B$39,$B56,NW$10:NW$39,$C56) -> 0 | NW56: 0 | NX56: 0 | NY56: 0 | NZ56: =COUNTIFS($B$10:$B$39,$B56,OA$10:OA$39,$C56) -> 0 | OA56: 0 | OB56: 0 | OC56: 0 | OD56: =COUNTIFS($B$10:$B$39,$B56,OE$10:OE$39,$C56) -> 0 | OE56: 0 | OF56: 0 | OG56: 0 | OH56: =COUNTIFS($B$10:$B$39,$B56,OI$10:OI$39,$C56) -> 0 | OI56: 0 | OJ56: 0 | OK56: 0 | OL56: =COUNTIFS($B$10:$B$39,$B56,OM$10:OM$39,$C56) -> 0 | OM56: 0 | ON56: 0 | OO56: 0 | OP56: =COUNTIFS($B$10:$B$39,$B56,OQ$10:OQ$39,$C56) -> 0 | OQ56: 0 | OR56: 0 | OS56: 0 | OT56: =COUNTIFS($B$10:$B$39,$B56,OU$10:OU$39,$C56) -> 0 | OU56: 0 | OV56: 0 | OW56: 0 | OX56: =COUNTIFS($B$10:$B$39,$B56,OY$10:OY$39,$C56) -> 0 | OY56: 0 | OZ56: 0 | PA56: 0 | PB56: =COUNTIFS($B$10:$B$39,$B56,PC$10:PC$39,$C56) -> 0 | PC56: 0 | PD56: 0 | PE56: 0 | PF56: =COUNTIFS($B$10:$B$39,$B56,PG$10:PG$39,$C56) -> 0 | PG56: 0 | PH56: 0 | PI56: 0 | PJ56: =COUNTIFS($B$10:$B$39,$B56,PK$10:PK$39,$C56) -> 0 | PK56: 0 | PL56: 0 | PM56: 0 | PN56: =COUNTIFS($B$10:$B$39,$B56,PO$10:PO$39,$C56) -> 0 | PO56: 0 | PP56: 0 | PQ56: 0 | PR56: =COUNTIFS($B$10:$B$39,$B56,PS$10:PS$39,$C56) -> 0 | PS56: 0 | PT56: 0 | PU56: 0 | PV56: =COUNTIFS($B$10:$B$39,$B56,PW$10:PW$39,$C56) -> 0 | PW56: 0 | PX56: 0 | PY56: 0 | PZ56: =COUNTIFS($B$10:$B$39,$B56,QA$10:QA$39,$C56) -> 0 | QA56: 0 | QB56: 0 | QC56: 0 | QD56: =COUNTIFS($B$10:$B$39,$B56,QE$10:QE$39,$C56) -> 0 | QE56: 0 | QF56: 0 | QG56: 0 | QH56: =COUNTIFS($B$10:$B$39,$B56,QI$10:QI$39,$C56) -> 0 | QI56: 0
B57: 2 | C57: 5 | D57: 0 | E57: 0 | F57: 0 | G57: 0 | H57: 5 | I57: 0 | J57: 1 | K57: 5 | L57: 0 | M57: 0 | N57: 0 | O57: 0 | P57: 0 | Q57: 0 | R57: 0 | S57: 0 | T57: 0 | U57: 0 | V57: 0 | W57: 0 | X57: 0 | Y57: 0 | Z57: 0 | AA57: 0 | AB57: 0 | AC57: 0 | AD57: 0 | AE57: 0 | AF57: 0 | AG57: 0 | AH57: 0 | AI57: 0 | AJ57: 0 | AK57: 0 | AL57: 0 | AM57: 0 | AN57: 0 | AO57: 0 | AP57: 0 | AQ57: 0 | AR57: 7 | AS57: 2 | AT57: 2 | AU57: 4.5 | AV57: 0 | AW57: 0 | AX57: 0 | AY57: 0 | AZ57: 0 | BA57: 0 | BB57: 0 | BC57: 0 | BD57: 0 | BE57: 0 | BF57: 0 | BG57: 0 | BH57: 0 | BI57: 0 | BJ57: 0 | BK57: 0 | BL57: 0 | BM57: 0 | BN57: 0 | BO57: 0 | BP57: 0 | BQ57: 0 | BR57: 0 | BS57: 0 | BT57: 0 | BU57: 0 | BV57: 0 | BW57: 0 | BX57: 0 | BY57: 0 | BZ57: 0 | CA57: 0 | CB57: 0 | CC57: 0 | CD57: 0 | CE57: 0 | CF57: 0 | CG57: 0 | CH57: 0 | CI57: 0 | CJ57: 0 | CK57: 0 | CL57: 0 | CM57: 0 | CN57: 0 | CO57: 0 | CP57: 0 | CQ57: 0 | CR57: 0 | CS57: 0 | CT57: 0 | CU57: 0 | CV57: 0 | CW57: 0 | CX57: 0 | CY57: 0 | CZ57: 0 | DA57: 0 | DB57: 0 | DC57: 0 | DD57: 0 | DE57: 0 | DF57: 0 | DG57: 0 | DH57: 0 | DI57: 0 | DJ57: 0 | DK57: 0 | DL57: 0 | DM57: 0 | DN57: 0 | DO57: 0 | DP57: 0 | DQ57: 0 | DR57: 0 | DS57: 0 | DT57: 0 | DU57: 0 | DV57: 0 | DW57: 0 | DX57: 0 | DY57: 0 | DZ57: 0 | EA57: 0 | EB57: 0 | EC57: 0 | ED57: 0 | EE57: 0 | EF57: 0 | EG57: 0 | EH57: 0 | EI57: 0 | EJ57: 0 | EK57: 0 | EL57: 0 | EM57: 0 | EN57: 0 | EO57: 0 | EP57: 0 | EQ57: 0 | ER57: 0 | ES57: 0 | ET57: 0 | EU57: 0 | EV57: 4 | EW57: 0 | EX57: 1 | EY57: 4 | EZ57: 0 | FA57: 0 | FB57: 0 | FC57: 0 | FD57: 0 | FE57: 0 | FF57: 0 | FG57: 0 | FH57: 0 | FI57: 0 | FJ57: 0 | FK57: 0 | FL57: 0 | FM57: 0 | FN57: 0 | FO57: 0 | FP57: 0 | FQ57: 0 | FR57: 0 | FS57: 0 | FT57: 0 | FU57: 0 | FV57: 0 | FW57: 0 | FX57: 4 | FY57: 0 | FZ57: 1 | GA57: 4 | GB57: 0 | GC57: 0 | GD57: 0 | GE57: 0 | GF57: 0 | GG57: 0 | GH57: 0 | GI57: 0 | GJ57: 0 | GK57: 0 | GL57: 0 | GM57: 0 | GN57: 0 | GO57: 0 | GP57: 0 | GQ57: 0 | GR57: 0 | GS57: 0 | GT57: 0 | GU57: 0 | GV57: 0 | GW57: 0 | GX57: 0 | GY57: 0 | GZ57: 0 | HA57: 0 | HB57: 0 | HC57: 0 | HD57: 0 | HE57: 0 | HF57: 0 | HG57: 0 | HH57: 0 | HI57: 0 | HJ57: 0 | HK57: 0 | HL57: 0 | HM57: 0 | HN57: 0 | HO57: 0 | HP57: 0 | HQ57: 0 | HR57: 0 | HS57: 0 | HT57: 0 | HU57: 0 | HV57: 0 | HW57: 0 | HX57: 0 | HY57: 0 | HZ57: 0 | IA57: 0 | IB57: 0 | IC57: 0 | ID57: 0 | IE57: 0 | IF57: 0 | IG57: 0 | IH57: 0 | II57: 0 | IJ57: 0 | IK57: 0 | IL57: 0 | IM57: 0 | IN57: 0 | IO57: 0 | IP57: 0 | IQ57: 0 | IR57: 0 | IS57: 0 | IT57: 0 | IU57: 0 | IV57: 0 | IW57: 0 | IX57: 0 | IY57: 0 | IZ57: 0 | JA57: 0 | JB57: 0 | JC57: 0 | JD57: 0 | JE57: 0 | JF57: 0 | JG57: 0 | JH57: 0 | JI57: 0 | JJ57: 0 | JK57: 0 | JL57: 0 | JM57: 0 | JN57: 0 | JO57: 0 | JP57: 0 | JQ57: 0 | JR57: 0 | JS57: 0 | JT57: 0 | JU57: 0 | JV57: 0 | JW57: 0 | JX57: 0 | JY57: 0 | JZ57: 0 | KA57: 0 | KB57: 0 | KC57: 0 | KD57: 0 | KE57: 0 | KF57: 0 | KG57: 0 | KH57: 0 | KI57: 0 | KJ57: 0 | KK57: 0 | KL57: 0 | KM57: 0 | KN57: 0 | KO57: 0 | KP57: 0 | KQ57: 0 | KR57: 0 | KS57: 0 | KT57: =COUNTIFS($B$10:$B$39,$B57,KU$10:KU$39,$C57) -> 0 | KU57: 0 | KV57: 0 | KW57: 0 | KX57: =COUNTIFS($B$10:$B$39,$B57,KY$10:KY$39,$C57) -> 0 | KY57: 0 | KZ57: 0 | LA57: 0 | LB57: =COUNTIFS($B$10:$B$39,$B57,LC$10:LC$39,$C57) -> 0 | LC57: 0 | LD57: 0 | LE57: 0 | LF57: =COUNTIFS($B$10:$B$39,$B57,LG$10:LG$39,$C57) -> 0 | LG57: 0 | LH57: 0 | LI57: 0 | LJ57: =COUNTIFS($B$10:$B$39,$B57,LK$10:LK$39,$C57) -> 0 | LK57: 0 | LL57: 0 | LM57: 0 | LN57: =COUNTIFS($B$10:$B$39,$B57,LO$10:LO$39,$C57) -> 0 | LO57: 0 | LP57: 0 | LQ57: 0 | LR57: =COUNTIFS($B$10:$B$39,$B57,LS$10:LS$39,$C57) -> 0 | LS57: 0 | LT57: 0 | LU57: 0 | LV57: =COUNTIFS($B$10:$B$39,$B57,LW$10:LW$39,$C57) -> 0 | LW57: 0 | LX57: 0 | LY57: 0 | LZ57: =COUNTIFS($B$10:$B$39,$B57,MA$10:MA$39,$C57) -> 0 | MA57: 0 | MB57: 0 | MC57: 0 | MD57: =COUNTIFS($B$10:$B$39,$B57,ME$10:ME$39,$C57) -> 0 | ME57: 0 | MF57: 0 | MG57: 0 | MH57: =COUNTIFS($B$10:$B$39,$B57,MI$10:MI$39,$C57) -> 0 | MI57: 0 | MJ57: 0 | MK57: 0 | ML57: =COUNTIFS($B$10:$B$39,$B57,MM$10:MM$39,$C57) -> 0 | MM57: 0 | MN57: 0 | MO57: 0 | MP57: =COUNTIFS($B$10:$B$39,$B57,MQ$10:MQ$39,$C57) -> 0 | MQ57: 0 | MR57: 0 | MS57: 0 | MT57: =COUNTIFS($B$10:$B$39,$B57,MU$10:MU$39,$C57) -> 0 | MU57: 0 | MV57: 0 | MW57: 0 | MX57: =COUNTIFS($B$10:$B$39,$B57,MY$10:MY$39,$C57) -> 0 | MY57: 0 | MZ57: 0 | NA57: 0 | NB57: =COUNTIFS($B$10:$B$39,$B57,NC$10:NC$39,$C57) -> 0 | NC57: 0 | ND57: 0 | NE57: 0 | NF57: =COUNTIFS($B$10:$B$39,$B57,NG$10:NG$39,$C57) -> 0 | NG57: 0 | NH57: 0 | NI57: 0 | NJ57: =COUNTIFS($B$10:$B$39,$B57,NK$10:NK$39,$C57) -> 0 | NK57: 0 | NL57: 0 | NM57: 0 | NN57: =COUNTIFS($B$10:$B$39,$B57,NO$10:NO$39,$C57) -> 0 | NO57: 0 | NP57: 0 | NQ57: 0 | NR57: =COUNTIFS($B$10:$B$39,$B57,NS$10:NS$39,$C57) -> 0 | NS57: 0 | NT57: 0 | NU57: 0 | NV57: =COUNTIFS($B$10:$B$39,$B57,NW$10:NW$39,$C57) -> 0 | NW57: 0 | NX57: 0 | NY57: 0 | NZ57: =COUNTIFS($B$10:$B$39,$B57,OA$10:OA$39,$C57) -> 0 | OA57: 0 | OB57: 0 | OC57: 0 | OD57: =COUNTIFS($B$10:$B$39,$B57,OE$10:OE$39,$C57) -> 0 | OE57: 0 | OF57: 0 | OG57: 0 | OH57: =COUNTIFS($B$10:$B$39,$B57,OI$10:OI$39,$C57) -> 0 | OI57: 0 | OJ57: 0 | OK57: 0 | OL57: =COUNTIFS($B$10:$B$39,$B57,OM$10:OM$39,$C57) -> 0 | OM57: 0 | ON57: 0 | OO57: 0 | OP57: =COUNTIFS($B$10:$B$39,$B57,OQ$10:OQ$39,$C57) -> 0 | OQ57: 0 | OR57: 0 | OS57: 0 | OT57: =COUNTIFS($B$10:$B$39,$B57,OU$10:OU$39,$C57) -> 0 | OU57: 0 | OV57: 0 | OW57: 0 | OX57: =COUNTIFS($B$10:$B$39,$B57,OY$10:OY$39,$C57) -> 0 | OY57: 0 | OZ57: 0 | PA57: 0 | PB57: =COUNTIFS($B$10:$B$39,$B57,PC$10:PC$39,$C57) -> 0 | PC57: 0 | PD57: 0 | PE57: 0 | PF57: =COUNTIFS($B$10:$B$39,$B57,PG$10:PG$39,$C57) -> 0 | PG57: 0 | PH57: 0 | PI57: 0 | PJ57: =COUNTIFS($B$10:$B$39,$B57,PK$10:PK$39,$C57) -> 0 | PK57: 0 | PL57: 0 | PM57: 0 | PN57: =COUNTIFS($B$10:$B$39,$B57,PO$10:PO$39,$C57) -> 0 | PO57: 0 | PP57: 0 | PQ57: 0 | PR57: =COUNTIFS($B$10:$B$39,$B57,PS$10:PS$39,$C57) -> 0 | PS57: 0 | PT57: 0 | PU57: 0 | PV57: =COUNTIFS($B$10:$B$39,$B57,PW$10:PW$39,$C57) -> 0 | PW57: 0 | PX57: 0 | PY57: 0 | PZ57: =COUNTIFS($B$10:$B$39,$B57,QA$10:QA$39,$C57) -> 0 | QA57: 0 | QB57: 0 | QC57: 0 | QD57: =COUNTIFS($B$10:$B$39,$B57,QE$10:QE$39,$C57) -> 0 | QE57: 0 | QF57: 0 | QG57: 0 | QH57: =COUNTIFS($B$10:$B$39,$B57,QI$10:QI$39,$C57) -> 0 | QI57: 0
B58: 2 | C58: 6 | D58: 6 | E58: 0 | F58: 1 | G58: 6 | H58: 0 | I58: 0 | J58: 0 | K58: 0 | L58: 0 | M58: 0 | N58: 0 | O58: 0 | P58: 0 | Q58: 0 | R58: 0 | S58: 0 | T58: 0 | U58: 0 | V58: 0 | W58: 0 | X58: 0 | Y58: 0 | Z58: 0 | AA58: 0 | AB58: 0 | AC58: 0 | AD58: 0 | AE58: 0 | AF58: 0 | AG58: 0 | AH58: 0 | AI58: 0 | AJ58: 0 | AK58: 0 | AL58: 0 | AM58: 0 | AN58: 0 | AO58: 0 | AP58: 0 | AQ58: 0 | AR58: 0 | AS58: 0 | AT58: 0 | AU58: 0 | AV58: 0 | AW58: 0 | AX58: 0 | AY58: 0 | AZ58: 0 | BA58: 0 | BB58: 0 | BC58: 0 | BD58: 0 | BE58: 0 | BF58: 0 | BG58: 0 | BH58: 0 | BI58: 0 | BJ58: 0 | BK58: 0 | BL58: 0 | BM58: 0 | BN58: 0 | BO58: 0 | BP58: 0 | BQ58: 0 | BR58: 0 | BS58: 0 | BT58: 0 | BU58: 0 | BV58: 0 | BW58: 0 | BX58: 0 | BY58: 0 | BZ58: 0 | CA58: 0 | CB58: 0 | CC58: 0 | CD58: 0 | CE58: 0 | CF58: 0 | CG58: 0 | CH58: 0 | CI58: 0 | CJ58: 3 | CK58: 2 | CL58: 1 | CM58: 5 | CN58: 0 | CO58: 0 | CP58: 0 | CQ58: 0 | CR58: 0 | CS58: 0 | CT58: 0 | CU58: 0 | CV58: 0 | CW58: 0 | CX58: 0 | CY58: 0 | CZ58: 0 | DA58: 0 | DB58: 0 | DC58: 0 | DD58: 0 | DE58: 0 | DF58: 0 | DG58: 0 | DH58: 0 | DI58: 0 | DJ58: 0 | DK58: 0 | DL58: 0 | DM58: 0 | DN58: 0 | DO58: 0 | DP58: 0 | DQ58: 0 | DR58: 0 | DS58: 0 | DT58: 0 | DU58: 0 | DV58: 0 | DW58: 0 | DX58: 0 | DY58: 0 | DZ58: 0 | EA58: 0 | EB58: 0 | EC58: 0 | ED58: 0 | EE58: 0 | EF58: 0 | EG58: 0 | EH58: 0 | EI58: 0 | EJ58: 0 | EK58: 0 | EL58: 0 | EM58: 0 | EN58: 0 | EO58: 0 | EP58: 0 | EQ58: 0 | ER58: 0 | ES58: 0 | ET58: 0 | EU58: 0 | EV58: 0 | EW58: 0 | EX58: 0 | EY58: 0 | EZ58: 0 | FA58: 0 | FB58: 0 | FC58: 0 | FD58: 0 | FE58: 0 | FF58: 0 | FG58: 0 | FH58: 0 | FI58: 0 | FJ58: 0 | FK58: 0 | FL58: 0 | FM58: 0 | FN58: 0 | FO58: 0 | FP58: 0 | FQ58: 0 | FR58: 0 | FS58: 0 | FT58: 0 | FU58: 0 | FV58: 0 | FW58: 0 | FX58: 0 | FY58: 0 | FZ58: 0 | GA58: 0 | GB58: 0 | GC58: 0 | GD58: 0 | GE58: 0 | GF58: 0 | GG58: 0 | GH58: 0 | GI58: 0 | GJ58: 0 | GK58: 0 | GL58: 0 | GM58: 0 | GN58: 0 | GO58: 0 | GP58: 0 | GQ58: 0 | GR58: 0 | GS58: 0 | GT58: 0 | GU58: 0 | GV58: 0 | GW58: 0 | GX58: 0 | GY58: 0 | GZ58: 0 | HA58: 0 | HB58: 0 | HC58: 0 | HD58: 0 | HE58: 0 | HF58: 0 | HG58: 0 | HH58: 0 | HI58: 0 | HJ58: 0 | HK58: 0 | HL58: 0 | HM58: 0 | HN58: 0 | HO58: 0 | HP58: 0 | HQ58: 0 | HR58: 0 | HS58: 0 | HT58: 0 | HU58: 0 | HV58: 0 | HW58: 0 | HX58: 0 | HY58: 0 | HZ58: 0 | IA58: 0 | IB58: 0 | IC58: 0 | ID58: 0 | IE58: 0 | IF58: 0 | IG58: 0 | IH58: 0 | II58: 0 | IJ58: 0 | IK58: 0 | IL58: 0 | IM58: 0 | IN58: 0 | IO58: 0 | IP58: 0 | IQ58: 0 | IR58: 0 | IS58: 0 | IT58: 0 | IU58: 0 | IV58: 0 | IW58: 0 | IX58: 0 | IY58: 0 | IZ58: 0 | JA58: 0 | JB58: 0 | JC58: 0 | JD58: 0 | JE58: 0 | JF58: 0 | JG58: 0 | JH58: 0 | JI58: 0 | JJ58: 0 | JK58: 0 | JL58: 0 | JM58: 0 | JN58: 0 | JO58: 0 | JP58: 0 | JQ58: 0 | JR58: 0 | JS58: 0 | JT58: 0 | JU58: 0 | JV58: 0 | JW58: 0 | JX58: 0 | JY58: 0 | JZ58: 0 | KA58: 0 | KB58: 0 | KC58: 0 | KD58: 0 | KE58: 0 | KF58: 0 | KG58: 0 | KH58: 0 | KI58: 0 | KJ58: 0 | KK58: 0 | KL58: 0 | KM58: 0 | KN58: 0 | KO58: 0 | KP58: 0 | KQ58: 0 | KR58: 0 | KS58: 0 | KT58: =COUNTIFS($B$10:$B$39,$B58,KU$10:KU$39,$C58) -> 0 | KU58: 0 | KV58: 0 | KW58: 0 | KX58: =COUNTIFS($B$10:$B$39,$B58,KY$10:KY$39,$C58) -> 0 | KY58: 0 | KZ58: 0 | LA58: 0 | LB58: =COUNTIFS($B$10:$B$39,$B58,LC$10:LC$39,$C58) -> 0 | LC58: 0 | LD58: 0 | LE58: 0 | LF58: =COUNTIFS($B$10:$B$39,$B58,LG$10:LG$39,$C58) -> 0 | LG58: 0 | LH58: 0 | LI58: 0 | LJ58: =COUNTIFS($B$10:$B$39,$B58,LK$10:LK$39,$C58) -> 0 | LK58: 0 | LL58: 0 | LM58: 0 | LN58: =COUNTIFS($B$10:$B$39,$B58,LO$10:LO$39,$C58) -> 0 | LO58: 0 | LP58: 0 | LQ58: 0 | LR58: =COUNTIFS($B$10:$B$39,$B58,LS$10:LS$39,$C58) -> 0 | LS58: 0 | LT58: 0 | LU58: 0 | LV58: =COUNTIFS($B$10:$B$39,$B58,LW$10:LW$39,$C58) -> 0 | LW58: 0 | LX58: 0 | LY58: 0 | LZ58: =COUNTIFS($B$10:$B$39,$B58,MA$10:MA$39,$C58) -> 0 | MA58: 0 | MB58: 0 | MC58: 0 | MD58: =COUNTIFS($B$10:$B$39,$B58,ME$10:ME$39,$C58) -> 0 | ME58: 0 | MF58: 0 | MG58: 0 | MH58: =COUNTIFS($B$10:$B$39,$B58,MI$10:MI$39,$C58) -> 0 | MI58: 0 | MJ58: 0 | MK58: 0 | ML58: =COUNTIFS($B$10:$B$39,$B58,MM$10:MM$39,$C58) -> 0 | MM58: 0 | MN58: 0 | MO58: 0 | MP58: =COUNTIFS($B$10:$B$39,$B58,MQ$10:MQ$39,$C58) -> 0 | MQ58: 0 | MR58: 0 | MS58: 0 | MT58: =COUNTIFS($B$10:$B$39,$B58,MU$10:MU$39,$C58) -> 0 | MU58: 0 | MV58: 0 | MW58: 0 | MX58: =COUNTIFS($B$10:$B$39,$B58,MY$10:MY$39,$C58) -> 0 | MY58: 0 | MZ58: 0 | NA58: 0 | NB58: =COUNTIFS($B$10:$B$39,$B58,NC$10:NC$39,$C58) -> 0 | NC58: 0 | ND58: 0 | NE58: 0 | NF58: =COUNTIFS($B$10:$B$39,$B58,NG$10:NG$39,$C58) -> 0 | NG58: 0 | NH58: 6 | NI58: 0 | NJ58: =COUNTIFS($B$10:$B$39,$B58,NK$10:NK$39,$C58) -> 1 | NK58: 6 | NL58: 0 | NM58: 0 | NN58: =COUNTIFS($B$10:$B$39,$B58,NO$10:NO$39,$C58) -> 0 | NO58: 0 | NP58: 0 | NQ58: 0 | NR58: =COUNTIFS($B$10:$B$39,$B58,NS$10:NS$39,$C58) -> 0 | NS58: 0 | NT58: 6 | NU58: 0 | NV58: =COUNTIFS($B$10:$B$39,$B58,NW$10:NW$39,$C58) -> 1 | NW58: 6 | NX58: 0 | NY58: 0 | NZ58: =COUNTIFS($B$10:$B$39,$B58,OA$10:OA$39,$C58) -> 0 | OA58: 0 | OB58: 0 | OC58: 0 | OD58: =COUNTIFS($B$10:$B$39,$B58,OE$10:OE$39,$C58) -> 0 | OE58: 0 | OF58: 0 | OG58: 0 | OH58: =COUNTIFS($B$10:$B$39,$B58,OI$10:OI$39,$C58) -> 0 | OI58: 0 | OJ58: 0 | OK58: 0 | OL58: =COUNTIFS($B$10:$B$39,$B58,OM$10:OM$39,$C58) -> 0 | OM58: 0 | ON58: 0 | OO58: 0 | OP58: =COUNTIFS($B$10:$B$39,$B58,OQ$10:OQ$39,$C58) -> 0 | OQ58: 0 | OR58: 0 | OS58: 0 | OT58: =COUNTIFS($B$10:$B$39,$B58,OU$10:OU$39,$C58) -> 0 | OU58: 0 | OV58: 0 | OW58: 0 | OX58: =COUNTIFS($B$10:$B$39,$B58,OY$10:OY$39,$C58) -> 0 | OY58: 0 | OZ58: 0 | PA58: 0 | PB58: =COUNTIFS($B$10:$B$39,$B58,PC$10:PC$39,$C58) -> 0 | PC58: 0 | PD58: 0 | PE58: 0 | PF58: =COUNTIFS($B$10:$B$39,$B58,PG$10:PG$39,$C58) -> 0 | PG58: 0 | PH58: 0 | PI58: 0 | PJ58: =COUNTIFS($B$10:$B$39,$B58,PK$10:PK$39,$C58) -> 0 | PK58: 0 | PL58: 0 | PM58: 0 | PN58: =COUNTIFS($B$10:$B$39,$B58,PO$10:PO$39,$C58) -> 0 | PO58: 0 | PP58: 0 | PQ58: 0 | PR58: =COUNTIFS($B$10:$B$39,$B58,PS$10:PS$39,$C58) -> 0 | PS58: 0 | PT58: 0 | PU58: 0 | PV58: =COUNTIFS($B$10:$B$39,$B58,PW$10:PW$39,$C58) -> 0 | PW58: 0 | PX58: 0 | PY58: 0 | PZ58: =COUNTIFS($B$10:$B$39,$B58,QA$10:QA$39,$C58) -> 0 | QA58: 0 | QB58: 0 | QC58: 0 | QD58: =COUNTIFS($B$10:$B$39,$B58,QE$10:QE$39,$C58) -> 0 | QE58: 0 | QF58: 0 | QG58: 0 | QH58: =COUNTIFS($B$10:$B$39,$B58,QI$10:QI$39,$C58) -> 0 | QI58: 0
B59: 2 | C59: 7 | D59: 0 | E59: 0 | F59: 0 | G59: 0 | H59: 0 | I59: 0 | J59: 0 | K59: 0 | L59: 0 | M59: 0 | N59: 0 | O59: 0 | P59: 0 | Q59: 0 | R59: 0 | S59: 0 | T59: 0 | U59: 0 | V59: 0 | W59: 0 | X59: 0 | Y59: 0 | Z59: 0 | AA59: 0 | AB59: 0 | AC59: 0 | AD59: 0 | AE59: 0 | AF59: 0 | AG59: 0 | AH59: 0 | AI59: 0 | AJ59: 0 | AK59: 0 | AL59: 0 | AM59: 0 | AN59: 0 | AO59: 0 | AP59: 0 | AQ59: 0 | AR59: 0 | AS59: 0 | AT59: 0 | AU59: 0 | AV59: 0 | AW59: 0 | AX59: 0 | AY59: 0 | AZ59: 0 | BA59: 0 | BB59: 0 | BC59: 0 | BD59: 0 | BE59: 0 | BF59: 0 | BG59: 0 | BH59: 0 | BI59: 0 | BJ59: 0 | BK59: 0 | BL59: 0 | BM59: 0 | BN59: 0 | BO59: 0 | BP59: 0 | BQ59: 0 | BR59: 0 | BS59: 0 | BT59: 0 | BU59: 0 | BV59: 0 | BW59: 0 | BX59: 0 | BY59: 0 | BZ59: 0 | CA59: 0 | CB59: 0 | CC59: 0 | CD59: 0 | CE59: 0 | CF59: 0 | CG59: 0 | CH59: 0 | CI59: 0 | CJ59: 0 | CK59: 0 | CL59: 0 | CM59: 0 | CN59: 0 | CO59: 0 | CP59: 0 | CQ59: 0 | CR59: 0 | CS59: 0 | CT59: 0 | CU59: 0 | CV59: 0 | CW59: 0 | CX59: 0 | CY59: 0 | CZ59: 0 | DA59: 0 | DB59: 0 | DC59: 0 | DD59: 0 | DE59: 0 | DF59: 0 | DG59: 0 | DH59: 0 | DI59: 0 | DJ59: 0 | DK59: 0 | DL59: 0 | DM59: 0 | DN59: 0 | DO59: 0 | DP59: 0 | DQ59: 0 | DR59: 0 | DS59: 0 | DT59: 0 | DU59: 0 | DV59: 0 | DW59: 0 | DX59: 0 | DY59: 0 | DZ59: 0 | EA59: 0 | EB59: 0 | EC59: 0 | ED59: 0 | EE59: 0 | EF59: 0 | EG59: 0 | EH59: 0 | EI59: 0 | EJ59: 0 | EK59: 0 | EL59: 0 | EM59: 0 | EN59: 0 | EO59: 0 | EP59: 0 | EQ59: 0 | ER59: 0 | ES59: 0 | ET59: 0 | EU59: 0 | EV59: 0 | EW59: 0 | EX59: 0 | EY59: 0 | EZ59: 0 | FA59: 0 | FB59: 0 | FC59: 0 | FD59: 0 | FE59: 0 | FF59: 0 | FG59: 0 | FH59: 0 | FI59: 0 | FJ59: 0 | FK59: 0 | FL59: 0 | FM59: 0 | FN59: 0 | FO59: 0 | FP59: 0 | FQ59: 0 | FR59: 0 | FS59: 0 | FT59: 0 | FU59: 0 | FV59: 0 | FW59: 0 | FX59: 0 | FY59: 0 | FZ59: 0 | GA59: 0 | GB59: 0 | GC59: 0 | GD59: 0 | GE59: 0 | GF59: 0 | GG59: 0 | GH59: 0 | GI59: 0 | GJ59: 0 | GK59: 0 | GL59: 0 | GM59: 0 | GN59: 0 | GO59: 0 | GP59: 0 | GQ59: 0 | GR59: 0 | GS59: 0 | GT59: 0 | GU59: 0 | GV59: 0 | GW59: 0 | GX59: 0 | GY59: 0 | GZ59: 0 | HA59: 0 | HB59: 0 | HC59: 0 | HD59: 0 | HE59: 0 | HF59: 0 | HG59: 0 | HH59: 0 | HI59: 0 | HJ59: 0 | HK59: 0 | HL59: 0 | HM59: 0 | HN59: 0 | HO59: 0 | HP59: 0 | HQ59: 0 | HR59: 0 | HS59: 0 | HT59: 0 | HU59: 0 | HV59: 0 | HW59: 0 | HX59: 0 | HY59: 0 | HZ59: 0 | IA59: 0 | IB59: 0 | IC59: 0 | ID59: 0 | IE59: 0 | IF59: 0 | IG59: 0 | IH59: 0 | II59: 0 | IJ59: 0 | IK59: 0 | IL59: 0 | IM59: 0 | IN59: 0 | IO59: 0 | IP59: 0 | IQ59: 0 | IR59: 0 | IS59: 0 | IT59: 0 | IU59: 0 | IV59: 0 | IW59: 0 | IX59: 0 | IY59: 0 | IZ59: 0 | JA59: 0 | JB59: 0 | JC59: 0 | JD59: 0 | JE59: 0 | JF59: 0 | JG59: 0 | JH59: 0 | JI59: 0 | JJ59: 0 | JK59: 0 | JL59: 0 | JM59: 0 | JN59: 0 | JO59: 0 | JP59: 0 | JQ59: 0 | JR59: 0 | JS59: 0 | JT59: 0 | JU59: 0 | JV59: 0 | JW59: 0 | JX59: 0 | JY59: 0 | JZ59: 0 | KA59: 0 | KB59: 0 | KC59: 0 | KD59: 0 | KE59: 0 | KF59: 0 | KG59: 0 | KH59: 0 | KI59: 0 | KJ59: 0 | KK59: 0 | KL59: 0 | KM59: 0 | KN59: 0 | KO59: 0 | KP59: 0 | KQ59: 0 | KR59: 0 | KS59: 0 | KT59: =COUNTIFS($B$10:$B$39,$B59,KU$10:KU$39,$C59) -> 0 | KU59: 0 | KV59: 0 | KW59: 0 | KX59: =COUNTIFS($B$10:$B$39,$B59,KY$10:KY$39,$C59) -> 0 | KY59: 0 | KZ59: 0 | LA59: 0 | LB59: =COUNTIFS($B$10:$B$39,$B59,LC$10:LC$39,$C59) -> 0 | LC59: 0 | LD59: 0 | LE59: 0 | LF59: =COUNTIFS($B$10:$B$39,$B59,LG$10:LG$39,$C59) -> 0 | LG59: 0 | LH59: 0 | LI59: 0 | LJ59: =COUNTIFS($B$10:$B$39,$B59,LK$10:LK$39,$C59) -> 0 | LK59: 0 | LL59: 0 | LM59: 0 | LN59: =COUNTIFS($B$10:$B$39,$B59,LO$10:LO$39,$C59) -> 0 | LO59: 0 | LP59: 0 | LQ59: 0 | LR59: =COUNTIFS($B$10:$B$39,$B59,LS$10:LS$39,$C59) -> 0 | LS59: 0 | LT59: 0 | LU59: 0 | LV59: =COUNTIFS($B$10:$B$39,$B59,LW$10:LW$39,$C59) -> 0 | LW59: 0 | LX59: 0 | LY59: 0 | LZ59: =COUNTIFS($B$10:$B$39,$B59,MA$10:MA$39,$C59) -> 0 | MA59: 0 | MB59: 0 | MC59: 0 | MD59: =COUNTIFS($B$10:$B$39,$B59,ME$10:ME$39,$C59) -> 0 | ME59: 0 | MF59: 0 | MG59: 0 | MH59: =COUNTIFS($B$10:$B$39,$B59,MI$10:MI$39,$C59) -> 0 | MI59: 0 | MJ59: 0 | MK59: 0 | ML59: =COUNTIFS($B$10:$B$39,$B59,MM$10:MM$39,$C59) -> 0 | MM59: 0 | MN59: 0 | MO59: 0 | MP59: =COUNTIFS($B$10:$B$39,$B59,MQ$10:MQ$39,$C59) -> 0 | MQ59: 0 | MR59: 0 | MS59: 0 | MT59: =COUNTIFS($B$10:$B$39,$B59,MU$10:MU$39,$C59) -> 0 | MU59: 0 | MV59: 0 | MW59: 0 | MX59: =COUNTIFS($B$10:$B$39,$B59,MY$10:MY$39,$C59) -> 0 | MY59: 0 | MZ59: 0 | NA59: 0 | NB59: =COUNTIFS($B$10:$B$39,$B59,NC$10:NC$39,$C59) -> 0 | NC59: 0 | ND59: 0 | NE59: 0 | NF59: =COUNTIFS($B$10:$B$39,$B59,NG$10:NG$39,$C59) -> 0 | NG59: 0 | NH59: 0 | NI59: 0 | NJ59: =COUNTIFS($B$10:$B$39,$B59,NK$10:NK$39,$C59) -> 0 | NK59: 0 | NL59: 0 | NM59: 0 | NN59: =COUNTIFS($B$10:$B$39,$B59,NO$10:NO$39,$C59) -> 0 | NO59: 0 | NP59: 0 | NQ59: 0 | NR59: =COUNTIFS($B$10:$B$39,$B59,NS$10:NS$39,$C59) -> 0 | NS59: 0 | NT59: 0 | NU59: 0 | NV59: =COUNTIFS($B$10:$B$39,$B59,NW$10:NW$39,$C59) -> 0 | NW59: 0 | NX59: 0 | NY59: 0 | NZ59: =COUNTIFS($B$10:$B$39,$B59,OA$10:OA$39,$C59) -> 0 | OA59: 0 | OB59: 0 | OC59: 0 | OD59: =COUNTIFS($B$10:$B$39,$B59,OE$10:OE$39,$C59) -> 0 | OE59: 0 | OF59: 0 | OG59: 0 | OH59: =COUNTIFS($B$10:$B$39,$B59,OI$10:OI$39,$C59) -> 0 | OI59: 0 | OJ59: 0 | OK59: 0 | OL59: =COUNTIFS($B$10:$B$39,$B59,OM$10:OM$39,$C59) -> 0 | OM59: 0 | ON59: 0 | OO59: 0 | OP59: =COUNTIFS($B$10:$B$39,$B59,OQ$10:OQ$39,$C59) -> 0 | OQ59: 0 | OR59: 0 | OS59: 0 | OT59: =COUNTIFS($B$10:$B$39,$B59,OU$10:OU$39,$C59) -> 0 | OU59: 0 | OV59: 0 | OW59: 0 | OX59: =COUNTIFS($B$10:$B$39,$B59,OY$10:OY$39,$C59) -> 0 | OY59: 0 | OZ59: 0 | PA59: 0 | PB59: =COUNTIFS($B$10:$B$39,$B59,PC$10:PC$39,$C59) -> 0 | PC59: 0 | PD59: 0 | PE59: 0 | PF59: =COUNTIFS($B$10:$B$39,$B59,PG$10:PG$39,$C59) -> 0 | PG59: 0 | PH59: 0 | PI59: 0 | PJ59: =COUNTIFS($B$10:$B$39,$B59,PK$10:PK$39,$C59) -> 0 | PK59: 0 | PL59: 0 | PM59: 0 | PN59: =COUNTIFS($B$10:$B$39,$B59,PO$10:PO$39,$C59) -> 0 | PO59: 0 | PP59: 0 | PQ59: 0 | PR59: =COUNTIFS($B$10:$B$39,$B59,PS$10:PS$39,$C59) -> 0 | PS59: 0 | PT59: 0 | PU59: 0 | PV59: =COUNTIFS($B$10:$B$39,$B59,PW$10:PW$39,$C59) -> 0 | PW59: 0 | PX59: 0 | PY59: 0 | PZ59: =COUNTIFS($B$10:$B$39,$B59,QA$10:QA$39,$C59) -> 0 | QA59: 0 | QB59: 0 | QC59: 0 | QD59: =COUNTIFS($B$10:$B$39,$B59,QE$10:QE$39,$C59) -> 0 | QE59: 0 | QF59: 0 | QG59: 0 | QH59: =COUNTIFS($B$10:$B$39,$B59,QI$10:QI$39,$C59) -> 0 | QI59: 0
B60: 2 | C60: 8 | D60: 0 | E60: 0 | F60: 0 | G60: 0 | H60: 0 | I60: 0 | J60: 0 | K60: 0 | L60: 0 | M60: 0 | N60: 0 | O60: 0 | P60: 0 | Q60: 0 | R60: 0 | S60: 0 | T60: 0 | U60: 0 | V60: 0 | W60: 0 | X60: 0 | Y60: 0 | Z60: 0 | AA60: 0 | AB60: 0 | AC60: 0 | AD60: 0 | AE60: 0 | AF60: 0 | AG60: 0 | AH60: 0 | AI60: 0 | AJ60: 0 | AK60: 0 | AL60: 0 | AM60: 0 | AN60: 0 | AO60: 0 | AP60: 0 | AQ60: 0 | AR60: 0 | AS60: 0 | AT60: 0 | AU60: 0 | AV60: 0 | AW60: 0 | AX60: 0 | AY60: 0 | AZ60: 0 | BA60: 0 | BB60: 0 | BC60: 0 | BD60: 0 | BE60: 0 | BF60: 0 | BG60: 0 | BH60: 0 | BI60: 0 | BJ60: 0 | BK60: 0 | BL60: 0 | BM60: 0 | BN60: 0 | BO60: 0 | BP60: 0 | BQ60: 0 | BR60: 0 | BS60: 0 | BT60: 0 | BU60: 0 | BV60: 0 | BW60: 0 | BX60: 0 | BY60: 0 | BZ60: 0 | CA60: 0 | CB60: 0 | CC60: 0 | CD60: 0 | CE60: 0 | CF60: 0 | CG60: 0 | CH60: 0 | CI60: 0 | CJ60: 0 | CK60: 0 | CL60: 0 | CM60: 0 | CN60: 0 | CO60: 0 | CP60: 0 | CQ60: 0 | CR60: 0 | CS60: 0 | CT60: 0 | CU60: 0 | CV60: 0 | CW60: 0 | CX60: 0 | CY60: 0 | CZ60: 0 | DA60: 0 | DB60: 0 | DC60: 0 | DD60: 0 | DE60: 0 | DF60: 0 | DG60: 0 | DH60: 0 | DI60: 0 | DJ60: 0 | DK60: 0 | DL60: 0 | DM60: 0 | DN60: 0 | DO60: 0 | DP60: 0 | DQ60: 0 | DR60: 0 | DS60: 0 | DT60: 0 | DU60: 0 | DV60: 0 | DW60: 0 | DX60: 0 | DY60: 0 | DZ60: 0 | EA60: 0 | EB60: 0 | EC60: 0 | ED60: 0 | EE60: 0 | EF60: 0 | EG60: 0 | EH60: 0 | EI60: 0 | EJ60: 0 | EK60: 0 | EL60: 0 | EM60: 0 | EN60: 0 | EO60: 0 | EP60: 0 | EQ60: 0 | ER60: 0 | ES60: 0 | ET60: 0 | EU60: 0 | EV60: 0 | EW60: 0 | EX60: 0 | EY60: 0 | EZ60: 0 | FA60: 0 | FB60: 0 | FC60: 0 | FD60: 0 | FE60: 0 | FF60: 0 | FG60: 0 | FH60: 0 | FI60: 0 | FJ60: 0 | FK60: 0 | FL60: 0 | FM60: 0 | FN60: 0 | FO60: 0 | FP60: 0 | FQ60: 0 | FR60: 0 | FS60: 0 | FT60: 0 | FU60: 0 | FV60: 0 | FW60: 0 | FX60: 0 | FY60: 0 | FZ60: 0 | GA60: 0 | GB60: 0 | GC60: 0 | GD60: 0 | GE60: 0 | GF60: 0 | GG60: 0 | GH60: 0 | GI60: 0 | GJ60: 0 | GK60: 0 | GL60: 0 | GM60: 0 | GN60: 0 | GO60: 0 | GP60: 0 | GQ60: 0 | GR60: 0 | GS60: 0 | GT60: 0 | GU60: 0 | GV60: 0 | GW60: 0 | GX60: 0 | GY60: 0 | GZ60: 0 | HA60: 0 | HB60: 0 | HC60: 0 | HD60: 0 | HE60: 0 | HF60: 0 | HG60: 0 | HH60: 0 | HI60: 0 | HJ60: 0 | HK60: 0 | HL60: 0 | HM60: 0 | HN60: 0 | HO60: 0 | HP60: 0 | HQ60: 0 | HR60: 0 | HS60: 0 | HT60: 0 | HU60: 0 | HV60: 0 | HW60: 0 | HX60: 0 | HY60: 0 | HZ60: 0 | IA60: 0 | IB60: 0 | IC60: 0 | ID60: 0 | IE60: 0 | IF60: 0 | IG60: 0 | IH60: 0 | II60: 0 | IJ60: 0 | IK60: 0 | IL60: 0 | IM60: 0 | IN60: 0 | IO60: 0 | IP60: 0 | IQ60: 0 | IR60: 0 | IS60: 0 | IT60: 0 | IU60: 0 | IV60: 0 | IW60: 0 | IX60: 0 | IY60: 0 | IZ60: 0 | JA60: 0 | JB60: 0 | JC60: 0 | JD60: 0 | JE60: 0 | JF60: 0 | JG60: 0 | JH60: 0 | JI60: 0 | JJ60: 0 | JK60: 0 | JL60: 0 | JM60: 0 | JN60: 0 | JO60: 0 | JP60: 0 | JQ60: 0 | JR60: 0 | JS60: 0 | JT60: 0 | JU60: 0 | JV60: 0 | JW60: 0 | JX60: 0 | JY60: 0 | JZ60: 0 | KA60: 0 | KB60: 0 | KC60: 0 | KD60: 0 | KE60: 0 | KF60: 0 | KG60: 0 | KH60: 0 | KI60: 0 | KJ60: 0 | KK60: 0 | KL60: 0 | KM60: 0 | KN60: 0 | KO60: 0 | KP60: 0 | KQ60: 0 | KR60: 0 | KS60: 0 | KT60: =COUNTIFS($B$10:$B$39,$B60,KU$10:KU$39,$C60) -> 0 | KU60: 0 | KV60: 0 | KW60: 0 | KX60: =COUNTIFS($B$10:$B$39,$B60,KY$10:KY$39,$C60) -> 0 | KY60: 0 | KZ60: 0 | LA60: 0 | LB60: =COUNTIFS($B$10:$B$39,$B60,LC$10:LC$39,$C60) -> 0 | LC60: 0 | LD60: 0 | LE60: 0 | LF60: =COUNTIFS($B$10:$B$39,$B60,LG$10:LG$39,$C60) -> 0 | LG60: 0 | LH60: 0 | LI60: 0 | LJ60: =COUNTIFS($B$10:$B$39,$B60,LK$10:LK$39,$C60) -> 0 | LK60: 0 | LL60: 0 | LM60: 0 | LN60: =COUNTIFS($B$10:$B$39,$B60,LO$10:LO$39,$C60) -> 0 | LO60: 0 | LP60: 0 | LQ60: 0 | LR60: =COUNTIFS($B$10:$B$39,$B60,LS$10:LS$39,$C60) -> 0 | LS60: 0 | LT60: 0 | LU60: 0 | LV60: =COUNTIFS($B$10:$B$39,$B60,LW$10:LW$39,$C60) -> 0 | LW60: 0 | LX60: 0 | LY60: 0 | LZ60: =COUNTIFS($B$10:$B$39,$B60,MA$10:MA$39,$C60) -> 0 | MA60: 0 | MB60: 0 | MC60: 0 | MD60: =COUNTIFS($B$10:$B$39,$B60,ME$10:ME$39,$C60) -> 0 | ME60: 0 | MF60: 0 | MG60: 0 | MH60: =COUNTIFS($B$10:$B$39,$B60,MI$10:MI$39,$C60) -> 0 | MI60: 0 | MJ60: 0 | MK60: 0 | ML60: =COUNTIFS($B$10:$B$39,$B60,MM$10:MM$39,$C60) -> 0 | MM60: 0 | MN60: 0 | MO60: 0 | MP60: =COUNTIFS($B$10:$B$39,$B60,MQ$10:MQ$39,$C60) -> 0 | MQ60: 0 | MR60: 0 | MS60: 0 | MT60: =COUNTIFS($B$10:$B$39,$B60,MU$10:MU$39,$C60) -> 0 | MU60: 0 | MV60: 0 | MW60: 0 | MX60: =COUNTIFS($B$10:$B$39,$B60,MY$10:MY$39,$C60) -> 0 | MY60: 0 | MZ60: 0 | NA60: 0 | NB60: =COUNTIFS($B$10:$B$39,$B60,NC$10:NC$39,$C60) -> 0 | NC60: 0 | ND60: 0 | NE60: 0 | NF60: =COUNTIFS($B$10:$B$39,$B60,NG$10:NG$39,$C60) -> 0 | NG60: 0 | NH60: 0 | NI60: 0 | NJ60: =COUNTIFS($B$10:$B$39,$B60,NK$10:NK$39,$C60) -> 0 | NK60: 0 | NL60: 0 | NM60: 0 | NN60: =COUNTIFS($B$10:$B$39,$B60,NO$10:NO$39,$C60) -> 0 | NO60: 0 | NP60: 0 | NQ60: 0 | NR60: =COUNTIFS($B$10:$B$39,$B60,NS$10:NS$39,$C60) -> 0 | NS60: 0 | NT60: 0 | NU60: 0 | NV60: =COUNTIFS($B$10:$B$39,$B60,NW$10:NW$39,$C60) -> 0 | NW60: 0 | NX60: 0 | NY60: 0 | NZ60: =COUNTIFS($B$10:$B$39,$B60,OA$10:OA$39,$C60) -> 0 | OA60: 0 | OB60: 0 | OC60: 0 | OD60: =COUNTIFS($B$10:$B$39,$B60,OE$10:OE$39,$C60) -> 0 | OE60: 0 | OF60: 0 | OG60: 0 | OH60: =COUNTIFS($B$10:$B$39,$B60,OI$10:OI$39,$C60) -> 0 | OI60: 0 | OJ60: 0 | OK60: 0 | OL60: =COUNTIFS($B$10:$B$39,$B60,OM$10:OM$39,$C60) -> 0 | OM60: 0 | ON60: 0 | OO60: 0 | OP60: =COUNTIFS($B$10:$B$39,$B60,OQ$10:OQ$39,$C60) -> 0 | OQ60: 0 | OR60: 0 | OS60: 0 | OT60: =COUNTIFS($B$10:$B$39,$B60,OU$10:OU$39,$C60) -> 0 | OU60: 0 | OV60: 0 | OW60: 0 | OX60: =COUNTIFS($B$10:$B$39,$B60,OY$10:OY$39,$C60) -> 0 | OY60: 0 | OZ60: 0 | PA60: 0 | PB60: =COUNTIFS($B$10:$B$39,$B60,PC$10:PC$39,$C60) -> 0 | PC60: 0 | PD60: 0 | PE60: 0 | PF60: =COUNTIFS($B$10:$B$39,$B60,PG$10:PG$39,$C60) -> 0 | PG60: 0 | PH60: 0 | PI60: 0 | PJ60: =COUNTIFS($B$10:$B$39,$B60,PK$10:PK$39,$C60) -> 0 | PK60: 0 | PL60: 0 | PM60: 0 | PN60: =COUNTIFS($B$10:$B$39,$B60,PO$10:PO$39,$C60) -> 0 | PO60: 0 | PP60: 0 | PQ60: 0 | PR60: =COUNTIFS($B$10:$B$39,$B60,PS$10:PS$39,$C60) -> 0 | PS60: 0 | PT60: 0 | PU60: 0 | PV60: =COUNTIFS($B$10:$B$39,$B60,PW$10:PW$39,$C60) -> 0 | PW60: 0 | PX60: 0 | PY60: 0 | PZ60: =COUNTIFS($B$10:$B$39,$B60,QA$10:QA$39,$C60) -> 0 | QA60: 0 | QB60: 0 | QC60: 0 | QD60: =COUNTIFS($B$10:$B$39,$B60,QE$10:QE$39,$C60) -> 0 | QE60: 0 | QF60: 0 | QG60: 0 | QH60: =COUNTIFS($B$10:$B$39,$B60,QI$10:QI$39,$C60) -> 0 | QI60: 0
B61: 2 | C61: 9 | D61: 0 | E61: 0 | F61: 0 | G61: 0 | H61: 0 | I61: 0 | J61: 0 | K61: 0 | L61: 0 | M61: 0 | N61: 0 | O61: 0 | P61: 0 | Q61: 0 | R61: 0 | S61: 0 | T61: 0 | U61: 0 | V61: 0 | W61: 0 | X61: 0 | Y61: 0 | Z61: 0 | AA61: 0 | AB61: 0 | AC61: 0 | AD61: 0 | AE61: 0 | AF61: 0 | AG61: 0 | AH61: 0 | AI61: 0 | AJ61: 0 | AK61: 0 | AL61: 0 | AM61: 0 | AN61: 0 | AO61: 0 | AP61: 0 | AQ61: 0 | AR61: 0 | AS61: 0 | AT61: 0 | AU61: 0 | AV61: 0 | AW61: 0 | AX61: 0 | AY61: 0 | AZ61: 0 | BA61: 0 | BB61: 0 | BC61: 0 | BD61: 0 | BE61: 0 | BF61: 0 | BG61: 0 | BH61: 0 | BI61: 0 | BJ61: 0 | BK61: 0 | BL61: 0 | BM61: 0 | BN61: 0 | BO61: 0 | BP61: 0 | BQ61: 0 | BR61: 0 | BS61: 0 | BT61: 0 | BU61: 0 | BV61: 0 | BW61: 0 | BX61: 0 | BY61: 0 | BZ61: 0 | CA61: 0 | CB61: 0 | CC61: 0 | CD61: 0 | CE61: 0 | CF61: 0 | CG61: 0 | CH61: 0 | CI61: 0 | CJ61: 0 | CK61: 0 | CL61: 0 | CM61: 0 | CN61: 0 | CO61: 0 | CP61: 0 | CQ61: 0 | CR61: 0 | CS61: 0 | CT61: 0 | CU61: 0 | CV61: 0 | CW61: 0 | CX61: 0 | CY61: 0 | CZ61: 0 | DA61: 0 | DB61: 0 | DC61: 0 | DD61: 0 | DE61: 0 | DF61: 0 | DG61: 0 | DH61: 0 | DI61: 0 | DJ61: 0 | DK61: 0 | DL61: 0 | DM61: 0 | DN61: 0 | DO61: 0 | DP61: 0 | DQ61: 0 | DR61: 0 | DS61: 0 | DT61: 0 | DU61: 0 | DV61: 0 | DW61: 0 | DX61: 0 | DY61: 0 | DZ61: 0 | EA61: 0 | EB61: 0 | EC61: 0 | ED61: 0 | EE61: 0 | EF61: 0 | EG61: 0 | EH61: 0 | EI61: 0 | EJ61: 0 | EK61: 0 | EL61: 0 | EM61: 0 | EN61: 0 | EO61: 0 | EP61: 0 | EQ61: 0 | ER61: 0 | ES61: 0 | ET61: 0 | EU61: 0 | EV61: 0 | EW61: 0 | EX61: 0 | EY61: 0 | EZ61: 0 | FA61: 0 | FB61: 0 | FC61: 0 | FD61: 0 | FE61: 0 | FF61: 0 | FG61: 0 | FH61: 0 | FI61: 0 | FJ61: 0 | FK61: 0 | FL61: 0 | FM61: 0 | FN61: 0 | FO61: 0 | FP61: 0 | FQ61: 0 | FR61: 0 | FS61: 0 | FT61: 0 | FU61: 0 | FV61: 0 | FW61: 0 | FX61: 0 | FY61: 0 | FZ61: 0 | GA61: 0 | GB61: 0 | GC61: 0 | GD61: 0 | GE61: 0 | GF61: 0 | GG61: 0 | GH61: 0 | GI61: 0 | GJ61: 0 | GK61: 0 | GL61: 0 | GM61: 0 | GN61: 0 | GO61: 0 | GP61: 0 | GQ61: 0 | GR61: 0 | GS61: 0 | GT61: 0 | GU61: 0 | GV61: 0 | GW61: 0 | GX61: 0 | GY61: 0 | GZ61: 0 | HA61: 0 | HB61: 0 | HC61: 0 | HD61: 0 | HE61: 0 | HF61: 0 | HG61: 0 | HH61: 0 | HI61: 0 | HJ61: 0 | HK61: 0 | HL61: 0 | HM61: 0 | HN61: 0 | HO61: 0 | HP61: 0 | HQ61: 0 | HR61: 0 | HS61: 0 | HT61: 0 | HU61: 0 | HV61: 0 | HW61: 0 | HX61: 0 | HY61: 0 | HZ61: 0 | IA61: 0 | IB61: 0 | IC61: 0 | ID61: 0 | IE61: 0 | IF61: 0 | IG61: 0 | IH61: 0 | II61: 0 | IJ61: 0 | IK61: 0 | IL61: 0 | IM61: 0 | IN61: 0 | IO61: 0 | IP61: 0 | IQ61: 0 | IR61: 0 | IS61: 0 | IT61: 0 | IU61: 0 | IV61: 0 | IW61: 0 | IX61: 0 | IY61: 0 | IZ61: 0 | JA61: 0 | JB61: 0 | JC61: 0 | JD61: 0 | JE61: 0 | JF61: 0 | JG61: 0 | JH61: 0 | JI61: 0 | JJ61: 0 | JK61: 0 | JL61: 0 | JM61: 0 | JN61: 0 | JO61: 0 | JP61: 0 | JQ61: 0 | JR61: 0 | JS61: 0 | JT61: 0 | JU61: 0 | JV61: 0 | JW61: 0 | JX61: 0 | JY61: 0 | JZ61: 0 | KA61: 0 | KB61: 0 | KC61: 0 | KD61: 0 | KE61: 0 | KF61: 0 | KG61: 0 | KH61: 0 | KI61: 0 | KJ61: 0 | KK61: 0 | KL61: 0 | KM61: 0 | KN61: 0 | KO61: 0 | KP61: 0 | KQ61: 0 | KR61: 0 | KS61: 0 | KT61: =COUNTIFS($B$10:$B$39,$B61,KU$10:KU$39,$C61) -> 0 | KU61: 0 | KV61: 0 | KW61: 0 | KX61: =COUNTIFS($B$10:$B$39,$B61,KY$10:KY$39,$C61) -> 0 | KY61: 0 | KZ61: 0 | LA61: 0 | LB61: =COUNTIFS($B$10:$B$39,$B61,LC$10:LC$39,$C61) -> 0 | LC61: 0 | LD61: 0 | LE61: 0 | LF61: =COUNTIFS($B$10:$B$39,$B61,LG$10:LG$39,$C61) -> 0 | LG61: 0 | LH61: 0 | LI61: 0 | LJ61: =COUNTIFS($B$10:$B$39,$B61,LK$10:LK$39,$C61) -> 0 | LK61: 0 | LL61: 0 | LM61: 0 | LN61: =COUNTIFS($B$10:$B$39,$B61,LO$10:LO$39,$C61) -> 0 | LO61: 0 | LP61: 0 | LQ61: 0 | LR61: =COUNTIFS($B$10:$B$39,$B61,LS$10:LS$39,$C61) -> 0 | LS61: 0 | LT61: 0 | LU61: 0 | LV61: =COUNTIFS($B$10:$B$39,$B61,LW$10:LW$39,$C61) -> 0 | LW61: 0 | LX61: 0 | LY61: 0 | LZ61: =COUNTIFS($B$10:$B$39,$B61,MA$10:MA$39,$C61) -> 0 | MA61: 0 | MB61: 0 | MC61: 0 | MD61: =COUNTIFS($B$10:$B$39,$B61,ME$10:ME$39,$C61) -> 0 | ME61: 0 | MF61: 0 | MG61: 0 | MH61: =COUNTIFS($B$10:$B$39,$B61,MI$10:MI$39,$C61) -> 0 | MI61: 0 | MJ61: 0 | MK61: 0 | ML61: =COUNTIFS($B$10:$B$39,$B61,MM$10:MM$39,$C61) -> 0 | MM61: 0 | MN61: 0 | MO61: 0 | MP61: =COUNTIFS($B$10:$B$39,$B61,MQ$10:MQ$39,$C61) -> 0 | MQ61: 0 | MR61: 0 | MS61: 0 | MT61: =COUNTIFS($B$10:$B$39,$B61,MU$10:MU$39,$C61) -> 0 | MU61: 0 | MV61: 0 | MW61: 0 | MX61: =COUNTIFS($B$10:$B$39,$B61,MY$10:MY$39,$C61) -> 0 | MY61: 0 | MZ61: 0 | NA61: 0 | NB61: =COUNTIFS($B$10:$B$39,$B61,NC$10:NC$39,$C61) -> 0 | NC61: 0 | ND61: 0 | NE61: 0 | NF61: =COUNTIFS($B$10:$B$39,$B61,NG$10:NG$39,$C61) -> 0 | NG61: 0 | NH61: 0 | NI61: 0 | NJ61: =COUNTIFS($B$10:$B$39,$B61,NK$10:NK$39,$C61) -> 0 | NK61: 0 | NL61: 0 | NM61: 0 | NN61: =COUNTIFS($B$10:$B$39,$B61,NO$10:NO$39,$C61) -> 0 | NO61: 0 | NP61: 0 | NQ61: 0 | NR61: =COUNTIFS($B$10:$B$39,$B61,NS$10:NS$39,$C61) -> 0 | NS61: 0 | NT61: 0 | NU61: 0 | NV61: =COUNTIFS($B$10:$B$39,$B61,NW$10:NW$39,$C61) -> 0 | NW61: 0 | NX61: 0 | NY61: 0 | NZ61: =COUNTIFS($B$10:$B$39,$B61,OA$10:OA$39,$C61) -> 0 | OA61: 0 | OB61: 0 | OC61: 0 | OD61: =COUNTIFS($B$10:$B$39,$B61,OE$10:OE$39,$C61) -> 0 | OE61: 0 | OF61: 0 | OG61: 0 | OH61: =COUNTIFS($B$10:$B$39,$B61,OI$10:OI$39,$C61) -> 0 | OI61: 0 | OJ61: 0 | OK61: 0 | OL61: =COUNTIFS($B$10:$B$39,$B61,OM$10:OM$39,$C61) -> 0 | OM61: 0 | ON61: 0 | OO61: 0 | OP61: =COUNTIFS($B$10:$B$39,$B61,OQ$10:OQ$39,$C61) -> 0 | OQ61: 0 | OR61: 0 | OS61: 0 | OT61: =COUNTIFS($B$10:$B$39,$B61,OU$10:OU$39,$C61) -> 0 | OU61: 0 | OV61: 0 | OW61: 0 | OX61: =COUNTIFS($B$10:$B$39,$B61,OY$10:OY$39,$C61) -> 0 | OY61: 0 | OZ61: 0 | PA61: 0 | PB61: =COUNTIFS($B$10:$B$39,$B61,PC$10:PC$39,$C61) -> 0 | PC61: 0 | PD61: 0 | PE61: 0 | PF61: =COUNTIFS($B$10:$B$39,$B61,PG$10:PG$39,$C61) -> 0 | PG61: 0 | PH61: 0 | PI61: 0 | PJ61: =COUNTIFS($B$10:$B$39,$B61,PK$10:PK$39,$C61) -> 0 | PK61: 0 | PL61: 0 | PM61: 0 | PN61: =COUNTIFS($B$10:$B$39,$B61,PO$10:PO$39,$C61) -> 0 | PO61: 0 | PP61: 0 | PQ61: 0 | PR61: =COUNTIFS($B$10:$B$39,$B61,PS$10:PS$39,$C61) -> 0 | PS61: 0 | PT61: 0 | PU61: 0 | PV61: =COUNTIFS($B$10:$B$39,$B61,PW$10:PW$39,$C61) -> 0 | PW61: 0 | PX61: 0 | PY61: 0 | PZ61: =COUNTIFS($B$10:$B$39,$B61,QA$10:QA$39,$C61) -> 0 | QA61: 0 | QB61: 0 | QC61: 0 | QD61: =COUNTIFS($B$10:$B$39,$B61,QE$10:QE$39,$C61) -> 0 | QE61: 0 | QF61: 0 | QG61: 0 | QH61: =COUNTIFS($B$10:$B$39,$B61,QI$10:QI$39,$C61) -> 0 | QI61: 0
B62: 2 | C62: 10 | D62: 0 | E62: 0 | F62: 0 | G62: 0 | H62: 0 | I62: 0 | J62: 0 | K62: 0 | L62: 0 | M62: 0 | N62: 0 | O62: 0 | P62: 0 | Q62: 0 | R62: 0 | S62: 0 | T62: 0 | U62: 0 | V62: 0 | W62: 0 | X62: 0 | Y62: 0 | Z62: 0 | AA62: 0 | AB62: 0 | AC62: 0 | AD62: 0 | AE62: 0 | AF62: 0 | AG62: 0 | AH62: 0 | AI62: 0 | AJ62: 0 | AK62: 0 | AL62: 0 | AM62: 0 | AN62: 0 | AO62: 0 | AP62: 0 | AQ62: 0 | AR62: 0 | AS62: 0 | AT62: 0 | AU62: 0 | AV62: 0 | AW62: 0 | AX62: 0 | AY62: 0 | AZ62: 0 | BA62: 0 | BB62: 0 | BC62: 0 | BD62: 0 | BE62: 0 | BF62: 0 | BG62: 0 | BH62: 0 | BI62: 0 | BJ62: 0 | BK62: 0 | BL62: 0 | BM62: 0 | BN62: 0 | BO62: 0 | BP62: 0 | BQ62: 0 | BR62: 0 | BS62: 0 | BT62: 0 | BU62: 0 | BV62: 0 | BW62: 0 | BX62: 0 | BY62: 0 | BZ62: 0 | CA62: 0 | CB62: 0 | CC62: 0 | CD62: 0 | CE62: 0 | CF62: 0 | CG62: 0 | CH62: 0 | CI62: 0 | CJ62: 0 | CK62: 0 | CL62: 0 | CM62: 0 | CN62: 0 | CO62: 0 | CP62: 0 | CQ62: 0 | CR62: 0 | CS62: 0 | CT62: 0 | CU62: 0 | CV62: 0 | CW62: 0 | CX62: 0 | CY62: 0 | CZ62: 0 | DA62: 0 | DB62: 0 | DC62: 0 | DD62: 0 | DE62: 0 | DF62: 0 | DG62: 0 | DH62: 0 | DI62: 0 | DJ62: 0 | DK62: 0 | DL62: 0 | DM62: 0 | DN62: 0 | DO62: 0 | DP62: 0 | DQ62: 0 | DR62: 0 | DS62: 0 | DT62: 0 | DU62: 0 | DV62: 0 | DW62: 0 | DX62: 0 | DY62: 0 | DZ62: 0 | EA62: 0 | EB62: 0 | EC62: 0 | ED62: 0 | EE62: 0 | EF62: 0 | EG62: 0 | EH62: 0 | EI62: 0 | EJ62: 0 | EK62: 0 | EL62: 0 | EM62: 0 | EN62: 0 | EO62: 0 | EP62: 0 | EQ62: 0 | ER62: 0 | ES62: 0 | ET62: 0 | EU62: 0 | EV62: 0 | EW62: 0 | EX62: 0 | EY62: 0 | EZ62: 0 | FA62: 0 | FB62: 0 | FC62: 0 | FD62: 0 | FE62: 0 | FF62: 0 | FG62: 0 | FH62: 0 | FI62: 0 | FJ62: 0 | FK62: 0 | FL62: 0 | FM62: 0 | FN62: 0 | FO62: 0 | FP62: 0 | FQ62: 0 | FR62: 0 | FS62: 0 | FT62: 0 | FU62: 0 | FV62: 0 | FW62: 0 | FX62: 0 | FY62: 0 | FZ62: 0 | GA62: 0 | GB62: 0 | GC62: 0 | GD62: 0 | GE62: 0 | GF62: 0 | GG62: 0 | GH62: 0 | GI62: 0 | GJ62: 0 | GK62: 0 | GL62: 0 | GM62: 0 | GN62: 0 | GO62: 0 | GP62: 0 | GQ62: 0 | GR62: 0 | GS62: 0 | GT62: 0 | GU62: 0 | GV62: 0 | GW62: 0 | GX62: 0 | GY62: 0 | GZ62: 0 | HA62: 0 | HB62: 0 | HC62: 0 | HD62: 0 | HE62: 0 | HF62: 0 | HG62: 0 | HH62: 0 | HI62: 0 | HJ62: 0 | HK62: 0 | HL62: 0 | HM62: 0 | HN62: 0 | HO62: 0 | HP62: 0 | HQ62: 0 | HR62: 0 | HS62: 0 | HT62: 0 | HU62: 0 | HV62: 0 | HW62: 0 | HX62: 0 | HY62: 0 | HZ62: 0 | IA62: 0 | IB62: 0 | IC62: 0 | ID62: 0 | IE62: 0 | IF62: 0 | IG62: 0 | IH62: 0 | II62: 0 | IJ62: 0 | IK62: 0 | IL62: 0 | IM62: 0 | IN62: 0 | IO62: 0 | IP62: 0 | IQ62: 0 | IR62: 0 | IS62: 0 | IT62: 0 | IU62: 0 | IV62: 0 | IW62: 0 | IX62: 0 | IY62: 0 | IZ62: 0 | JA62: 0 | JB62: 0 | JC62: 0 | JD62: 0 | JE62: 0 | JF62: 0 | JG62: 0 | JH62: 0 | JI62: 0 | JJ62: 0 | JK62: 0 | JL62: 0 | JM62: 0 | JN62: 0 | JO62: 0 | JP62: 0 | JQ62: 0 | JR62: 0 | JS62: 0 | JT62: 0 | JU62: 0 | JV62: 0 | JW62: 0 | JX62: 0 | JY62: 0 | JZ62: 0 | KA62: 0 | KB62: 0 | KC62: 0 | KD62: 0 | KE62: 0 | KF62: 0 | KG62: 0 | KH62: 0 | KI62: 0 | KJ62: 0 | KK62: 0 | KL62: 0 | KM62: 0 | KN62: 0 | KO62: 0 | KP62: 0 | KQ62: 0 | KR62: 0 | KS62: 0 | KT62: =COUNTIFS($B$10:$B$39,$B62,KU$10:KU$39,$C62) -> 0 | KU62: 0 | KV62: 0 | KW62: 0 | KX62: =COUNTIFS($B$10:$B$39,$B62,KY$10:KY$39,$C62) -> 0 | KY62: 0 | KZ62: 0 | LA62: 0 | LB62: =COUNTIFS($B$10:$B$39,$B62,LC$10:LC$39,$C62) -> 0 | LC62: 0 | LD62: 0 | LE62: 0 | LF62: =COUNTIFS($B$10:$B$39,$B62,LG$10:LG$39,$C62) -> 0 | LG62: 0 | LH62: 0 | LI62: 0 | LJ62: =COUNTIFS($B$10:$B$39,$B62,LK$10:LK$39,$C62) -> 0 | LK62: 0 | LL62: 0 | LM62: 0 | LN62: =COUNTIFS($B$10:$B$39,$B62,LO$10:LO$39,$C62) -> 0 | LO62: 0 | LP62: 0 | LQ62: 0 | LR62: =COUNTIFS($B$10:$B$39,$B62,LS$10:LS$39,$C62) -> 0 | LS62: 0 | LT62: 0 | LU62: 0 | LV62: =COUNTIFS($B$10:$B$39,$B62,LW$10:LW$39,$C62) -> 0 | LW62: 0 | LX62: 0 | LY62: 0 | LZ62: =COUNTIFS($B$10:$B$39,$B62,MA$10:MA$39,$C62) -> 0 | MA62: 0 | MB62: 0 | MC62: 0 | MD62: =COUNTIFS($B$10:$B$39,$B62,ME$10:ME$39,$C62) -> 0 | ME62: 0 | MF62: 0 | MG62: 0 | MH62: =COUNTIFS($B$10:$B$39,$B62,MI$10:MI$39,$C62) -> 0 | MI62: 0 | MJ62: 0 | MK62: 0 | ML62: =COUNTIFS($B$10:$B$39,$B62,MM$10:MM$39,$C62) -> 0 | MM62: 0 | MN62: 0 | MO62: 0 | MP62: =COUNTIFS($B$10:$B$39,$B62,MQ$10:MQ$39,$C62) -> 0 | MQ62: 0 | MR62: 0 | MS62: 0 | MT62: =COUNTIFS($B$10:$B$39,$B62,MU$10:MU$39,$C62) -> 0 | MU62: 0 | MV62: 0 | MW62: 0 | MX62: =COUNTIFS($B$10:$B$39,$B62,MY$10:MY$39,$C62) -> 0 | MY62: 0 | MZ62: 0 | NA62: 0 | NB62: =COUNTIFS($B$10:$B$39,$B62,NC$10:NC$39,$C62) -> 0 | NC62: 0 | ND62: 0 | NE62: 0 | NF62: =COUNTIFS($B$10:$B$39,$B62,NG$10:NG$39,$C62) -> 0 | NG62: 0 | NH62: 0 | NI62: 0 | NJ62: =COUNTIFS($B$10:$B$39,$B62,NK$10:NK$39,$C62) -> 0 | NK62: 0 | NL62: 0 | NM62: 0 | NN62: =COUNTIFS($B$10:$B$39,$B62,NO$10:NO$39,$C62) -> 0 | NO62: 0 | NP62: 0 | NQ62: 0 | NR62: =COUNTIFS($B$10:$B$39,$B62,NS$10:NS$39,$C62) -> 0 | NS62: 0 | NT62: 0 | NU62: 0 | NV62: =COUNTIFS($B$10:$B$39,$B62,NW$10:NW$39,$C62) -> 0 | NW62: 0 | NX62: 0 | NY62: 0 | NZ62: =COUNTIFS($B$10:$B$39,$B62,OA$10:OA$39,$C62) -> 0 | OA62: 0 | OB62: 0 | OC62: 0 | OD62: =COUNTIFS($B$10:$B$39,$B62,OE$10:OE$39,$C62) -> 0 | OE62: 0 | OF62: 0 | OG62: 0 | OH62: =COUNTIFS($B$10:$B$39,$B62,OI$10:OI$39,$C62) -> 0 | OI62: 0 | OJ62: 0 | OK62: 0 | OL62: =COUNTIFS($B$10:$B$39,$B62,OM$10:OM$39,$C62) -> 0 | OM62: 0 | ON62: 0 | OO62: 0 | OP62: =COUNTIFS($B$10:$B$39,$B62,OQ$10:OQ$39,$C62) -> 0 | OQ62: 0 | OR62: 0 | OS62: 0 | OT62: =COUNTIFS($B$10:$B$39,$B62,OU$10:OU$39,$C62) -> 0 | OU62: 0 | OV62: 0 | OW62: 0 | OX62: =COUNTIFS($B$10:$B$39,$B62,OY$10:OY$39,$C62) -> 0 | OY62: 0 | OZ62: 0 | PA62: 0 | PB62: =COUNTIFS($B$10:$B$39,$B62,PC$10:PC$39,$C62) -> 0 | PC62: 0 | PD62: 0 | PE62: 0 | PF62: =COUNTIFS($B$10:$B$39,$B62,PG$10:PG$39,$C62) -> 0 | PG62: 0 | PH62: 0 | PI62: 0 | PJ62: =COUNTIFS($B$10:$B$39,$B62,PK$10:PK$39,$C62) -> 0 | PK62: 0 | PL62: 0 | PM62: 0 | PN62: =COUNTIFS($B$10:$B$39,$B62,PO$10:PO$39,$C62) -> 0 | PO62: 0 | PP62: 0 | PQ62: 0 | PR62: =COUNTIFS($B$10:$B$39,$B62,PS$10:PS$39,$C62) -> 0 | PS62: 0 | PT62: 0 | PU62: 0 | PV62: =COUNTIFS($B$10:$B$39,$B62,PW$10:PW$39,$C62) -> 0 | PW62: 0 | PX62: 0 | PY62: 0 | PZ62: =COUNTIFS($B$10:$B$39,$B62,QA$10:QA$39,$C62) -> 0 | QA62: 0 | QB62: 0 | QC62: 0 | QD62: =COUNTIFS($B$10:$B$39,$B62,QE$10:QE$39,$C62) -> 0 | QE62: 0 | QF62: 0 | QG62: 0 | QH62: =COUNTIFS($B$10:$B$39,$B62,QI$10:QI$39,$C62) -> 0 | QI62: 0
B63: 3 | C63: 1 | D63: 0 | E63: 0 | F63: 0 | G63: 0 | H63: 0 | I63: 0 | J63: 0 | K63: 0 | L63: 0 | M63: 0 | N63: 0 | O63: 0 | P63: 0 | Q63: 0 | R63: 0 | S63: 0 | T63: 0 | U63: 0 | V63: 0 | W63: 0 | X63: 0 | Y63: 0 | Z63: 0 | AA63: 0 | AB63: 0 | AC63: 0 | AD63: 0 | AE63: 0 | AF63: 0 | AG63: 0 | AH63: 0 | AI63: 0 | AJ63: 0 | AK63: 0 | AL63: 0 | AM63: 0 | AN63: 0 | AO63: 0 | AP63: 0 | AQ63: 0 | AR63: 0 | AS63: 0 | AT63: 0 | AU63: 0 | AV63: 0 | AW63: 0 | AX63: 0 | AY63: 0 | AZ63: 0 | BA63: 0 | BB63: 0 | BC63: 0 | BD63: 0 | BE63: 0 | BF63: 0 | BG63: 0 | BH63: 0 | BI63: 0 | BJ63: 0 | BK63: 0 | BL63: 0 | BM63: 0 | BN63: 0 | BO63: 0 | BP63: 0 | BQ63: 0 | BR63: 0 | BS63: 0 | BT63: 0 | BU63: 0 | BV63: 0 | BW63: 0 | BX63: 0 | BY63: 0 | BZ63: 0 | CA63: 0 | CB63: 0 | CC63: 0 | CD63: 0 | CE63: 0 | CF63: 0 | CG63: 0 | CH63: 0 | CI63: 0 | CJ63: 0 | CK63: 0 | CL63: 0 | CM63: 0 | CN63: 0 | CO63: 0 | CP63: 0 | CQ63: 0 | CR63: 0 | CS63: 0 | CT63: 0 | CU63: 0 | CV63: 0 | CW63: 0 | CX63: 0 | CY63: 0 | CZ63: 0 | DA63: 0 | DB63: 0 | DC63: 0 | DD63: 0 | DE63: 0 | DF63: 0 | DG63: 0 | DH63: 0 | DI63: 0 | DJ63: 0 | DK63: 0 | DL63: 0 | DM63: 0 | DN63: 0 | DO63: 0 | DP63: 0 | DQ63: 0 | DR63: 0 | DS63: 0 | DT63: 0 | DU63: 0 | DV63: 0 | DW63: 0 | DX63: 0 | DY63: 0 | DZ63: 0 | EA63: 0 | EB63: 0 | EC63: 0 | ED63: 0 | EE63: 0 | EF63: 0 | EG63: 0 | EH63: 0 | EI63: 0 | EJ63: 0 | EK63: 0 | EL63: 0 | EM63: 0 | EN63: 0 | EO63: 0 | EP63: 0 | EQ63: 0 | ER63: 0 | ES63: 0 | ET63: 0 | EU63: 0 | EV63: 0 | EW63: 0 | EX63: 0 | EY63: 0 | EZ63: 0 | FA63: 0 | FB63: 0 | FC63: 0 | FD63: 0 | FE63: 0 | FF63: 0 | FG63: 0 | FH63: 0 | FI63: 0 | FJ63: 0 | FK63: 0 | FL63: 0 | FM63: 0 | FN63: 0 | FO63: 0 | FP63: 0 | FQ63: 0 | FR63: 0 | FS63: 0 | FT63: 0 | FU63: 0 | FV63: 0 | FW63: 0 | FX63: 0 | FY63: 0 | FZ63: 0 | GA63: 0 | GB63: 0 | GC63: 0 | GD63: 0 | GE63: 0 | GF63: 0 | GG63: 0 | GH63: 0 | GI63: 0 | GJ63: 0 | GK63: 0 | GL63: 0 | GM63: 0 | GN63: 0 | GO63: 0 | GP63: 0 | GQ63: 0 | GR63: 0 | GS63: 0 | GT63: 0 | GU63: 0 | GV63: 0 | GW63: 0 | GX63: 0 | GY63: 0 | GZ63: 0 | HA63: 0 | HB63: 0 | HC63: 0 | HD63: 0 | HE63: 0 | HF63: 0 | HG63: 0 | HH63: 0 | HI63: 0 | HJ63: 0 | HK63: 0 | HL63: 0 | HM63: 0 | HN63: 0 | HO63: 0 | HP63: 0 | HQ63: 0 | HR63: 0 | HS63: 0 | HT63: 0 | HU63: 0 | HV63: 0 | HW63: 0 | HX63: 0 | HY63: 0 | HZ63: 0 | IA63: 0 | IB63: 0 | IC63: 0 | ID63: 0 | IE63: 0 | IF63: 0 | IG63: 0 | IH63: 0 | II63: 0 | IJ63: 0 | IK63: 0 | IL63: 0 | IM63: 0 | IN63: 0 | IO63: 0 | IP63: 0 | IQ63: 0 | IR63: 0 | IS63: 0 | IT63: 0 | IU63: 0 | IV63: 0 | IW63: 0 | IX63: 0 | IY63: 0 | IZ63: 0 | JA63: 0 | JB63: 0 | JC63: 0 | JD63: 0 | JE63: 0 | JF63: 0 | JG63: 0 | JH63: 0 | JI63: 0 | JJ63: 0 | JK63: 0 | JL63: 0 | JM63: 0 | JN63: 0 | JO63: 0 | JP63: 0 | JQ63: 0 | JR63: 0 | JS63: 0 | JT63: 0 | JU63: 0 | JV63: 0 | JW63: 0 | JX63: 0 | JY63: 0 | JZ63: 0 | KA63: 0 | KB63: 0 | KC63: 0 | KD63: 0 | KE63: 0 | KF63: 0 | KG63: 0 | KH63: 0 | KI63: 0 | KJ63: 0 | KK63: 0 | KL63: 0 | KM63: 0 | KN63: 0 | KO63: 0 | KP63: 0 | KQ63: 0 | KR63: 0 | KS63: 0 | KT63: =COUNTIFS($B$10:$B$39,$B63,KU$10:KU$39,$C63) -> 0 | KU63: 0 | KV63: 0 | KW63: 0 | KX63: =COUNTIFS($B$10:$B$39,$B63,KY$10:KY$39,$C63) -> 0 | KY63: 0 | KZ63: 0 | LA63: 0 | LB63: =COUNTIFS($B$10:$B$39,$B63,LC$10:LC$39,$C63) -> 0 | LC63: 0 | LD63: 0 | LE63: 0 | LF63: =COUNTIFS($B$10:$B$39,$B63,LG$10:LG$39,$C63) -> 0 | LG63: 0 | LH63: 0 | LI63: 0 | LJ63: =COUNTIFS($B$10:$B$39,$B63,LK$10:LK$39,$C63) -> 0 | LK63: 0 | LL63: 0 | LM63: 0 | LN63: =COUNTIFS($B$10:$B$39,$B63,LO$10:LO$39,$C63) -> 0 | LO63: 0 | LP63: 0 | LQ63: 0 | LR63: =COUNTIFS($B$10:$B$39,$B63,LS$10:LS$39,$C63) -> 0 | LS63: 0 | LT63: 0 | LU63: 0 | LV63: =COUNTIFS($B$10:$B$39,$B63,LW$10:LW$39,$C63) -> 0 | LW63: 0 | LX63: 0 | LY63: 0 | LZ63: =COUNTIFS($B$10:$B$39,$B63,MA$10:MA$39,$C63) -> 0 | MA63: 0 | MB63: 0 | MC63: 0 | MD63: =COUNTIFS($B$10:$B$39,$B63,ME$10:ME$39,$C63) -> 0 | ME63: 0 | MF63: 0 | MG63: 0 | MH63: =COUNTIFS($B$10:$B$39,$B63,MI$10:MI$39,$C63) -> 0 | MI63: 0 | MJ63: 0 | MK63: 0 | ML63: =COUNTIFS($B$10:$B$39,$B63,MM$10:MM$39,$C63) -> 0 | MM63: 0 | MN63: 0 | MO63: 0 | MP63: =COUNTIFS($B$10:$B$39,$B63,MQ$10:MQ$39,$C63) -> 0 | MQ63: 0 | MR63: 0 | MS63: 0 | MT63: =COUNTIFS($B$10:$B$39,$B63,MU$10:MU$39,$C63) -> 0 | MU63: 0 | MV63: 0 | MW63: 0 | MX63: =COUNTIFS($B$10:$B$39,$B63,MY$10:MY$39,$C63) -> 0 | MY63: 0 | MZ63: 0 | NA63: 0 | NB63: =COUNTIFS($B$10:$B$39,$B63,NC$10:NC$39,$C63) -> 0 | NC63: 0 | ND63: 0 | NE63: 0 | NF63: =COUNTIFS($B$10:$B$39,$B63,NG$10:NG$39,$C63) -> 0 | NG63: 0 | NH63: 0 | NI63: 0 | NJ63: =COUNTIFS($B$10:$B$39,$B63,NK$10:NK$39,$C63) -> 0 | NK63: 0 | NL63: 0 | NM63: 0 | NN63: =COUNTIFS($B$10:$B$39,$B63,NO$10:NO$39,$C63) -> 0 | NO63: 0 | NP63: 0 | NQ63: 0 | NR63: =COUNTIFS($B$10:$B$39,$B63,NS$10:NS$39,$C63) -> 0 | NS63: 0 | NT63: 0 | NU63: 0 | NV63: =COUNTIFS($B$10:$B$39,$B63,NW$10:NW$39,$C63) -> 0 | NW63: 0 | NX63: 0 | NY63: 0 | NZ63: =COUNTIFS($B$10:$B$39,$B63,OA$10:OA$39,$C63) -> 0 | OA63: 0 | OB63: 0 | OC63: 0 | OD63: =COUNTIFS($B$10:$B$39,$B63,OE$10:OE$39,$C63) -> 0 | OE63: 0 | OF63: 0 | OG63: 0 | OH63: =COUNTIFS($B$10:$B$39,$B63,OI$10:OI$39,$C63) -> 0 | OI63: 0 | OJ63: 0 | OK63: 0 | OL63: =COUNTIFS($B$10:$B$39,$B63,OM$10:OM$39,$C63) -> 0 | OM63: 0 | ON63: 0 | OO63: 0 | OP63: =COUNTIFS($B$10:$B$39,$B63,OQ$10:OQ$39,$C63) -> 0 | OQ63: 0 | OR63: 0 | OS63: 0 | OT63: =COUNTIFS($B$10:$B$39,$B63,OU$10:OU$39,$C63) -> 0 | OU63: 0 | OV63: 0 | OW63: 0 | OX63: =COUNTIFS($B$10:$B$39,$B63,OY$10:OY$39,$C63) -> 0 | OY63: 0 | OZ63: 0 | PA63: 0 | PB63: =COUNTIFS($B$10:$B$39,$B63,PC$10:PC$39,$C63) -> 0 | PC63: 0 | PD63: 0 | PE63: 0 | PF63: =COUNTIFS($B$10:$B$39,$B63,PG$10:PG$39,$C63) -> 0 | PG63: 0 | PH63: 0 | PI63: 0 | PJ63: =COUNTIFS($B$10:$B$39,$B63,PK$10:PK$39,$C63) -> 0 | PK63: 0 | PL63: 0 | PM63: 0 | PN63: =COUNTIFS($B$10:$B$39,$B63,PO$10:PO$39,$C63) -> 0 | PO63: 0 | PP63: 0 | PQ63: 0 | PR63: =COUNTIFS($B$10:$B$39,$B63,PS$10:PS$39,$C63) -> 0 | PS63: 0 | PT63: 0 | PU63: 0 | PV63: =COUNTIFS($B$10:$B$39,$B63,PW$10:PW$39,$C63) -> 0 | PW63: 0 | PX63: 0 | PY63: 0 | PZ63: =COUNTIFS($B$10:$B$39,$B63,QA$10:QA$39,$C63) -> 0 | QA63: 0 | QB63: 0 | QC63: 0 | QD63: =COUNTIFS($B$10:$B$39,$B63,QE$10:QE$39,$C63) -> 0 | QE63: 0 | QF63: 0 | QG63: 0 | QH63: =COUNTIFS($B$10:$B$39,$B63,QI$10:QI$39,$C63) -> 0 | QI63: 0
B64: 3 | C64: 2 | D64: 0 | E64: 0 | F64: 0 | G64: 0 | H64: 2 | I64: 0 | J64: 1 | K64: 2 | L64: 4 | M64: 0 | N64: 2 | O64: 2 | P64: 0 | Q64: 0 | R64: 0 | S64: 0 | T64: 0 | U64: 0 | V64: 0 | W64: 0 | X64: 0 | Y64: 0 | Z64: 0 | AA64: 0 | AB64: 0 | AC64: 0 | AD64: 0 | AE64: 0 | AF64: 0 | AG64: 0 | AH64: 0 | AI64: 0 | AJ64: 0 | AK64: 0 | AL64: 0 | AM64: 0 | AN64: 0 | AO64: 0 | AP64: 0 | AQ64: 0 | AR64: 0 | AS64: 0 | AT64: 0 | AU64: 0 | AV64: 0 | AW64: 0 | AX64: 0 | AY64: 0 | AZ64: 0 | BA64: 0 | BB64: 0 | BC64: 0 | BD64: 0 | BE64: 0 | BF64: 0 | BG64: 0 | BH64: 0 | BI64: 0 | BJ64: 0 | BK64: 0 | BL64: 0 | BM64: 0 | BN64: 0 | BO64: 0 | BP64: 0 | BQ64: 0 | BR64: 0 | BS64: 0 | BT64: 0 | BU64: 0 | BV64: 0 | BW64: 0 | BX64: 0 | BY64: 0 | BZ64: 0 | CA64: 0 | CB64: 0 | CC64: 0 | CD64: 0 | CE64: 0 | CF64: 0 | CG64: 0 | CH64: 0 | CI64: 0 | CJ64: 0 | CK64: 0 | CL64: 0 | CM64: 0 | CN64: 0 | CO64: 0 | CP64: 0 | CQ64: 0 | CR64: 0 | CS64: 0 | CT64: 0 | CU64: 0 | CV64: 0 | CW64: 0 | CX64: 0 | CY64: 0 | CZ64: 0 | DA64: 0 | DB64: 0 | DC64: 0 | DD64: 0 | DE64: 0 | DF64: 0 | DG64: 0 | DH64: 0 | DI64: 0 | DJ64: 0 | DK64: 0 | DL64: 0 | DM64: 0 | DN64: 0 | DO64: 0 | DP64: 0 | DQ64: 0 | DR64: 0 | DS64: 0 | DT64: 12 | DU64: 0 | DV64: 6 | DW64: 2 | DX64: 0 | DY64: 0 | DZ64: 0 | EA64: 0 | EB64: 0 | EC64: 0 | ED64: 0 | EE64: 0 | EF64: 0 | EG64: 0 | EH64: 0 | EI64: 0 | EJ64: 0 | EK64: 0 | EL64: 0 | EM64: 0 | EN64: 0 | EO64: 0 | EP64: 0 | EQ64: 0 | ER64: 0 | ES64: 0 | ET64: 0 | EU64: 0 | EV64: 0 | EW64: 0 | EX64: 0 | EY64: 0 | EZ64: 0 | FA64: 0 | FB64: 0 | FC64: 0 | FD64: 0 | FE64: 0 | FF64: 0 | FG64: 0 | FH64: 0 | FI64: 0 | FJ64: 0 | FK64: 0 | FL64: 0 | FM64: 0 | FN64: 0 | FO64: 0 | FP64: 0 | FQ64: 0 | FR64: 0 | FS64: 0 | FT64: 0 | FU64: 0 | FV64: 0 | FW64: 0 | FX64: 3 | FY64: 0 | FZ64: 1 | GA64: 3 | GB64: 7 | GC64: 0 | GD64: 3 | GE64: 2.333333333 | GF64: 0 | GG64: 0 | GH64: 0 | GI64: 0 | GJ64: 0 | GK64: 0 | GL64: 0 | GM64: 0 | GN64: 0 | GO64: 0 | GP64: 0 | GQ64: 0 | GR64: 2 | GS64: 0 | GT64: 1 | GU64: 2 | GV64: 5 | GW64: 0 | GX64: 2 | GY64: 2.5 | GZ64: 0 | HA64: 0 | HB64: 0 | HC64: 0 | HD64: 0 | HE64: 0 | HF64: 0 | HG64: 0 | HH64: 0 | HI64: 0 | HJ64: 0 | HK64: 0 | HL64: 0 | HM64: 0 | HN64: 0 | HO64: 0 | HP64: 0 | HQ64: 0 | HR64: 0 | HS64: 0 | HT64: 9 | HU64: 0 | HV64: 3 | HW64: 3 | HX64: 0 | HY64: 0 | HZ64: 0 | IA64: 0 | IB64: 0 | IC64: 0 | ID64: 0 | IE64: 0 | IF64: 0 | IG64: 0 | IH64: 0 | II64: 0 | IJ64: 0 | IK64: 0 | IL64: 0 | IM64: 0 | IN64: 0 | IO64: 0 | IP64: 0 | IQ64: 0 | IR64: 0 | IS64: 0 | IT64: 0 | IU64: 0 | IV64: 0 | IW64: 0 | IX64: 0 | IY64: 0 | IZ64: 9 | JA64: 0 | JB64: 3 | JC64: 3 | JD64: 0 | JE64: 0 | JF64: 0 | JG64: 0 | JH64: 0 | JI64: 0 | JJ64: 0 | JK64: 0 | JL64: 0 | JM64: 0 | JN64: 0 | JO64: 0 | JP64: 0 | JQ64: 0 | JR64: 0 | JS64: 0 | JT64: 0 | JU64: 0 | JV64: 0 | JW64: 0 | JX64: 0 | JY64: 0 | JZ64: 0 | KA64: 0 | KB64: 0 | KC64: 0 | KD64: 0 | KE64: 0 | KF64: 0 | KG64: 0 | KH64: 0 | KI64: 0 | KJ64: 0 | KK64: 0 | KL64: 0 | KM64: 0 | KN64: 0 | KO64: 0 | KP64: 0 | KQ64: 0 | KR64: 0 | KS64: 0 | KT64: =COUNTIFS($B$10:$B$39,$B64,KU$10:KU$39,$C64) -> 0 | KU64: 0 | KV64: 0 | KW64: 0 | KX64: =COUNTIFS($B$10:$B$39,$B64,KY$10:KY$39,$C64) -> 0 | KY64: 0 | KZ64: 0 | LA64: 0 | LB64: =COUNTIFS($B$10:$B$39,$B64,LC$10:LC$39,$C64) -> 0 | LC64: 0 | LD64: 0 | LE64: 0 | LF64: =COUNTIFS($B$10:$B$39,$B64,LG$10:LG$39,$C64) -> 0 | LG64: 0 | LH64: 0 | LI64: 0 | LJ64: =COUNTIFS($B$10:$B$39,$B64,LK$10:LK$39,$C64) -> 0 | LK64: 0 | LL64: 0 | LM64: 0 | LN64: =COUNTIFS($B$10:$B$39,$B64,LO$10:LO$39,$C64) -> 0 | LO64: 0 | LP64: 0 | LQ64: 0 | LR64: =COUNTIFS($B$10:$B$39,$B64,LS$10:LS$39,$C64) -> 0 | LS64: 0 | LT64: 0 | LU64: 0 | LV64: =COUNTIFS($B$10:$B$39,$B64,LW$10:LW$39,$C64) -> 0 | LW64: 0 | LX64: 0 | LY64: 0 | LZ64: =COUNTIFS($B$10:$B$39,$B64,MA$10:MA$39,$C64) -> 0 | MA64: 0 | MB64: 6 | MC64: 0 | MD64: =COUNTIFS($B$10:$B$39,$B64,ME$10:ME$39,$C64) -> 3 | ME64: 2 | MF64: 6 | MG64: 0 | MH64: =COUNTIFS($B$10:$B$39,$B64,MI$10:MI$39,$C64) -> 3 | MI64: 2 | MJ64: 0 | MK64: 0 | ML64: =COUNTIFS($B$10:$B$39,$B64,MM$10:MM$39,$C64) -> 0 | MM64: 0 | MN64: 0 | MO64: 0 | MP64: =COUNTIFS($B$10:$B$39,$B64,MQ$10:MQ$39,$C64) -> 0 | MQ64: 0 | MR64: 0 | MS64: 0 | MT64: =COUNTIFS($B$10:$B$39,$B64,MU$10:MU$39,$C64) -> 0 | MU64: 0 | MV64: 0 | MW64: 0 | MX64: =COUNTIFS($B$10:$B$39,$B64,MY$10:MY$39,$C64) -> 0 | MY64: 0 | MZ64: 0 | NA64: 0 | NB64: =COUNTIFS($B$10:$B$39,$B64,NC$10:NC$39,$C64) -> 0 | NC64: 0 | ND64: 0 | NE64: 0 | NF64: =COUNTIFS($B$10:$B$39,$B64,NG$10:NG$39,$C64) -> 0 | NG64: 0 | NH64: 0 | NI64: 0 | NJ64: =COUNTIFS($B$10:$B$39,$B64,NK$10:NK$39,$C64) -> 0 | NK64: 0 | NL64: 0 | NM64: 0 | NN64: =COUNTIFS($B$10:$B$39,$B64,NO$10:NO$39,$C64) -> 0 | NO64: 0 | NP64: 0 | NQ64: 0 | NR64: =COUNTIFS($B$10:$B$39,$B64,NS$10:NS$39,$C64) -> 0 | NS64: 0 | NT64: 0 | NU64: 0 | NV64: =COUNTIFS($B$10:$B$39,$B64,NW$10:NW$39,$C64) -> 0 | NW64: 0 | NX64: 0 | NY64: 0 | NZ64: =COUNTIFS($B$10:$B$39,$B64,OA$10:OA$39,$C64) -> 0 | OA64: 0 | OB64: 0 | OC64: 0 | OD64: =COUNTIFS($B$10:$B$39,$B64,OE$10:OE$39,$C64) -> 0 | OE64: 0 | OF64: 0 | OG64: 0 | OH64: =COUNTIFS($B$10:$B$39,$B64,OI$10:OI$39,$C64) -> 0 | OI64: 0 | OJ64: 0 | OK64: 0 | OL64: =COUNTIFS($B$10:$B$39,$B64,OM$10:OM$39,$C64) -> 0 | OM64: 0 | ON64: 0 | OO64: 0 | OP64: =COUNTIFS($B$10:$B$39,$B64,OQ$10:OQ$39,$C64) -> 0 | OQ64: 0 | OR64: 0 | OS64: 0 | OT64: =COUNTIFS($B$10:$B$39,$B64,OU$10:OU$39,$C64) -> 0 | OU64: 0 | OV64: 0 | OW64: 0 | OX64: =COUNTIFS($B$10:$B$39,$B64,OY$10:OY$39,$C64) -> 0 | OY64: 0 | OZ64: 0 | PA64: 0 | PB64: =COUNTIFS($B$10:$B$39,$B64,PC$10:PC$39,$C64) -> 0 | PC64: 0 | PD64: 0 | PE64: 0 | PF64: =COUNTIFS($B$10:$B$39,$B64,PG$10:PG$39,$C64) -> 0 | PG64: 0 | PH64: 0 | PI64: 0 | PJ64: =COUNTIFS($B$10:$B$39,$B64,PK$10:PK$39,$C64) -> 0 | PK64: 0 | PL64: 0 | PM64: 0 | PN64: =COUNTIFS($B$10:$B$39,$B64,PO$10:PO$39,$C64) -> 0 | PO64: 0 | PP64: 0 | PQ64: 0 | PR64: =COUNTIFS($B$10:$B$39,$B64,PS$10:PS$39,$C64) -> 0 | PS64: 0 | PT64: 0 | PU64: 0 | PV64: =COUNTIFS($B$10:$B$39,$B64,PW$10:PW$39,$C64) -> 0 | PW64: 0 | PX64: 0 | PY64: 0 | PZ64: =COUNTIFS($B$10:$B$39,$B64,QA$10:QA$39,$C64) -> 0 | QA64: 0 | QB64: 0 | QC64: 0 | QD64: =COUNTIFS($B$10:$B$39,$B64,QE$10:QE$39,$C64) -> 0 | QE64: 0 | QF64: 0 | QG64: 0 | QH64: =COUNTIFS($B$10:$B$39,$B64,QI$10:QI$39,$C64) -> 0 | QI64: 0
B65: 3 | C65: 3 | D65: 0 | E65: 0 | F65: 0 | G65: 0 | H65: 0 | I65: 0 | J65: 0 | K65: 0 | L65: 0 | M65: 0 | N65: 0 | O65: 0 | P65: 0 | Q65: 0 | R65: 0 | S65: 0 | T65: 0 | U65: 0 | V65: 0 | W65: 0 | X65: 0 | Y65: 0 | Z65: 0 | AA65: 0 | AB65: 0 | AC65: 0 | AD65: 0 | AE65: 0 | AF65: 0 | AG65: 0 | AH65: 0 | AI65: 0 | AJ65: 0 | AK65: 0 | AL65: 0 | AM65: 0 | AN65: 0 | AO65: 0 | AP65: 0 | AQ65: 0 | AR65: 0 | AS65: 0 | AT65: 0 | AU65: 0 | AV65: 0 | AW65: 0 | AX65: 0 | AY65: 0 | AZ65: 0 | BA65: 0 | BB65: 0 | BC65: 0 | BD65: 0 | BE65: 0 | BF65: 0 | BG65: 0 | BH65: 0 | BI65: 0 | BJ65: 0 | BK65: 0 | BL65: 0 | BM65: 0 | BN65: 0 | BO65: 0 | BP65: 0 | BQ65: 0 | BR65: 0 | BS65: 0 | BT65: 0 | BU65: 0 | BV65: 0 | BW65: 0 | BX65: 0 | BY65: 0 | BZ65: 0 | CA65: 0 | CB65: 0 | CC65: 0 | CD65: 0 | CE65: 0 | CF65: 0 | CG65: 0 | CH65: 0 | CI65: 0 | CJ65: 0 | CK65: 0 | CL65: 0 | CM65: 0 | CN65: 0 | CO65: 0 | CP65: 0 | CQ65: 0 | CR65: 0 | CS65: 0 | CT65: 0 | CU65: 0 | CV65: 0 | CW65: 0 | CX65: 0 | CY65: 0 | CZ65: 0 | DA65: 0 | DB65: 0 | DC65: 0 | DD65: 0 | DE65: 0 | DF65: 0 | DG65: 0 | DH65: 0 | DI65: 0 | DJ65: 0 | DK65: 0 | DL65: 0 | DM65: 0 | DN65: 0 | DO65: 0 | DP65: 0 | DQ65: 0 | DR65: 0 | DS65: 0 | DT65: 0 | DU65: 0 | DV65: 0 | DW65: 0 | DX65: 0 | DY65: 0 | DZ65: 0 | EA65: 0 | EB65: 0 | EC65: 0 | ED65: 0 | EE65: 0 | EF65: 0 | EG65: 0 | EH65: 0 | EI65: 0 | EJ65: 0 | EK65: 0 | EL65: 0 | EM65: 0 | EN65: 3 | EO65: 0 | EP65: 1 | EQ65: 3 | ER65: 6 | ES65: 0 | ET65: 2 | EU65: 3 | EV65: 0 | EW65: 0 | EX65: 0 | EY65: 0 | EZ65: 0 | FA65: 0 | FB65: 0 | FC65: 0 | FD65: 0 | FE65: 0 | FF65: 0 | FG65: 0 | FH65: 0 | FI65: 0 | FJ65: 0 | FK65: 0 | FL65: 0 | FM65: 0 | FN65: 0 | FO65: 0 | FP65: 0 | FQ65: 0 | FR65: 0 | FS65: 0 | FT65: 0 | FU65: 0 | FV65: 0 | FW65: 0 | FX65: 0 | FY65: 0 | FZ65: 0 | GA65: 0 | GB65: 0 | GC65: 0 | GD65: 0 | GE65: 0 | GF65: 0 | GG65: 0 | GH65: 0 | GI65: 0 | GJ65: 0 | GK65: 0 | GL65: 0 | GM65: 0 | GN65: 0 | GO65: 0 | GP65: 0 | GQ65: 0 | GR65: 0 | GS65: 0 | GT65: 0 | GU65: 0 | GV65: 0 | GW65: 0 | GX65: 0 | GY65: 0 | GZ65: 0 | HA65: 0 | HB65: 0 | HC65: 0 | HD65: 0 | HE65: 0 | HF65: 0 | HG65: 0 | HH65: 0 | HI65: 0 | HJ65: 0 | HK65: 0 | HL65: 0 | HM65: 0 | HN65: 0 | HO65: 0 | HP65: 0 | HQ65: 0 | HR65: 0 | HS65: 0 | HT65: 4 | HU65: 0 | HV65: 1 | HW65: 4 | HX65: 4 | HY65: 0 | HZ65: 1 | IA65: 4 | IB65: 0 | IC65: 0 | ID65: 0 | IE65: 0 | IF65: 0 | IG65: 0 | IH65: 0 | II65: 0 | IJ65: 0 | IK65: 0 | IL65: 0 | IM65: 0 | IN65: 0 | IO65: 0 | IP65: 0 | IQ65: 0 | IR65: 0 | IS65: 0 | IT65: 0 | IU65: 0 | IV65: 0 | IW65: 0 | IX65: 0 | IY65: 0 | IZ65: 0 | JA65: 0 | JB65: 0 | JC65: 0 | JD65: 0 | JE65: 0 | JF65: 0 | JG65: 0 | JH65: 8 | JI65: 0 | JJ65: 2 | JK65: 4 | JL65: 0 | JM65: 0 | JN65: 0 | JO65: 0 | JP65: 0 | JQ65: 0 | JR65: 0 | JS65: 0 | JT65: 0 | JU65: 0 | JV65: 0 | JW65: 0 | JX65: 0 | JY65: 0 | JZ65: 0 | KA65: 0 | KB65: 0 | KC65: 0 | KD65: 0 | KE65: 0 | KF65: 0 | KG65: 0 | KH65: 0 | KI65: 0 | KJ65: 0 | KK65: 0 | KL65: 0 | KM65: 0 | KN65: 0 | KO65: 0 | KP65: 0 | KQ65: 0 | KR65: 0 | KS65: 0 | KT65: =COUNTIFS($B$10:$B$39,$B65,KU$10:KU$39,$C65) -> 0 | KU65: 0 | KV65: 0 | KW65: 0 | KX65: =COUNTIFS($B$10:$B$39,$B65,KY$10:KY$39,$C65) -> 0 | KY65: 0 | KZ65: 0 | LA65: 0 | LB65: =COUNTIFS($B$10:$B$39,$B65,LC$10:LC$39,$C65) -> 0 | LC65: 0 | LD65: 0 | LE65: 0 | LF65: =COUNTIFS($B$10:$B$39,$B65,LG$10:LG$39,$C65) -> 0 | LG65: 0 | LH65: 0 | LI65: 0 | LJ65: =COUNTIFS($B$10:$B$39,$B65,LK$10:LK$39,$C65) -> 0 | LK65: 0 | LL65: 0 | LM65: 0 | LN65: =COUNTIFS($B$10:$B$39,$B65,LO$10:LO$39,$C65) -> 0 | LO65: 0 | LP65: 0 | LQ65: 0 | LR65: =COUNTIFS($B$10:$B$39,$B65,LS$10:LS$39,$C65) -> 0 | LS65: 0 | LT65: 0 | LU65: 0 | LV65: =COUNTIFS($B$10:$B$39,$B65,LW$10:LW$39,$C65) -> 0 | LW65: 0 | LX65: 0 | LY65: 0 | LZ65: =COUNTIFS($B$10:$B$39,$B65,MA$10:MA$39,$C65) -> 0 | MA65: 0 | MB65: 0 | MC65: 0 | MD65: =COUNTIFS($B$10:$B$39,$B65,ME$10:ME$39,$C65) -> 0 | ME65: 0 | MF65: 0 | MG65: 0 | MH65: =COUNTIFS($B$10:$B$39,$B65,MI$10:MI$39,$C65) -> 0 | MI65: 0 | MJ65: 0 | MK65: 0 | ML65: =COUNTIFS($B$10:$B$39,$B65,MM$10:MM$39,$C65) -> 0 | MM65: 0 | MN65: 0 | MO65: 0 | MP65: =COUNTIFS($B$10:$B$39,$B65,MQ$10:MQ$39,$C65) -> 0 | MQ65: 0 | MR65: 0 | MS65: 0 | MT65: =COUNTIFS($B$10:$B$39,$B65,MU$10:MU$39,$C65) -> 0 | MU65: 0 | MV65: 0 | MW65: 0 | MX65: =COUNTIFS($B$10:$B$39,$B65,MY$10:MY$39,$C65) -> 0 | MY65: 0 | MZ65: 0 | NA65: 0 | NB65: =COUNTIFS($B$10:$B$39,$B65,NC$10:NC$39,$C65) -> 0 | NC65: 0 | ND65: 0 | NE65: 0 | NF65: =COUNTIFS($B$10:$B$39,$B65,NG$10:NG$39,$C65) -> 0 | NG65: 0 | NH65: 0 | NI65: 0 | NJ65: =COUNTIFS($B$10:$B$39,$B65,NK$10:NK$39,$C65) -> 0 | NK65: 0 | NL65: 0 | NM65: 0 | NN65: =COUNTIFS($B$10:$B$39,$B65,NO$10:NO$39,$C65) -> 0 | NO65: 0 | NP65: 0 | NQ65: 0 | NR65: =COUNTIFS($B$10:$B$39,$B65,NS$10:NS$39,$C65) -> 0 | NS65: 0 | NT65: 0 | NU65: 0 | NV65: =COUNTIFS($B$10:$B$39,$B65,NW$10:NW$39,$C65) -> 0 | NW65: 0 | NX65: 0 | NY65: 0 | NZ65: =COUNTIFS($B$10:$B$39,$B65,OA$10:OA$39,$C65) -> 0 | OA65: 0 | OB65: 0 | OC65: 0 | OD65: =COUNTIFS($B$10:$B$39,$B65,OE$10:OE$39,$C65) -> 0 | OE65: 0 | OF65: 0 | OG65: 0 | OH65: =COUNTIFS($B$10:$B$39,$B65,OI$10:OI$39,$C65) -> 0 | OI65: 0 | OJ65: 0 | OK65: 0 | OL65: =COUNTIFS($B$10:$B$39,$B65,OM$10:OM$39,$C65) -> 0 | OM65: 0 | ON65: 0 | OO65: 0 | OP65: =COUNTIFS($B$10:$B$39,$B65,OQ$10:OQ$39,$C65) -> 0 | OQ65: 0 | OR65: 0 | OS65: 0 | OT65: =COUNTIFS($B$10:$B$39,$B65,OU$10:OU$39,$C65) -> 0 | OU65: 0 | OV65: 0 | OW65: 0 | OX65: =COUNTIFS($B$10:$B$39,$B65,OY$10:OY$39,$C65) -> 0 | OY65: 0 | OZ65: 0 | PA65: 0 | PB65: =COUNTIFS($B$10:$B$39,$B65,PC$10:PC$39,$C65) -> 0 | PC65: 0 | PD65: 0 | PE65: 0 | PF65: =COUNTIFS($B$10:$B$39,$B65,PG$10:PG$39,$C65) -> 0 | PG65: 0 | PH65: 0 | PI65: 0 | PJ65: =COUNTIFS($B$10:$B$39,$B65,PK$10:PK$39,$C65) -> 0 | PK65: 0 | PL65: 0 | PM65: 0 | PN65: =COUNTIFS($B$10:$B$39,$B65,PO$10:PO$39,$C65) -> 0 | PO65: 0 | PP65: 0 | PQ65: 0 | PR65: =COUNTIFS($B$10:$B$39,$B65,PS$10:PS$39,$C65) -> 0 | PS65: 0 | PT65: 0 | PU65: 0 | PV65: =COUNTIFS($B$10:$B$39,$B65,PW$10:PW$39,$C65) -> 0 | PW65: 0 | PX65: 0 | PY65: 0 | PZ65: =COUNTIFS($B$10:$B$39,$B65,QA$10:QA$39,$C65) -> 0 | QA65: 0 | QB65: 0 | QC65: 0 | QD65: =COUNTIFS($B$10:$B$39,$B65,QE$10:QE$39,$C65) -> 0 | QE65: 0 | QF65: 0 | QG65: 0 | QH65: =COUNTIFS($B$10:$B$39,$B65,QI$10:QI$39,$C65) -> 0 | QI65: 0
B66: 3 | C66: 4 | D66: 0 | E66: 0 | F66: 0 | G66: 0 | H66: 0 | I66: 0 | J66: 0 | K66: 0 | L66: 0 | M66: 0 | N66: 0 | O66: 0 | P66: 0 | Q66: 0 | R66: 0 | S66: 0 | T66: 0 | U66: 0 | V66: 0 | W66: 0 | X66: 0 | Y66: 0 | Z66: 0 | AA66: 0 | AB66: 0 | AC66: 0 | AD66: 0 | AE66: 0 | AF66: 0 | AG66: 0 | AH66: 0 | AI66: 0 | AJ66: 0 | AK66: 0 | AL66: 0 | AM66: 0 | AN66: 0 | AO66: 0 | AP66: 0 | AQ66: 0 | AR66: 0 | AS66: 0 | AT66: 0 | AU66: 0 | AV66: 0 | AW66: 0 | AX66: 0 | AY66: 0 | AZ66: 0 | BA66: 0 | BB66: 0 | BC66: 0 | BD66: 0 | BE66: 0 | BF66: 0 | BG66: 0 | BH66: 0 | BI66: 0 | BJ66: 0 | BK66: 0 | BL66: 0 | BM66: 0 | BN66: 0 | BO66: 0 | BP66: 0 | BQ66: 0 | BR66: 0 | BS66: 0 | BT66: 0 | BU66: 0 | BV66: 0 | BW66: 0 | BX66: 0 | BY66: 0 | BZ66: 0 | CA66: 0 | CB66: 0 | CC66: 0 | CD66: 0 | CE66: 0 | CF66: 0 | CG66: 0 | CH66: 0 | CI66: 0 | CJ66: 0 | CK66: 0 | CL66: 0 | CM66: 0 | CN66: 0 | CO66: 0 | CP66: 0 | CQ66: 0 | CR66: 0 | CS66: 0 | CT66: 0 | CU66: 0 | CV66: 0 | CW66: 0 | CX66: 0 | CY66: 0 | CZ66: 0 | DA66: 0 | DB66: 0 | DC66: 0 | DD66: 0 | DE66: 0 | DF66: 0 | DG66: 0 | DH66: 0 | DI66: 0 | DJ66: 0 | DK66: 0 | DL66: 0 | DM66: 0 | DN66: 0 | DO66: 0 | DP66: 0 | DQ66: 0 | DR66: 0 | DS66: 0 | DT66: 0 | DU66: 0 | DV66: 0 | DW66: 0 | DX66: 0 | DY66: 0 | DZ66: 0 | EA66: 0 | EB66: 0 | EC66: 0 | ED66: 0 | EE66: 0 | EF66: 0 | EG66: 0 | EH66: 0 | EI66: 0 | EJ66: 0 | EK66: 0 | EL66: 0 | EM66: 0 | EN66: 0 | EO66: 0 | EP66: 0 | EQ66: 0 | ER66: 0 | ES66: 0 | ET66: 0 | EU66: 0 | EV66: 0 | EW66: 0 | EX66: 0 | EY66: 0 | EZ66: 0 | FA66: 0 | FB66: 0 | FC66: 0 | FD66: 0 | FE66: 0 | FF66: 0 | FG66: 0 | FH66: 0 | FI66: 0 | FJ66: 0 | FK66: 0 | FL66: 0 | FM66: 0 | FN66: 0 | FO66: 0 | FP66: 0 | FQ66: 0 | FR66: 0 | FS66: 0 | FT66: 0 | FU66: 0 | FV66: 0 | FW66: 0 | FX66: 0 | FY66: 0 | FZ66: 0 | GA66: 0 | GB66: 0 | GC66: 0 | GD66: 0 | GE66: 0 | GF66: 0 | GG66: 0 | GH66: 0 | GI66: 0 | GJ66: 0 | GK66: 0 | GL66: 0 | GM66: 0 | GN66: 0 | GO66: 0 | GP66: 0 | GQ66: 0 | GR66: 8 | GS66: 0 | GT66: 2 | GU66: 4 | GV66: 4 | GW66: 0 | GX66: 1 | GY66: 4 | GZ66: 0 | HA66: 0 | HB66: 0 | HC66: 0 | HD66: 0 | HE66: 0 | HF66: 0 | HG66: 0 | HH66: 0 | HI66: 0 | HJ66: 0 | HK66: 0 | HL66: 0 | HM66: 0 | HN66: 0 | HO66: 0 | HP66: 0 | HQ66: 0 | HR66: 0 | HS66: 0 | HT66: 0 | HU66: 0 | HV66: 0 | HW66: 0 | HX66: 0 | HY66: 0 | HZ66: 0 | IA66: 0 | IB66: 0 | IC66: 0 | ID66: 0 | IE66: 0 | IF66: 0 | IG66: 0 | IH66: 0 | II66: 0 | IJ66: 0 | IK66: 0 | IL66: 0 | IM66: 0 | IN66: 0 | IO66: 0 | IP66: 0 | IQ66: 0 | IR66: 0 | IS66: 0 | IT66: 0 | IU66: 0 | IV66: 0 | IW66: 0 | IX66: 0 | IY66: 0 | IZ66: 0 | JA66: 0 | JB66: 0 | JC66: 0 | JD66: 0 | JE66: 0 | JF66: 0 | JG66: 0 | JH66: 0 | JI66: 0 | JJ66: 0 | JK66: 0 | JL66: 0 | JM66: 0 | JN66: 0 | JO66: 0 | JP66: 0 | JQ66: 0 | JR66: 0 | JS66: 0 | JT66: 0 | JU66: 0 | JV66: 0 | JW66: 0 | JX66: 0 | JY66: 0 | JZ66: 0 | KA66: 0 | KB66: 0 | KC66: 0 | KD66: 0 | KE66: 0 | KF66: 0 | KG66: 0 | KH66: 0 | KI66: 0 | KJ66: 0 | KK66: 0 | KL66: 0 | KM66: 0 | KN66: 5 | KO66: 0 | KP66: 1 | KQ66: 5 | KR66: 0 | KS66: 0 | KT66: =COUNTIFS($B$10:$B$39,$B66,KU$10:KU$39,$C66) -> 0 | KU66: 0 | KV66: 0 | KW66: 0 | KX66: =COUNTIFS($B$10:$B$39,$B66,KY$10:KY$39,$C66) -> 0 | KY66: 0 | KZ66: 0 | LA66: 0 | LB66: =COUNTIFS($B$10:$B$39,$B66,LC$10:LC$39,$C66) -> 0 | LC66: 0 | LD66: 0 | LE66: 0 | LF66: =COUNTIFS($B$10:$B$39,$B66,LG$10:LG$39,$C66) -> 0 | LG66: 0 | LH66: 0 | LI66: 0 | LJ66: =COUNTIFS($B$10:$B$39,$B66,LK$10:LK$39,$C66) -> 0 | LK66: 0 | LL66: 0 | LM66: 0 | LN66: =COUNTIFS($B$10:$B$39,$B66,LO$10:LO$39,$C66) -> 0 | LO66: 0 | LP66: 0 | LQ66: 0 | LR66: =COUNTIFS($B$10:$B$39,$B66,LS$10:LS$39,$C66) -> 0 | LS66: 0 | LT66: 0 | LU66: 0 | LV66: =COUNTIFS($B$10:$B$39,$B66,LW$10:LW$39,$C66) -> 0 | LW66: 0 | LX66: 0 | LY66: 0 | LZ66: =COUNTIFS($B$10:$B$39,$B66,MA$10:MA$39,$C66) -> 0 | MA66: 0 | MB66: 0 | MC66: 0 | MD66: =COUNTIFS($B$10:$B$39,$B66,ME$10:ME$39,$C66) -> 0 | ME66: 0 | MF66: 0 | MG66: 0 | MH66: =COUNTIFS($B$10:$B$39,$B66,MI$10:MI$39,$C66) -> 0 | MI66: 0 | MJ66: 0 | MK66: 0 | ML66: =COUNTIFS($B$10:$B$39,$B66,MM$10:MM$39,$C66) -> 0 | MM66: 0 | MN66: 0 | MO66: 0 | MP66: =COUNTIFS($B$10:$B$39,$B66,MQ$10:MQ$39,$C66) -> 0 | MQ66: 0 | MR66: 0 | MS66: 0 | MT66: =COUNTIFS($B$10:$B$39,$B66,MU$10:MU$39,$C66) -> 0 | MU66: 0 | MV66: 0 | MW66: 0 | MX66: =COUNTIFS($B$10:$B$39,$B66,MY$10:MY$39,$C66) -> 0 | MY66: 0 | MZ66: 0 | NA66: 0 | NB66: =COUNTIFS($B$10:$B$39,$B66,NC$10:NC$39,$C66) -> 0 | NC66: 0 | ND66: 0 | NE66: 0 | NF66: =COUNTIFS($B$10:$B$39,$B66,NG$10:NG$39,$C66) -> 0 | NG66: 0 | NH66: 0 | NI66: 0 | NJ66: =COUNTIFS($B$10:$B$39,$B66,NK$10:NK$39,$C66) -> 0 | NK66: 0 | NL66: 0 | NM66: 0 | NN66: =COUNTIFS($B$10:$B$39,$B66,NO$10:NO$39,$C66) -> 0 | NO66: 0 | NP66: 0 | NQ66: 0 | NR66: =COUNTIFS($B$10:$B$39,$B66,NS$10:NS$39,$C66) -> 0 | NS66: 0 | NT66: 0 | NU66: 0 | NV66: =COUNTIFS($B$10:$B$39,$B66,NW$10:NW$39,$C66) -> 0 | NW66: 0 | NX66: 0 | NY66: 0 | NZ66: =COUNTIFS($B$10:$B$39,$B66,OA$10:OA$39,$C66) -> 0 | OA66: 0 | OB66: 0 | OC66: 0 | OD66: =COUNTIFS($B$10:$B$39,$B66,OE$10:OE$39,$C66) -> 0 | OE66: 0 | OF66: 0 | OG66: 0 | OH66: =COUNTIFS($B$10:$B$39,$B66,OI$10:OI$39,$C66) -> 0 | OI66: 0 | OJ66: 0 | OK66: 0 | OL66: =COUNTIFS($B$10:$B$39,$B66,OM$10:OM$39,$C66) -> 0 | OM66: 0 | ON66: 0 | OO66: 0 | OP66: =COUNTIFS($B$10:$B$39,$B66,OQ$10:OQ$39,$C66) -> 0 | OQ66: 0 | OR66: 0 | OS66: 0 | OT66: =COUNTIFS($B$10:$B$39,$B66,OU$10:OU$39,$C66) -> 0 | OU66: 0 | OV66: 0 | OW66: 0 | OX66: =COUNTIFS($B$10:$B$39,$B66,OY$10:OY$39,$C66) -> 0 | OY66: 0 | OZ66: 0 | PA66: 0 | PB66: =COUNTIFS($B$10:$B$39,$B66,PC$10:PC$39,$C66) -> 0 | PC66: 0 | PD66: 0 | PE66: 0 | PF66: =COUNTIFS($B$10:$B$39,$B66,PG$10:PG$39,$C66) -> 0 | PG66: 0 | PH66: 0 | PI66: 0 | PJ66: =COUNTIFS($B$10:$B$39,$B66,PK$10:PK$39,$C66) -> 0 | PK66: 0 | PL66: 0 | PM66: 0 | PN66: =COUNTIFS($B$10:$B$39,$B66,PO$10:PO$39,$C66) -> 0 | PO66: 0 | PP66: 0 | PQ66: 0 | PR66: =COUNTIFS($B$10:$B$39,$B66,PS$10:PS$39,$C66) -> 0 | PS66: 0 | PT66: 0 | PU66: 0 | PV66: =COUNTIFS($B$10:$B$39,$B66,PW$10:PW$39,$C66) -> 0 | PW66: 0 | PX66: 0 | PY66: 0 | PZ66: =COUNTIFS($B$10:$B$39,$B66,QA$10:QA$39,$C66) -> 0 | QA66: 0 | QB66: 0 | QC66: 0 | QD66: =COUNTIFS($B$10:$B$39,$B66,QE$10:QE$39,$C66) -> 0 | QE66: 0 | QF66: 0 | QG66: 0 | QH66: =COUNTIFS($B$10:$B$39,$B66,QI$10:QI$39,$C66) -> 0 | QI66: 0
B67: 3 | C67: 5 | D67: 0 | E67: 0 | F67: 0 | G67: 0 | H67: 5 | I67: 0 | J67: 1 | K67: 5 | L67: 4 | M67: 0 | N67: 1 | O67: 4 | P67: 0 | Q67: 0 | R67: 0 | S67: 0 | T67: 0 | U67: 0 | V67: 0 | W67: 0 | X67: 0 | Y67: 0 | Z67: 0 | AA67: 0 | AB67: 0 | AC67: 0 | AD67: 0 | AE67: 0 | AF67: 0 | AG67: 0 | AH67: 0 | AI67: 0 | AJ67: 0 | AK67: 0 | AL67: 0 | AM67: 0 | AN67: 0 | AO67: 0 | AP67: 0 | AQ67: 0 | AR67: 0 | AS67: 0 | AT67: 0 | AU67: 0 | AV67: 2 | AW67: 2 | AX67: 1 | AY67: 4 | AZ67: 0 | BA67: 0 | BB67: 0 | BC67: 0 | BD67: 0 | BE67: 0 | BF67: 0 | BG67: 0 | BH67: 0 | BI67: 0 | BJ67: 0 | BK67: 0 | BL67: 0 | BM67: 0 | BN67: 0 | BO67: 0 | BP67: 0 | BQ67: 0 | BR67: 0 | BS67: 0 | BT67: 0 | BU67: 0 | BV67: 0 | BW67: 0 | BX67: 0 | BY67: 0 | BZ67: 0 | CA67: 0 | CB67: 0 | CC67: 0 | CD67: 0 | CE67: 0 | CF67: 0 | CG67: 0 | CH67: 0 | CI67: 0 | CJ67: 0 | CK67: 0 | CL67: 0 | CM67: 0 | CN67: 0 | CO67: 0 | CP67: 0 | CQ67: 0 | CR67: 0 | CS67: 0 | CT67: 0 | CU67: 0 | CV67: 0 | CW67: 0 | CX67: 0 | CY67: 0 | CZ67: 0 | DA67: 0 | DB67: 0 | DC67: 0 | DD67: 0 | DE67: 0 | DF67: 0 | DG67: 0 | DH67: 0 | DI67: 0 | DJ67: 0 | DK67: 0 | DL67: 0 | DM67: 0 | DN67: 0 | DO67: 0 | DP67: 0 | DQ67: 0 | DR67: 0 | DS67: 0 | DT67: 0 | DU67: 0 | DV67: 0 | DW67: 0 | DX67: 0 | DY67: 0 | DZ67: 0 | EA67: 0 | EB67: 0 | EC67: 0 | ED67: 0 | EE67: 0 | EF67: 0 | EG67: 0 | EH67: 0 | EI67: 0 | EJ67: 5 | EK67: 0 | EL67: 1 | EM67: 5 | EN67: 0 | EO67: 0 | EP67: 0 | EQ67: 0 | ER67: 0 | ES67: 0 | ET67: 0 | EU67: 0 | EV67: 0 | EW67: 0 | EX67: 0 | EY67: 0 | EZ67: 0 | FA67: 0 | FB67: 0 | FC67: 0 | FD67: 0 | FE67: 0 | FF67: 0 | FG67: 0 | FH67: 0 | FI67: 0 | FJ67: 0 | FK67: 0 | FL67: 0 | FM67: 0 | FN67: 0 | FO67: 0 | FP67: 0 | FQ67: 0 | FR67: 0 | FS67: 0 | FT67: 0 | FU67: 0 | FV67: 0 | FW67: 0 | FX67: 0 | FY67: 0 | FZ67: 0 | GA67: 0 | GB67: 0 | GC67: 0 | GD67: 0 | GE67: 0 | GF67: 0 | GG67: 0 | GH67: 0 | GI67: 0 | GJ67: 0 | GK67: 0 | GL67: 0 | GM67: 0 | GN67: 0 | GO67: 0 | GP67: 0 | GQ67: 0 | GR67: 0 | GS67: 0 | GT67: 0 | GU67: 0 | GV67: 0 | GW67: 0 | GX67: 0 | GY67: 0 | GZ67: 0 | HA67: 0 | HB67: 0 | HC67: 0 | HD67: 0 | HE67: 0 | HF67: 0 | HG67: 0 | HH67: 0 | HI67: 0 | HJ67: 0 | HK67: 0 | HL67: 0 | HM67: 0 | HN67: 0 | HO67: 0 | HP67: 0 | HQ67: 0 | HR67: 0 | HS67: 0 | HT67: 0 | HU67: 0 | HV67: 0 | HW67: 0 | HX67: 4 | HY67: 0 | HZ67: 1 | IA67: 4 | IB67: 0 | IC67: 0 | ID67: 0 | IE67: 0 | IF67: 0 | IG67: 0 | IH67: 0 | II67: 0 | IJ67: 0 | IK67: 0 | IL67: 0 | IM67: 0 | IN67: 0 | IO67: 0 | IP67: 0 | IQ67: 0 | IR67: 0 | IS67: 0 | IT67: 0 | IU67: 0 | IV67: 0 | IW67: 0 | IX67: 0 | IY67: 0 | IZ67: 0 | JA67: 0 | JB67: 0 | JC67: 0 | JD67: 4 | JE67: 0 | JF67: 1 | JG67: 4 | JH67: 0 | JI67: 0 | JJ67: 0 | JK67: 0 | JL67: 0 | JM67: 0 | JN67: 0 | JO67: 0 | JP67: 0 | JQ67: 0 | JR67: 0 | JS67: 0 | JT67: 0 | JU67: 0 | JV67: 0 | JW67: 0 | JX67: 0 | JY67: 0 | JZ67: 0 | KA67: 0 | KB67: 0 | KC67: 0 | KD67: 0 | KE67: 0 | KF67: 0 | KG67: 0 | KH67: 0 | KI67: 0 | KJ67: 0 | KK67: 0 | KL67: 0 | KM67: 0 | KN67: 0 | KO67: 0 | KP67: 0 | KQ67: 0 | KR67: 0 | KS67: 0 | KT67: =COUNTIFS($B$10:$B$39,$B67,KU$10:KU$39,$C67) -> 0 | KU67: 0 | KV67: 0 | KW67: 0 | KX67: =COUNTIFS($B$10:$B$39,$B67,KY$10:KY$39,$C67) -> 0 | KY67: 0 | KZ67: 0 | LA67: 0 | LB67: =COUNTIFS($B$10:$B$39,$B67,LC$10:LC$39,$C67) -> 0 | LC67: 0 | LD67: 0 | LE67: 0 | LF67: =COUNTIFS($B$10:$B$39,$B67,LG$10:LG$39,$C67) -> 0 | LG67: 0 | LH67: 0 | LI67: 0 | LJ67: =COUNTIFS($B$10:$B$39,$B67,LK$10:LK$39,$C67) -> 0 | LK67: 0 | LL67: 0 | LM67: 0 | LN67: =COUNTIFS($B$10:$B$39,$B67,LO$10:LO$39,$C67) -> 0 | LO67: 0 | LP67: 0 | LQ67: 0 | LR67: =COUNTIFS($B$10:$B$39,$B67,LS$10:LS$39,$C67) -> 0 | LS67: 0 | LT67: 0 | LU67: 0 | LV67: =COUNTIFS($B$10:$B$39,$B67,LW$10:LW$39,$C67) -> 0 | LW67: 0 | LX67: 0 | LY67: 0 | LZ67: =COUNTIFS($B$10:$B$39,$B67,MA$10:MA$39,$C67) -> 0 | MA67: 0 | MB67: 0 | MC67: 0 | MD67: =COUNTIFS($B$10:$B$39,$B67,ME$10:ME$39,$C67) -> 0 | ME67: 0 | MF67: 0 | MG67: 0 | MH67: =COUNTIFS($B$10:$B$39,$B67,MI$10:MI$39,$C67) -> 0 | MI67: 0 | MJ67: 0 | MK67: 0 | ML67: =COUNTIFS($B$10:$B$39,$B67,MM$10:MM$39,$C67) -> 0 | MM67: 0 | MN67: 0 | MO67: 0 | MP67: =COUNTIFS($B$10:$B$39,$B67,MQ$10:MQ$39,$C67) -> 0 | MQ67: 0 | MR67: 0 | MS67: 0 | MT67: =COUNTIFS($B$10:$B$39,$B67,MU$10:MU$39,$C67) -> 0 | MU67: 0 | MV67: 0 | MW67: 0 | MX67: =COUNTIFS($B$10:$B$39,$B67,MY$10:MY$39,$C67) -> 0 | MY67: 0 | MZ67: 0 | NA67: 0 | NB67: =COUNTIFS($B$10:$B$39,$B67,NC$10:NC$39,$C67) -> 0 | NC67: 0 | ND67: 0 | NE67: 0 | NF67: =COUNTIFS($B$10:$B$39,$B67,NG$10:NG$39,$C67) -> 0 | NG67: 0 | NH67: 0 | NI67: 0 | NJ67: =COUNTIFS($B$10:$B$39,$B67,NK$10:NK$39,$C67) -> 0 | NK67: 0 | NL67: 0 | NM67: 0 | NN67: =COUNTIFS($B$10:$B$39,$B67,NO$10:NO$39,$C67) -> 0 | NO67: 0 | NP67: 0 | NQ67: 0 | NR67: =COUNTIFS($B$10:$B$39,$B67,NS$10:NS$39,$C67) -> 0 | NS67: 0 | NT67: 0 | NU67: 0 | NV67: =COUNTIFS($B$10:$B$39,$B67,NW$10:NW$39,$C67) -> 0 | NW67: 0 | NX67: 0 | NY67: 0 | NZ67: =COUNTIFS($B$10:$B$39,$B67,OA$10:OA$39,$C67) -> 0 | OA67: 0 | OB67: 0 | OC67: 0 | OD67: =COUNTIFS($B$10:$B$39,$B67,OE$10:OE$39,$C67) -> 0 | OE67: 0 | OF67: 0 | OG67: 0 | OH67: =COUNTIFS($B$10:$B$39,$B67,OI$10:OI$39,$C67) -> 0 | OI67: 0 | OJ67: 0 | OK67: 0 | OL67: =COUNTIFS($B$10:$B$39,$B67,OM$10:OM$39,$C67) -> 0 | OM67: 0 | ON67: 0 | OO67: 0 | OP67: =COUNTIFS($B$10:$B$39,$B67,OQ$10:OQ$39,$C67) -> 0 | OQ67: 0 | OR67: 0 | OS67: 0 | OT67: =COUNTIFS($B$10:$B$39,$B67,OU$10:OU$39,$C67) -> 0 | OU67: 0 | OV67: 0 | OW67: 0 | OX67: =COUNTIFS($B$10:$B$39,$B67,OY$10:OY$39,$C67) -> 0 | OY67: 0 | OZ67: 0 | PA67: 0 | PB67: =COUNTIFS($B$10:$B$39,$B67,PC$10:PC$39,$C67) -> 0 | PC67: 0 | PD67: 0 | PE67: 0 | PF67: =COUNTIFS($B$10:$B$39,$B67,PG$10:PG$39,$C67) -> 0 | PG67: 0 | PH67: 0 | PI67: 0 | PJ67: =COUNTIFS($B$10:$B$39,$B67,PK$10:PK$39,$C67) -> 0 | PK67: 0 | PL67: 0 | PM67: 0 | PN67: =COUNTIFS($B$10:$B$39,$B67,PO$10:PO$39,$C67) -> 0 | PO67: 0 | PP67: 0 | PQ67: 0 | PR67: =COUNTIFS($B$10:$B$39,$B67,PS$10:PS$39,$C67) -> 0 | PS67: 0 | PT67: 0 | PU67: 0 | PV67: =COUNTIFS($B$10:$B$39,$B67,PW$10:PW$39,$C67) -> 0 | PW67: 0 | PX67: 0 | PY67: 0 | PZ67: =COUNTIFS($B$10:$B$39,$B67,QA$10:QA$39,$C67) -> 0 | QA67: 0 | QB67: 0 | QC67: 0 | QD67: =COUNTIFS($B$10:$B$39,$B67,QE$10:QE$39,$C67) -> 0 | QE67: 0 | QF67: 0 | QG67: 0 | QH67: =COUNTIFS($B$10:$B$39,$B67,QI$10:QI$39,$C67) -> 0 | QI67: 0
B68: 3 | C68: 6 | D68: 0 | E68: 0 | F68: 0 | G68: 0 | H68: 6 | I68: 0 | J68: 1 | K68: 6 | L68: 0 | M68: 0 | N68: 0 | O68: 0 | P68: 0 | Q68: 0 | R68: 0 | S68: 0 | T68: 0 | U68: 0 | V68: 0 | W68: 0 | X68: 0 | Y68: 0 | Z68: 0 | AA68: 0 | AB68: 0 | AC68: 0 | AD68: 0 | AE68: 0 | AF68: 0 | AG68: 0 | AH68: 0 | AI68: 0 | AJ68: 0 | AK68: 0 | AL68: 0 | AM68: 0 | AN68: 0 | AO68: 0 | AP68: 0 | AQ68: 0 | AR68: 5 | AS68: 0 | AT68: 1 | AU68: 5 | AV68: 0 | AW68: 0 | AX68: 0 | AY68: 0 | AZ68: 0 | BA68: 0 | BB68: 0 | BC68: 0 | BD68: 0 | BE68: 0 | BF68: 0 | BG68: 0 | BH68: 0 | BI68: 0 | BJ68: 0 | BK68: 0 | BL68: 0 | BM68: 0 | BN68: 0 | BO68: 0 | BP68: 0 | BQ68: 0 | BR68: 0 | BS68: 0 | BT68: 0 | BU68: 0 | BV68: 0 | BW68: 0 | BX68: 0 | BY68: 0 | BZ68: 0 | CA68: 0 | CB68: 0 | CC68: 0 | CD68: 0 | CE68: 0 | CF68: 3 | CG68: 2 | CH68: 1 | CI68: 5 | CJ68: 0 | CK68: 0 | CL68: 0 | CM68: 0 | CN68: 0 | CO68: 0 | CP68: 0 | CQ68: 0 | CR68: 0 | CS68: 0 | CT68: 0 | CU68: 0 | CV68: 0 | CW68: 0 | CX68: 0 | CY68: 0 | CZ68: 0 | DA68: 0 | DB68: 0 | DC68: 0 | DD68: 0 | DE68: 0 | DF68: 0 | DG68: 0 | DH68: 0 | DI68: 0 | DJ68: 0 | DK68: 0 | DL68: 0 | DM68: 0 | DN68: 0 | DO68: 0 | DP68: 0 | DQ68: 0 | DR68: 0 | DS68: 0 | DT68: 0 | DU68: 0 | DV68: 0 | DW68: 0 | DX68: 0 | DY68: 0 | DZ68: 0 | EA68: 0 | EB68: 0 | EC68: 0 | ED68: 0 | EE68: 0 | EF68: 0 | EG68: 0 | EH68: 0 | EI68: 0 | EJ68: 0 | EK68: 0 | EL68: 0 | EM68: 0 | EN68: 7 | EO68: 0 | EP68: 1 | EQ68: 7 | ER68: 7 | ES68: 0 | ET68: 1 | EU68: 7 | EV68: 0 | EW68: 0 | EX68: 0 | EY68: 0 | EZ68: 0 | FA68: 0 | FB68: 0 | FC68: 0 | FD68: 0 | FE68: 0 | FF68: 0 | FG68: 0 | FH68: 0 | FI68: 0 | FJ68: 0 | FK68: 0 | FL68: 0 | FM68: 0 | FN68: 0 | FO68: 0 | FP68: 0 | FQ68: 0 | FR68: 0 | FS68: 0 | FT68: 0 | FU68: 0 | FV68: 0 | FW68: 0 | FX68: 7 | FY68: 0 | FZ68: 1 | GA68: 7 | GB68: 7 | GC68: 0 | GD68: 1 | GE68: 7 | GF68: 0 | GG68: 0 | GH68: 0 | GI68: 0 | GJ68: 0 | GK68: 0 | GL68: 0 | GM68: 0 | GN68: 0 | GO68: 0 | GP68: 0 | GQ68: 0 | GR68: 0 | GS68: 0 | GT68: 0 | GU68: 0 | GV68: 0 | GW68: 0 | GX68: 0 | GY68: 0 | GZ68: 0 | HA68: 0 | HB68: 0 | HC68: 0 | HD68: 0 | HE68: 0 | HF68: 0 | HG68: 0 | HH68: 0 | HI68: 0 | HJ68: 0 | HK68: 0 | HL68: 0 | HM68: 0 | HN68: 0 | HO68: 0 | HP68: 0 | HQ68: 0 | HR68: 0 | HS68: 0 | HT68: 0 | HU68: 0 | HV68: 0 | HW68: 0 | HX68: 0 | HY68: 0 | HZ68: 0 | IA68: 0 | IB68: 0 | IC68: 0 | ID68: 0 | IE68: 0 | IF68: 0 | IG68: 0 | IH68: 0 | II68: 0 | IJ68: 0 | IK68: 0 | IL68: 0 | IM68: 0 | IN68: 0 | IO68: 0 | IP68: 0 | IQ68: 0 | IR68: 0 | IS68: 0 | IT68: 0 | IU68: 0 | IV68: 0 | IW68: 0 | IX68: 0 | IY68: 0 | IZ68: 0 | JA68: 0 | JB68: 0 | JC68: 0 | JD68: 0 | JE68: 0 | JF68: 0 | JG68: 0 | JH68: 0 | JI68: 0 | JJ68: 0 | JK68: 0 | JL68: 0 | JM68: 0 | JN68: 0 | JO68: 0 | JP68: 0 | JQ68: 0 | JR68: 0 | JS68: 0 | JT68: 0 | JU68: 0 | JV68: 0 | JW68: 0 | JX68: 0 | JY68: 0 | JZ68: 0 | KA68: 0 | KB68: 0 | KC68: 0 | KD68: 0 | KE68: 0 | KF68: 0 | KG68: 0 | KH68: 0 | KI68: 0 | KJ68: 0 | KK68: 0 | KL68: 0 | KM68: 0 | KN68: 0 | KO68: 0 | KP68: 0 | KQ68: 0 | KR68: 0 | KS68: 0 | KT68: =COUNTIFS($B$10:$B$39,$B68,KU$10:KU$39,$C68) -> 0 | KU68: 0 | KV68: 0 | KW68: 0 | KX68: =COUNTIFS($B$10:$B$39,$B68,KY$10:KY$39,$C68) -> 0 | KY68: 0 | KZ68: 0 | LA68: 0 | LB68: =COUNTIFS($B$10:$B$39,$B68,LC$10:LC$39,$C68) -> 0 | LC68: 0 | LD68: 0 | LE68: 0 | LF68: =COUNTIFS($B$10:$B$39,$B68,LG$10:LG$39,$C68) -> 0 | LG68: 0 | LH68: 0 | LI68: 0 | LJ68: =COUNTIFS($B$10:$B$39,$B68,LK$10:LK$39,$C68) -> 0 | LK68: 0 | LL68: 0 | LM68: 0 | LN68: =COUNTIFS($B$10:$B$39,$B68,LO$10:LO$39,$C68) -> 0 | LO68: 0 | LP68: 0 | LQ68: 0 | LR68: =COUNTIFS($B$10:$B$39,$B68,LS$10:LS$39,$C68) -> 0 | LS68: 0 | LT68: 0 | LU68: 0 | LV68: =COUNTIFS($B$10:$B$39,$B68,LW$10:LW$39,$C68) -> 0 | LW68: 0 | LX68: 0 | LY68: 0 | LZ68: =COUNTIFS($B$10:$B$39,$B68,MA$10:MA$39,$C68) -> 0 | MA68: 0 | MB68: 0 | MC68: 0 | MD68: =COUNTIFS($B$10:$B$39,$B68,ME$10:ME$39,$C68) -> 0 | ME68: 0 | MF68: 0 | MG68: 0 | MH68: =COUNTIFS($B$10:$B$39,$B68,MI$10:MI$39,$C68) -> 0 | MI68: 0 | MJ68: 0 | MK68: 0 | ML68: =COUNTIFS($B$10:$B$39,$B68,MM$10:MM$39,$C68) -> 0 | MM68: 0 | MN68: 0 | MO68: 0 | MP68: =COUNTIFS($B$10:$B$39,$B68,MQ$10:MQ$39,$C68) -> 0 | MQ68: 0 | MR68: 0 | MS68: 0 | MT68: =COUNTIFS($B$10:$B$39,$B68,MU$10:MU$39,$C68) -> 0 | MU68: 0 | MV68: 0 | MW68: 0 | MX68: =COUNTIFS($B$10:$B$39,$B68,MY$10:MY$39,$C68) -> 0 | MY68: 0 | MZ68: 0 | NA68: 0 | NB68: =COUNTIFS($B$10:$B$39,$B68,NC$10:NC$39,$C68) -> 0 | NC68: 0 | ND68: 0 | NE68: 0 | NF68: =COUNTIFS($B$10:$B$39,$B68,NG$10:NG$39,$C68) -> 0 | NG68: 0 | NH68: 0 | NI68: 0 | NJ68: =COUNTIFS($B$10:$B$39,$B68,NK$10:NK$39,$C68) -> 0 | NK68: 0 | NL68: 0 | NM68: 0 | NN68: =COUNTIFS($B$10:$B$39,$B68,NO$10:NO$39,$C68) -> 0 | NO68: 0 | NP68: 0 | NQ68: 0 | NR68: =COUNTIFS($B$10:$B$39,$B68,NS$10:NS$39,$C68) -> 0 | NS68: 0 | NT68: 0 | NU68: 0 | NV68: =COUNTIFS($B$10:$B$39,$B68,NW$10:NW$39,$C68) -> 0 | NW68: 0 | NX68: 0 | NY68: 0 | NZ68: =COUNTIFS($B$10:$B$39,$B68,OA$10:OA$39,$C68) -> 0 | OA68: 0 | OB68: 0 | OC68: 0 | OD68: =COUNTIFS($B$10:$B$39,$B68,OE$10:OE$39,$C68) -> 0 | OE68: 0 | OF68: 0 | OG68: 0 | OH68: =COUNTIFS($B$10:$B$39,$B68,OI$10:OI$39,$C68) -> 0 | OI68: 0 | OJ68: 0 | OK68: 0 | OL68: =COUNTIFS($B$10:$B$39,$B68,OM$10:OM$39,$C68) -> 0 | OM68: 0 | ON68: 0 | OO68: 0 | OP68: =COUNTIFS($B$10:$B$39,$B68,OQ$10:OQ$39,$C68) -> 0 | OQ68: 0 | OR68: 0 | OS68: 0 | OT68: =COUNTIFS($B$10:$B$39,$B68,OU$10:OU$39,$C68) -> 0 | OU68: 0 | OV68: 0 | OW68: 0 | OX68: =COUNTIFS($B$10:$B$39,$B68,OY$10:OY$39,$C68) -> 0 | OY68: 0 | OZ68: 0 | PA68: 0 | PB68: =COUNTIFS($B$10:$B$39,$B68,PC$10:PC$39,$C68) -> 0 | PC68: 0 | PD68: 0 | PE68: 0 | PF68: =COUNTIFS($B$10:$B$39,$B68,PG$10:PG$39,$C68) -> 0 | PG68: 0 | PH68: 0 | PI68: 0 | PJ68: =COUNTIFS($B$10:$B$39,$B68,PK$10:PK$39,$C68) -> 0 | PK68: 0 | PL68: 0 | PM68: 0 | PN68: =COUNTIFS($B$10:$B$39,$B68,PO$10:PO$39,$C68) -> 0 | PO68: 0 | PP68: 0 | PQ68: 0 | PR68: =COUNTIFS($B$10:$B$39,$B68,PS$10:PS$39,$C68) -> 0 | PS68: 0 | PT68: 0 | PU68: 0 | PV68: =COUNTIFS($B$10:$B$39,$B68,PW$10:PW$39,$C68) -> 0 | PW68: 0 | PX68: 0 | PY68: 0 | PZ68: =COUNTIFS($B$10:$B$39,$B68,QA$10:QA$39,$C68) -> 0 | QA68: 0 | QB68: 0 | QC68: 0 | QD68: =COUNTIFS($B$10:$B$39,$B68,QE$10:QE$39,$C68) -> 0 | QE68: 0 | QF68: 0 | QG68: 0 | QH68: =COUNTIFS($B$10:$B$39,$B68,QI$10:QI$39,$C68) -> 0 | QI68: 0
B69: 3 | C69: 7 | D69: 0 | E69: 0 | F69: 0 | G69: 0 | H69: 0 | I69: 0 | J69: 0 | K69: 0 | L69: 0 | M69: 0 | N69: 0 | O69: 0 | P69: 0 | Q69: 0 | R69: =COUNTIFS($B$10:$B$39,$B69,S$10:S$39,$C69) -> 0 | S69: 0 | T69: 0 | U69: 0 | V69: =COUNTIFS($B$10:$B$39,$B69,W$10:W$39,$C69) -> 0 | W69: 0 | X69: 0 | Y69: 0 | Z69: 0 | AA69: 0 | AB69: 0 | AC69: 0 | AD69: 0 | AE69: 0 | AF69: 0 | AG69: 0 | AH69: 0 | AI69: 0 | AJ69: 0 | AK69: 0 | AL69: 0 | AM69: 0 | AN69: 0 | AO69: 0 | AP69: 0 | AQ69: 0 | AR69: 0 | AS69: 0 | AT69: 0 | AU69: 0 | AV69: 0 | AW69: 0 | AX69: 0 | AY69: 0 | AZ69: 0 | BA69: 0 | BB69: 0 | BC69: 0 | BD69: 0 | BE69: 0 | BF69: 0 | BG69: 0 | BH69: 0 | BI69: 0 | BJ69: 0 | BK69: 0 | BL69: 0 | BM69: 0 | BN69: 0 | BO69: 0 | BP69: 0 | BQ69: 0 | BR69: 0 | BS69: 0 | BT69: 0 | BU69: 0 | BV69: 0 | BW69: 0 | BX69: 0 | BY69: 0 | BZ69: 0 | CA69: 0 | CB69: 0 | CC69: 0 | CD69: =COUNTIFS($B$10:$B$39,$B69,CE$10:CE$39,$C69) -> 0 | CE69: 0 | CF69: 0 | CG69: 0 | CH69: =COUNTIFS($B$10:$B$39,$B69,CI$10:CI$39,$C69) -> 0 | CI69: 0 | CJ69: 0 | CK69: 0 | CL69: 0 | CM69: 0 | CN69: 0 | CO69: 0 | CP69: 0 | CQ69: 0 | CR69: 0 | CS69: 0 | CT69: 0 | CU69: 0 | CV69: 0 | CW69: 0 | CX69: 0 | CY69: 0 | CZ69: 0 | DA69: 0 | DB69: 0 | DC69: 0 | DD69: 0 | DE69: 0 | DF69: 0 | DG69: 0 | DH69: 0 | DI69: 0 | DJ69: 0 | DK69: 0 | DL69: 0 | DM69: 0 | DN69: 0 | DO69: 0 | DP69: 0 | DQ69: 0 | DR69: 0 | DS69: 0 | DT69: 0 | DU69: 0 | DV69: 0 | DW69: 0 | DX69: 0 | DY69: 0 | DZ69: 0 | EA69: 0 | EB69: 0 | EC69: 0 | ED69: 0 | EE69: 0 | EF69: 0 | EG69: 0 | EH69: 0 | EI69: 0 | EJ69: 0 | EK69: 0 | EL69: 0 | EM69: 0 | EN69: 0 | EO69: 0 | EP69: =COUNTIFS($B$10:$B$39,$B69,EQ$10:EQ$39,$C69) -> 0 | EQ69: 0 | ER69: 0 | ES69: 0 | ET69: =COUNTIFS($B$10:$B$39,$B69,EU$10:EU$39,$C69) -> 0 | EU69: 0 | EV69: 0 | EW69: 0 | EX69: 0 | EY69: 0 | EZ69: 0 | FA69: 0 | FB69: 0 | FC69: 0 | FD69: 0 | FE69: 0 | FF69: 0 | FG69: 0 | FH69: 0 | FI69: 0 | FJ69: 0 | FK69: 0 | FL69: 0 | FM69: 0 | FN69: 0 | FO69: 0 | FP69: 0 | FQ69: 0 | FR69: 0 | FS69: 0 | FT69: 0 | FU69: 0 | FV69: 0 | FW69: 0 | FX69: 0 | FY69: 0 | FZ69: 0 | GA69: 0 | GB69: 0 | GC69: 0 | GD69: 0 | GE69: 0 | GF69: 0 | GG69: 0 | GH69: 0 | GI69: 0 | GJ69: 0 | GK69: 0 | GL69: 0 | GM69: 0 | GN69: 0 | GO69: 0 | GP69: 0 | GQ69: 0 | GR69: 0 | GS69: 0 | GT69: 0 | GU69: 0 | GV69: 0 | GW69: 0 | GX69: 0 | GY69: 0 | GZ69: 0 | HA69: 0 | HB69: =COUNTIFS($B$10:$B$39,$B69,HC$10:HC$39,$C69) -> 0 | HC69: 0 | HD69: 0 | HE69: 0 | HF69: =COUNTIFS($B$10:$B$39,$B69,HG$10:HG$39,$C69) -> 0 | HG69: 0 | HH69: 0 | HI69: 0 | HJ69: 0 | HK69: 0 | HL69: 0 | HM69: 0 | HN69: 0 | HO69: 0 | HP69: 0 | HQ69: 0 | HR69: 0 | HS69: 0 | HT69: 0 | HU69: 0 | HV69: 0 | HW69: 0 | HX69: 0 | HY69: 0 | HZ69: 0 | IA69: 0 | IB69: 0 | IC69: 0 | ID69: 0 | IE69: 0 | IF69: 0 | IG69: 0 | IH69: 0 | II69: 0 | IJ69: 0 | IK69: 0 | IL69: 0 | IM69: 0 | IN69: 0 | IO69: 0 | IP69: 0 | IQ69: 0 | IR69: 0 | IS69: 0 | IT69: 0 | IU69: 0 | IV69: 0 | IW69: 0 | IX69: 0 | IY69: 0 | IZ69: 0 | JA69: 0 | JB69: 0 | JC69: 0 | JD69: 0 | JE69: 0 | JF69: 0 | JG69: 0 | JH69: 0 | JI69: 0 | JJ69: 0 | JK69: 0 | JL69: 0 | JM69: 0 | JN69: =COUNTIFS($B$10:$B$39,$B69,JO$10:JO$39,$C69) -> 0 | JO69: 0 | JP69: 0 | JQ69: 0 | JR69: =COUNTIFS($B$10:$B$39,$B69,JS$10:JS$39,$C69) -> 0 | JS69: 0 | JT69: 0 | JU69: 0 | JV69: 0 | JW69: 0 | JX69: 0 | JY69: 0 | JZ69: 0 | KA69: 0 | KB69: 0 | KC69: 0 | KD69: 0 | KE69: 0 | KF69: 0 | KG69: 0 | KH69: 0 | KI69: 0 | KJ69: 0 | KK69: 0 | KL69: 0 | KM69: 0 | KN69: 0 | KO69: 0 | KP69: 0 | KQ69: 0 | KR69: 0 | KS69: 0 | KT69: =COUNTIFS($B$10:$B$39,$B69,KU$10:KU$39,$C69) -> 0 | KU69: 0 | KV69: 0 | KW69: 0 | KX69: =COUNTIFS($B$10:$B$39,$B69,KY$10:KY$39,$C69) -> 0 | KY69: 0 | KZ69: 0 | LA69: 0 | LB69: =COUNTIFS($B$10:$B$39,$B69,LC$10:LC$39,$C69) -> 0 | LC69: 0 | LD69: 0 | LE69: 0 | LF69: =COUNTIFS($B$10:$B$39,$B69,LG$10:LG$39,$C69) -> 0 | LG69: 0 | LH69: 0 | LI69: 0 | LJ69: =COUNTIFS($B$10:$B$39,$B69,LK$10:LK$39,$C69) -> 0 | LK69: 0 | LL69: 0 | LM69: 0 | LN69: =COUNTIFS($B$10:$B$39,$B69,LO$10:LO$39,$C69) -> 0 | LO69: 0 | LP69: 0 | LQ69: 0 | LR69: =COUNTIFS($B$10:$B$39,$B69,LS$10:LS$39,$C69) -> 0 | LS69: 0 | LT69: 0 | LU69: 0 | LV69: =COUNTIFS($B$10:$B$39,$B69,LW$10:LW$39,$C69) -> 0 | LW69: 0 | LX69: 0 | LY69: 0 | LZ69: =COUNTIFS($B$10:$B$39,$B69,MA$10:MA$39,$C69) -> 0 | MA69: 0 | MB69: 0 | MC69: 0 | MD69: =COUNTIFS($B$10:$B$39,$B69,ME$10:ME$39,$C69) -> 0 | ME69: 0 | MF69: 0 | MG69: 0 | MH69: =COUNTIFS($B$10:$B$39,$B69,MI$10:MI$39,$C69) -> 0 | MI69: 0 | MJ69: 0 | MK69: 0 | ML69: =COUNTIFS($B$10:$B$39,$B69,MM$10:MM$39,$C69) -> 0 | MM69: 0 | MN69: 0 | MO69: 0 | MP69: =COUNTIFS($B$10:$B$39,$B69,MQ$10:MQ$39,$C69) -> 0 | MQ69: 0 | MR69: 0 | MS69: 0 | MT69: =COUNTIFS($B$10:$B$39,$B69,MU$10:MU$39,$C69) -> 0 | MU69: 0 | MV69: 0 | MW69: 0 | MX69: =COUNTIFS($B$10:$B$39,$B69,MY$10:MY$39,$C69) -> 0 | MY69: 0 | MZ69: 0 | NA69: 0 | NB69: =COUNTIFS($B$10:$B$39,$B69,NC$10:NC$39,$C69) -> 0 | NC69: 0 | ND69: 0 | NE69: 0 | NF69: =COUNTIFS($B$10:$B$39,$B69,NG$10:NG$39,$C69) -> 0 | NG69: 0 | NH69: 6 | NI69: 0 | NJ69: =COUNTIFS($B$10:$B$39,$B69,NK$10:NK$39,$C69) -> 1 | NK69: 6 | NL69: 0 | NM69: 0 | NN69: =COUNTIFS($B$10:$B$39,$B69,NO$10:NO$39,$C69) -> 0 | NO69: 0 | NP69: 0 | NQ69: 0 | NR69: =COUNTIFS($B$10:$B$39,$B69,NS$10:NS$39,$C69) -> 0 | NS69: 0 | NT69: 6 | NU69: 0 | NV69: =COUNTIFS($B$10:$B$39,$B69,NW$10:NW$39,$C69) -> 1 | NW69: 6 | NX69: 0 | NY69: 0 | NZ69: =COUNTIFS($B$10:$B$39,$B69,OA$10:OA$39,$C69) -> 0 | OA69: 0 | OB69: 0 | OC69: 0 | OD69: =COUNTIFS($B$10:$B$39,$B69,OE$10:OE$39,$C69) -> 0 | OE69: 0 | OF69: 0 | OG69: 0 | OH69: =COUNTIFS($B$10:$B$39,$B69,OI$10:OI$39,$C69) -> 0 | OI69: 0 | OJ69: 0 | OK69: 0 | OL69: =COUNTIFS($B$10:$B$39,$B69,OM$10:OM$39,$C69) -> 0 | OM69: 0 | ON69: 0 | OO69: 0 | OP69: =COUNTIFS($B$10:$B$39,$B69,OQ$10:OQ$39,$C69) -> 0 | OQ69: 0 | OR69: 0 | OS69: 0 | OT69: =COUNTIFS($B$10:$B$39,$B69,OU$10:OU$39,$C69) -> 0 | OU69: 0 | OV69: 0 | OW69: 0 | OX69: =COUNTIFS($B$10:$B$39,$B69,OY$10:OY$39,$C69) -> 0 | OY69: 0 | OZ69: 0 | PA69: 0 | PB69: =COUNTIFS($B$10:$B$39,$B69,PC$10:PC$39,$C69) -> 0 | PC69: 0 | PD69: 0 | PE69: 0 | PF69: =COUNTIFS($B$10:$B$39,$B69,PG$10:PG$39,$C69) -> 0 | PG69: 0 | PH69: 0 | PI69: 0 | PJ69: =COUNTIFS($B$10:$B$39,$B69,PK$10:PK$39,$C69) -> 0 | PK69: 0 | PL69: 0 | PM69: 0 | PN69: =COUNTIFS($B$10:$B$39,$B69,PO$10:PO$39,$C69) -> 0 | PO69: 0 | PP69: 0 | PQ69: 0 | PR69: =COUNTIFS($B$10:$B$39,$B69,PS$10:PS$39,$C69) -> 0 | PS69: 0 | PT69: 0 | PU69: 0 | PV69: =COUNTIFS($B$10:$B$39,$B69,PW$10:PW$39,$C69) -> 0 | PW69: 0 | PX69: 0 | PY69: 0 | PZ69: =COUNTIFS($B$10:$B$39,$B69,QA$10:QA$39,$C69) -> 0 | QA69: 0 | QB69: 0 | QC69: 0 | QD69: =COUNTIFS($B$10:$B$39,$B69,QE$10:QE$39,$C69) -> 0 | QE69: 0 | QF69: 0 | QG69: 0 | QH69: =COUNTIFS($B$10:$B$39,$B69,QI$10:QI$39,$C69) -> 0 | QI69: 0
B70: 3 | C70: 8 | D70: 0 | E70: 0 | F70: 0 | G70: 0 | H70: 0 | I70: 0 | J70: =COUNTIFS($B$10:$B$39,$B70,K$10:K$39,$C70) -> 0 | K70: 0 | L70: 0 | M70: 0 | N70: =COUNTIFS($B$10:$B$39,$B70,O$10:O$39,$C70) -> 0 | O70: 0 | P70: 0 | Q70: 0 | R70: =COUNTIFS($B$10:$B$39,$B70,S$10:S$39,$C70) -> 0 | S70: 0 | T70: 0 | U70: 0 | V70: =COUNTIFS($B$10:$B$39,$B70,W$10:W$39,$C70) -> 0 | W70: 0 | X70: 0 | Y70: 0 | Z70: =COUNTIFS($B$10:$B$39,$B70,AA$10:AA$39,$C70) -> 0 | AA70: 0 | AB70: 0 | AC70: 0 | AD70: =COUNTIFS($B$10:$B$39,$B70,AE$10:AE$39,$C70) -> 0 | AE70: 0 | AF70: 0 | AG70: 0 | AH70: =COUNTIFS($B$10:$B$39,$B70,AI$10:AI$39,$C70) -> 0 | AI70: 0 | AJ70: 0 | AK70: 0 | AL70: =COUNTIFS($B$10:$B$39,$B70,AM$10:AM$39,$C70) -> 0 | AM70: 0 | AN70: 0 | AO70: 0 | AP70: =COUNTIFS($B$10:$B$39,$B70,AQ$10:AQ$39,$C70) -> 0 | AQ70: 0 | AR70: 0 | AS70: 0 | AT70: =COUNTIFS($B$10:$B$39,$B70,AU$10:AU$39,$C70) -> 0 | AU70: 0 | AV70: 0 | AW70: 0 | AX70: =COUNTIFS($B$10:$B$39,$B70,AY$10:AY$39,$C70) -> 0 | AY70: 0 | AZ70: 0 | BA70: 0 | BB70: =COUNTIFS($B$10:$B$39,$B70,BC$10:BC$39,$C70) -> 0 | BC70: 0 | BD70: 0 | BE70: 0 | BF70: =COUNTIFS($B$10:$B$39,$B70,BG$10:BG$39,$C70) -> 0 | BG70: 0 | BH70: 0 | BI70: 0 | BJ70: =COUNTIFS($B$10:$B$39,$B70,BK$10:BK$39,$C70) -> 0 | BK70: 0 | BL70: 0 | BM70: 0 | BN70: =COUNTIFS($B$10:$B$39,$B70,BO$10:BO$39,$C70) -> 0 | BO70: 0 | BP70: 0 | BQ70: 0 | BR70: =COUNTIFS($B$10:$B$39,$B70,BS$10:BS$39,$C70) -> 0 | BS70: 0 | BT70: 0 | BU70: 0 | BV70: =COUNTIFS($B$10:$B$39,$B70,BW$10:BW$39,$C70) -> 0 | BW70: 0 | BX70: 0 | BY70: 0 | BZ70: =COUNTIFS($B$10:$B$39,$B70,CA$10:CA$39,$C70) -> 0 | CA70: 0 | CB70: 0 | CC70: 0 | CD70: =COUNTIFS($B$10:$B$39,$B70,CE$10:CE$39,$C70) -> 0 | CE70: 0 | CF70: 0 | CG70: 0 | CH70: =COUNTIFS($B$10:$B$39,$B70,CI$10:CI$39,$C70) -> 0 | CI70: 0 | CJ70: 0 | CK70: 0 | CL70: =COUNTIFS($B$10:$B$39,$B70,CM$10:CM$39,$C70) -> 0 | CM70: 0 | CN70: 0 | CO70: 0 | CP70: =COUNTIFS($B$10:$B$39,$B70,CQ$10:CQ$39,$C70) -> 0 | CQ70: 0 | CR70: 0 | CS70: 0 | CT70: =COUNTIFS($B$10:$B$39,$B70,CU$10:CU$39,$C70) -> 0 | CU70: 0 | CV70: 0 | CW70: 0 | CX70: =COUNTIFS($B$10:$B$39,$B70,CY$10:CY$39,$C70) -> 0 | CY70: 0 | CZ70: 0 | DA70: 0 | DB70: =COUNTIFS($B$10:$B$39,$B70,DC$10:DC$39,$C70) -> 0 | DC70: 0 | DD70: 0 | DE70: 0 | DF70: =COUNTIFS($B$10:$B$39,$B70,DG$10:DG$39,$C70) -> 0 | DG70: 0 | DH70: 0 | DI70: 0 | DJ70: =COUNTIFS($B$10:$B$39,$B70,DK$10:DK$39,$C70) -> 0 | DK70: 0 | DL70: 0 | DM70: 0 | DN70: =COUNTIFS($B$10:$B$39,$B70,DO$10:DO$39,$C70) -> 0 | DO70: 0 | DP70: 0 | DQ70: 0 | DR70: =COUNTIFS($B$10:$B$39,$B70,DS$10:DS$39,$C70) -> 0 | DS70: 0 | DT70: 0 | DU70: 0 | DV70: =COUNTIFS($B$10:$B$39,$B70,DW$10:DW$39,$C70) -> 0 | DW70: 0 | DX70: 0 | DY70: 0 | DZ70: =COUNTIFS($B$10:$B$39,$B70,EA$10:EA$39,$C70) -> 0 | EA70: 0 | EB70: 0 | EC70: 0 | ED70: =COUNTIFS($B$10:$B$39,$B70,EE$10:EE$39,$C70) -> 0 | EE70: 0 | EF70: 0 | EG70: 0 | EH70: =COUNTIFS($B$10:$B$39,$B70,EI$10:EI$39,$C70) -> 0 | EI70: 0 | EJ70: 0 | EK70: 0 | EL70: =COUNTIFS($B$10:$B$39,$B70,EM$10:EM$39,$C70) -> 0 | EM70: 0 | EN70: 0 | EO70: 0 | EP70: =COUNTIFS($B$10:$B$39,$B70,EQ$10:EQ$39,$C70) -> 0 | EQ70: 0 | ER70: 0 | ES70: 0 | ET70: =COUNTIFS($B$10:$B$39,$B70,EU$10:EU$39,$C70) -> 0 | EU70: 0 | EV70: 0 | EW70: 0 | EX70: =COUNTIFS($B$10:$B$39,$B70,EY$10:EY$39,$C70) -> 0 | EY70: 0 | EZ70: 0 | FA70: 0 | FB70: =COUNTIFS($B$10:$B$39,$B70,FC$10:FC$39,$C70) -> 0 | FC70: 0 | FD70: 0 | FE70: 0 | FF70: =COUNTIFS($B$10:$B$39,$B70,FG$10:FG$39,$C70) -> 0 | FG70: 0 | FH70: 0 | FI70: 0 | FJ70: =COUNTIFS($B$10:$B$39,$B70,FK$10:FK$39,$C70) -> 0 | FK70: 0 | FL70: 0 | FM70: 0 | FN70: =COUNTIFS($B$10:$B$39,$B70,FO$10:FO$39,$C70) -> 0 | FO70: 0 | FP70: 0 | FQ70: 0 | FR70: =COUNTIFS($B$10:$B$39,$B70,FS$10:FS$39,$C70) -> 0 | FS70: 0 | FT70: 0 | FU70: 0 | FV70: =COUNTIFS($B$10:$B$39,$B70,FW$10:FW$39,$C70) -> 0 | FW70: 0 | FX70: 0 | FY70: 0 | FZ70: =COUNTIFS($B$10:$B$39,$B70,GA$10:GA$39,$C70) -> 0 | GA70: 0 | GB70: 0 | GC70: 0 | GD70: =COUNTIFS($B$10:$B$39,$B70,GE$10:GE$39,$C70) -> 0 | GE70: 0 | GF70: 0 | GG70: 0 | GH70: =COUNTIFS($B$10:$B$39,$B70,GI$10:GI$39,$C70) -> 0 | GI70: 0 | GJ70: 0 | GK70: 0 | GL70: =COUNTIFS($B$10:$B$39,$B70,GM$10:GM$39,$C70) -> 0 | GM70: 0 | GN70: 0 | GO70: 0 | GP70: =COUNTIFS($B$10:$B$39,$B70,GQ$10:GQ$39,$C70) -> 0 | GQ70: 0 | GR70: 0 | GS70: 0 | GT70: =COUNTIFS($B$10:$B$39,$B70,GU$10:GU$39,$C70) -> 0 | GU70: 0 | GV70: 0 | GW70: 0 | GX70: =COUNTIFS($B$10:$B$39,$B70,GY$10:GY$39,$C70) -> 0 | GY70: 0 | GZ70: 0 | HA70: 0 | HB70: =COUNTIFS($B$10:$B$39,$B70,HC$10:HC$39,$C70) -> 0 | HC70: 0 | HD70: 0 | HE70: 0 | HF70: =COUNTIFS($B$10:$B$39,$B70,HG$10:HG$39,$C70) -> 0 | HG70: 0 | HH70: 0 | HI70: 0 | HJ70: =COUNTIFS($B$10:$B$39,$B70,HK$10:HK$39,$C70) -> 0 | HK70: 0 | HL70: 0 | HM70: 0 | HN70: =COUNTIFS($B$10:$B$39,$B70,HO$10:HO$39,$C70) -> 0 | HO70: 0 | HP70: 0 | HQ70: 0 | HR70: =COUNTIFS($B$10:$B$39,$B70,HS$10:HS$39,$C70) -> 0 | HS70: 0 | HT70: 0 | HU70: 0 | HV70: =COUNTIFS($B$10:$B$39,$B70,HW$10:HW$39,$C70) -> 0 | HW70: 0 | HX70: 0 | HY70: 0 | HZ70: =COUNTIFS($B$10:$B$39,$B70,IA$10:IA$39,$C70) -> 0 | IA70: 0 | IB70: 0 | IC70: 0 | ID70: =COUNTIFS($B$10:$B$39,$B70,IE$10:IE$39,$C70) -> 0 | IE70: 0 | IF70: 0 | IG70: 0 | IH70: =COUNTIFS($B$10:$B$39,$B70,II$10:II$39,$C70) -> 0 | II70: 0 | IJ70: 0 | IK70: 0 | IL70: =COUNTIFS($B$10:$B$39,$B70,IM$10:IM$39,$C70) -> 0 | IM70: 0 | IN70: 0 | IO70: 0 | IP70: =COUNTIFS($B$10:$B$39,$B70,IQ$10:IQ$39,$C70) -> 0 | IQ70: 0 | IR70: 0 | IS70: 0 | IT70: =COUNTIFS($B$10:$B$39,$B70,IU$10:IU$39,$C70) -> 0 | IU70: 0 | IV70: 0 | IW70: 0 | IX70: =COUNTIFS($B$10:$B$39,$B70,IY$10:IY$39,$C70) -> 0 | IY70: 0 | IZ70: 0 | JA70: 0 | JB70: =COUNTIFS($B$10:$B$39,$B70,JC$10:JC$39,$C70) -> 0 | JC70: 0 | JD70: 0 | JE70: 0 | JF70: =COUNTIFS($B$10:$B$39,$B70,JG$10:JG$39,$C70) -> 0 | JG70: 0 | JH70: 0 | JI70: 0 | JJ70: =COUNTIFS($B$10:$B$39,$B70,JK$10:JK$39,$C70) -> 0 | JK70: 0 | JL70: 0 | JM70: 0 | JN70: =COUNTIFS($B$10:$B$39,$B70,JO$10:JO$39,$C70) -> 0 | JO70: 0 | JP70: 0 | JQ70: 0 | JR70: =COUNTIFS($B$10:$B$39,$B70,JS$10:JS$39,$C70) -> 0 | JS70: 0 | JT70: 0 | JU70: 0 | JV70: =COUNTIFS($B$10:$B$39,$B70,JW$10:JW$39,$C70) -> 0 | JW70: 0 | JX70: 0 | JY70: 0 | JZ70: =COUNTIFS($B$10:$B$39,$B70,KA$10:KA$39,$C70) -> 0 | KA70: 0 | KB70: 0 | KC70: 0 | KD70: =COUNTIFS($B$10:$B$39,$B70,KE$10:KE$39,$C70) -> 0 | KE70: 0 | KF70: 0 | KG70: 0 | KH70: =COUNTIFS($B$10:$B$39,$B70,KI$10:KI$39,$C70) -> 0 | KI70: 0 | KJ70: 0 | KK70: 0 | KL70: =COUNTIFS($B$10:$B$39,$B70,KM$10:KM$39,$C70) -> 0 | KM70: 0 | KN70: 0 | KO70: 0 | KP70: =COUNTIFS($B$10:$B$39,$B70,KQ$10:KQ$39,$C70) -> 0 | KQ70: 0 | KR70: 0 | KS70: 0 | KT70: =COUNTIFS($B$10:$B$39,$B70,KU$10:KU$39,$C70) -> 0 | KU70: 0 | KV70: 0 | KW70: 0 | KX70: =COUNTIFS($B$10:$B$39,$B70,KY$10:KY$39,$C70) -> 0 | KY70: 0 | KZ70: 0 | LA70: 0 | LB70: =COUNTIFS($B$10:$B$39,$B70,LC$10:LC$39,$C70) -> 0 | LC70: 0 | LD70: 0 | LE70: 0 | LF70: =COUNTIFS($B$10:$B$39,$B70,LG$10:LG$39,$C70) -> 0 | LG70: 0 | LH70: 0 | LI70: 0 | LJ70: =COUNTIFS($B$10:$B$39,$B70,LK$10:LK$39,$C70) -> 0 | LK70: 0 | LL70: 0 | LM70: 0 | LN70: =COUNTIFS($B$10:$B$39,$B70,LO$10:LO$39,$C70) -> 0 | LO70: 0 | LP70: 0 | LQ70: 0 | LR70: =COUNTIFS($B$10:$B$39,$B70,LS$10:LS$39,$C70) -> 0 | LS70: 0 | LT70: 0 | LU70: 0 | LV70: =COUNTIFS($B$10:$B$39,$B70,LW$10:LW$39,$C70) -> 0 | LW70: 0 | LX70: 0 | LY70: 0 | LZ70: =COUNTIFS($B$10:$B$39,$B70,MA$10:MA$39,$C70) -> 0 | MA70: 0 | MB70: 0 | MC70: 0 | MD70: =COUNTIFS($B$10:$B$39,$B70,ME$10:ME$39,$C70) -> 0 | ME70: 0 | MF70: 0 | MG70: 0 | MH70: =COUNTIFS($B$10:$B$39,$B70,MI$10:MI$39,$C70) -> 0 | MI70: 0 | MJ70: 0 | MK70: 0 | ML70: =COUNTIFS($B$10:$B$39,$B70,MM$10:MM$39,$C70) -> 0 | MM70: 0 | MN70: 0 | MO70: 0 | MP70: =COUNTIFS($B$10:$B$39,$B70,MQ$10:MQ$39,$C70) -> 0 | MQ70: 0 | MR70: 0 | MS70: 0 | MT70: =COUNTIFS($B$10:$B$39,$B70,MU$10:MU$39,$C70) -> 0 | MU70: 0 | MV70: 0 | MW70: 0 | MX70: =COUNTIFS($B$10:$B$39,$B70,MY$10:MY$39,$C70) -> 0 | MY70: 0 | MZ70: 0 | NA70: 0 | NB70: =COUNTIFS($B$10:$B$39,$B70,NC$10:NC$39,$C70) -> 0 | NC70: 0 | ND70: 0 | NE70: 0 | NF70: =COUNTIFS($B$10:$B$39,$B70,NG$10:NG$39,$C70) -> 0 | NG70: 0 | NH70: 0 | NI70: 0 | NJ70: =COUNTIFS($B$10:$B$39,$B70,NK$10:NK$39,$C70) -> 0 | NK70: 0 | NL70: 0 | NM70: 0 | NN70: =COUNTIFS($B$10:$B$39,$B70,NO$10:NO$39,$C70) -> 0 | NO70: 0 | NP70: 0 | NQ70: 0 | NR70: =COUNTIFS($B$10:$B$39,$B70,NS$10:NS$39,$C70) -> 0 | NS70: 0 | NT70: 0 | NU70: 0 | NV70: =COUNTIFS($B$10:$B$39,$B70,NW$10:NW$39,$C70) -> 0 | NW70: 0 | NX70: 0 | NY70: 0 | NZ70: =COUNTIFS($B$10:$B$39,$B70,OA$10:OA$39,$C70) -> 0 | OA70: 0 | OB70: 0 | OC70: 0 | OD70: =COUNTIFS($B$10:$B$39,$B70,OE$10:OE$39,$C70) -> 0 | OE70: 0 | OF70: 0 | OG70: 0 | OH70: =COUNTIFS($B$10:$B$39,$B70,OI$10:OI$39,$C70) -> 0 | OI70: 0 | OJ70: 0 | OK70: 0 | OL70: =COUNTIFS($B$10:$B$39,$B70,OM$10:OM$39,$C70) -> 0 | OM70: 0 | ON70: 0 | OO70: 0 | OP70: =COUNTIFS($B$10:$B$39,$B70,OQ$10:OQ$39,$C70) -> 0 | OQ70: 0 | OR70: 0 | OS70: 0 | OT70: =COUNTIFS($B$10:$B$39,$B70,OU$10:OU$39,$C70) -> 0 | OU70: 0 | OV70: 0 | OW70: 0 | OX70: =COUNTIFS($B$10:$B$39,$B70,OY$10:OY$39,$C70) -> 0 | OY70: 0 | OZ70: 0 | PA70: 0 | PB70: =COUNTIFS($B$10:$B$39,$B70,PC$10:PC$39,$C70) -> 0 | PC70: 0 | PD70: 0 | PE70: 0 | PF70: =COUNTIFS($B$10:$B$39,$B70,PG$10:PG$39,$C70) -> 0 | PG70: 0 | PH70: 0 | PI70: 0 | PJ70: =COUNTIFS($B$10:$B$39,$B70,PK$10:PK$39,$C70) -> 0 | PK70: 0 | PL70: 0 | PM70: 0 | PN70: =COUNTIFS($B$10:$B$39,$B70,PO$10:PO$39,$C70) -> 0 | PO70: 0 | PP70: 0 | PQ70: 0 | PR70: =COUNTIFS($B$10:$B$39,$B70,PS$10:PS$39,$C70) -> 0 | PS70: 0 | PT70: 0 | PU70: 0 | PV70: =COUNTIFS($B$10:$B$39,$B70,PW$10:PW$39,$C70) -> 0 | PW70: 0 | PX70: 0 | PY70: 0 | PZ70: =COUNTIFS($B$10:$B$39,$B70,QA$10:QA$39,$C70) -> 0 | QA70: 0 | QB70: 0 | QC70: 0 | QD70: =COUNTIFS($B$10:$B$39,$B70,QE$10:QE$39,$C70) -> 0 | QE70: 0 | QF70: 0 | QG70: 0 | QH70: =COUNTIFS($B$10:$B$39,$B70,QI$10:QI$39,$C70) -> 0 | QI70: 0
B71: 3 | C71: 9 | D71: 0 | E71: 0 | F71: 0 | G71: 0 | H71: 0 | I71: 0 | J71: 0 | K71: 0 | L71: 0 | M71: 0 | N71: 0 | O71: 0 | P71: 0 | Q71: 0 | R71: 0 | S71: 0 | T71: 0 | U71: 0 | V71: 0 | W71: 0 | X71: 0 | Y71: 0 | Z71: 0 | AA71: 0 | AB71: 0 | AC71: 0 | AD71: 0 | AE71: 0 | AF71: 0 | AG71: 0 | AH71: 0 | AI71: 0 | AJ71: 0 | AK71: 0 | AL71: 0 | AM71: 0 | AN71: 0 | AO71: 0 | AP71: 0 | AQ71: 0 | AR71: 0 | AS71: 0 | AT71: 0 | AU71: 0 | AV71: 0 | AW71: 0 | AX71: 0 | AY71: 0 | AZ71: 0 | BA71: 0 | BB71: 0 | BC71: 0 | BD71: 0 | BE71: 0 | BF71: 0 | BG71: 0 | BH71: 0 | BI71: 0 | BJ71: 0 | BK71: 0 | BL71: 0 | BM71: 0 | BN71: 0 | BO71: 0 | BP71: 0 | BQ71: 0 | BR71: 0 | BS71: 0 | BT71: 0 | BU71: 0 | BV71: 0 | BW71: 0 | BX71: 0 | BY71: 0 | BZ71: 0 | CA71: 0 | CB71: 0 | CC71: 0 | CD71: 0 | CE71: 0 | CF71: 0 | CG71: 0 | CH71: 0 | CI71: 0 | CJ71: 0 | CK71: 0 | CL71: 0 | CM71: 0 | CN71: 0 | CO71: 0 | CP71: 0 | CQ71: 0 | CR71: 0 | CS71: 0 | CT71: 0 | CU71: 0 | CV71: 0 | CW71: 0 | CX71: 0 | CY71: 0 | CZ71: 0 | DA71: 0 | DB71: 0 | DC71: 0 | DD71: 0 | DE71: 0 | DF71: 0 | DG71: 0 | DH71: 0 | DI71: 0 | DJ71: 0 | DK71: 0 | DL71: 0 | DM71: 0 | DN71: 0 | DO71: 0 | DP71: 0 | DQ71: 0 | DR71: 0 | DS71: 0 | DT71: 0 | DU71: 0 | DV71: 0 | DW71: 0 | DX71: 0 | DY71: 0 | DZ71: 0 | EA71: 0 | EB71: 0 | EC71: 0 | ED71: 0 | EE71: 0 | EF71: 0 | EG71: 0 | EH71: 0 | EI71: 0 | EJ71: 0 | EK71: 0 | EL71: 0 | EM71: 0 | EN71: 0 | EO71: 0 | EP71: 0 | EQ71: 0 | ER71: 0 | ES71: 0 | ET71: 0 | EU71: 0 | EV71: 0 | EW71: 0 | EX71: 0 | EY71: 0 | EZ71: 0 | FA71: 0 | FB71: 0 | FC71: 0 | FD71: 0 | FE71: 0 | FF71: 0 | FG71: 0 | FH71: 0 | FI71: 0 | FJ71: 0 | FK71: 0 | FL71: 0 | FM71: 0 | FN71: 0 | FO71: 0 | FP71: 0 | FQ71: 0 | FR71: 0 | FS71: 0 | FT71: 0 | FU71: 0 | FV71: 0 | FW71: 0 | FX71: 0 | FY71: 0 | FZ71: 0 | GA71: 0 | GB71: 0 | GC71: 0 | GD71: 0 | GE71: 0 | GF71: 0 | GG71: 0 | GH71: 0 | GI71: 0 | GJ71: 0 | GK71: 0 | GL71: 0 | GM71: 0 | GN71: 0 | GO71: 0 | GP71: 0 | GQ71: 0 | GR71: 0 | GS71: 0 | GT71: 0 | GU71: 0 | GV71: 0 | GW71: 0 | GX71: 0 | GY71: 0 | GZ71: 0 | HA71: 0 | HB71: 0 | HC71: 0 | HD71: 0 | HE71: 0 | HF71: 0 | HG71: 0 | HH71: 0 | HI71: 0 | HJ71: 0 | HK71: 0 | HL71: 0 | HM71: 0 | HN71: 0 | HO71: 0 | HP71: 0 | HQ71: 0 | HR71: 0 | HS71: 0 | HT71: 0 | HU71: 0 | HV71: 0 | HW71: 0 | HX71: 0 | HY71: 0 | HZ71: 0 | IA71: 0 | IB71: 0 | IC71: 0 | ID71: 0 | IE71: 0 | IF71: 0 | IG71: 0 | IH71: 0 | II71: 0 | IJ71: 0 | IK71: 0 | IL71: 0 | IM71: 0 | IN71: 0 | IO71: 0 | IP71: 0 | IQ71: 0 | IR71: 0 | IS71: 0 | IT71: 0 | IU71: 0 | IV71: 0 | IW71: 0 | IX71: 0 | IY71: 0 | IZ71: 0 | JA71: 0 | JB71: 0 | JC71: 0 | JD71: 0 | JE71: 0 | JF71: 0 | JG71: 0 | JH71: 0 | JI71: 0 | JJ71: 0 | JK71: 0 | JL71: 0 | JM71: 0 | JN71: 0 | JO71: 0 | JP71: 0 | JQ71: 0 | JR71: 0 | JS71: 0 | JT71: 0 | JU71: 0 | JV71: 0 | JW71: 0 | JX71: 0 | JY71: 0 | JZ71: 0 | KA71: 0 | KB71: 0 | KC71: 0 | KD71: 0 | KE71: 0 | KF71: 0 | KG71: 0 | KH71: 0 | KI71: 0 | KJ71: 0 | KK71: 0 | KL71: 0 | KM71: 0 | KN71: 0 | KO71: 0 | KP71: 0 | KQ71: 0 | KR71: 0 | KS71: 0 | KT71: =COUNTIFS($B$10:$B$39,$B71,KU$10:KU$39,$C71) -> 0 | KU71: 0 | KV71: 0 | KW71: 0 | KX71: =COUNTIFS($B$10:$B$39,$B71,KY$10:KY$39,$C71) -> 0 | KY71: 0 | KZ71: 0 | LA71: 0 | LB71: =COUNTIFS($B$10:$B$39,$B71,LC$10:LC$39,$C71) -> 0 | LC71: 0 | LD71: 0 | LE71: 0 | LF71: =COUNTIFS($B$10:$B$39,$B71,LG$10:LG$39,$C71) -> 0 | LG71: 0 | LH71: 0 | LI71: 0 | LJ71: =COUNTIFS($B$10:$B$39,$B71,LK$10:LK$39,$C71) -> 0 | LK71: 0 | LL71: 0 | LM71: 0 | LN71: =COUNTIFS($B$10:$B$39,$B71,LO$10:LO$39,$C71) -> 0 | LO71: 0 | LP71: 0 | LQ71: 0 | LR71: =COUNTIFS($B$10:$B$39,$B71,LS$10:LS$39,$C71) -> 0 | LS71: 0 | LT71: 0 | LU71: 0 | LV71: =COUNTIFS($B$10:$B$39,$B71,LW$10:LW$39,$C71) -> 0 | LW71: 0 | LX71: 0 | LY71: 0 | LZ71: =COUNTIFS($B$10:$B$39,$B71,MA$10:MA$39,$C71) -> 0 | MA71: 0 | MB71: 0 | MC71: 0 | MD71: =COUNTIFS($B$10:$B$39,$B71,ME$10:ME$39,$C71) -> 0 | ME71: 0 | MF71: 0 | MG71: 0 | MH71: =COUNTIFS($B$10:$B$39,$B71,MI$10:MI$39,$C71) -> 0 | MI71: 0 | MJ71: 0 | MK71: 0 | ML71: =COUNTIFS($B$10:$B$39,$B71,MM$10:MM$39,$C71) -> 0 | MM71: 0 | MN71: 0 | MO71: 0 | MP71: =COUNTIFS($B$10:$B$39,$B71,MQ$10:MQ$39,$C71) -> 0 | MQ71: 0 | MR71: 0 | MS71: 0 | MT71: =COUNTIFS($B$10:$B$39,$B71,MU$10:MU$39,$C71) -> 0 | MU71: 0 | MV71: 0 | MW71: 0 | MX71: =COUNTIFS($B$10:$B$39,$B71,MY$10:MY$39,$C71) -> 0 | MY71: 0 | MZ71: 0 | NA71: 0 | NB71: =COUNTIFS($B$10:$B$39,$B71,NC$10:NC$39,$C71) -> 0 | NC71: 0 | ND71: 0 | NE71: 0 | NF71: =COUNTIFS($B$10:$B$39,$B71,NG$10:NG$39,$C71) -> 0 | NG71: 0 | NH71: 0 | NI71: 0 | NJ71: =COUNTIFS($B$10:$B$39,$B71,NK$10:NK$39,$C71) -> 0 | NK71: 0 | NL71: 0 | NM71: 0 | NN71: =COUNTIFS($B$10:$B$39,$B71,NO$10:NO$39,$C71) -> 0 | NO71: 0 | NP71: 0 | NQ71: 0 | NR71: =COUNTIFS($B$10:$B$39,$B71,NS$10:NS$39,$C71) -> 0 | NS71: 0 | NT71: 0 | NU71: 0 | NV71: =COUNTIFS($B$10:$B$39,$B71,NW$10:NW$39,$C71) -> 0 | NW71: 0 | NX71: 0 | NY71: 0 | NZ71: =COUNTIFS($B$10:$B$39,$B71,OA$10:OA$39,$C71) -> 0 | OA71: 0 | OB71: 0 | OC71: 0 | OD71: =COUNTIFS($B$10:$B$39,$B71,OE$10:OE$39,$C71) -> 0 | OE71: 0 | OF71: 0 | OG71: 0 | OH71: =COUNTIFS($B$10:$B$39,$B71,OI$10:OI$39,$C71) -> 0 | OI71: 0 | OJ71: 0 | OK71: 0 | OL71: =COUNTIFS($B$10:$B$39,$B71,OM$10:OM$39,$C71) -> 0 | OM71: 0 | ON71: 0 | OO71: 0 | OP71: =COUNTIFS($B$10:$B$39,$B71,OQ$10:OQ$39,$C71) -> 0 | OQ71: 0 | OR71: 0 | OS71: 0 | OT71: =COUNTIFS($B$10:$B$39,$B71,OU$10:OU$39,$C71) -> 0 | OU71: 0 | OV71: 0 | OW71: 0 | OX71: =COUNTIFS($B$10:$B$39,$B71,OY$10:OY$39,$C71) -> 0 | OY71: 0 | OZ71: 0 | PA71: 0 | PB71: =COUNTIFS($B$10:$B$39,$B71,PC$10:PC$39,$C71) -> 0 | PC71: 0 | PD71: 0 | PE71: 0 | PF71: =COUNTIFS($B$10:$B$39,$B71,PG$10:PG$39,$C71) -> 0 | PG71: 0 | PH71: 0 | PI71: 0 | PJ71: =COUNTIFS($B$10:$B$39,$B71,PK$10:PK$39,$C71) -> 0 | PK71: 0 | PL71: 0 | PM71: 0 | PN71: =COUNTIFS($B$10:$B$39,$B71,PO$10:PO$39,$C71) -> 0 | PO71: 0 | PP71: 0 | PQ71: 0 | PR71: =COUNTIFS($B$10:$B$39,$B71,PS$10:PS$39,$C71) -> 0 | PS71: 0 | PT71: 0 | PU71: 0 | PV71: =COUNTIFS($B$10:$B$39,$B71,PW$10:PW$39,$C71) -> 0 | PW71: 0 | PX71: 0 | PY71: 0 | PZ71: =COUNTIFS($B$10:$B$39,$B71,QA$10:QA$39,$C71) -> 0 | QA71: 0 | QB71: 0 | QC71: 0 | QD71: =COUNTIFS($B$10:$B$39,$B71,QE$10:QE$39,$C71) -> 0 | QE71: 0 | QF71: 0 | QG71: 0 | QH71: =COUNTIFS($B$10:$B$39,$B71,QI$10:QI$39,$C71) -> 0 | QI71: 0
B72: 3 | C72: 10 | D72: 0 | E72: 0 | F72: 0 | G72: 0 | H72: 0 | I72: 0 | J72: 0 | K72: 0 | L72: 0 | M72: 0 | N72: 0 | O72: 0 | P72: 0 | Q72: 0 | R72: 0 | S72: 0 | T72: 0 | U72: 0 | V72: 0 | W72: 0 | X72: 0 | Y72: 0 | Z72: 0 | AA72: 0 | AB72: 0 | AC72: 0 | AD72: 0 | AE72: 0 | AF72: 0 | AG72: 0 | AH72: 0 | AI72: 0 | AJ72: 0 | AK72: 0 | AL72: 0 | AM72: 0 | AN72: 0 | AO72: 0 | AP72: 0 | AQ72: 0 | AR72: 0 | AS72: 0 | AT72: 0 | AU72: 0 | AV72: 0 | AW72: 0 | AX72: 0 | AY72: 0 | AZ72: 0 | BA72: 0 | BB72: 0 | BC72: 0 | BD72: 0 | BE72: 0 | BF72: 0 | BG72: 0 | BH72: 0 | BI72: 0 | BJ72: 0 | BK72: 0 | BL72: 0 | BM72: 0 | BN72: 0 | BO72: 0 | BP72: 0 | BQ72: 0 | BR72: 0 | BS72: 0 | BT72: 0 | BU72: 0 | BV72: 0 | BW72: 0 | BX72: 0 | BY72: 0 | BZ72: 0 | CA72: 0 | CB72: 0 | CC72: 0 | CD72: 0 | CE72: 0 | CF72: 0 | CG72: 0 | CH72: 0 | CI72: 0 | CJ72: 0 | CK72: 0 | CL72: 0 | CM72: 0 | CN72: 0 | CO72: 0 | CP72: 0 | CQ72: 0 | CR72: 0 | CS72: 0 | CT72: 0 | CU72: 0 | CV72: 0 | CW72: 0 | CX72: 0 | CY72: 0 | CZ72: 0 | DA72: 0 | DB72: 0 | DC72: 0 | DD72: 0 | DE72: 0 | DF72: 0 | DG72: 0 | DH72: 0 | DI72: 0 | DJ72: 0 | DK72: 0 | DL72: 0 | DM72: 0 | DN72: 0 | DO72: 0 | DP72: 0 | DQ72: 0 | DR72: 0 | DS72: 0 | DT72: 0 | DU72: 0 | DV72: 0 | DW72: 0 | DX72: 0 | DY72: 0 | DZ72: 0 | EA72: 0 | EB72: 0 | EC72: 0 | ED72: 0 | EE72: 0 | EF72: 0 | EG72: 0 | EH72: 0 | EI72: 0 | EJ72: 0 | EK72: 0 | EL72: 0 | EM72: 0 | EN72: 0 | EO72: 0 | EP72: 0 | EQ72: 0 | ER72: 0 | ES72: 0 | ET72: 0 | EU72: 0 | EV72: 0 | EW72: 0 | EX72: 0 | EY72: 0 | EZ72: 0 | FA72: 0 | FB72: 0 | FC72: 0 | FD72: 0 | FE72: 0 | FF72: 0 | FG72: 0 | FH72: 0 | FI72: 0 | FJ72: 0 | FK72: 0 | FL72: 0 | FM72: 0 | FN72: 0 | FO72: 0 | FP72: 0 | FQ72: 0 | FR72: 0 | FS72: 0 | FT72: 0 | FU72: 0 | FV72: 0 | FW72: 0 | FX72: 0 | FY72: 0 | FZ72: 0 | GA72: 0 | GB72: 0 | GC72: 0 | GD72: 0 | GE72: 0 | GF72: 0 | GG72: 0 | GH72: 0 | GI72: 0 | GJ72: 0 | GK72: 0 | GL72: 0 | GM72: 0 | GN72: 0 | GO72: 0 | GP72: 0 | GQ72: 0 | GR72: 0 | GS72: 0 | GT72: 0 | GU72: 0 | GV72: 0 | GW72: 0 | GX72: 0 | GY72: 0 | GZ72: 0 | HA72: 0 | HB72: 0 | HC72: 0 | HD72: 0 | HE72: 0 | HF72: 0 | HG72: 0 | HH72: 0 | HI72: 0 | HJ72: 0 | HK72: 0 | HL72: 0 | HM72: 0 | HN72: 0 | HO72: 0 | HP72: 0 | HQ72: 0 | HR72: 0 | HS72: 0 | HT72: 0 | HU72: 0 | HV72: 0 | HW72: 0 | HX72: 0 | HY72: 0 | HZ72: 0 | IA72: 0 | IB72: 0 | IC72: 0 | ID72: 0 | IE72: 0 | IF72: 0 | IG72: 0 | IH72: 0 | II72: 0 | IJ72: 0 | IK72: 0 | IL72: 0 | IM72: 0 | IN72: 0 | IO72: 0 | IP72: 0 | IQ72: 0 | IR72: 0 | IS72: 0 | IT72: 0 | IU72: 0 | IV72: 0 | IW72: 0 | IX72: 0 | IY72: 0 | IZ72: 0 | JA72: 0 | JB72: 0 | JC72: 0 | JD72: 0 | JE72: 0 | JF72: 0 | JG72: 0 | JH72: 0 | JI72: 0 | JJ72: 0 | JK72: 0 | JL72: 0 | JM72: 0 | JN72: 0 | JO72: 0 | JP72: 0 | JQ72: 0 | JR72: 0 | JS72: 0 | JT72: 0 | JU72: 0 | JV72: 0 | JW72: 0 | JX72: 0 | JY72: 0 | JZ72: 0 | KA72: 0 | KB72: 0 | KC72: 0 | KD72: 0 | KE72: 0 | KF72: 0 | KG72: 0 | KH72: 0 | KI72: 0 | KJ72: 0 | KK72: 0 | KL72: 0 | KM72: 0 | KN72: 0 | KO72: 0 | KP72: 0 | KQ72: 0 | KR72: 0 | KS72: 0 | KT72: =COUNTIFS($B$10:$B$39,$B72,KU$10:KU$39,$C72) -> 0 | KU72: 0 | KV72: 0 | KW72: 0 | KX72: =COUNTIFS($B$10:$B$39,$B72,KY$10:KY$39,$C72) -> 0 | KY72: 0 | KZ72: 0 | LA72: 0 | LB72: =COUNTIFS($B$10:$B$39,$B72,LC$10:LC$39,$C72) -> 0 | LC72: 0 | LD72: 0 | LE72: 0 | LF72: =COUNTIFS($B$10:$B$39,$B72,LG$10:LG$39,$C72) -> 0 | LG72: 0 | LH72: 0 | LI72: 0 | LJ72: =COUNTIFS($B$10:$B$39,$B72,LK$10:LK$39,$C72) -> 0 | LK72: 0 | LL72: 0 | LM72: 0 | LN72: =COUNTIFS($B$10:$B$39,$B72,LO$10:LO$39,$C72) -> 0 | LO72: 0 | LP72: 0 | LQ72: 0 | LR72: =COUNTIFS($B$10:$B$39,$B72,LS$10:LS$39,$C72) -> 0 | LS72: 0 | LT72: 0 | LU72: 0 | LV72: =COUNTIFS($B$10:$B$39,$B72,LW$10:LW$39,$C72) -> 0 | LW72: 0 | LX72: 0 | LY72: 0 | LZ72: =COUNTIFS($B$10:$B$39,$B72,MA$10:MA$39,$C72) -> 0 | MA72: 0 | MB72: 0 | MC72: 0 | MD72: =COUNTIFS($B$10:$B$39,$B72,ME$10:ME$39,$C72) -> 0 | ME72: 0 | MF72: 0 | MG72: 0 | MH72: =COUNTIFS($B$10:$B$39,$B72,MI$10:MI$39,$C72) -> 0 | MI72: 0 | MJ72: 0 | MK72: 0 | ML72: =COUNTIFS($B$10:$B$39,$B72,MM$10:MM$39,$C72) -> 0 | MM72: 0 | MN72: 0 | MO72: 0 | MP72: =COUNTIFS($B$10:$B$39,$B72,MQ$10:MQ$39,$C72) -> 0 | MQ72: 0 | MR72: 0 | MS72: 0 | MT72: =COUNTIFS($B$10:$B$39,$B72,MU$10:MU$39,$C72) -> 0 | MU72: 0 | MV72: 0 | MW72: 0 | MX72: =COUNTIFS($B$10:$B$39,$B72,MY$10:MY$39,$C72) -> 0 | MY72: 0 | MZ72: 0 | NA72: 0 | NB72: =COUNTIFS($B$10:$B$39,$B72,NC$10:NC$39,$C72) -> 0 | NC72: 0 | ND72: 0 | NE72: 0 | NF72: =COUNTIFS($B$10:$B$39,$B72,NG$10:NG$39,$C72) -> 0 | NG72: 0 | NH72: 0 | NI72: 0 | NJ72: =COUNTIFS($B$10:$B$39,$B72,NK$10:NK$39,$C72) -> 0 | NK72: 0 | NL72: 0 | NM72: 0 | NN72: =COUNTIFS($B$10:$B$39,$B72,NO$10:NO$39,$C72) -> 0 | NO72: 0 | NP72: 0 | NQ72: 0 | NR72: =COUNTIFS($B$10:$B$39,$B72,NS$10:NS$39,$C72) -> 0 | NS72: 0 | NT72: 0 | NU72: 0 | NV72: =COUNTIFS($B$10:$B$39,$B72,NW$10:NW$39,$C72) -> 0 | NW72: 0 | NX72: 0 | NY72: 0 | NZ72: =COUNTIFS($B$10:$B$39,$B72,OA$10:OA$39,$C72) -> 0 | OA72: 0 | OB72: 0 | OC72: 0 | OD72: =COUNTIFS($B$10:$B$39,$B72,OE$10:OE$39,$C72) -> 0 | OE72: 0 | OF72: 0 | OG72: 0 | OH72: =COUNTIFS($B$10:$B$39,$B72,OI$10:OI$39,$C72) -> 0 | OI72: 0 | OJ72: 0 | OK72: 0 | OL72: =COUNTIFS($B$10:$B$39,$B72,OM$10:OM$39,$C72) -> 0 | OM72: 0 | ON72: 0 | OO72: 0 | OP72: =COUNTIFS($B$10:$B$39,$B72,OQ$10:OQ$39,$C72) -> 0 | OQ72: 0 | OR72: 0 | OS72: 0 | OT72: =COUNTIFS($B$10:$B$39,$B72,OU$10:OU$39,$C72) -> 0 | OU72: 0 | OV72: 0 | OW72: 0 | OX72: =COUNTIFS($B$10:$B$39,$B72,OY$10:OY$39,$C72) -> 0 | OY72: 0 | OZ72: 0 | PA72: 0 | PB72: =COUNTIFS($B$10:$B$39,$B72,PC$10:PC$39,$C72) -> 0 | PC72: 0 | PD72: 0 | PE72: 0 | PF72: =COUNTIFS($B$10:$B$39,$B72,PG$10:PG$39,$C72) -> 0 | PG72: 0 | PH72: 0 | PI72: 0 | PJ72: =COUNTIFS($B$10:$B$39,$B72,PK$10:PK$39,$C72) -> 0 | PK72: 0 | PL72: 0 | PM72: 0 | PN72: =COUNTIFS($B$10:$B$39,$B72,PO$10:PO$39,$C72) -> 0 | PO72: 0 | PP72: 0 | PQ72: 0 | PR72: =COUNTIFS($B$10:$B$39,$B72,PS$10:PS$39,$C72) -> 0 | PS72: 0 | PT72: 0 | PU72: 0 | PV72: =COUNTIFS($B$10:$B$39,$B72,PW$10:PW$39,$C72) -> 0 | PW72: 0 | PX72: 0 | PY72: 0 | PZ72: =COUNTIFS($B$10:$B$39,$B72,QA$10:QA$39,$C72) -> 0 | QA72: 0 | QB72: 0 | QC72: 0 | QD72: =COUNTIFS($B$10:$B$39,$B72,QE$10:QE$39,$C72) -> 0 | QE72: 0 | QF72: 0 | QG72: 0 | QH72: =COUNTIFS($B$10:$B$39,$B72,QI$10:QI$39,$C72) -> 0 | QI72: 0
G73: =SUM(G53:G72) -> 11 | K73: =SUM(K53:K72) -> 20 | O73: =SUM(O53:O72) -> 6 | S73: =SUM(S53:S72) -> 0 | W73: =SUM(W53:W72) -> 0 | AA73: =SUM(AA53:AA72) -> 0 | AE73: =SUM(AE53:AE72) -> 0 | AI73: =SUM(AI53:AI72) -> 0 | AM73: =SUM(AM53:AM72) -> 0 | AQ73: =SUM(AQ53:AQ72) -> 0 | AU73: =SUM(AU53:AU72) -> 9.5 | AY73: =SUM(AY53:AY72) -> 4 | BC73: =SUM(BC53:BC72) -> 2 | BG73: =SUM(BG53:BG72) -> 0 | BK73: =SUM(BK53:BK72) -> 0 | BO73: =SUM(BO53:BO72) -> 0 | BS73: =SUM(BS53:BS72) -> 0 | BW73: =SUM(BW53:BW72) -> 0 | CA73: =SUM(CA53:CA72) -> 0 | CE73: =SUM(CE53:CE72) -> 0 | CI73: =SUM(CI53:CI72) -> 5 | CM73: =SUM(CM53:CM72) -> 5 | CQ73: =SUM(CQ53:CQ72) -> 2 | CU73: =SUM(CU53:CU72) -> 0 | CY73: =SUM(CY53:CY72) -> 0 | DC73: =SUM(DC53:DC72) -> 0 | DG73: =SUM(DG53:DG72) -> 0 | DK73: =SUM(DK53:DK72) -> 0 | DO73: =SUM(DO53:DO72) -> 0 | DS73: =SUM(DS53:DS72) -> 0 | DW73: =SUM(DW53:DW72) -> 2 | EA73: =SUM(EA53:EA72) -> 2 | EE73: =SUM(EE53:EE72) -> 0 | EI73: =SUM(EI53:EI72) -> 0 | EM73: =SUM(EM53:EM72) -> 13 | EQ73: =SUM(EQ53:EQ72) -> 10 | EU73: =SUM(EU53:EU72) -> 13 | EY73: =SUM(EY53:EY72) -> 4 | FC73: =SUM(FC53:FC72) -> 0 | FG73: =SUM(FG53:FG72) -> 0 | FK73: =SUM(FK53:FK72) -> 0 | FO73: =SUM(FO53:FO72) -> 0 | FS73: =SUM(FS53:FS72) -> 0 | FW73: =SUM(FW53:FW72) -> 0 | GA73: =SUM(GA53:GA72) -> 14 | GE73: =SUM(GE53:GE72) -> 9.333333333 | GI73: =SUM(GI53:GI72) -> 0 | GM73: =SUM(GM53:GM72) -> 0 | GQ73: =SUM(GQ53:GQ72) -> 0 | GU73: =SUM(GU53:GU72) -> 9 | GY73: =SUM(GY53:GY72) -> 6.5 | HC73: =SUM(HC53:HC72) -> 8 | HG73: =SUM(HG53:HG72) -> 0 | HK73: =SUM(HK53:HK72) -> 0 | HO73: =SUM(HO53:HO72) -> 0 | HS73: =SUM(HS53:HS72) -> 0 | HW73: =SUM(HW53:HW72) -> 11 | IA73: =SUM(IA53:IA72) -> 11 | IE73: =SUM(IE53:IE72) -> 5 | II73: =SUM(II53:II72) -> 0 | IM73: =SUM(IM53:IM72) -> 0 | IQ73: =SUM(IQ53:IQ72) -> 0 | IU73: =SUM(IU53:IU72) -> 0 | IY73: =SUM(IY53:IY72) -> 0 | JC73: =SUM(JC53:JC72) -> 7 | JG73: =SUM(JG53:JG72) -> 12 | JK73: =SUM(JK53:JK72) -> 4 | JO73: =SUM(JO53:JO72) -> 3 | JS73: =SUM(JS53:JS72) -> 0 | JW73: =SUM(JW53:JW72) -> 0 | KA73: =SUM(KA53:KA72) -> 0 | KE73: =SUM(KE53:KE72) -> 0 | KI73: =SUM(KI53:KI72) -> 0 | KM73: =SUM(KM53:KM72) -> 0 | KQ73: =SUM(KQ53:KQ72) -> 10 | KU73: =SUM(KU53:KU72) -> 0 | KY73: =SUM(KY53:KY72) -> 0 | LC73: =SUM(LC53:LC72) -> 0 | LG73: =SUM(LG53:LG72) -> 0 | LK73: =SUM(LK53:LK72) -> 0 | LO73: =SUM(LO53:LO72) -> 0 | LS73: =SUM(LS53:LS72) -> 0 | LW73: =SUM(LW53:LW72) -> 0 | MA73: =SUM(MA53:MA72) -> 0 | ME73: =SUM(ME53:ME72) -> 4 | MI73: =SUM(MI53:MI72) -> 4 | MM73: =SUM(MM53:MM72) -> 0 | MQ73: =SUM(MQ53:MQ72) -> 0 | MU73: =SUM(MU53:MU72) -> 0 | MY73: =SUM(MY53:MY72) -> 0 | NC73: =SUM(NC53:NC72) -> 0 | NG73: =SUM(NG53:NG72) -> 0 | NK73: =SUM(NK53:NK72) -> 12 | NO73: =SUM(NO53:NO72) -> 0 | NS73: =SUM(NS53:NS72) -> 0 | NW73: =SUM(NW53:NW72) -> 12 | OA73: =SUM(OA53:OA72) -> 0 | OE73: =SUM(OE53:OE72) -> 0 | OI73: =SUM(OI53:OI72) -> 0 | OM73: =SUM(OM53:OM72) -> 0 | OQ73: =SUM(OQ53:OQ72) -> 0 | OU73: =SUM(OU53:OU72) -> 0 | OY73: =SUM(OY53:OY72) -> 0 | PC73: =SUM(PC53:PC72) -> 0 | PG73: =SUM(PG53:PG72) -> 0 | PK73: =SUM(PK53:PK72) -> 0 | PO73: =SUM(PO53:PO72) -> 0 | PS73: =SUM(PS53:PS72) -> 0 | PW73: =SUM(PW53:PW72) -> 0 | QA73: =SUM(QA53:QA72) -> 0 | QE73: =SUM(QE53:QE72) -> 0 | QI73: =SUM(QI53:QI72) -> 0
D80: الأفواج | E80: التعداد | F80: سا نظرية | G80: سا تط | H80: الأفواج | I80: التعداد | J80: سا نظرية | K80: سا تط | L80: الأفواج | M80: التعداد | N80: سا نظرية | O80: سا تط | P80: الأفواج | Q80: التعداد | R80: سا نظرية | S80: سا تط | T80: الأفواج | U80: التعداد | V80: سا نظرية | W80: سا تط | X80: الأفواج | Y80: التعداد | Z80: سا نظرية | AA80: سا تط | AB80: الأفواج | AC80: التعداد | AD80: سا نظرية | AE80: سا تط | AF80: الأفواج | AG80: التعداد | AH80: سا نظرية | AI80: سا تط | AJ80: الأفواج | AK80: التعداد | AL80: سا نظرية | AM80: سا تط | AN80: الأفواج | AO80: التعداد | AP80: سا نظرية | AQ80: سا تط | AR80: الأفواج | AS80: التعداد | AT80: سا نظرية | AU80: سا تط | AV80: الأفواج | AW80: التعداد | AX80: سا نظرية | AY80: سا تط | AZ80: الأفواج | BA80: التعداد | BB80: سا نظرية | BC80: سا تط | BD80: الأفواج | BE80: التعداد | BF80: سا نظرية | BG80: سا تط | BH80: الأفواج | BI80: التعداد | BJ80: سا نظرية | BK80: سا تط | BL80: الأفواج | BM80: التعداد | BN80: سا نظرية | BO80: سا تط | BP80: الأفواج | BQ80: التعداد | BR80: سا نظرية | BS80: سا تط | BT80: الأفواج | BU80: التعداد | BV80: سا نظرية | BW80: سا تط | BX80: الأفواج | BY80: التعداد | BZ80: سا نظرية | CA80: سا تط | CB80: الأفواج | CC80: التعداد | CD80: سا نظرية | CE80: سا تط | CF80: الأفواج | CG80: التعداد | CH80: سا نظرية | CI80: سا تط | CJ80: الأفواج | CK80: التعداد | CL80: سا نظرية | CM80: سا تط | CN80: الأفواج | CO80: التعداد | CP80: سا نظرية | CQ80: سا تط | CR80: الأفواج | CS80: التعداد | CT80: سا نظرية | CU80: سا تط | CV80: الأفواج | CW80: التعداد | CX80: سا نظرية | CY80: سا تط | CZ80: الأفواج | DA80: التعداد | DB80: سا نظرية | DC80: سا تط | DD80: الأفواج | DE80: التعداد | DF80: سا نظرية | DG80: سا تط | DH80: الأفواج | DI80: التعداد | DJ80: سا نظرية | DK80: سا تط | DL80: الأفواج | DM80: التعداد | DN80: سا نظرية | DO80: سا تط | DP80: الأفواج | DQ80: التعداد | DR80: سا نظرية | DS80: سا تط | DT80: الأفواج | DU80: التعداد | DV80: سا نظرية | DW80: سا تط | DX80: الأفواج | DY80: التعداد | DZ80: سا نظرية | EA80: سا تط | EB80: الأفواج | EC80: التعداد | ED80: سا نظرية | EE80: سا تط | EF80: الأفواج | EG80: التعداد | EH80: سا نظرية | EI80: سا تط | EJ80: الأفواج | EK80: التعداد | EL80: سا نظرية | EM80: سا تط | EN80: الأفواج | EO80: التعداد | EP80: سا نظرية | EQ80: سا تط | ER80: الأفواج | ES80: التعداد | ET80: سا نظرية | EU80: سا تط | EV80: الأفواج | EW80: التعداد | EX80: سا نظرية | EY80: سا تط | EZ80: الأفواج | FA80: التعداد | FB80: سا نظرية | FC80: سا تط | FD80: الأفواج | FE80: التعداد | FF80: سا نظرية | FG80: سا تط | FH80: الأفواج | FI80: التعداد | FJ80: سا نظرية | FK80: سا تط | FL80: الأفواج | FM80: التعداد | FN80: سا نظرية | FO80: سا تط | FP80: الأفواج | FQ80: التعداد | FR80: سا نظرية | FS80: سا تط | FT80: الأفواج | FU80: التعداد | FV80: سا نظرية | FW80: سا تط | FX80: الأفواج | FY80: التعداد | FZ80: سا نظرية | GA80: سا تط | GB80: الأفواج | GC80: التعداد | GD80: سا نظرية | GE80: سا تط | GF80: الأفواج | GG80: التعداد | GH80: سا نظرية | GI80: سا تط | GJ80: الأفواج | GK80: التعداد | GL80: سا نظرية | GM80: سا تط | GN80: الأفواج | GO80: التعداد | GP80: سا نظرية | GQ80: سا تط | GR80: الأفواج | GS80: التعداد | GT80: سا نظرية | GU80: سا تط | GV80: الأفواج | GW80: التعداد | GX80: سا نظرية | GY80: سا تط | GZ80: الأفواج | HA80: التعداد | HB80: سا نظرية | HC80: سا تط | HD80: الأفواج | HE80: التعداد | HF80: سا نظرية | HG80: سا تط | HH80: الأفواج | HI80: التعداد | HJ80: سا نظرية | HK80: سا تط | HL80: الأفواج | HM80: التعداد | HN80: سا نظرية | HO80: سا تط | HP80: الأفواج | HQ80: التعداد | HR80: سا نظرية | HS80: سا تط | HT80: الأفواج | HU80: التعداد | HV80: سا نظرية | HW80: سا تط | HX80: الأفواج | HY80: التعداد | HZ80: سا نظرية | IA80: سا تط | IB80: الأفواج | IC80: التعداد | ID80: سا نظرية | IE80: سا تط | IF80: الأفواج | IG80: التعداد | IH80: سا نظرية | II80: سا تط | IJ80: الأفواج | IK80: التعداد | IL80: سا نظرية | IM80: سا تط | IN80: الأفواج | IO80: التعداد | IP80: سا نظرية | IQ80: سا تط | IR80: الأفواج | IS80: التعداد | IT80: سا نظرية | IU80: سا تط | IV80: الأفواج | IW80: التعداد | IX80: سا نظرية | IY80: سا تط | IZ80: الأفواج | JA80: التعداد | JB80: سا نظرية | JC80: سا تط | JD80: الأفواج | JE80: التعداد | JF80: سا نظرية | JG80: سا تط | JH80: الأفواج | JI80: التعداد | JJ80: سا نظرية | JK80: سا تط | JL80: الأفواج | JM80: التعداد | JN80: سا نظرية | JO80: سا تط | JP80: الأفواج | JQ80: التعداد | JR80: سا نظرية | JS80: سا تط | JT80: الأفواج | JU80: التعداد | JV80: سا نظرية | JW80: سا تط | JX80: الأفواج | JY80: التعداد | JZ80: سا نظرية | KA80: سا تط | KB80: الأفواج | KC80: التعداد | KD80: سا نظرية | KE80: سا تط | KF80: الأفواج | KG80: التعداد | KH80: سا نظرية | KI80: سا تط | KJ80: الأفواج | KK80: التعداد | KL80: سا نظرية | KM80: سا تط | KN80: الأفواج | KO80: التعداد | KP80: سا نظرية | KQ80: سا تط | KR80: الأفواج | KS80: التعداد | KT80: سا نظرية | KU80: سا تط | KV80: الأفواج | KW80: التعداد | KX80: سا نظرية | KY80: سا تط | KZ80: الأفواج | LA80: التعداد | LB80: سا نظرية | LC80: سا تط | LD80: الأفواج | LE80: التعداد | LF80: سا نظرية | LG80: سا تط | LH80: الأفواج | LI80: التعداد | LJ80: سا نظرية | LK80: سا تط | LL80: الأفواج | LM80: التعداد | LN80: سا نظرية | LO80: سا تط | LP80: الأفواج | LQ80: التعداد | LR80: سا نظرية | LS80: سا تط | LT80: الأفواج | LU80: التعداد | LV80: سا نظرية | LW80: سا تط | LX80: الأفواج | LY80: التعداد | LZ80: سا نظرية | MA80: سا تط | MB80: الأفواج | MC80: التعداد | MD80: سا نظرية | ME80: سا تط | MF80: الأفواج | MG80: التعداد | MH80: سا نظرية | MI80: سا تط | MJ80: الأفواج | MK80: التعداد | ML80: سا نظرية | MM80: سا تط | MN80: الأفواج | MO80: التعداد | MP80: سا نظرية | MQ80: سا تط | MR80: الأفواج | MS80: التعداد | MT80: سا نظرية | MU80: سا تط | MV80: الأفواج | MW80: التعداد | MX80: سا نظرية | MY80: سا تط | MZ80: الأفواج | NA80: التعداد | NB80: سا نظرية | NC80: سا تط | ND80: الأفواج | NE80: التعداد | NF80: سا نظرية | NG80: سا تط | NH80: الأفواج | NI80: التعداد | NJ80: سا نظرية | NK80: سا تط | NL80: الأفواج | NM80: التعداد | NN80: سا نظرية | NO80: سا تط | NP80: الأفواج | NQ80: التعداد | NR80: سا نظرية | NS80: سا تط | NT80: الأفواج | NU80: التعداد | NV80: سا نظرية | NW80: سا تط | NX80: الأفواج | NY80: التعداد | NZ80: سا نظرية | OA80: سا تط | OB80: الأفواج | OC80: التعداد | OD80: سا نظرية | OE80: سا تط | OF80: الأفواج | OG80: التعداد | OH80: سا نظرية | OI80: سا تط | OJ80: الأفواج | OK80: التعداد | OL80: سا نظرية | OM80: سا تط | ON80: الأفواج | OO80: التعداد | OP80: سا نظرية | OQ80: سا تط | OR80: الأفواج | OS80: التعداد | OT80: سا نظرية | OU80: سا تط | OV80: الأفواج | OW80: التعداد | OX80: سا نظرية | OY80: سا تط | OZ80: الأفواج | PA80: التعداد | PB80: سا نظرية | PC80: سا تط | PD80: الأفواج | PE80: التعداد | PF80: سا نظرية | PG80: سا تط | PH80: الأفواج | PI80: التعداد | PJ80: سا نظرية | PK80: سا تط | PL80: الأفواج | PM80: التعداد | PN80: سا نظرية | PO80: سا تط | PP80: الأفواج | PQ80: التعداد | PR80: سا نظرية | PS80: سا تط | PT80: الأفواج | PU80: التعداد | PV80: سا نظرية | PW80: سا تط | PX80: الأفواج | PY80: التعداد | PZ80: سا نظرية | QA80: سا تط | QB80: الأفواج | QC80: التعداد | QD80: سا نظرية | QE80: سا تط | QF80: الأفواج | QG80: التعداد | QH80: سا نظرية | QI80: سا تط
C81: 1 | D81: 1ع تك03 | E81: 28 | F81: 6 | H81: 2آف | I81: 24 | J81: 2 | L81: 1ع تك01 | M81: 30 | N81: 6 | AR81: 2ع تج | AS81: 29 | AT81: 2 | AU81: 4 | AV81: 1ع تك03 | AW81: 28 | AX81: 2 | AY81: 4 | AZ81: 1ع تك01 | BA81: 30 | BB81: 2 | BC81: 4 | CF81: 1ع تك03 | CG81: 28 | CH81: 2 | CI81: 4 | CJ81: 1ع تك02 | CK81: 26 | CL81: 1 | CM81: 2 | CN81: 1ع تك01 | CO81: 30 | CP81: 2 | CQ81: 4 | DT81: 1آ | DU81: 33 | DV81: 2 | DX81: 1ع تك01 | DY81: 30 | DZ81: 1 | EJ81: 2لغ | EK81: 14 | EL81: 5 | EN81: 1آ | EO81: 33 | EP81: 5 | EQ81: 2 | ER81: 2ت إ | ES81: 13 | ET81: 3 | EV81: 1ع تك01 | EW81: 30 | EX81: 4 | FX81: 2آف | FY81: 24 | FZ81: 4 | GB81: 3آف02 | GC81: 18 | GD81: 7 | GR81: 2ع تج | GS81: 29 | GT81: 3 | GV81: 1ع تك03 | GW81: 28 | GX81: 2 | GZ81: 1ع تك01 | HA81: 30 | HB81: 2 | HT81: 2آف | HU81: 24 | HV81: 4 | HX81: 2ت إ | HY81: 13 | HZ81: 3 | IB81: 1ع تك01 | IC81: 30 | ID81: 3 | IZ81: 2آف | JA81: 24 | JB81: 4 | JD81: 2لغ | JE81: 14 | JF81: 5 | JH81: 1ع تك02 | JI81: 26 | JJ81: 3 | JL81: 1ع تك01 | JM81: 30 | JN81: 3 | KN81: 2لغ | KO81: 14 | KP81: 5 | LT81: 1ع تك01 | LU81: 30 | LV81: 1 | LW81: 2 | MB81: 1ع تك02 | MC81: 26 | MD81: 2 | MF81: 1ع تك01 | MG81: 30 | MH81: 2 | NH81: 1ع تك03 | NI81: 28 | NJ81: 1 | NK81: 2 | NT81: 1ع تك01 | NU81: 30 | NV81: 1 | NW81: 2 | OT81: 3 | OX81: 2
C82: 2 | D82: 1آ | E82: 33 | F82: 3 | H82: 2ع تج | I82: 29 | J82: 5 | L82: 1ع تك02 | M82: 26 | N82: 6 | AR82: 2تر | AS82: 10 | AT82: 5 | AV82: 1آ | AW82: 33 | AX82: 1 | AY82: 2 | AZ82: 1ع تك02 | BA82: 26 | BB82: 2 | BC82: 4 | CF82: 3ع تج | CG82: 27 | CH82: 3 | CI82: 4 | CJ82: 1آ | CK82: 33 | CL82: 1 | CM82: 2 | CN82: 1ع تك02 | CO82: 26 | CP82: 2 | CQ82: 4 | DT82: 3آف01 | DU82: 18 | DV82: 2 | DX82: 1ع تك02 | DY82: 26 | DZ82: 1 | EJ82: 2ع تج | EK82: 29 | EL82: 3 | EN82: 3آف02 | EO82: 18 | EP82: 7 | ER82: 3آف01 | ES82: 18 | ET82: 7 | EV82: 1ع تك02 | EW82: 26 | EX82: 4 | FX82: 3آف01 | FY82: 18 | FZ82: 7 | GB82: 3ت إ | GC82: 18 | GD82: 2 | GR82: 2تر | GS82: 10 | GT82: 3 | GV82: 1آ | GW82: 33 | GX82: 4 | GZ82: 1ع تك02 | HA82: 26 | HB82: 2 | HT82: 3آف01 | HU82: 18 | HV82: 4 | HX82: 2ع تج | HY82: 29 | HZ82: 3 | IB82: 1ع تك02 | IC82: 26 | ID82: 3 | IZ82: 3ت إ | JA82: 18 | JB82: 3 | JD82: 2ع تج | JE82: 29 | JF82: 3 | JH82: 1ع تك03 | JI82: 28 | JJ82: 3 | JL82: 1آ | JM82: 33 | JN82: 4 | KN82: 3لغ | KO82: 14 | KP82: 5 | LT82: 1ع تك02 | LU82: 26 | LV82: 1 | LW82: 2 | MB82: 2آف | MC82: 24 | MD82: 2 | MF82: 1ع تك03 | MG82: 28 | MH82: 2 | NH82: 2تر | NI82: 5 | NJ82: 6 | NT82: 2تر | NU82: 5 | NV82: 6 | OT82: 2 | OX82: 5
C83: 3 | D83: 2لغ | E83: 14 | F83: 2 | H83: 3آف02 | I83: 18 | J83: 2 | L83: 3آف01 | M83: 18 | N83: 2 | AR83: 3تر | AS83: 13 | AT83: 5 | AV83: 3ع تج | AW83: 27 | AX83: 2 | AY83: 4 | AZ83: 2آف | BA83: 24 | BB83: 1 | BC83: 2 | CJ83: 2ع تج | CK83: 29 | CL83: 3 | CM83: 4 | CN83: 2آف | CO83: 24 | CP83: 1 | CQ83: 2 | DT83: 3آف02 | DU83: 18 | DV83: 2 | DX83: 1ع تك03 | DY83: 28 | DZ83: 1 | EJ83: 2تر | EK83: 10 | EL83: 3 | EN83: 3ت إ | EO83: 18 | EP83: 3 | ER83: 3ع تج | ES83: 27 | ET83: 3 | EV83: 1ع تك03 | EW83: 28 | EX83: 4 | FX83: 3لغ | FY83: 14 | FZ83: 3 | GB83: 3ع تج | GC83: 27 | GD83: 3 | GR83: 3آف01 | GS83: 18 | GT83: 4 | GV83: 3لغ | GW83: 14 | GX83: 3 | GZ83: 2آف | HA83: 24 | HB83: 4 | HT83: 3ت إ | HU83: 18 | HV83: 3 | HX83: 2تر | HY83: 10 | HZ83: 3 | IB83: 1ع تك03 | IC83: 28 | ID83: 3 | IZ83: 3ع تج | JA83: 27 | JB83: 3 | JD83: 3لغ | JE83: 14 | JF83: 4 | JH83: 3آف01 | JI83: 18 | JJ83: 4 | JL83: 2ت إ | JM83: 13 | JN83: 3 | LT83: 1ع تك03 | LU83: 28 | LV83: 1 | LW83: 2 | MB83: 2ت إ | MC83: 13 | MD83: 2 | MF83: 1آ | MG83: 33 | MH83: 2 | NH83: 3تر | NI83: 5 | NJ83: 6 | NT83: 3تر | NU83: 8 | NV83: 6 | OT83: 6
C84: 4 | D84: 2ت إ | E84: 13 | F84: 3 | H84: 3ع تج | I84: 27 | J84: 5 | L84: 3لغ | M84: 14 | N84: 2 | DT84: 3لغ | DU84: 14 | DV84: 2 | DX84: 2آف | DY84: 24 | DZ84: 2 | EJ84: 3لغ | EK84: 14 | EL84: 5 | ER84: 3تر | ES84: 13 | ET84: 3 | EV84: 2آف | EW84: 24 | EX84: 4 | GB84: 3تر | GC84: 13 | GD84: 2 | GR84: 3آف02 | GS84: 18 | GT84: 4 | GV84: 3ت إ | GW84: 18 | GX84: 4 | GZ84: 2لغ | HA84: 14 | HB84: 4 | HT84: 3ع تج | HU84: 27 | HV84: 3 | HX84: 3آف02 | HY84: 18 | HZ84: 4 | IB84: 1آ | IC84: 33 | ID84: 5 | IZ84: 3تر | JA84: 13 | JB84: 3 | JH84: 3آف02 | JI84: 18 | JJ84: 4 | JL84: 2تر | JM84: 10 | JN84: 3 | LT84: 1آ | LU84: 33 | LV84: 1 | LW84: 2 | MB84: 2تر | MC84: 10 | MD84: 2 | MF84: 2لغ | MG84: 14 | MH84: 2 | OT84: 3
C85: 5 | D85: 2تر | E85: 10 | F85: 6 | H85: 3تر | I85: 13 | J85: 6 | L85: 3ت إ | M85: 18 | N85: 4 | DT85: 3ت إ | DU85: 18 | DV85: 2 | DX85: 2لغ | DY85: 14 | DZ85: 2 | GR85: 3تر | GS85: 13 | GT85: 2 | GV85: 3ع تج | GW85: 27 | GX85: 2 | GZ85: 2ت إ | HA85: 13 | HB85: 4 | HT85: 3تر | HU85: 13 | HV85: 3 | HX85: 3لغ | HY85: 14 | HZ85: 4 | IB85: 2لغ | IC85: 14 | ID85: 5 | MB85: 3آف01 | MC85: 18 | MD85: 2 | MF85: 2ع تج | MG85: 29 | MH85: 2
C86: 6 | DT86: 3ع تج | DU86: 27 | DV86: 2 | DX86: 2ت إ | DY86: 13 | DZ86: 2 | MB86: 3لغ | MC86: 14 | MD86: 2 | MF86: 3آف02 | MG86: 18 | MH86: 2
C87: 7 | DT87: 3تر | DU87: 13 | DV87: 2 | DX87: 2ع تج | DY87: 29 | DZ87: 2 | MB87: 3ت إ | MC87: 18 | MD87: 2 | MF87: 3ع تج | MG87: 27 | MH87: 2
C88: 8 | DX88: 2تر | DY88: 10 | DZ88: 2 | MF88: 3تر | MG88: 13 | MH88: 2
C89: 9
C90: 10
C91: 11
C92: 12
C93: 13
C94: 14
C95: 15

Sheet main
B1: الجمهوريــة الجزائريــة الديمقراطيــة الشعبيــة
B2: وزارة التربيـة الوطنيــة
B3: التقرير العام عن تسيير المؤسسـة

Sheet كشف الموفين
C2: كشف مفصل للموظفيــن الإدارييــن
D3: =CONCATENATE("السنة الدراسيـة :",main!#REF!,main!#REF!,main!#REF!) -> 
D4: =COUNTA(D7:D106) -> 0
C6: المناصب | D6: الاسم و اللقب | E6: تاريخ الميلاد | F6: المستوى التعليمي | G6: الوظيفة | H6: الصفة : مرسم - متربض مكلف - متعاقد | I6: تاريخ أول تعيين بهذه الصفة | J6: تاريخ التعيين بالمؤسسة
C7: 1 | L7: =DATE(main!#REF!,12,31) ->  | M7: =IF(E7=0,0,1) -> 0 | N7: =L7-E7 ->  | O7: =N7*M7 ->  | P7: =O7/365 ->  | Q7: =ROUND(P7,0.5) ->  | R7: =IF(Q7>=60,1,0) -> 
C8: 2 | L8: =DATE(main!#REF!,12,31) ->  | M8: =IF(E8=0,0,1) -> 0 | N8: =L8-E8 ->  | O8: =N8*M8 ->  | P8: =O8/365 ->  | Q8: =ROUND(P8,0.5) ->  | R8: =IF(Q8>=60,1,0) -> 
C9: 3 | L9: =DATE(main!#REF!,12,31) ->  | M9: 0 | N9: =L9-E9 -> 
C10: 4 | L10: =DATE(main!#REF!,12,31) ->  | M10: 0
C11: 5 | L11: =DATE(main!#REF!,12,31) ->  | M11: 0
C12: 6 | L12: =DATE(main!#REF!,12,31) ->  | M12: 0
C13: 7 | L13: =DATE(main!#REF!,12,31) ->  | M13: 0
C14: 8 | L14: =DATE(main!#REF!,12,31) ->  | M14: 0
C15: 9 | L15: =DATE(main!#REF!,12,31) ->  | M15: 0
C16: 10 | L16: =DATE(main!#REF!,12,31) ->  | M16: 0
C17: 11 | L17: =DATE(main!#REF!,12,31) ->  | M17: 0 | N17: =L17-E17 -> 
C18: 12 | L18: =DATE(main!#REF!,12,31) ->  | M18: 0
C19: 13 | L19: =DATE(main!#REF!,12,31) ->  | M19: 0
C20: 14 | L20: =DATE(main!#REF!,12,31) ->  | M20: 0
C21: 15 | L21: =DATE(main!#REF!,12,31) ->  | M21: 0
C22: 16 | L22: =DATE(main!#REF!,12,31) ->  | M22: 0
C23: 17 | L23: =DATE(main!#REF!,12,31) ->  | M23: 0
C24: 18 | L24: =DATE(main!#REF!,12,31) ->  | M24: 0
C25: 19 | L25: =DATE(main!#REF!,12,31) ->  | M25: 0
C26: 20 | L26: =DATE(main!#REF!,12,31) ->  | M26: 0
C27: 21 | L27: =DATE(main!#REF!,12,31) ->  | M27: 0
C28: 22 | L28: =DATE(main!#REF!,12,31) ->  | M28: 0
C29: 23 | L29: =DATE(main!#REF!,12,31) ->  | M29: 0
C30: 24 | L30: =DATE(main!#REF!,12,31) ->  | M30: 0
C31: 25 | L31: =DATE(main!#REF!,12,31) ->  | M31: 0
C32: 26 | L32: =DATE(main!#REF!,12,31) ->  | M32: 0
C33: 27 | L33: =DATE(main!#REF!,12,31) ->  | M33: 0
C34: 28 | L34: =DATE(main!#REF!,12,31) ->  | M34: 0
C35: 29 | L35: =DATE(main!#REF!,12,31) ->  | M35: 0
C36: 30 | L36: =DATE(main!#REF!,12,31) ->  | M36: 0
C37: 31 | L37: =DATE(main!#REF!,12,31) ->  | M37: 0
C38: 32 | L38: =DATE(main!#REF!,12,31) ->  | M38: 0
C39: 33 | L39: =DATE(main!#REF!,12,31) ->  | M39: 0
C40: 34 | L40: =DATE(main!#REF!,12,31) ->  | M40: 0
C41: 35 | L41: =DATE(2014,12,31) -> 2014-12-31 | M41: 0 | N41: 42004 | O41: 0 | P41: 0 | Q41: 0 | R41: 0
C42: 36 | L42: 2014-12-31 | M42: 0 | N42: 42004 | O42: 0 | P42: 0 | Q42: 0 | R42: 0
C43: 37 | L43: 2014-12-31 | M43: 0 | N43: 42004 | O43: 0 | P43: 0 | Q43: 0 | R43: 0
C44: 38 | L44: 2014-12-31 | M44: 0 | N44: 42004 | O44: 0 | P44: 0 | Q44: 0 | R44: 0
C45: 39 | L45: 2014-12-31 | M45: 0 | N45: 42004 | O45: 0 | P45: 0 | Q45: 0 | R45: 0
C46: 40 | L46: 2014-12-31 | M46: 0 | N46: 42004 | O46: 0 | P46: 0 | Q46: 0 | R46: 0
C47: =C46+1 -> 41 | L47: 2014-12-31 | M47: 0 | N47: 42004 | O47: 0 | P47: 0 | Q47: 0 | R47: 0
C48: =C47+1 -> 42 | L48: 2014-12-31 | M48: 0 | N48: 42004 | O48: 0 | P48: 0 | Q48: 0 | R48: 0
C49: 43 | L49: 2014-12-31 | M49: 0 | N49: =L49-E49 -> 42004 | O49: 0 | P49: 0 | Q49: 0 | R49: 0
C50: 44 | L50: 2014-12-31 | M50: 0 | N50: 42004 | O50: 0 | P50: 0 | Q50: 0 | R50: 0
C51: 45 | L51: 2014-12-31 | M51: 0 | N51: 42004 | O51: 0 | P51: 0 | Q51: 0 | R51: 0
C52: 46 | L52: 2014-12-31 | M52: 0 | N52: 42004 | O52: 0 | P52: 0 | Q52: 0 | R52: 0
C53: 47 | L53: 2014-12-31 | M53: 0 | N53: 42004 | O53: 0 | P53: 0 | Q53: 0 | R53: 0
C54: 48 | L54: 2014-12-31 | M54: 0 | N54: 42004 | O54: 0 | P54: 0 | Q54: 0 | R54: 0
C55: 49 | L55: 2014-12-31 | M55: 0 | N55: 42004 | O55: 0 | P55: 0 | Q55: 0 | R55: 0
C56: 50 | L56: 2014-12-31 | M56: 0 | N56: 42004 | O56: 0 | P56: 0 | Q56: 0 | R56: 0
C57: 51 | L57: 2014-12-31 | M57: 0 | N57: 42004 | O57: 0 | P57: 0 | Q57: 0 | R57: 0
C58: 52 | L58: 2014-12-31 | M58: 0 | N58: 42004 | O58: 0 | P58: 0 | Q58: 0 | R58: 0
C59: 53 | L59: 2014-12-31 | M59: 0 | N59: 42004 | O59: 0 | P59: 0 | Q59: 0 | R59: 0
C60: 54 | L60: 2014-12-31 | M60: 0 | N60: 42004 | O60: 0 | P60: 0 | Q60: 0 | R60: 0
C61: 55 | L61: 2014-12-31 | M61: 0 | N61: 42004 | O61: 0 | P61: 0 | Q61: 0 | R61: 0
C62: 56 | L62: 2014-12-31 | M62: 0 | N62: 42004 | O62: 0 | P62: 0 | Q62: 0 | R62: 0
C63: 57 | L63: 2014-12-31 | M63: 0 | N63: 42004 | O63: 0 | P63: 0 | Q63: 0 | R63: 0
C64: 58 | L64: 2014-12-31 | M64: 0 | N64: 42004 | O64: 0 | P64: 0 | Q64: 0 | R64: 0
C65: 59 | L65: 2014-12-31 | M65: 0 | N65: 42004 | O65: 0 | P65: 0 | Q65: 0 | R65: 0
C66: 60 | L66: 2014-12-31 | M66: 0 | N66: 42004 | O66: 0 | P66: 0 | Q66: 0 | R66: 0
C67: 61 | L67: 2014-12-31 | M67: 0 | N67: 42004 | O67: 0 | P67: 0 | Q67: 0 | R67: 0
C68: 62 | L68: 2014-12-31 | M68: 0 | N68: 42004 | O68: 0 | P68: 0 | Q68: 0 | R68: 0
C69: 63 | L69: 2014-12-31 | M69: 0 | N69: 42004 | O69: 0 | P69: 0 | Q69: 0 | R69: 0
C70: 64 | L70: 2014-12-31 | M70: 0 | N70: 42004 | O70: 0 | P70: 0 | Q70: 0 | R70: 0
C71: 65 | L71: 2014-12-31 | M71: 0 | N71: 42004 | O71: 0 | P71: 0 | Q71: 0 | R71: 0
C72: 66 | L72: 2014-12-31 | M72: =IF(E72=0,0,1) -> 0 | N72: 42004 | O72: =N72*M72 -> 0 | P72: =O72/365 -> 0 | Q72: =ROUND(P72,0.5) -> 0 | R72: =IF(Q72>=60,1,0) -> 0
C73: 67 | L73: =DATE(2014,12,31) -> 2014-12-31 | M73: 0 | N73: 42004 | O73: 0 | P73: 0 | Q73: 0 | R73: 0
C74: 68 | L74: 2014-12-31 | M74: 0 | N74: 42004 | O74: 0 | P74: 0 | Q74: 0 | R74: 0
C75: 69 | L75: 2014-12-31 | M75: 0 | N75: 42004 | O75: 0 | P75: 0 | Q75: 0 | R75: 0
C76: 70 | L76: 2014-12-31 | M76: 0 | N76: 42004 | O76: 0 | P76: 0 | Q76: 0 | R76: 0
C77: 71 | L77: 2014-12-31 | M77: 0 | N77: 42004 | O77: 0 | P77: 0 | Q77: 0 | R77: 0
C78: 72 | L78: 2014-12-31 | M78: 0 | N78: 42004 | O78: 0 | P78: 0 | Q78: 0 | R78: 0
C79: 73 | L79: 2014-12-31 | M79: 0 | N79: 42004 | O79: 0 | P79: 0 | Q79: 0 | R79: 0
C80: 74 | L80: 2014-12-31 | M80: 0 | N80: 42004 | O80: 0 | P80: 0 | Q80: 0 | R80: 0
C81: 75 | L81: 2014-12-31 | M81: 0 | N81: =L81-E81 -> 42004 | O81: 0 | P81: 0 | Q81: 0 | R81: 0
C82: 76 | L82: 2014-12-31 | M82: 0 | N82: 42004 | O82: 0 | P82: 0 | Q82: 0 | R82: 0
C83: 77 | L83: 2014-12-31 | M83: 0 | N83: 42004 | O83: 0 | P83: 0 | Q83: 0 | R83: 0
C84: 78 | L84: 2014-12-31 | M84: 0 | N84: 42004 | O84: 0 | P84: 0 | Q84: 0 | R84: 0
C85: 79 | L85: 2014-12-31 | M85: 0 | N85: 42004 | O85: 0 | P85: 0 | Q85: 0 | R85: 0
C86: 80 | L86: 2014-12-31 | M86: 0 | N86: 42004 | O86: 0 | P86: 0 | Q86: 0 | R86: 0
C87: 81 | L87: 2014-12-31 | M87: 0 | N87: 42004 | O87: 0 | P87: 0 | Q87: 0 | R87: 0
C88: 82 | L88: 2014-12-31 | M88: 0 | N88: 42004 | O88: 0 | P88: 0 | Q88: 0 | R88: 0
C89: 83 | L89: 2014-12-31 | M89: 0 | N89: 42004 | O89: 0 | P89: 0 | Q89: 0 | R89: 0
C90: 84 | L90: 2014-12-31 | M90: 0 | N90: 42004 | O90: 0 | P90: 0 | Q90: 0 | R90: 0
C91: 85 | L91: 2014-12-31 | M91: 0 | N91: 42004 | O91: 0 | P91: 0 | Q91: 0 | R91: 0
C92: 86 | L92: 2014-12-31 | M92: 0 | N92: 42004 | O92: 0 | P92: 0 | Q92: 0 | R92: 0
C93: 87 | L93: 2014-12-31 | M93: 0 | N93: 42004 | O93: 0 | P93: 0 | Q93: 0 | R93: 0
C94: 88 | L94: 2014-12-31 | M94: 0 | N94: 42004 | O94: 0 | P94: 0 | Q94: 0 | R94: 0
C95: 89 | L95: 2014-12-31 | M95: 0 | N95: 42004 | O95: 0 | P95: 0 | Q95: 0 | R95: 0
C96: 90 | L96: 2014-12-31 | M96: 0 | N96: 42004 | O96: 0 | P96: 0 | Q96: 0 | R96: 0
C97: 91 | L97: 2014-12-31 | M97: 0 | N97: 42004 | O97: 0 | P97: 0 | Q97: 0 | R97: 0
C98: 92 | L98: 2014-12-31 | M98: 0 | N98: 42004 | O98: 0 | P98: 0 | Q98: 0 | R98: 0
C99: 93 | L99: 2014-12-31 | M99: 0 | N99: 42004 | O99: 0 | P99: 0 | Q99: 0 | R99: 0
C100: 94 | L100: 2014-12-31 | M100: 0 | N100: 42004 | O100: 0 | P100: 0 | Q100: 0 | R100: 0
C101: 95 | L101: 2014-12-31 | M101: 0 | N101: 42004 | O101: 0 | P101: 0 | Q101: 0 | R101: 0
C102: 96 | L102: 2014-12-31 | M102: 0 | N102: 42004 | O102: 0 | P102: 0 | Q102: 0 | R102: 0
C103: 97 | L103: 2014-12-31 | M103: 0 | N103: 42004 | O103: 0 | P103: 0 | Q103: 0 | R103: 0
C104: 98 | L104: 2014-12-31 | M104: 0 | N104: 42004 | O104: 0 | P104: 0 | Q104: 0 | R104: 0
C105: 99 | L105: 2014-12-31 | M105: 0 | N105: 42004 | O105: 0 | P105: 0 | Q105: 0 | R105: 0
C106: 100 | L106: 2014-12-31 | M106: 0 | N106: 42004 | O106: 0 | P106: 0 | Q106: 0 | R106: 0
R107: =SUM(R7:R106) -> 

Sheet effectif
B1: كشف مفصل للتلاميذ الحاضرين إلى 15 نوفمبر
B2: السنة الدراسيـة : | K2: 2018 | M2: / | N2: =K2+1 -> 2019
B4: السنة الأولى ثانوي | J4: السنة الثانية ثانوي | R4: السنة الثالثة ثانوي | AA4: تلخيــص
B6: الأقسام | C6: داخلي | E6: نصف داخلي | G6: خارجي | I6: مجموع | J6: الأقسام | K6: داخلي | M6: نصف داخلي | O6: خارجي | Q6: مجموع | R6: الأقسام | S6: داخلي | U6: نصف داخلي | W6: خارجي | Y6: مجموع | Z6: الأقسام | AB6: عدد الأفواج | AC6: داخلي | AE6: نصف داخلي | AG6: خارجي | AI6: مجموع
C8: بنات | D8: ذكور | E8: بنات | F8: ذكور | G8: بنات | H8: ذكور | K8: بنات | L8: ذكور | M8: بنات | N8: ذكور | O8: بنات | P8: ذكور | S8: بنات | T8: ذكور | U8: بنات | V8: ذكور | W8: بنات | X8: ذكور | AC8: بنات | AD8: ذكور | AE8: بنات | AF8: ذكور | AG8: بنات | AH8: ذكور | AI8: بنات | AJ8: ذكور
B10: 1ع تك01 | E10: 12 | F10: 12 | G10: 3 | H10: 3 | I10: =SUM(C10:H10) -> 30 | J10: 2آف | M10: 17 | N10: 3 | O10: 2 | P10: 2 | Q10: =SUM(K10:P10) -> 24 | R10: 3آف01 | U10: 12 | V10: 3 | W10: 2 | X10: 1 | Y10: =SUM(S10:X10) -> 18 | Z10: الأولى | AC10: =C26 -> 0 | AD10: =D26 -> 0 | AE10: =E26 -> 64 | AF10: 39 | AG10: 6 | AH10: =H26 -> 8 | AI10: =AC10+AE10+AG10 -> 70 | AJ10: =AD10+AF10+AH10 -> 47
B11: 1ع تك02 | E11: 9 | F11: 14 | G11: 2 | H11: 1 | I11: =SUM(C11:H11) -> 26 | J11: 2لغ | M11: 8 | N11: 4 | O11: 1 | P11: 1 | Q11: =SUM(K11:P11) -> 14 | R11: 3آف02 | U11: 14 | V11: 1 | W11: 2 | X11: 1 | Y11: =SUM(S11:X11) -> 18 | Z11: الثانية | AC11: =K26 -> 0 | AD11: =L26 -> 0 | AE11: =M26 -> 52 | AF11: 26 | AG11: 6 | AH11: =P26 -> 6 | AI11: =AC11+AE11+AG11 -> 58 | AJ11: =AD11+AF11+AH11 -> 32
B12: 1ع تك03 | E12: 12 | F12: 12 | G12: 1 | H12: 3 | I12: 28 | J12: 2ت إ | M12: 4 | N12: 6 | O12: 2 | P12: 1 | Q12: 13 | R12: 3لغ | U12: 12 | V12: 0 | W12: 0 | X12: 2 | Y12: 14 | Z12: الثالثة | AC12: =S26 -> 0 | AD12: =T26 -> 0 | AE12: =U26 -> 66 | AF12: 22 | AG12: 11 | AH12: 9 | AI12: =AC12+AE12+AG12 -> 77 | AJ12: 31
B13: 1آ | E13: 31 | F13: 1 | G13: 0 | H13: 1 | I13: 33 | J13: 2ع تج | M13: 18 | N13: 8 | O13: 1 | P13: 2 | Q13: 29 | R13: 3ت إ | U13: 8 | V13: 4 | W13: 3 | X13: 3 | Y13: 18 | AI13: 0 | AJ13: 0
I14: 0 | J14: 2تر | M14: 5 | N14: 5 | Q14: 10 | R14: 3ع تج | U14: 15 | V14: 8 | W14: 3 | X14: 1 | Y14: 27 | Z14: مجموع | AB14: =AB12+AB11+AB10 -> 0 | AC14: =SUM(AC10:AC13) -> 0 | AD14: =SUM(AD10:AD13) -> 0 | AE14: 182 | AF14: 87 | AG14: 23 | AH14: 23 | AI14: =SUM(AI10:AI13) -> 205 | AJ14: =SUM(AJ10:AJ13) -> 110
I15: 0 | Q15: 0 | R15: 3تر | U15: 5 | V15: 6 | W15: 1 | X15: 1 | Y15: 13 | Z15: المجموع العام | AC15: =AC14+AD14 -> 0 | AE15: =AE14+AF14 -> 269 | AG15: =AG14+AH14 -> 46 | AI15: =AI14+AJ14 -> 315
I16: 0 | Q16: 0 | Y16: 0
I17: 0 | Q17: 0 | Y17: 0 | Z17: معيدين | AC17: 1 ثانوي | AE17: 2 ثانوي | AG17: 3 ثانوي | AI17: المجموع
I18: 0 | Q18: 0 | Y18: 0 | AC18: بنات | AD18: ذكور | AE18: بنات | AF18: ذكور | AG18: بنات | AH18: ذكور | AI18: بنات | AJ18: ذكور
I19: 0 | Q19: 0 | Y19: 0
I20: 0 | Q20: 0 | Y20: 0 | Z20: المجموع | AI20: =AC20+AE20+AG20 -> 0 | AJ20: =AD20+AF20+AH20 -> 0
I21: 0 | Q21: 0 | Y21: 0
I22: 0 | Q22: 0 | Y22: 0 | Z22: مغتربيــن | AC22: 1 ثانوي | AE22: 2 ثانوي | AG22: 3 ثانوي | AI22: المجموع
I23: 0 | Q23: 0 | Y23: 0 | AC23: بنات | AD23: ذكور | AE23: بنات | AF23: ذكور | AG23: بنات | AH23: ذكور | AI23: بنات | AJ23: ذكور
I24: 0 | Q24: 0 | Y24: 0
I25: 0 | Q25: 0 | Y25: 0 | Z25: المجموع | AI25: =AC25+AE25+AG25 -> 0 | AJ25: =AD25+AF25+AH25 -> 0
B26: المجموع | C26: =SUM(C10:C25) -> 0 | D26: 0 | E26: 64 | F26: 39 | G26: 6 | H26: 8 | I26: 117 | J26: المجموع | K26: =SUM(K10:K25) -> 0 | L26: 0 | M26: 52 | N26: 26 | O26: 6 | P26: 6 | Q26: 90 | R26: 0 | S26: 0 | T26: 0 | U26: 66 | V26: 22 | W26: 11 | X26: 9 | Y26: 108

Sheet خدمات رياضيات
A1: خدمات الأساتذة
A2: =SUM(U7:U176) -> 3 | J2: الـمــــادة | L2: رياضيات
A3: رقم التسلسلي | B3: الاسم و اللقب - تاريخ الميلاد | C3: أقصى درجة جامعية | D3: الرتبة | E3: الصفة : مرسم - متربص مكلف - متعاقد | F3: تاريخ التعيين بالمؤسسة | G3: الخدمة المؤداة أسبوعيا بين عدد الحصص و عدد التلاميذ بكل قسم | J3: أقصى خدمة واجبة | K3: تعديل الخدمة الواجبة (تخفيض) | N3: الخدمة الصافية | O3: العدد أقل من 20 | P3: الخدمة الصافية | Q3: الفرق | S3: ملاحضات
K4: العدد أكثر من 35 | L4: الكرسي الأول | M4: مجموع التخفيض | Q4: الساعات الفائضة | R4: الساعات الإضافية
A6: 1 | B6: 2 | C6: 3 | D6: 4 | E6: 5 | F6: 6 | G6: 7 | J6: 8 | K6: 9 | L6: 10 | M6: 11 | N6: 12 | O6: 13 | P6: 14 | Q6: 15 | R6: 16 | S6: 17
A7: 1 | B7: =IF(isnad!E$3="","",isnad!E$3) -> سي العربي سامية | C7: =IF(isnad!E$3="","",isnad!E$7) -> ليسانس | D7: =IF(isnad!E$3="","",isnad!E$4) -> أستاذ تعليم ثانوي | E7: =IF(isnad!E$3="","",isnad!E$6) -> مرسم | F7: =IF(isnad!E$3="","",isnad!E$8) -> 2015-08-25 | G7: الأقسام | H7: عدد التلاميذ | I7: التوقيت | J7: =IF(isnad!E$3="","",isnad!D$41) -> 18 | K7: =IF(isnad!D$42=0,"",isnad!D$42) ->  | L7: =IF(isnad!D$43=0,"",isnad!D$43) -> 1 | M7: =IF(isnad!D$44=0,"",isnad!D$44) -> 1 | N7: =IF(isnad!D$45=0,"",isnad!D$45) -> 21 | O7: =IF(isnad!D$46=0,"",isnad!D$46) -> 1 | P7: =IF(isnad!D$47=0,"",isnad!D$47) -> 20 | Q7: =IF(isnad!D$48=0,"",isnad!D$48) ->  | R7: =IF(isnad!D$49=0,"",isnad!D$49) -> 2 | T7: =IF(B7="",0,1) -> 1 | U7: =IF(B7="",0,1) -> 1
G8: =IF(isnad!E$3="","",IF(isnad!D$81="","",isnad!D$81)) -> 1ع تك03 | H8: =IF(isnad!E$3="","",IF(isnad!E$81="","",isnad!E$81)) -> 28 | I8: =IF(isnad!E$3="","",IF(isnad!D$81="","",IF(isnad!G$81="",isnad!F$81,CONCATENATE(isnad!G$81,"+",isnad!F$81)))) -> 6 | T8: =IF(G8="",0,1) -> 1
B9: =IF(isnad!E$3="","",isnad!E$5) -> 1990-11-05 | G9: =IF(isnad!E$3="","",IF(isnad!D$82="","",isnad!D$82)) -> 1آ | H9: =IF(isnad!E$3="","",IF(isnad!E$82="","",isnad!E$82)) -> 33 | I9: =IF(isnad!E$3="","",IF(isnad!D$82="","",IF(isnad!G$82="",isnad!F$82,CONCATENATE(isnad!G$82,"+",isnad!F$82)))) -> 3 | T9: =IF(G9="",0,1) -> 1
G10: =IF(isnad!E$3="","",IF(isnad!D$83="","",isnad!D$83)) -> 2لغ | H10: =IF(isnad!E$3="","",IF(isnad!E$83="","",isnad!E$83)) -> 14 | I10: =IF(isnad!E$3="","",IF(isnad!D$83="","",IF(isnad!G$83="",isnad!F$83,CONCATENATE(isnad!G$83,"+",isnad!F$83)))) -> 2 | T10: 1
G11: =IF(isnad!E$3="","",IF(isnad!D$84="","",isnad!D$84)) -> 2ت إ | H11: =IF(isnad!E$3="","",IF(isnad!E$84="","",isnad!E$84)) -> 13 | I11: =IF(isnad!E$3="","",IF(isnad!D$84="","",IF(isnad!G$84="",isnad!F$84,CONCATENATE(isnad!G$84,"+",isnad!F$84)))) -> 3 | T11: 1
G12: =IF(isnad!E$3="","",IF(isnad!D$85="","",isnad!D$85)) -> 2تر | H12: =IF(isnad!E$3="","",IF(isnad!E$85="","",isnad!E$85)) -> 10 | I12: =IF(isnad!E$3="","",IF(isnad!D$85="","",IF(isnad!G$85="",isnad!F$85,CONCATENATE(isnad!G$85,"+",isnad!F$85)))) -> 6 | T12: 1
G13: =IF(isnad!E$3="","",IF(isnad!D$86="","",isnad!D$86)) ->  | H13: =IF(isnad!E$3="","",IF(isnad!E$86="","",isnad!E$86)) ->  | I13: =IF(isnad!E$3="","",IF(isnad!D$86="","",IF(isnad!G$86="",isnad!F$86,CONCATENATE(isnad!G$86,"+",isnad!F$86)))) ->  | T13: 0
G14: =IF(isnad!E$3="","",IF(isnad!D$87="","",isnad!D$87)) ->  | H14: =IF(isnad!E$3="","",IF(isnad!E$87="","",isnad!E$87)) ->  | I14: =IF(isnad!E$3="","",IF(isnad!D$87="","",IF(isnad!G$87="",isnad!F$87,CONCATENATE(isnad!G$87,"+",isnad!F$87)))) ->  | T14: 0
G15: =IF(isnad!E$3="","",IF(isnad!D$88="","",isnad!D$88)) ->  | H15: =IF(isnad!E$3="","",IF(isnad!E$88="","",isnad!E$88)) ->  | I15: =IF(isnad!E$3="","",IF(isnad!D$88="","",IF(isnad!G$88="",isnad!F$88,CONCATENATE(isnad!G$88,"+",isnad!F$88)))) ->  | T15: 0
G16: =IF(isnad!E$3="","",IF(isnad!D$89="","",isnad!D$89)) ->  | H16: =IF(isnad!E$3="","",IF(isnad!E$89="","",isnad!E$89)) ->  | I16: =IF(isnad!E$3="","",IF(isnad!D$89="","",IF(isnad!G$89="",isnad!F$89,CONCATENATE(isnad!G$89,"+",isnad!F$89)))) ->  | T16: 0
G17: =IF(isnad!E$3="","",IF(isnad!D$90="","",isnad!D$90)) ->  | H17: =IF(isnad!E$3="","",IF(isnad!E$90="","",isnad!E$90)) ->  | I17: =IF(isnad!E$3="","",IF(isnad!D$90="","",IF(isnad!G$90="",isnad!F$90,CONCATENATE(isnad!G$90,"+",isnad!F$90)))) ->  | T17: 0
G18: =IF(isnad!E$3="","",IF(isnad!D$91="","",isnad!D$91)) ->  | H18: =IF(isnad!E$3="","",IF(isnad!E$91="","",isnad!E$91)) ->  | I18: =IF(isnad!E$3="","",IF(isnad!D$91="","",IF(isnad!G$91="",isnad!F$91,CONCATENATE(isnad!G$91,"+",isnad!F$91)))) ->  | T18: 0
G19: =IF(isnad!E$3="","",IF(isnad!D$92="","",isnad!D$92)) ->  | H19: =IF(isnad!E$3="","",IF(isnad!E$92="","",isnad!E$92)) ->  | I19: =IF(isnad!E$3="","",IF(isnad!D$92="","",IF(isnad!G$92="",isnad!F$92,CONCATENATE(isnad!G$92,"+",isnad!F$92)))) ->  | T19: 0
G20: =IF(isnad!E$3="","",IF(isnad!D$93="","",isnad!D$93)) ->  | H20: =IF(isnad!E$3="","",IF(isnad!E$93="","",isnad!E$93)) ->  | I20: =IF(isnad!E$3="","",IF(isnad!D$93="","",IF(isnad!G$93="",isnad!F$93,CONCATENATE(isnad!G$93,"+",isnad!F$93)))) ->  | T20: 0
G21: =IF(isnad!E$3="","",IF(isnad!D$94="","",isnad!D$94)) ->  | H21: =IF(isnad!E$3="","",IF(isnad!E$94="","",isnad!E$94)) ->  | I21: =IF(isnad!E$3="","",IF(isnad!D$94="","",IF(isnad!G$94="",isnad!F$94,CONCATENATE(isnad!G$94,"+",isnad!F$94)))) ->  | T21: 0
G22: =IF(isnad!E$3="","",IF(isnad!D$95="","",isnad!D$95)) ->  | H22: =IF(isnad!E$3="","",IF(isnad!E$95="","",isnad!E$95)) ->  | I22: =IF(isnad!E$3="","",IF(isnad!D$95="","",IF(isnad!G$95="",isnad!F$95,CONCATENATE(isnad!G$95,"+",isnad!F$95)))) ->  | T22: 0
G23: =COUNTIF(G8:G22,">""") -> 5 | H23: =SUM(H8:H22) -> 98 | I23: =IF(isnad!D$40="",0,isnad!D$40) -> 20 | J23: =IF(J7="",0,J7) -> 18 | K23: =IF(K7="",0,K7) -> 0 | L23: =IF(L7="",0,L7) -> 1 | M23: 1 | N23: 21 | O23: 1 | P23: 20 | Q23: 0 | R23: =IF(R7="",0,R7) -> 2 | T23: =IF(B7="",0,1) -> 1 | V23: =I23-N23 -> -1
A24: 2 | B24: =IF(isnad!I$3="","",isnad!I$3) -> مصطفى وردية | C24: =IF(isnad!I$3="","",isnad!I$7) -> ليسانس | D24: =IF(isnad!I$3="","",isnad!I$4) -> أستاذ تعليم ثانوي | E24: =IF(isnad!I$3="","",isnad!I$6) -> مرسم | F24: =IF(isnad!I$3="","",isnad!I$8) -> 2015-06-16 | G24: الأقسام | H24: عدد التلاميذ | I24: التوقيت | J24: =IF(isnad!I$3="","",isnad!H$41) -> 18 | K24: =IF(isnad!H$42=0,"",isnad!H$42) ->  | L24: =IF(isnad!H$43=0,"",isnad!H$43) -> 1 | M24: =IF(isnad!H$44=0,"",isnad!H$44) -> 1 | N24: =IF(isnad!H$45=0,"",isnad!H$45) -> 21 | O24: =IF(isnad!H$46=0,"",isnad!H$46) ->  | P24: =IF(isnad!H$47=0,"",isnad!H$47) -> 21 | Q24: =IF(isnad!H$48=0,"",isnad!H$48) ->  | R24: =IF(isnad!H$49=0,"",isnad!H$49) -> 3 | T24: =IF(B24="",0,1) -> 1 | U24: =IF(B24="",0,1) -> 1
G25: =IF(isnad!I$3="","",IF(isnad!H$81="","",isnad!H$81)) -> 2آف | H25: =IF(isnad!I$3="","",IF(isnad!I$81="","",isnad!I$81)) -> 24 | I25: =IF(isnad!I$3="","",IF(isnad!H$81="","",IF(isnad!K$81="",isnad!J$81,CONCATENATE(isnad!K$81,"+",isnad!J$81)))) -> 2 | T25: =IF(G25="",0,1) -> 1
B26: =IF(isnad!I$3="","",isnad!I$5) -> 1989-05-01 | G26: =IF(isnad!I$3="","",IF(isnad!H$82="","",isnad!H$82)) -> 2ع تج | H26: =IF(isnad!I$3="","",IF(isnad!I$82="","",isnad!I$82)) -> 29 | I26: =IF(isnad!I$3="","",IF(isnad!H$82="","",IF(isnad!K$82="",isnad!J$82,CONCATENATE(isnad!K$82,"+",isnad!J$82)))) -> 5 | T26: =IF(G26="",0,1) -> 1
G27: =IF(isnad!I$3="","",IF(isnad!H$83="","",isnad!H$83)) -> 3آف02 | H27: =IF(isnad!I$3="","",IF(isnad!I$83="","",isnad!I$83)) -> 18 | I27: =IF(isnad!I$3="","",IF(isnad!H$83="","",IF(isnad!K$83="",isnad!J$83,CONCATENATE(isnad!K$83,"+",isnad!J$83)))) -> 2 | T27: 1
G28: =IF(isnad!I$3="","",IF(isnad!H$84="","",isnad!H$84)) -> 3ع تج | H28: =IF(isnad!I$3="","",IF(isnad!I$84="","",isnad!I$84)) -> 27 | I28: =IF(isnad!I$3="","",IF(isnad!H$84="","",IF(isnad!K$84="",isnad!J$84,CONCATENATE(isnad!K$84,"+",isnad!J$84)))) -> 5 | T28: 1
G29: =IF(isnad!I$3="","",IF(isnad!H$85="","",isnad!H$85)) -> 3تر | H29: =IF(isnad!I$3="","",IF(isnad!I$85="","",isnad!I$85)) -> 13 | I29: =IF(isnad!I$3="","",IF(isnad!H$85="","",IF(isnad!K$85="",isnad!J$85,CONCATENATE(isnad!K$85,"+",isnad!J$85)))) -> 6 | T29: 1
G30: =IF(isnad!I$3="","",IF(isnad!H$86="","",isnad!H$86)) ->  | H30: =IF(isnad!I$3="","",IF(isnad!I$86="","",isnad!I$86)) ->  | I30: =IF(isnad!I$3="","",IF(isnad!H$86="","",IF(isnad!K$86="",isnad!J$86,CONCATENATE(isnad!K$86,"+",isnad!J$86)))) ->  | T30: 0
G31: =IF(isnad!I$3="","",IF(isnad!H$87="","",isnad!H$87)) ->  | H31: =IF(isnad!I$3="","",IF(isnad!I$87="","",isnad!I$87)) ->  | I31: =IF(isnad!I$3="","",IF(isnad!H$87="","",IF(isnad!K$87="",isnad!J$87,CONCATENATE(isnad!K$87,"+",isnad!J$87)))) ->  | T31: 0
G32: =IF(isnad!I$3="","",IF(isnad!H$88="","",isnad!H$88)) ->  | H32: =IF(isnad!I$3="","",IF(isnad!I$88="","",isnad!I$88)) ->  | I32: =IF(isnad!I$3="","",IF(isnad!H$88="","",IF(isnad!K$88="",isnad!J$88,CONCATENATE(isnad!K$88,"+",isnad!J$88)))) ->  | T32: 0
G33: =IF(isnad!I$3="","",IF(isnad!H$89="","",isnad!H$89)) ->  | H33: =IF(isnad!I$3="","",IF(isnad!I$89="","",isnad!I$89)) ->  | I33: =IF(isnad!I$3="","",IF(isnad!H$89="","",IF(isnad!K$89="",isnad!J$89,CONCATENATE(isnad!K$89,"+",isnad!J$89)))) ->  | T33: 0
G34: =IF(isnad!I$3="","",IF(isnad!H$90="","",isnad!H$90)) ->  | H34: =IF(isnad!I$3="","",IF(isnad!I$90="","",isnad!I$90)) ->  | I34: =IF(isnad!I$3="","",IF(isnad!H$90="","",IF(isnad!K$90="",isnad!J$90,CONCATENATE(isnad!K$90,"+",isnad!J$90)))) ->  | T34: 0
G35: =IF(isnad!I$3="","",IF(isnad!H$91="","",isnad!H$91)) ->  | H35: =IF(isnad!I$3="","",IF(isnad!I$91="","",isnad!I$91)) ->  | I35: =IF(isnad!I$3="","",IF(isnad!H$91="","",IF(isnad!K$91="",isnad!J$91,CONCATENATE(isnad!K$91,"+",isnad!J$91)))) ->  | T35: 0
G36: =IF(isnad!I$3="","",IF(isnad!H$92="","",isnad!H$92)) ->  | H36: =IF(isnad!I$3="","",IF(isnad!I$92="","",isnad!I$92)) ->  | I36: =IF(isnad!I$3="","",IF(isnad!H$92="","",IF(isnad!K$92="",isnad!J$92,CONCATENATE(isnad!K$92,"+",isnad!J$92)))) ->  | T36: 0
G37: =IF(isnad!I$3="","",IF(isnad!H$93="","",isnad!H$93)) ->  | H37: =IF(isnad!I$3="","",IF(isnad!I$93="","",isnad!I$93)) ->  | I37: =IF(isnad!I$3="","",IF(isnad!H$93="","",IF(isnad!K$93="",isnad!J$93,CONCATENATE(isnad!K$93,"+",isnad!J$93)))) ->  | T37: 0
G38: =IF(isnad!I$3="","",IF(isnad!H$94="","",isnad!H$94)) ->  | H38: =IF(isnad!I$3="","",IF(isnad!I$94="","",isnad!I$94)) ->  | I38: =IF(isnad!I$3="","",IF(isnad!H$94="","",IF(isnad!K$94="",isnad!J$94,CONCATENATE(isnad!K$94,"+",isnad!J$94)))) ->  | T38: 0
G39: =IF(isnad!I$3="","",IF(isnad!H$95="","",isnad!H$95)) ->  | H39: =IF(isnad!I$3="","",IF(isnad!I$95="","",isnad!I$95)) ->  | I39: =IF(isnad!I$3="","",IF(isnad!H$95="","",IF(isnad!K$95="",isnad!J$95,CONCATENATE(isnad!K$95,"+",isnad!J$95)))) ->  | T39: 0
G40: =COUNTIF(K25:K39,">""") -> 0 | H40: =SUM(H25:H39) -> 111 | I40: =IF(isnad!H$40="",0,isnad!H$40) -> 20 | J40: =IF(J24="",0,J24) -> 18 | K40: =IF(K24="",0,K24) -> 0 | L40: =IF(L24="",0,L24) -> 1 | M40: 1 | N40: 21 | O40: 0 | P40: 21 | Q40: 0 | R40: =IF(R24="",0,R24) -> 3 | T40: =IF(B24="",0,1) -> 1
A41: 3 | B41: =IF(isnad!M$3="","",isnad!M$3) -> زواوي حورية | C41: =IF(isnad!M$3="","",isnad!M$7) -> ليسانس | D41: =IF(isnad!M$3="","",isnad!M$4) -> أستاذ تعليم ثانوي | E41: =IF(isnad!M$3="","",isnad!M$6) -> مرسم | F41: =IF(isnad!M$3="","",isnad!M$8) -> 2017-06-21 | G41: الأقسام | H41: عدد التلاميذ | I41: التوقيت | J41: =IF(isnad!M$3="","",isnad!L$41) -> 18 | K41: =IF(isnad!L$42=0,"",isnad!L$42) ->  | L41: =IF(isnad!L$43=0,"",isnad!L$43) -> 1 | M41: =IF(isnad!L$44=0,"",isnad!L$44) -> 1 | N41: =IF(isnad!L$45=0,"",isnad!L$45) -> 21 | O41: =IF(isnad!L$46=0,"",isnad!L$46) ->  | P41: =IF(isnad!L$47=0,"",isnad!L$47) -> 21 | Q41: =IF(isnad!L$48=0,"",isnad!L$48) ->  | R41: =IF(isnad!L$49=0,"",isnad!L$49) -> 3 | T41: =IF(B41="",0,1) -> 1 | U41: =IF(B41="",0,1) -> 1
G42: =IF(isnad!M$3="","",IF(isnad!L$81="","",isnad!L$81)) -> 1ع تك01 | H42: =IF(isnad!M$3="","",IF(isnad!M$81="","",isnad!M$81)) -> 30 | I42: =IF(isnad!M$3="","",IF(isnad!L$81="","",IF(isnad!O$81="",isnad!N$81,CONCATENATE(isnad!O$81,"+",isnad!N$81)))) -> 6 | T42: =IF(G42="",0,1) -> 1
B43: =IF(isnad!M$3="","",isnad!M$5) -> 1989-09-17 | G43: =IF(isnad!M$3="","",IF(isnad!L$82="","",isnad!L$82)) -> 1ع تك02 | H43: =IF(isnad!M$3="","",IF(isnad!M$82="","",isnad!M$82)) -> 26 | I43: =IF(isnad!M$3="","",IF(isnad!L$82="","",IF(isnad!O$82="",isnad!N$82,CONCATENATE(isnad!O$82,"+",isnad!N$82)))) -> 6 | T43: =IF(G43="",0,1) -> 1
G44: =IF(isnad!M$3="","",IF(isnad!L$83="","",isnad!L$83)) -> 3آف01 | H44: =IF(isnad!M$3="","",IF(isnad!M$83="","",isnad!M$83)) -> 18 | I44: =IF(isnad!M$3="","",IF(isnad!L$83="","",IF(isnad!O$83="",isnad!N$83,CONCATENATE(isnad!O$83,"+",isnad!N$83)))) -> 2 | T44: 1
G45: =IF(isnad!M$3="","",IF(isnad!L$84="","",isnad!L$84)) -> 3لغ | H45: =IF(isnad!M$3="","",IF(isnad!M$84="","",isnad!M$84)) -> 14 | I45: =IF(isnad!M$3="","",IF(isnad!L$84="","",IF(isnad!O$84="",isnad!N$84,CONCATENATE(isnad!O$84,"+",isnad!N$84)))) -> 2 | T45: 1
G46: =IF(isnad!M$3="","",IF(isnad!L$85="","",isnad!L$85)) -> 3ت إ | H46: =IF(isnad!M$3="","",IF(isnad!M$85="","",isnad!M$85)) -> 18 | I46: =IF(isnad!M$3="","",IF(isnad!L$85="","",IF(isnad!O$85="",isnad!N$85,CONCATENATE(isnad!O$85,"+",isnad!N$85)))) -> 4 | T46: 1
G47: =IF(isnad!M$3="","",IF(isnad!L$86="","",isnad!L$86)) ->  | H47: =IF(isnad!M$3="","",IF(isnad!M$86="","",isnad!M$86)) ->  | I47: =IF(isnad!M$3="","",IF(isnad!L$86="","",IF(isnad!O$86="",isnad!N$86,CONCATENATE(isnad!O$86,"+",isnad!N$86)))) ->  | T47: 0
G48: =IF(isnad!M$3="","",IF(isnad!L$87="","",isnad!L$87)) ->  | H48: =IF(isnad!M$3="","",IF(isnad!M$87="","",isnad!M$87)) ->  | I48: =IF(isnad!M$3="","",IF(isnad!L$87="","",IF(isnad!O$87="",isnad!N$87,CONCATENATE(isnad!O$87,"+",isnad!N$87)))) ->  | T48: 0
G49: =IF(isnad!M$3="","",IF(isnad!L$88="","",isnad!L$88)) ->  | H49: =IF(isnad!M$3="","",IF(isnad!M$88="","",isnad!M$88)) ->  | I49: =IF(isnad!M$3="","",IF(isnad!L$88="","",IF(isnad!O$88="",isnad!N$88,CONCATENATE(isnad!O$88,"+",isnad!N$88)))) ->  | T49: 0
G50: =IF(isnad!M$3="","",IF(isnad!L$89="","",isnad!L$89)) ->  | H50: =IF(isnad!M$3="","",IF(isnad!M$89="","",isnad!M$89)) ->  | I50: =IF(isnad!M$3="","",IF(isnad!L$89="","",IF(isnad!O$89="",isnad!N$89,CONCATENATE(isnad!O$89,"+",isnad!N$89)))) ->  | T50: 0
G51: =IF(isnad!M$3="","",IF(isnad!L$90="","",isnad!L$90)) ->  | H51: =IF(isnad!M$3="","",IF(isnad!M$90="","",isnad!M$90)) ->  | I51: =IF(isnad!M$3="","",IF(isnad!L$90="","",IF(isnad!O$90="",isnad!N$90,CONCATENATE(isnad!O$90,"+",isnad!N$90)))) ->  | T51: 0
G52: =IF(isnad!M$3="","",IF(isnad!L$91="","",isnad!L$91)) ->  | H52: =IF(isnad!M$3="","",IF(isnad!M$91="","",isnad!M$91)) ->  | I52: =IF(isnad!M$3="","",IF(isnad!L$91="","",IF(isnad!O$91="",isnad!N$91,CONCATENATE(isnad!O$91,"+",isnad!N$91)))) ->  | T52: 0
G53: =IF(isnad!M$3="","",IF(isnad!L$92="","",isnad!L$92)) ->  | H53: =IF(isnad!M$3="","",IF(isnad!M$92="","",isnad!M$92)) ->  | I53: =IF(isnad!M$3="","",IF(isnad!L$92="","",IF(isnad!O$92="",isnad!N$92,CONCATENATE(isnad!O$92,"+",isnad!N$92)))) ->  | T53: 0
G54: =IF(isnad!M$3="","",IF(isnad!L$93="","",isnad!L$93)) ->  | H54: =IF(isnad!M$3="","",IF(isnad!M$93="","",isnad!M$93)) ->  | I54: =IF(isnad!M$3="","",IF(isnad!L$93="","",IF(isnad!O$93="",isnad!N$93,CONCATENATE(isnad!O$93,"+",isnad!N$93)))) ->  | T54: 0
G55: =IF(isnad!M$3="","",IF(isnad!L$94="","",isnad!L$94)) ->  | H55: =IF(isnad!M$3="","",IF(isnad!M$94="","",isnad!M$94)) ->  | I55: =IF(isnad!M$3="","",IF(isnad!L$94="","",IF(isnad!O$94="",isnad!N$94,CONCATENATE(isnad!O$94,"+",isnad!N$94)))) ->  | T55: 0
G56: =IF(isnad!M$3="","",IF(isnad!L$95="","",isnad!L$95)) ->  | H56: =IF(isnad!M$3="","",IF(isnad!M$95="","",isnad!M$95)) ->  | I56: =IF(isnad!M$3="","",IF(isnad!L$95="","",IF(isnad!O$95="",isnad!N$95,CONCATENATE(isnad!O$95,"+",isnad!N$95)))) ->  | T56: 0
G57: =COUNTIF(G42:G56,">""") -> 5 | H57: =SUM(H42:H56) -> 106 | I57: =IF(isnad!L$40="",0,isnad!L$40) -> 20 | J57: =IF(J41="",0,J41) -> 18 | K57: =IF(K41="",0,K41) -> 0 | L57: =IF(L41="",0,L41) -> 1 | M57: 1 | N57: 21 | O57: 0 | P57: 21 | Q57: 0 | R57: =IF(R41="",0,R41) -> 3 | T57: =IF(B41="",0,1) -> 1
A58: 4 | B58: =IF(isnad!Q$3="","",isnad!Q$3) ->  | C58: =IF(isnad!Q$3="","",isnad!Q$7) ->  | D58: =IF(isnad!Q$3="","",isnad!Q$4) ->  | E58: =IF(isnad!Q$3="","",isnad!Q$6) ->  | F58: =IF(isnad!Q$3="","",isnad!Q$8) ->  | G58: الأقسام | H58: عدد التلاميذ | I58: التوقيت | J58: =IF(isnad!Q$3="","",isnad!P$41) ->  | K58: =IF(isnad!P$42=0,"",isnad!P$42) ->  | L58: =IF(isnad!P$43=0,"",isnad!P$43) ->  | M58: =IF(isnad!P$44=0,"",isnad!P$44) ->  | N58: =IF(isnad!P$45=0,"",isnad!P$45) ->  | O58: =IF(isnad!P$46=0,"",isnad!P$46) ->  | P58: =IF(isnad!P$47=0,"",isnad!P$47) ->  | Q58: =IF(isnad!P$48=0,"",isnad!P$48) ->  | R58: =IF(isnad!P$49=0,"",isnad!P$49) ->  | T58: =IF(B58="",0,1) -> 0 | U58: =IF(B58="",0,1) -> 0
G59: =IF(isnad!Q$3="","",IF(isnad!P$81="","",isnad!P$81)) ->  | H59: =IF(isnad!Q$3="","",IF(isnad!Q$81="","",isnad!Q$81)) ->  | I59: =IF(isnad!Q$3="","",IF(isnad!P$81="","",IF(isnad!S$81="",isnad!R$81,CONCATENATE(isnad!S$81,"+",isnad!R$81)))) ->  | T59: =IF(G59="",0,1) -> 0
B60: =IF(isnad!Q$3="","",isnad!Q$5) ->  | G60: =IF(isnad!Q$3="","",IF(isnad!P$82="","",isnad!P$82)) ->  | H60: =IF(isnad!Q$3="","",IF(isnad!Q$82="","",isnad!Q$82)) ->  | I60: =IF(isnad!Q$3="","",IF(isnad!P$82="","",IF(isnad!S$82="",isnad!R$82,CONCATENATE(isnad!S$82,"+",isnad!R$82)))) ->  | T60: =IF(G60="",0,1) -> 0
G61: =IF(isnad!Q$3="","",IF(isnad!P$83="","",isnad!P$83)) ->  | H61: =IF(isnad!Q$3="","",IF(isnad!Q$83="","",isnad!Q$83)) ->  | I61: =IF(isnad!Q$3="","",IF(isnad!P$83="","",IF(isnad!S$83="",isnad!R$83,CONCATENATE(isnad!S$83,"+",isnad!R$83)))) ->  | T61: 0
G62: =IF(isnad!Q$3="","",IF(isnad!P$84="","",isnad!P$84)) ->  | H62: =IF(isnad!Q$3="","",IF(isnad!Q$84="","",isnad!Q$84)) ->  | I62: =IF(isnad!Q$3="","",IF(isnad!P$84="","",IF(isnad!S$84="",isnad!R$84,CONCATENATE(isnad!S$84,"+",isnad!R$84)))) ->  | T62: 0
G63: =IF(isnad!Q$3="","",IF(isnad!P$85="","",isnad!P$85)) ->  | H63: =IF(isnad!Q$3="","",IF(isnad!Q$85="","",isnad!Q$85)) ->  | I63: =IF(isnad!Q$3="","",IF(isnad!P$85="","",IF(isnad!S$85="",isnad!R$85,CONCATENATE(isnad!S$85,"+",isnad!R$85)))) ->  | T63: 0
G64: =IF(isnad!Q$3="","",IF(isnad!P$86="","",isnad!P$86)) ->  | H64: =IF(isnad!Q$3="","",IF(isnad!Q$86="","",isnad!Q$86)) ->  | I64: =IF(isnad!Q$3="","",IF(isnad!P$86="","",IF(isnad!S$86="",isnad!R$86,CONCATENATE(isnad!S$86,"+",isnad!R$86)))) ->  | T64: 0
G65: =IF(isnad!Q$3="","",IF(isnad!P$87="","",isnad!P$87)) ->  | H65: =IF(isnad!Q$3="","",IF(isnad!Q$87="","",isnad!Q$87)) ->  | I65: =IF(isnad!Q$3="","",IF(isnad!P$87="","",IF(isnad!S$87="",isnad!R$87,CONCATENATE(isnad!S$87,"+",isnad!R$87)))) ->  | T65: 0
G66: =IF(isnad!Q$3="","",IF(isnad!P$88="","",isnad!P$88)) ->  | H66: =IF(isnad!Q$3="","",IF(isnad!Q$88="","",isnad!Q$88)) ->  | I66: =IF(isnad!Q$3="","",IF(isnad!P$88="","",IF(isnad!S$88="",isnad!R$88,CONCATENATE(isnad!S$88,"+",isnad!R$88)))) ->  | T66: 0
G67: =IF(isnad!Q$3="","",IF(isnad!P$89="","",isnad!P$89)) ->  | H67: =IF(isnad!Q$3="","",IF(isnad!Q$89="","",isnad!Q$89)) ->  | I67: =IF(isnad!Q$3="","",IF(isnad!P$89="","",IF(isnad!S$89="",isnad!R$89,CONCATENATE(isnad!S$89,"+",isnad!R$89)))) ->  | T67: 0
G68: =IF(isnad!Q$3="","",IF(isnad!P$90="","",isnad!P$90)) ->  | H68: =IF(isnad!Q$3="","",IF(isnad!Q$90="","",isnad!Q$90)) ->  | I68: =IF(isnad!Q$3="","",IF(isnad!P$90="","",IF(isnad!S$90="",isnad!R$90,CONCATENATE(isnad!S$90,"+",isnad!R$90)))) ->  | T68: 0
G69: =IF(isnad!Q$3="","",IF(isnad!P$91="","",isnad!P$91)) ->  | H69: =IF(isnad!Q$3="","",IF(isnad!Q$91="","",isnad!Q$91)) ->  | I69: =IF(isnad!Q$3="","",IF(isnad!P$91="","",IF(isnad!S$91="",isnad!R$91,CONCATENATE(isnad!S$91,"+",isnad!R$91)))) ->  | T69: 0
G70: =IF(isnad!Q$3="","",IF(isnad!P$92="","",isnad!P$92)) ->  | H70: =IF(isnad!Q$3="","",IF(isnad!Q$92="","",isnad!Q$92)) ->  | I70: =IF(isnad!Q$3="","",IF(isnad!P$92="","",IF(isnad!S$92="",isnad!R$92,CONCATENATE(isnad!S$92,"+",isnad!R$92)))) ->  | T70: 0
G71: =IF(isnad!Q$3="","",IF(isnad!P$93="","",isnad!P$93)) ->  | H71: =IF(isnad!Q$3="","",IF(isnad!Q$93="","",isnad!Q$93)) ->  | I71: =IF(isnad!Q$3="","",IF(isnad!P$93="","",IF(isnad!S$93="",isnad!R$93,CONCATENATE(isnad!S$93,"+",isnad!R$93)))) ->  | T71: 0
G72: =IF(isnad!Q$3="","",IF(isnad!P$94="","",isnad!P$94)) ->  | H72: =IF(isnad!Q$3="","",IF(isnad!Q$94="","",isnad!Q$94)) ->  | I72: =IF(isnad!Q$3="","",IF(isnad!P$94="","",IF(isnad!S$94="",isnad!R$94,CONCATENATE(isnad!S$94,"+",isnad!R$94)))) ->  | T72: 0
G73: =IF(isnad!Q$3="","",IF(isnad!P$95="","",isnad!P$95)) ->  | H73: =IF(isnad!Q$3="","",IF(isnad!Q$95="","",isnad!Q$95)) ->  | I73: =IF(isnad!Q$3="","",IF(isnad!P$95="","",IF(isnad!S$95="",isnad!R$95,CONCATENATE(isnad!S$95,"+",isnad!R$95)))) ->  | T73: 0
G74: =COUNTIF(G59:G73,">""") -> 0 | H74: =SUM(H59:H73) -> 0 | I74: =IF(isnad!P$40="",0,isnad!P$40) -> 0 | J74: =IF(J58="",0,J58) -> 0 | K74: =IF(K58="",0,K58) -> 0 | L74: =IF(L58="",0,L58) -> 0 | M74: 0 | N74: 0 | O74: 0 | P74: 0 | Q74: 0 | R74: =IF(R58="",0,R58) -> 0 | T74: =IF(B58="",0,1) -> 0
A75: 5 | B75: =IF(isnad!U$3="","",isnad!U$3) ->  | C75: =IF(isnad!U$3="","",isnad!U$7) ->  | D75: =IF(isnad!U$3="","",isnad!U$4) ->  | E75: =IF(isnad!U$3="","",isnad!U$6) ->  | F75: =IF(isnad!U$3="","",isnad!U$8) ->  | G75: الأقسام | H75: عدد التلاميذ | I75: التوقيت | J75: =IF(isnad!U$3="","",isnad!T$41) ->  | K75: =IF(isnad!T$42=0,"",isnad!T$42) ->  | L75: =IF(isnad!T$43=0,"",isnad!T$43) ->  | M75: =IF(isnad!T$44=0,"",isnad!T$44) ->  | N75: =IF(isnad!T$45=0,"",isnad!T$45) ->  | O75: =IF(isnad!T$46=0,"",isnad!T$46) ->  | P75: =IF(isnad!T$47=0,"",isnad!T$47) ->  | Q75: =IF(isnad!T$48=0,"",isnad!T$48) ->  | R75: =IF(isnad!T$49=0,"",isnad!T$49) ->  | T75: =IF(B75="",0,1) -> 0 | U75: =IF(B75="",0,1) -> 0
G76: =IF(isnad!U$3="","",IF(isnad!T$81="","",isnad!T$81)) ->  | H76: =IF(isnad!U$3="","",IF(isnad!U$81="","",isnad!U$81)) ->  | I76: =IF(isnad!U$3="","",IF(isnad!T$81="","",IF(isnad!W$81="",isnad!V$81,CONCATENATE(isnad!W$81,"+",isnad!V$81)))) ->  | T76: =IF(G76="",0,1) -> 0
B77: =IF(isnad!U$3="","",isnad!U$5) ->  | G77: =IF(isnad!U$3="","",IF(isnad!T$82="","",isnad!T$82)) ->  | H77: =IF(isnad!U$3="","",IF(isnad!U$82="","",isnad!U$82)) ->  | I77: =IF(isnad!U$3="","",IF(isnad!T$82="","",IF(isnad!W$82="",isnad!V$82,CONCATENATE(isnad!W$82,"+",isnad!V$82)))) ->  | T77: =IF(G77="",0,1) -> 0
G78: =IF(isnad!U$3="","",IF(isnad!T$83="","",isnad!T$83)) ->  | H78: =IF(isnad!U$3="","",IF(isnad!U$83="","",isnad!U$83)) ->  | I78: =IF(isnad!U$3="","",IF(isnad!T$83="","",IF(isnad!W$83="",isnad!V$83,CONCATENATE(isnad!W$83,"+",isnad!V$83)))) ->  | T78: 0
G79: =IF(isnad!U$3="","",IF(isnad!T$84="","",isnad!T$84)) ->  | H79: =IF(isnad!U$3="","",IF(isnad!U$84="","",isnad!U$84)) ->  | I79: =IF(isnad!U$3="","",IF(isnad!T$84="","",IF(isnad!W$84="",isnad!V$84,CONCATENATE(isnad!W$84,"+",isnad!V$84)))) ->  | T79: 0
G80: =IF(isnad!U$3="","",IF(isnad!T$85="","",isnad!T$85)) ->  | H80: =IF(isnad!U$3="","",IF(isnad!U$85="","",isnad!U$85)) ->  | I80: =IF(isnad!U$3="","",IF(isnad!T$85="","",IF(isnad!W$85="",isnad!V$85,CONCATENATE(isnad!W$85,"+",isnad!V$85)))) ->  | T80: 0
G81: =IF(isnad!U$3="","",IF(isnad!T$86="","",isnad!T$86)) ->  | H81: =IF(isnad!U$3="","",IF(isnad!U$86="","",isnad!U$86)) ->  | I81: =IF(isnad!U$3="","",IF(isnad!T$86="","",IF(isnad!W$86="",isnad!V$86,CONCATENATE(isnad!W$86,"+",isnad!V$86)))) ->  | T81: 0
G82: =IF(isnad!U$3="","",IF(isnad!T$87="","",isnad!T$87)) ->  | H82: =IF(isnad!U$3="","",IF(isnad!U$87="","",isnad!U$87)) ->  | I82: =IF(isnad!U$3="","",IF(isnad!T$87="","",IF(isnad!W$87="",isnad!V$87,CONCATENATE(isnad!W$87,"+",isnad!V$87)))) ->  | T82: 0
G83: =IF(isnad!U$3="","",IF(isnad!T$88="","",isnad!T$88)) ->  | H83: =IF(isnad!U$3="","",IF(isnad!U$88="","",isnad!U$88)) ->  | I83: =IF(isnad!U$3="","",IF(isnad!T$88="","",IF(isnad!W$88="",isnad!V$88,CONCATENATE(isnad!W$88,"+",isnad!V$88)))) ->  | T83: 0
G84: =IF(isnad!U$3="","",IF(isnad!T$89="","",isnad!T$89)) ->  | H84: =IF(isnad!U$3="","",IF(isnad!U$89="","",isnad!U$89)) ->  | I84: =IF(isnad!U$3="","",IF(isnad!T$89="","",IF(isnad!W$89="",isnad!V$89,CONCATENATE(isnad!W$89,"+",isnad!V$89)))) ->  | T84: 0
G85: =IF(isnad!U$3="","",IF(isnad!T$90="","",isnad!T$90)) ->  | H85: =IF(isnad!U$3="","",IF(isnad!U$90="","",isnad!U$90)) ->  | I85: =IF(isnad!U$3="","",IF(isnad!T$90="","",IF(isnad!W$90="",isnad!V$90,CONCATENATE(isnad!W$90,"+",isnad!V$90)))) ->  | T85: 0
